Workbook

Sheet Report - ALL (DASHBOARD)
A2: Dashboard | B2: Select Parameter: | F2: Select Statistic: | I2: Select Seasonal Period: | L2: Do you want to convert CFS values to TAF/Mon? | W2: 5
W3: 1
W4: 12
L5: News | W5: FALSE
L6: - parameter list updated to include all items on the appendix list (in addition to other locations of interest)
L7: - year type sorting is now done by calendar year
L8: - year type sorting is provided for 60-20-20 index as well as 40-30-30 index
L9: - format modified to be consistent with appendix reports
L10: - check out the new spinners!
B13: =CONCATENATE('Report Data'!$P$7," / seasonal statistics (",$W$2,"-",$W$3,"-",$W$4,"-",IF(NOT($W$5),1,2),"a):") -> Shasta Storage / seasonal statistics (5-1-12-1a):
C17: ='Report Data'!P6 -> September
C18: ='Report Data'!P7 -> Shasta Storage
C19: ='Report Data'!P9 -> (S4/STORAGE)
C20: ='Report Data'!P8 -> Averages
C21: ='Report Data'!P11 -> Volume (TAF) | F21: =CONCATENATE("Difference from ",'Report Data'!Q13) -> Difference from NAA 011221
C25: =IF('Report Data'!O14=0,"",'Report Data'!O14) -> NAA 011221 | E25: =IFERROR('Report Data'!P14,"") -> 2890.082635
C26: =IF('Report Data'!O15=0,"",'Report Data'!O15) -> ALT 1B 011221 | E26: =IFERROR('Report Data'!P15,"") -> 2918.561459 | F26: =IFERROR('Report Data'!Q15,"") -> 28.47882406
C27: =IF('Report Data'!O16=0,"",'Report Data'!O16) -> ALT1B 011221 NoFW | E27: =IFERROR('Report Data'!P16,"") -> 2927.794203 | F27: =IFERROR('Report Data'!Q16,"") -> 37.71156823
C28: =IF('Report Data'!O17=0,"",'Report Data'!O17) -> ALT1B 011221 NoFW WS10.7k AM | E28: =IFERROR('Report Data'!P17,"") -> 2926.963764 | F28: =IFERROR('Report Data'!Q17,"") -> 36.8811289
C29: =IF('Report Data'!O18=0,"",'Report Data'!O18) -> ALT1B 011221 NoFW WS10.7k | E29: =IFERROR('Report Data'!P18,"") -> 2911.459389 | F29: =IFERROR('Report Data'!Q18,"") -> 21.37675361
C30: =IF('Report Data'!O19=0,"",'Report Data'!O19) -> ALT1B 011221 NoFW NoPPZ WS10.7k | E30: =IFERROR('Report Data'!P19,"") -> 2924.500642 | F30: =IFERROR('Report Data'!Q19,"") -> 34.41800633
C31: =IF('Report Data'!O20=0,"",'Report Data'!O20) -> ALT 1B MAM NoFW NoPPZ WS10.7k | E31: =IFERROR('Report Data'!P20,"") -> 2917.027388 | F31: =IFERROR('Report Data'!Q20,"") -> 26.9447531
C32: =IF('Report Data'!O21=0,"",'Report Data'!O21) -> ALT 1B MAM NoFW WS10.7k | E32: =IFERROR('Report Data'!P21,"") -> 2914.718945 | F32: =IFERROR('Report Data'!Q21,"") -> 24.63630943
C33: =IF('Report Data'!O22=0,"",'Report Data'!O22) -> ALT 1B NoFW MAM NoPPZ WS10.7k | E33: =IFERROR('Report Data'!P22,"") -> 2927.612938 | F33: =IFERROR('Report Data'!Q22,"") -> 37.53030274
C34: =IF('Report Data'!O23=0,"",'Report Data'!O23) -> ALT 1B NoFW MAM WS10.7k | E34: =IFERROR('Report Data'!P23,"") -> 2926.416032 | F34: =IFERROR('Report Data'!Q23,"") -> 36.33339712
B62: =CONCATENATE('Report Data'!$P$7," / monthly statistics (",$W$2,"-",$W$3,"-",$W$4,"-",IF(NOT($W$5),1,2),"b):") -> Shasta Storage / monthly statistics (5-1-12-1b):
B90: =CONCATENATE('Report Data'!$P$7," / time series (",$W$2,"-",$W$3,"-",$W$4,"-",IF(NOT($W$5),1,2),"c):") -> Shasta Storage / time series (5-1-12-1c):

Sheet Chart - Prob Exc
S2: Select Parameter: | X2: Select Statistic: | AB2: Select Seasonal Period: | AE2: Do you want to convert CFS values to TAF/Mon?

Sheet Chart - Pattern
S2: Select Parameter: | X2: Select Statistic: | AB2: Select Seasonal Period: | AE2: Do you want to convert CFS values to TAF/Mon?

Sheet Chart - WYT
S2: Select Parameter: | X2: Select Statistic: | AB2: Select Seasonal Period: | AE2: Do you want to convert CFS values to TAF/Mon?

Sheet Report Data
A2: Information, Tables and Calculations for Reports
A4: Table of Selected Values for Monthly Chart: | O4: Trend Evaluation: | U4: Water Year Type Averages:
A6: Title: | B6: ='Compile Data'!$B$5 -> Shasta Storage | O6: Title: | P6: =INDEX(Other!$B$9:$B$33,'Report - ALL (DASHBOARD)'!$W$4) -> September | U6: Title: | V6: =INDEX(Other!$B$9:$B$33,'Report - ALL (DASHBOARD)'!$W$4) -> September
B7: =INDEX(Other!$C$9:$C$35,'Report - ALL (DASHBOARD)'!$W$3) -> Averages | P7: ='Compile Data'!$B$5 -> Shasta Storage | V7: ='Compile Data'!$B$5 -> Shasta Storage
B8: =CONCATENATE("(",'Compile Data'!$B$6,"/",'Compile Data'!$B$7,")") -> (S4/STORAGE) | P8: =CONCATENATE(INDEX(Other!$C$9:$C$35,'Report - ALL (DASHBOARD)'!$W$3)," ",IF('Report - ALL (DASHBOARD)'!$W$3>4,IF(AND('Compile Data'!$B$10="TAF",'Compile Data'!$B$8="PER-AVER"),"Totals","Averages"),"")) -> Averages | V8: =CONCATENATE(INDEX(Other!$C$9:$C$35,'Report - ALL (DASHBOARD)'!$W$3)," ",IF('Report - ALL (DASHBOARD)'!$W$3>4,IF(AND('Compile Data'!$B$10="TAF",'Compile Data'!$B$8="PER-AVER"),"Totals","Averages"),"")) -> Averages
P9: =CONCATENATE("(",'Compile Data'!$B$6,"/",'Compile Data'!$B$7,")") -> (S4/STORAGE) | V9: =CONCATENATE("(",'Compile Data'!$B$6,"/",'Compile Data'!$B$7,")") -> (S4/STORAGE)
A11: Y-axis: | B11: =IF('Compile Data'!$B$10="CFS","Flow (CFS)",IF('Compile Data'!$B$10="TAF","Volume (TAF)",IF('Compile Data'!$B$10="KM","POSITION (KM)",""))) -> Volume (TAF) | P11: =IF('Compile Data'!$B$10="CFS","Flow (CFS)",IF('Compile Data'!$B$10="TAF","Volume (TAF)",IF('Compile Data'!$B$10="KM","POSITION (KM)",""))) -> Volume (TAF) | V11: =IF('Compile Data'!$B$10="CFS","Flow (CFS)",IF('Compile Data'!$B$10="TAF","Volume (TAF)",IF('Compile Data'!$B$10="KM","POSITION (KM)",""))) -> Volume (TAF)
Q12: Diff from | R12: Diff from
B13: OCT | C13: NOV | D13: DEC | E13: JAN | F13: FEB | G13: MAR | H13: APR | I13: MAY | J13: JUN | K13: JUL | L13: AUG | M13: SEP | P13: Value | Q13: =$O$14 -> NAA 011221 | R13: =$O$15 -> ALT 1B 011221 | V13: Wet | W13: Above Normal | X13: Below Normal | Y13: Dry | Z13: Critically Dry
A14: ='Compile Data'!$B$1 -> NAA 011221 | B14: =INDEX('Compile Data'!P$95:P$120,'Report - ALL (DASHBOARD)'!$W$3) -> 2792.985359 | C14: =INDEX('Compile Data'!Q$95:Q$120,'Report - ALL (DASHBOARD)'!$W$3) -> 2787.718886 | D14: =INDEX('Compile Data'!R$95:R$120,'Report - ALL (DASHBOARD)'!$W$3) -> 2914.473599 | E14: =INDEX('Compile Data'!S$95:S$120,'Report - ALL (DASHBOARD)'!$W$3) -> 3156.698892 | F14: =INDEX('Compile Data'!T$95:T$120,'Report - ALL (DASHBOARD)'!$W$3) -> 3392.931591 | G14: =INDEX('Compile Data'!U$95:U$120,'Report - ALL (DASHBOARD)'!$W$3) -> 3737.645085 | H14: =INDEX('Compile Data'!V$95:V$120,'Report - ALL (DASHBOARD)'!$W$3) -> 4098.869725 | I14: =INDEX('Compile Data'!W$95:W$120,'Report - ALL (DASHBOARD)'!$W$3) -> 4091.204852 | J14: =INDEX('Compile Data'!X$95:X$120,'Report - ALL (DASHBOARD)'!$W$3) -> 3823.002799 | K14: =INDEX('Compile Data'!Y$95:Y$120,'Report - ALL (DASHBOARD)'!$W$3) -> 3353.734363 | L14: =INDEX('Compile Data'!Z$95:Z$120,'Report - ALL (DASHBOARD)'!$W$3) -> 3028.584778 | M14: =INDEX('Compile Data'!AA$95:AA$120,'Report - ALL (DASHBOARD)'!$W$3) -> 2890.082635 | O14: ='Compile Data'!$B$1 -> NAA 011221 | P14: =INDEX('Compile Data'!$P$95:$AM$120,'Report - ALL (DASHBOARD)'!$W$3,'Report - ALL (DASHBOARD)'!$W$4) -> 2890.082635 | U14: ='Compile Data'!$B$1 -> NAA 011221 | V14: =INDEX('Compile Data'!$P$95:$AM$120,14,'Report - ALL (DASHBOARD)'!$W$4) -> 3303.692814 | W14: =INDEX('Compile Data'!$P$95:$AM$120,15,'Report - ALL (DASHBOARD)'!$W$4) -> 3100.829307 | X14: =INDEX('Compile Data'!$P$95:$AM$120,16,'Report - ALL (DASHBOARD)'!$W$4) -> 3024.176946 | Y14: =INDEX('Compile Data'!$P$95:$AM$120,17,'Report - ALL (DASHBOARD)'!$W$4) -> 2753.781964 | Z14: =INDEX('Compile Data'!$P$95:$AM$120,18,'Report - ALL (DASHBOARD)'!$W$4) -> 1831.188221
A15: ='Compile Data'!$C$1 -> ALT 1B 011221 | B15: =INDEX('Compile Data'!AP$95:AP$120,'Report - ALL (DASHBOARD)'!$W$3) -> 2816.132204 | C15: =INDEX('Compile Data'!AQ$95:AQ$120,'Report - ALL (DASHBOARD)'!$W$3) -> 2805.50088 | D15: =INDEX('Compile Data'!AR$95:AR$120,'Report - ALL (DASHBOARD)'!$W$3) -> 2930.076832 | E15: =INDEX('Compile Data'!AS$95:AS$120,'Report - ALL (DASHBOARD)'!$W$3) -> 3170.835275 | F15: =INDEX('Compile Data'!AT$95:AT$120,'Report - ALL (DASHBOARD)'!$W$3) -> 3403.80169 | G15: =INDEX('Compile Data'!AU$95:AU$120,'Report - ALL (DASHBOARD)'!$W$3) -> 3747.884722 | H15: =INDEX('Compile Data'!AV$95:AV$120,'Report - ALL (DASHBOARD)'!$W$3) -> 4111.498447 | I15: =INDEX('Compile Data'!AW$95:AW$120,'Report - ALL (DASHBOARD)'!$W$3) -> 4120.124033 | J15: =INDEX('Compile Data'!AX$95:AX$120,'Report - ALL (DASHBOARD)'!$W$3) -> 3864.841904 | K15: =INDEX('Compile Data'!AY$95:AY$120,'Report - ALL (DASHBOARD)'!$W$3) -> 3393.575296 | L15: =INDEX('Compile Data'!AZ$95:AZ$120,'Report - ALL (DASHBOARD)'!$W$3) -> 3065.485482 | M15: =INDEX('Compile Data'!BA$95:BA$120,'Report - ALL (DASHBOARD)'!$W$3) -> 2918.561459 | O15: ='Compile Data'!$C$1 -> ALT 1B 011221 | P15: =INDEX('Compile Data'!$AP$95:$BM$120,'Report - ALL (DASHBOARD)'!$W$3,'Report - ALL (DASHBOARD)'!$W$4) -> 2918.561459 | Q15: =$P15-$P$14 -> 28.47882406 | U15: ='Compile Data'!$C$1 -> ALT 1B 011221 | V15: =INDEX('Compile Data'!$AP$95:$BM$120,14,'Report - ALL (DASHBOARD)'!$W$4) -> 3304.671854 | W15: =INDEX('Compile Data'!$AP$95:$BM$120,15,'Report - ALL (DASHBOARD)'!$W$4) -> 3146.831658 | X15: =INDEX('Compile Data'!$AP$95:$BM$120,16,'Report - ALL (DASHBOARD)'!$W$4) -> 3065.244161 | Y15: =INDEX('Compile Data'!$AP$95:$BM$120,17,'Report - ALL (DASHBOARD)'!$W$4) -> 2779.305582 | Z15: =INDEX('Compile Data'!$AP$95:$BM$120,18,'Report - ALL (DASHBOARD)'!$W$4) -> 1891.472737
A16: ='Compile Data'!$D$1 -> ALT1B 011221 NoFW | B16: =INDEX('Compile Data'!BP$95:BP$120,'Report - ALL (DASHBOARD)'!$W$3) -> 2826.238422 | C16: =INDEX('Compile Data'!BQ$95:BQ$120,'Report - ALL (DASHBOARD)'!$W$3) -> 2816.331204 | D16: =INDEX('Compile Data'!BR$95:BR$120,'Report - ALL (DASHBOARD)'!$W$3) -> 2936.368795 | E16: =INDEX('Compile Data'!BS$95:BS$120,'Report - ALL (DASHBOARD)'!$W$3) -> 3177.30722 | F16: =INDEX('Compile Data'!BT$95:BT$120,'Report - ALL (DASHBOARD)'!$W$3) -> 3408.658871 | G16: =INDEX('Compile Data'!BU$95:BU$120,'Report - ALL (DASHBOARD)'!$W$3) -> 3751.92518 | H16: =INDEX('Compile Data'!BV$95:BV$120,'Report - ALL (DASHBOARD)'!$W$3) -> 4118.327643 | I16: =INDEX('Compile Data'!BW$95:BW$120,'Report - ALL (DASHBOARD)'!$W$3) -> 4127.79643 | J16: =INDEX('Compile Data'!BX$95:BX$120,'Report - ALL (DASHBOARD)'!$W$3) -> 3874.109583 | K16: =INDEX('Compile Data'!BY$95:BY$120,'Report - ALL (DASHBOARD)'!$W$3) -> 3402.324073 | L16: =INDEX('Compile Data'!BZ$95:BZ$120,'Report - ALL (DASHBOARD)'!$W$3) -> 3074.278684 | M16: =INDEX('Compile Data'!CA$95:CA$120,'Report - ALL (DASHBOARD)'!$W$3) -> 2927.794203 | O16: ='Compile Data'!$D$1 -> ALT1B 011221 NoFW | P16: =INDEX('Compile Data'!$BP$95:$CM$120,'Report - ALL (DASHBOARD)'!$W$3,'Report - ALL (DASHBOARD)'!$W$4) -> 2927.794203 | Q16: 37.71156823 | R16: =$P16-$P$15 -> 9.232744163 | U16: ='Compile Data'!$D$1 -> ALT1B 011221 NoFW | V16: =INDEX('Compile Data'!$BP$95:$CM$120,14,'Report - ALL (DASHBOARD)'!$W$4) -> 3304.990742 | W16: =INDEX('Compile Data'!$BP$95:$CM$120,15,'Report - ALL (DASHBOARD)'!$W$4) -> 3151.422877 | X16: =INDEX('Compile Data'!$BP$95:$CM$120,16,'Report - ALL (DASHBOARD)'!$W$4) -> 3076.482833 | Y16: =INDEX('Compile Data'!$BP$95:$CM$120,17,'Report - ALL (DASHBOARD)'!$W$4) -> 2800.57848 | Z16: =INDEX('Compile Data'!$BP$95:$CM$120,18,'Report - ALL (DASHBOARD)'!$W$4) -> 1904.259881
A17: ='Compile Data'!$E$1 -> ALT1B 011221 NoFW WS10.7k AM | B17: =INDEX('Compile Data'!CP$95:CP$120,'Report - ALL (DASHBOARD)'!$W$3) -> 2825.317078 | C17: =INDEX('Compile Data'!CQ$95:CQ$120,'Report - ALL (DASHBOARD)'!$W$3) -> 2816.567038 | D17: =INDEX('Compile Data'!CR$95:CR$120,'Report - ALL (DASHBOARD)'!$W$3) -> 2937.131643 | E17: =INDEX('Compile Data'!CS$95:CS$120,'Report - ALL (DASHBOARD)'!$W$3) -> 3177.144917 | F17: =INDEX('Compile Data'!CT$95:CT$120,'Report - ALL (DASHBOARD)'!$W$3) -> 3408.532458 | G17: =INDEX('Compile Data'!CU$95:CU$120,'Report - ALL (DASHBOARD)'!$W$3) -> 3751.807517 | H17: =INDEX('Compile Data'!CV$95:CV$120,'Report - ALL (DASHBOARD)'!$W$3) -> 4117.870868 | I17: =INDEX('Compile Data'!CW$95:CW$120,'Report - ALL (DASHBOARD)'!$W$3) -> 4126.758421 | J17: =INDEX('Compile Data'!CX$95:CX$120,'Report - ALL (DASHBOARD)'!$W$3) -> 3873.096941 | K17: =INDEX('Compile Data'!CY$95:CY$120,'Report - ALL (DASHBOARD)'!$W$3) -> 3401.307459 | L17: =INDEX('Compile Data'!CZ$95:CZ$120,'Report - ALL (DASHBOARD)'!$W$3) -> 3073.329748 | M17: =INDEX('Compile Data'!DA$95:DA$120,'Report - ALL (DASHBOARD)'!$W$3) -> 2926.963764 | O17: ='Compile Data'!$E$1 -> ALT1B 011221 NoFW WS10.7k AM | P17: =INDEX('Compile Data'!$CP$95:$DM$120,'Report - ALL (DASHBOARD)'!$W$3,'Report - ALL (DASHBOARD)'!$W$4) -> 2926.963764 | Q17: 36.8811289 | R17: 8.402304841 | U17: ='Compile Data'!$E$1 -> ALT1B 011221 NoFW WS10.7k AM | V17: =INDEX('Compile Data'!$CP$95:$DM$120,14,'Report - ALL (DASHBOARD)'!$W$4) -> 3304.484822 | W17: =INDEX('Compile Data'!$CP$95:$DM$120,15,'Report - ALL (DASHBOARD)'!$W$4) -> 3151.17865 | X17: =INDEX('Compile Data'!$CP$95:$DM$120,16,'Report - ALL (DASHBOARD)'!$W$4) -> 3072.52248 | Y17: =INDEX('Compile Data'!$CP$95:$DM$120,17,'Report - ALL (DASHBOARD)'!$W$4) -> 2800.598058 | Z17: =INDEX('Compile Data'!$CP$95:$DM$120,18,'Report - ALL (DASHBOARD)'!$W$4) -> 1904.516643
A18: ='Compile Data'!$F$1 -> ALT1B 011221 NoFW WS10.7k | B18: =INDEX('Compile Data'!DP$95:DP$120,'Report - ALL (DASHBOARD)'!$W$3) -> 2810.296104 | C18: =INDEX('Compile Data'!DQ$95:DQ$120,'Report - ALL (DASHBOARD)'!$W$3) -> 2796.056142 | D18: =INDEX('Compile Data'!DR$95:DR$120,'Report - ALL (DASHBOARD)'!$W$3) -> 2918.698115 | E18: =INDEX('Compile Data'!DS$95:DS$120,'Report - ALL (DASHBOARD)'!$W$3) -> 3161.382569 | F18: =INDEX('Compile Data'!DT$95:DT$120,'Report - ALL (DASHBOARD)'!$W$3) -> 3397.643565 | G18: =INDEX('Compile Data'!DU$95:DU$120,'Report - ALL (DASHBOARD)'!$W$3) -> 3743.99373 | H18: =INDEX('Compile Data'!DV$95:DV$120,'Report - ALL (DASHBOARD)'!$W$3) -> 4107.109025 | I18: =INDEX('Compile Data'!DW$95:DW$120,'Report - ALL (DASHBOARD)'!$W$3) -> 4113.77668 | J18: =INDEX('Compile Data'!DX$95:DX$120,'Report - ALL (DASHBOARD)'!$W$3) -> 3859.020993 | K18: =INDEX('Compile Data'!DY$95:DY$120,'Report - ALL (DASHBOARD)'!$W$3) -> 3384.953811 | L18: =INDEX('Compile Data'!DZ$95:DZ$120,'Report - ALL (DASHBOARD)'!$W$3) -> 3055.741386 | M18: =INDEX('Compile Data'!EA$95:EA$120,'Report - ALL (DASHBOARD)'!$W$3) -> 2911.459389 | O18: ='Compile Data'!$F$1 -> ALT1B 011221 NoFW WS10.7k | P18: =INDEX('Compile Data'!$DP$95:$EM$120,'Report - ALL (DASHBOARD)'!$W$3,'Report - ALL (DASHBOARD)'!$W$4) -> 2911.459389 | Q18: =$P18-$P$14 -> 21.37675361 | R18: -7.102070457 | U18: ='Compile Data'!$F$1 -> ALT1B 011221 NoFW WS10.7k | V18: =INDEX('Compile Data'!$DP$95:$EM$120,14,'Report - ALL (DASHBOARD)'!$W$4) -> 3305.976818 | W18: =INDEX('Compile Data'!$DP$95:$EM$120,15,'Report - ALL (DASHBOARD)'!$W$4) -> 3144.697909 | X18: =INDEX('Compile Data'!$DP$95:$EM$120,16,'Report - ALL (DASHBOARD)'!$W$4) -> 3042.131001 | Y18: =INDEX('Compile Data'!$DP$95:$EM$120,17,'Report - ALL (DASHBOARD)'!$W$4) -> 2780.121952 | Z18: =INDEX('Compile Data'!$DP$95:$EM$120,18,'Report - ALL (DASHBOARD)'!$W$4) -> 1867.989046
A19: ='Compile Data'!$G$1 -> ALT1B 011221 NoFW NoPPZ WS10.7k | B19: =INDEX('Compile Data'!EP$95:EP$120,'Report - ALL (DASHBOARD)'!$W$3) -> 2823.089268 | C19: =INDEX('Compile Data'!EQ$95:EQ$120,'Report - ALL (DASHBOARD)'!$W$3) -> 2813.116594 | D19: =INDEX('Compile Data'!ER$95:ER$120,'Report - ALL (DASHBOARD)'!$W$3) -> 2934.965239 | E19: =INDEX('Compile Data'!ES$95:ES$120,'Report - ALL (DASHBOARD)'!$W$3) -> 3175.817589 | F19: =INDEX('Compile Data'!ET$95:ET$120,'Report - ALL (DASHBOARD)'!$W$3) -> 3407.978893 | G19: =INDEX('Compile Data'!EU$95:EU$120,'Report - ALL (DASHBOARD)'!$W$3) -> 3754.161579 | H19: =INDEX('Compile Data'!EV$95:EV$120,'Report - ALL (DASHBOARD)'!$W$3) -> 4117.428205 | I19: =INDEX('Compile Data'!EW$95:EW$120,'Report - ALL (DASHBOARD)'!$W$3) -> 4124.700671 | J19: =INDEX('Compile Data'!EX$95:EX$120,'Report - ALL (DASHBOARD)'!$W$3) -> 3870.696393 | K19: =INDEX('Compile Data'!EY$95:EY$120,'Report - ALL (DASHBOARD)'!$W$3) -> 3396.216804 | L19: =INDEX('Compile Data'!EZ$95:EZ$120,'Report - ALL (DASHBOARD)'!$W$3) -> 3068.654584 | M19: =INDEX('Compile Data'!FA$95:FA$120,'Report - ALL (DASHBOARD)'!$W$3) -> 2924.500642 | O19: ='Compile Data'!$G$1 -> ALT1B 011221 NoFW NoPPZ WS10.7k | P19: =INDEX('Compile Data'!$EP$95:$FM$120,'Report - ALL (DASHBOARD)'!$W$3,'Report - ALL (DASHBOARD)'!$W$4) -> 2924.500642 | Q19: 34.41800633 | R19: 5.939182263 | U19: ='Compile Data'!$G$1 -> ALT1B 011221 NoFW NoPPZ WS10.7k | V19: =INDEX('Compile Data'!$EP$95:$FM$120,14,'Report - ALL (DASHBOARD)'!$W$4) -> 3305.855148 | W19: =INDEX('Compile Data'!$EP$95:$FM$120,15,'Report - ALL (DASHBOARD)'!$W$4) -> 3145.969398 | X19: =INDEX('Compile Data'!$EP$95:$FM$120,16,'Report - ALL (DASHBOARD)'!$W$4) -> 3070.34661 | Y19: =INDEX('Compile Data'!$EP$95:$FM$120,17,'Report - ALL (DASHBOARD)'!$W$4) -> 2785.90239 | Z19: =INDEX('Compile Data'!$EP$95:$FM$120,18,'Report - ALL (DASHBOARD)'!$W$4) -> 1914.507537
A20: ='Compile Data'!$H$1 -> ALT 1B MAM NoFW NoPPZ WS10.7k | B20: =INDEX('Compile Data'!FP$95:FP$120,'Report - ALL (DASHBOARD)'!$W$3) -> 2814.038261 | C20: =INDEX('Compile Data'!FQ$95:FQ$120,'Report - ALL (DASHBOARD)'!$W$3) -> 2804.963789 | D20: =INDEX('Compile Data'!FR$95:FR$120,'Report - ALL (DASHBOARD)'!$W$3) -> 2928.227423 | E20: =INDEX('Compile Data'!FS$95:FS$120,'Report - ALL (DASHBOARD)'!$W$3) -> 3169.504096 | F20: =INDEX('Compile Data'!FT$95:FT$120,'Report - ALL (DASHBOARD)'!$W$3) -> 3402.641971 | G20: =INDEX('Compile Data'!FU$95:FU$120,'Report - ALL (DASHBOARD)'!$W$3) -> 3748.825049 | H20: =INDEX('Compile Data'!FV$95:FV$120,'Report - ALL (DASHBOARD)'!$W$3) -> 4112.366638 | I20: =INDEX('Compile Data'!FW$95:FW$120,'Report - ALL (DASHBOARD)'!$W$3) -> 4119.951575 | J20: =INDEX('Compile Data'!FX$95:FX$120,'Report - ALL (DASHBOARD)'!$W$3) -> 3864.917761 | K20: =INDEX('Compile Data'!FY$95:FY$120,'Report - ALL (DASHBOARD)'!$W$3) -> 3391.54763 | L20: =INDEX('Compile Data'!FZ$95:FZ$120,'Report - ALL (DASHBOARD)'!$W$3) -> 3062.641695 | M20: =INDEX('Compile Data'!GA$95:GA$120,'Report - ALL (DASHBOARD)'!$W$3) -> 2917.027388 | O20: ='Compile Data'!$H$1 -> ALT 1B MAM NoFW NoPPZ WS10.7k | P20: =INDEX('Compile Data'!$FP$95:$GM$120,'Report - ALL (DASHBOARD)'!$W$3,'Report - ALL (DASHBOARD)'!$W$4) -> 2917.027388 | Q20: 26.9447531 | R20: -1.534070959 | U20: ='Compile Data'!$H$1 -> ALT 1B MAM NoFW NoPPZ WS10.7k | V20: =INDEX('Compile Data'!$FP$95:$GM$120,14,'Report - ALL (DASHBOARD)'!$W$4) -> 3305.230901 | W20: =INDEX('Compile Data'!$FP$95:$GM$120,15,'Report - ALL (DASHBOARD)'!$W$4) -> 3144.097554 | X20: =INDEX('Compile Data'!$FP$95:$GM$120,16,'Report - ALL (DASHBOARD)'!$W$4) -> 3062.271602 | Y20: =INDEX('Compile Data'!$FP$95:$GM$120,17,'Report - ALL (DASHBOARD)'!$W$4) -> 2784.704585 | Z20: =INDEX('Compile Data'!$FP$95:$GM$120,18,'Report - ALL (DASHBOARD)'!$W$4) -> 1877.882235
A21: ='Compile Data'!$I$1 -> ALT 1B MAM NoFW WS10.7k | B21: =INDEX('Compile Data'!GP$95:GP$120,'Report - ALL (DASHBOARD)'!$W$3) -> 2810.237001 | C21: =INDEX('Compile Data'!GQ$95:GQ$120,'Report - ALL (DASHBOARD)'!$W$3) -> 2799.615509 | D21: =INDEX('Compile Data'!GR$95:GR$120,'Report - ALL (DASHBOARD)'!$W$3) -> 2924.855847 | E21: =INDEX('Compile Data'!GS$95:GS$120,'Report - ALL (DASHBOARD)'!$W$3) -> 3166.581933 | F21: =INDEX('Compile Data'!GT$95:GT$120,'Report - ALL (DASHBOARD)'!$W$3) -> 3401.124957 | G21: =INDEX('Compile Data'!GU$95:GU$120,'Report - ALL (DASHBOARD)'!$W$3) -> 3746.381997 | H21: =INDEX('Compile Data'!GV$95:GV$120,'Report - ALL (DASHBOARD)'!$W$3) -> 4110.961527 | I21: =INDEX('Compile Data'!GW$95:GW$120,'Report - ALL (DASHBOARD)'!$W$3) -> 4117.174895 | J21: =INDEX('Compile Data'!GX$95:GX$120,'Report - ALL (DASHBOARD)'!$W$3) -> 3861.66094 | K21: =INDEX('Compile Data'!GY$95:GY$120,'Report - ALL (DASHBOARD)'!$W$3) -> 3388.31566 | L21: =INDEX('Compile Data'!GZ$95:GZ$120,'Report - ALL (DASHBOARD)'!$W$3) -> 3060.118238 | M21: =INDEX('Compile Data'!HA$95:HA$120,'Report - ALL (DASHBOARD)'!$W$3) -> 2914.718945 | O21: ='Compile Data'!$I$1 -> ALT 1B MAM NoFW WS10.7k | P21: =INDEX('Compile Data'!$GP$95:$HM$120,'Report - ALL (DASHBOARD)'!$W$3,'Report - ALL (DASHBOARD)'!$W$4) -> 2914.718945 | Q21: 24.63630943 | R21: -3.842514636 | U21: ='Compile Data'!$I$1 -> ALT 1B MAM NoFW WS10.7k | V21: =INDEX('Compile Data'!$GP$95:$HM$120,14,'Report - ALL (DASHBOARD)'!$W$4) -> 3305.302792 | W21: =INDEX('Compile Data'!$GP$95:$HM$120,15,'Report - ALL (DASHBOARD)'!$W$4) -> 3143.000645 | X21: =INDEX('Compile Data'!$GP$95:$HM$120,16,'Report - ALL (DASHBOARD)'!$W$4) -> 3054.62309 | Y21: =INDEX('Compile Data'!$GP$95:$HM$120,17,'Report - ALL (DASHBOARD)'!$W$4) -> 2779.279081 | Z21: =INDEX('Compile Data'!$GP$95:$HM$120,18,'Report - ALL (DASHBOARD)'!$W$4) -> 1880.110535
A22: ='Compile Data'!$J$1 -> ALT 1B NoFW MAM NoPPZ WS10.7k | B22: =INDEX('Compile Data'!HP$95:HP$120,'Report - ALL (DASHBOARD)'!$W$3) -> 2826.859153 | C22: =INDEX('Compile Data'!HQ$95:HQ$120,'Report - ALL (DASHBOARD)'!$W$3) -> 2817.861069 | D22: =INDEX('Compile Data'!HR$95:HR$120,'Report - ALL (DASHBOARD)'!$W$3) -> 2940.427111 | E22: =INDEX('Compile Data'!HS$95:HS$120,'Report - ALL (DASHBOARD)'!$W$3) -> 3179.952068 | F22: =INDEX('Compile Data'!HT$95:HT$120,'Report - ALL (DASHBOARD)'!$W$3) -> 3410.310556 | G22: =INDEX('Compile Data'!HU$95:HU$120,'Report - ALL (DASHBOARD)'!$W$3) -> 3753.791646 | H22: =INDEX('Compile Data'!HV$95:HV$120,'Report - ALL (DASHBOARD)'!$W$3) -> 4118.573346 | I22: =INDEX('Compile Data'!HW$95:HW$120,'Report - ALL (DASHBOARD)'!$W$3) -> 4128.017578 | J22: =INDEX('Compile Data'!HX$95:HX$120,'Report - ALL (DASHBOARD)'!$W$3) -> 3875.297291 | K22: =INDEX('Compile Data'!HY$95:HY$120,'Report - ALL (DASHBOARD)'!$W$3) -> 3402.167617 | L22: =INDEX('Compile Data'!HZ$95:HZ$120,'Report - ALL (DASHBOARD)'!$W$3) -> 3073.75439 | M22: =INDEX('Compile Data'!IA$95:IA$120,'Report - ALL (DASHBOARD)'!$W$3) -> 2927.612938 | O22: ='Compile Data'!$J$1 -> ALT 1B NoFW MAM NoPPZ WS10.7k | P22: =INDEX('Compile Data'!$HP$95:$IM$120,'Report - ALL (DASHBOARD)'!$W$3,'Report - ALL (DASHBOARD)'!$W$4) -> 2927.612938 | Q22: 37.53030274 | R22: 9.051478676 | U22: ='Compile Data'!$J$1 -> ALT 1B NoFW MAM NoPPZ WS10.7k | V22: =INDEX('Compile Data'!$HP$95:$IM$120,14,'Report - ALL (DASHBOARD)'!$W$4) -> 3305.95325 | W22: =INDEX('Compile Data'!$HP$95:$IM$120,15,'Report - ALL (DASHBOARD)'!$W$4) -> 3150.798205 | X22: =INDEX('Compile Data'!$HP$95:$IM$120,16,'Report - ALL (DASHBOARD)'!$W$4) -> 3070.821487 | Y22: =INDEX('Compile Data'!$HP$95:$IM$120,17,'Report - ALL (DASHBOARD)'!$W$4) -> 2795.069157 | Z22: =INDEX('Compile Data'!$HP$95:$IM$120,18,'Report - ALL (DASHBOARD)'!$W$4) -> 1916.429359
A23: ='Compile Data'!$K$1 -> ALT 1B NoFW MAM WS10.7k | B23: =INDEX('Compile Data'!IP$95:IP$120,'Report - ALL (DASHBOARD)'!$W$3) -> 2825.791474 | C23: =INDEX('Compile Data'!IQ$95:IQ$120,'Report - ALL (DASHBOARD)'!$W$3) -> 2817.076686 | D23: =INDEX('Compile Data'!IR$95:IR$120,'Report - ALL (DASHBOARD)'!$W$3) -> 2939.524481 | E23: =INDEX('Compile Data'!IS$95:IS$120,'Report - ALL (DASHBOARD)'!$W$3) -> 3179.075663 | F23: =INDEX('Compile Data'!IT$95:IT$120,'Report - ALL (DASHBOARD)'!$W$3) -> 3409.660728 | G23: =INDEX('Compile Data'!IU$95:IU$120,'Report - ALL (DASHBOARD)'!$W$3) -> 3753.049753 | H23: =INDEX('Compile Data'!IV$95:IV$120,'Report - ALL (DASHBOARD)'!$W$3) -> 4117.411933 | I23: =INDEX('Compile Data'!IW$95:IW$120,'Report - ALL (DASHBOARD)'!$W$3) -> 4126.102882 | J23: =INDEX('Compile Data'!IX$95:IX$120,'Report - ALL (DASHBOARD)'!$W$3) -> 3872.237316 | K23: =INDEX('Compile Data'!IY$95:IY$120,'Report - ALL (DASHBOARD)'!$W$3) -> 3400.264168 | L23: =INDEX('Compile Data'!IZ$95:IZ$120,'Report - ALL (DASHBOARD)'!$W$3) -> 3072.37306 | M23: =INDEX('Compile Data'!JA$95:JA$120,'Report - ALL (DASHBOARD)'!$W$3) -> 2926.416032 | O23: ='Compile Data'!$K$1 -> ALT 1B NoFW MAM WS10.7k | P23: =INDEX('Compile Data'!$IP$95:$JM$120,'Report - ALL (DASHBOARD)'!$W$3,'Report - ALL (DASHBOARD)'!$W$4) -> 2926.416032 | Q23: 36.33339712 | R23: 7.854573062 | U23: ='Compile Data'!$K$1 -> ALT 1B NoFW MAM WS10.7k | V23: =INDEX('Compile Data'!$IP$95:$JM$120,14,'Report - ALL (DASHBOARD)'!$W$4) -> 3305.290237 | W23: =INDEX('Compile Data'!$IP$95:$JM$120,15,'Report - ALL (DASHBOARD)'!$W$4) -> 3150.272935 | X23: =INDEX('Compile Data'!$IP$95:$JM$120,16,'Report - ALL (DASHBOARD)'!$W$4) -> 3068.986733 | Y23: =INDEX('Compile Data'!$IP$95:$JM$120,17,'Report - ALL (DASHBOARD)'!$W$4) -> 2794.739242 | Z23: =INDEX('Compile Data'!$IP$95:$JM$120,18,'Report - ALL (DASHBOARD)'!$W$4) -> 1912.847722
A25: Annuals Plot: | O25: Exceedence Plot:
A27: Title: | B27: =INDEX(Other!$B$9:$B$33,'Report - ALL (DASHBOARD)'!$W$4) -> September | O27: Title: | P27: =INDEX(Other!$B$9:$B$33,'Report - ALL (DASHBOARD)'!$W$4) -> September
B28: ='Compile Data'!$B$5 -> Shasta Storage | P28: ='Compile Data'!$B$5 -> Shasta Storage
B29: =IF('Compile Data'!$B$10="CFS","Flow (CFS)",IF('Compile Data'!$B$10="TAF","Volume (TAF)",IF('Compile Data'!$B$10="KM","POSITION (KM)",""))) -> Volume (TAF) | P29: =IF('Compile Data'!$B$10="CFS","Flow (CFS)",IF('Compile Data'!$B$10="TAF","Volume (TAF)",IF('Compile Data'!$B$10="KM","POSITION (KM)",""))) -> Volume (TAF)
B31: ='Compile Data'!$B$1 -> NAA 011221 | C31: ='Compile Data'!$C$1 -> ALT 1B 011221 | D31: ='Compile Data'!$D$1 -> ALT1B 011221 NoFW | E31: ='Compile Data'!$E$1 -> ALT1B 011221 NoFW WS10.7k AM | F31: ='Compile Data'!$F$1 -> ALT1B 011221 NoFW WS10.7k | G31: ='Compile Data'!$G$1 -> ALT1B 011221 NoFW NoPPZ WS10.7k | H31: ='Compile Data'!$H$1 -> ALT 1B MAM NoFW NoPPZ WS10.7k | I31: ='Compile Data'!$I$1 -> ALT 1B MAM NoFW WS10.7k | J31: ='Compile Data'!$J$1 -> ALT 1B NoFW MAM NoPPZ WS10.7k | K31: ='Compile Data'!$K$1 -> ALT 1B NoFW MAM WS10.7k | Q31: ='Compile Data'!$B$1 -> NAA 011221 | R31: ='Compile Data'!$C$1 -> ALT 1B 011221 | S31: ='Compile Data'!$D$1 -> ALT1B 011221 NoFW | T31: ='Compile Data'!$E$1 -> ALT1B 011221 NoFW WS10.7k AM | U31: ='Compile Data'!$F$1 -> ALT1B 011221 NoFW WS10.7k | V31: ='Compile Data'!$G$1 -> ALT1B 011221 NoFW NoPPZ WS10.7k | W31: ='Compile Data'!$H$1 -> ALT 1B MAM NoFW NoPPZ WS10.7k | X31: ='Compile Data'!$I$1 -> ALT 1B MAM NoFW WS10.7k | Y31: ='Compile Data'!$J$1 -> ALT 1B NoFW MAM NoPPZ WS10.7k | Z31: ='Compile Data'!$K$1 -> ALT 1B NoFW MAM WS10.7k
A32: 1922 | B32: =INDEX('Compile Data'!$P$12:$AM$93,$A32-1921,'Report - ALL (DASHBOARD)'!$W$4) -> 3353.49032 | C32: =INDEX('Compile Data'!$AP$12:$BM$93,$A32-1921,'Report - ALL (DASHBOARD)'!$W$4) -> 3400 | D32: =INDEX('Compile Data'!$BP$12:$CM$93,$A32-1921,'Report - ALL (DASHBOARD)'!$W$4) -> 3394.578853 | E32: =INDEX('Compile Data'!$CP$12:$DM$93,$A32-1921,'Report - ALL (DASHBOARD)'!$W$4) -> 3387.57 | F32: =INDEX('Compile Data'!$DP$12:$EM$93,$A32-1921,'Report - ALL (DASHBOARD)'!$W$4) -> 3400 | G32: =INDEX('Compile Data'!$EP$12:$FM$93,$A32-1921,'Report - ALL (DASHBOARD)'!$W$4) -> 3400 | H32: =INDEX('Compile Data'!$FP$12:$GM$93,$A32-1921,'Report - ALL (DASHBOARD)'!$W$4) -> 3400 | I32: =INDEX('Compile Data'!$GP$12:$HM$93,$A32-1921,'Report - ALL (DASHBOARD)'!$W$4) -> 3400 | J32: =INDEX('Compile Data'!$HP$12:$IM$93,$A32-1921,'Report - ALL (DASHBOARD)'!$W$4) -> 3400 | K32: =INDEX('Compile Data'!$IP$12:$JM$93,$A32-1921,'Report - ALL (DASHBOARD)'!$W$4) -> 3400 | O32: 1 | P32: =(O32-1)/81 -> 0 | Q32: =INDEX('Compile Data'!$P$123:$AM$204,$O32,'Report - ALL (DASHBOARD)'!$W$4) -> 3400 | R32: =INDEX('Compile Data'!$AP$123:$BM$204,$O32,'Report - ALL (DASHBOARD)'!$W$4) -> 3400 | S32: =INDEX('Compile Data'!$BP$123:$CM$204,$O32,'Report - ALL (DASHBOARD)'!$W$4) -> 3400 | T32: =INDEX('Compile Data'!$CP$123:$DM$204,$O32,'Report - ALL (DASHBOARD)'!$W$4) -> 3400 | U32: =INDEX('Compile Data'!$DP$123:$EM$204,$O32,'Report - ALL (DASHBOARD)'!$W$4) -> 3400 | V32: =INDEX('Compile Data'!$EP$123:$FM$204,$O32,'Report - ALL (DASHBOARD)'!$W$4) -> 3400 | W32: =INDEX('Compile Data'!$FP$123:$GM$204,$O32,'Report - ALL (DASHBOARD)'!$W$4) -> 3400 | X32: =INDEX('Compile Data'!$GP$123:$HM$204,$O32,'Report - ALL (DASHBOARD)'!$W$4) -> 3400 | Y32: =INDEX('Compile Data'!$HP$123:$IM$204,$O32,'Report - ALL (DASHBOARD)'!$W$4) -> 3400 | Z32: =INDEX('Compile Data'!$IP$123:$JM$204,$O32,'Report - ALL (DASHBOARD)'!$W$4) -> 3400
A33: =A32+1 -> 1923 | B33: =INDEX('Compile Data'!$P$12:$AM$93,$A33-1921,'Report - ALL (DASHBOARD)'!$W$4) -> 2918.581988 | C33: =INDEX('Compile Data'!$AP$12:$BM$93,$A33-1921,'Report - ALL (DASHBOARD)'!$W$4) -> 2954.070677 | D33: =INDEX('Compile Data'!$BP$12:$CM$93,$A33-1921,'Report - ALL (DASHBOARD)'!$W$4) -> 2978.505838 | E33: =INDEX('Compile Data'!$CP$12:$DM$93,$A33-1921,'Report - ALL (DASHBOARD)'!$W$4) -> 2978.439676 | F33: =INDEX('Compile Data'!$DP$12:$EM$93,$A33-1921,'Report - ALL (DASHBOARD)'!$W$4) -> 2948.577985 | G33: =INDEX('Compile Data'!$EP$12:$FM$93,$A33-1921,'Report - ALL (DASHBOARD)'!$W$4) -> 2951.158275 | H33: =INDEX('Compile Data'!$FP$12:$GM$93,$A33-1921,'Report - ALL (DASHBOARD)'!$W$4) -> 2952.344876 | I33: =INDEX('Compile Data'!$GP$12:$HM$93,$A33-1921,'Report - ALL (DASHBOARD)'!$W$4) -> 2952.344875 | J33: =INDEX('Compile Data'!$HP$12:$IM$93,$A33-1921,'Report - ALL (DASHBOARD)'!$W$4) -> 2947.969992 | K33: =INDEX('Compile Data'!$IP$12:$JM$93,$A33-1921,'Report - ALL (DASHBOARD)'!$W$4) -> 2947.970321 | O33: 2 | P33: 0.01234567901 | Q33: =INDEX('Compile Data'!$P$123:$AM$204,$O33,'Report - ALL (DASHBOARD)'!$W$4) -> 3400 | R33: =INDEX('Compile Data'!$AP$123:$BM$204,$O33,'Report - ALL (DASHBOARD)'!$W$4) -> 3400 | S33: =INDEX('Compile Data'!$BP$123:$CM$204,$O33,'Report - ALL (DASHBOARD)'!$W$4) -> 3400 | T33: =INDEX('Compile Data'!$CP$123:$DM$204,$O33,'Report - ALL (DASHBOARD)'!$W$4) -> 3400 | U33: =INDEX('Compile Data'!$DP$123:$EM$204,$O33,'Report - ALL (DASHBOARD)'!$W$4) -> 3400 | V33: =INDEX('Compile Data'!$EP$123:$FM$204,$O33,'Report - ALL (DASHBOARD)'!$W$4) -> 3400 | W33: =INDEX('Compile Data'!$FP$123:$GM$204,$O33,'Report - ALL (DASHBOARD)'!$W$4) -> 3400 | X33: =INDEX('Compile Data'!$GP$123:$HM$204,$O33,'Report - ALL (DASHBOARD)'!$W$4) -> 3400 | Y33: =INDEX('Compile Data'!$HP$123:$IM$204,$O33,'Report - ALL (DASHBOARD)'!$W$4) -> 3400 | Z33: =INDEX('Compile Data'!$IP$123:$JM$204,$O33,'Report - ALL (DASHBOARD)'!$W$4) -> 3400
A34: =A33+1 -> 1924 | B34: =INDEX('Compile Data'!$P$12:$AM$93,$A34-1921,'Report - ALL (DASHBOARD)'!$W$4) -> 1350.069812 | C34: =INDEX('Compile Data'!$AP$12:$BM$93,$A34-1921,'Report - ALL (DASHBOARD)'!$W$4) -> 1385.799051 | D34: =INDEX('Compile Data'!$BP$12:$CM$93,$A34-1921,'Report - ALL (DASHBOARD)'!$W$4) -> 1399.655446 | E34: =INDEX('Compile Data'!$CP$12:$DM$93,$A34-1921,'Report - ALL (DASHBOARD)'!$W$4) -> 1395.298583 | F34: =INDEX('Compile Data'!$DP$12:$EM$93,$A34-1921,'Report - ALL (DASHBOARD)'!$W$4) -> 1379.440265 | G34: =INDEX('Compile Data'!$EP$12:$FM$93,$A34-1921,'Report - ALL (DASHBOARD)'!$W$4) -> 1378.321295 | H34: =INDEX('Compile Data'!$FP$12:$GM$93,$A34-1921,'Report - ALL (DASHBOARD)'!$W$4) -> 1385.006759 | I34: =INDEX('Compile Data'!$GP$12:$HM$93,$A34-1921,'Report - ALL (DASHBOARD)'!$W$4) -> 1385.006758 | J34: =INDEX('Compile Data'!$HP$12:$IM$93,$A34-1921,'Report - ALL (DASHBOARD)'!$W$4) -> 1379.450006 | K34: =INDEX('Compile Data'!$IP$12:$JM$93,$A34-1921,'Report - ALL (DASHBOARD)'!$W$4) -> 1379.450116 | O34: 3 | P34: 0.02469135802 | Q34: =INDEX('Compile Data'!$P$123:$AM$204,$O34,'Report - ALL (DASHBOARD)'!$W$4) -> 3400 | R34: =INDEX('Compile Data'!$AP$123:$BM$204,$O34,'Report - ALL (DASHBOARD)'!$W$4) -> 3400 | S34: =INDEX('Compile Data'!$BP$123:$CM$204,$O34,'Report - ALL (DASHBOARD)'!$W$4) -> 3400 | T34: =INDEX('Compile Data'!$CP$123:$DM$204,$O34,'Report - ALL (DASHBOARD)'!$W$4) -> 3400 | U34: =INDEX('Compile Data'!$DP$123:$EM$204,$O34,'Report - ALL (DASHBOARD)'!$W$4) -> 3400 | V34: =INDEX('Compile Data'!$EP$123:$FM$204,$O34,'Report - ALL (DASHBOARD)'!$W$4) -> 3400 | W34: =INDEX('Compile Data'!$FP$123:$GM$204,$O34,'Report - ALL (DASHBOARD)'!$W$4) -> 3400 | X34: =INDEX('Compile Data'!$GP$123:$HM$204,$O34,'Report - ALL (DASHBOARD)'!$W$4) -> 3400 | Y34: =INDEX('Compile Data'!$HP$123:$IM$204,$O34,'Report - ALL (DASHBOARD)'!$W$4) -> 3400 | Z34: =INDEX('Compile Data'!$IP$123:$JM$204,$O34,'Report - ALL (DASHBOARD)'!$W$4) -> 3400
A35: 1925 | B35: =INDEX('Compile Data'!$P$12:$AM$93,$A35-1921,'Report - ALL (DASHBOARD)'!$W$4) -> 3067.864588 | C35: =INDEX('Compile Data'!$AP$12:$BM$93,$A35-1921,'Report - ALL (DASHBOARD)'!$W$4) -> 3120.215218 | D35: =INDEX('Compile Data'!$BP$12:$CM$93,$A35-1921,'Report - ALL (DASHBOARD)'!$W$4) -> 3138.706249 | E35: =INDEX('Compile Data'!$CP$12:$DM$93,$A35-1921,'Report - ALL (DASHBOARD)'!$W$4) -> 3136.016514 | F35: =INDEX('Compile Data'!$DP$12:$EM$93,$A35-1921,'Report - ALL (DASHBOARD)'!$W$4) -> 3131.344418 | G35: =INDEX('Compile Data'!$EP$12:$FM$93,$A35-1921,'Report - ALL (DASHBOARD)'!$W$4) -> 3132.066333 | H35: =INDEX('Compile Data'!$FP$12:$GM$93,$A35-1921,'Report - ALL (DASHBOARD)'!$W$4) -> 3126.042866 | I35: =INDEX('Compile Data'!$GP$12:$HM$93,$A35-1921,'Report - ALL (DASHBOARD)'!$W$4) -> 3126.042868 | J35: =INDEX('Compile Data'!$HP$12:$IM$93,$A35-1921,'Report - ALL (DASHBOARD)'!$W$4) -> 3123.728795 | K35: =INDEX('Compile Data'!$IP$12:$JM$93,$A35-1921,'Report - ALL (DASHBOARD)'!$W$4) -> 3123.72888 | O35: 4 | P35: 0.03703703704 | Q35: =INDEX('Compile Data'!$P$123:$AM$204,$O35,'Report - ALL (DASHBOARD)'!$W$4) -> 3400 | R35: =INDEX('Compile Data'!$AP$123:$BM$204,$O35,'Report - ALL (DASHBOARD)'!$W$4) -> 3400 | S35: =INDEX('Compile Data'!$BP$123:$CM$204,$O35,'Report - ALL (DASHBOARD)'!$W$4) -> 3400 | T35: =INDEX('Compile Data'!$CP$123:$DM$204,$O35,'Report - ALL (DASHBOARD)'!$W$4) -> 3400 | U35: =INDEX('Compile Data'!$DP$123:$EM$204,$O35,'Report - ALL (DASHBOARD)'!$W$4) -> 3400 | V35: =INDEX('Compile Data'!$EP$123:$FM$204,$O35,'Report - ALL (DASHBOARD)'!$W$4) -> 3400 | W35: =INDEX('Compile Data'!$FP$123:$GM$204,$O35,'Report - ALL (DASHBOARD)'!$W$4) -> 3400 | X35: =INDEX('Compile Data'!$GP$123:$HM$204,$O35,'Report - ALL (DASHBOARD)'!$W$4) -> 3400 | Y35: =INDEX('Compile Data'!$HP$123:$IM$204,$O35,'Report - ALL (DASHBOARD)'!$W$4) -> 3400 | Z35: =INDEX('Compile Data'!$IP$123:$JM$204,$O35,'Report - ALL (DASHBOARD)'!$W$4) -> 3400
A36: 1926 | B36: =INDEX('Compile Data'!$P$12:$AM$93,$A36-1921,'Report - ALL (DASHBOARD)'!$W$4) -> 2719.827887 | C36: =INDEX('Compile Data'!$AP$12:$BM$93,$A36-1921,'Report - ALL (DASHBOARD)'!$W$4) -> 2614.01502 | D36: =INDEX('Compile Data'!$BP$12:$CM$93,$A36-1921,'Report - ALL (DASHBOARD)'!$W$4) -> 2618.085661 | E36: =INDEX('Compile Data'!$CP$12:$DM$93,$A36-1921,'Report - ALL (DASHBOARD)'!$W$4) -> 2622.710483 | F36: =INDEX('Compile Data'!$DP$12:$EM$93,$A36-1921,'Report - ALL (DASHBOARD)'!$W$4) -> 2617.691597 | G36: =INDEX('Compile Data'!$EP$12:$FM$93,$A36-1921,'Report - ALL (DASHBOARD)'!$W$4) -> 2614.687776 | H36: =INDEX('Compile Data'!$FP$12:$GM$93,$A36-1921,'Report - ALL (DASHBOARD)'!$W$4) -> 2616.473946 | I36: =INDEX('Compile Data'!$GP$12:$HM$93,$A36-1921,'Report - ALL (DASHBOARD)'!$W$4) -> 2619.565844 | J36: =INDEX('Compile Data'!$HP$12:$IM$93,$A36-1921,'Report - ALL (DASHBOARD)'!$W$4) -> 2616.251609 | K36: =INDEX('Compile Data'!$IP$12:$JM$93,$A36-1921,'Report - ALL (DASHBOARD)'!$W$4) -> 2616.251641 | O36: 5 | P36: 0.04938271605 | Q36: =INDEX('Compile Data'!$P$123:$AM$204,$O36,'Report - ALL (DASHBOARD)'!$W$4) -> 3400 | R36: =INDEX('Compile Data'!$AP$123:$BM$204,$O36,'Report - ALL (DASHBOARD)'!$W$4) -> 3400 | S36: =INDEX('Compile Data'!$BP$123:$CM$204,$O36,'Report - ALL (DASHBOARD)'!$W$4) -> 3400 | T36: =INDEX('Compile Data'!$CP$123:$DM$204,$O36,'Report - ALL (DASHBOARD)'!$W$4) -> 3400 | U36: =INDEX('Compile Data'!$DP$123:$EM$204,$O36,'Report - ALL (DASHBOARD)'!$W$4) -> 3400 | V36: =INDEX('Compile Data'!$EP$123:$FM$204,$O36,'Report - ALL (DASHBOARD)'!$W$4) -> 3400 | W36: =INDEX('Compile Data'!$FP$123:$GM$204,$O36,'Report - ALL (DASHBOARD)'!$W$4) -> 3400 | X36: =INDEX('Compile Data'!$GP$123:$HM$204,$O36,'Report - ALL (DASHBOARD)'!$W$4) -> 3400 | Y36: =INDEX('Compile Data'!$HP$123:$IM$204,$O36,'Report - ALL (DASHBOARD)'!$W$4) -> 3400 | Z36: =INDEX('Compile Data'!$IP$123:$JM$204,$O36,'Report - ALL (DASHBOARD)'!$W$4) -> 3400
A37: 1927 | B37: =INDEX('Compile Data'!$P$12:$AM$93,$A37-1921,'Report - ALL (DASHBOARD)'!$W$4) -> 3184.04974 | C37: =INDEX('Compile Data'!$AP$12:$BM$93,$A37-1921,'Report - ALL (DASHBOARD)'!$W$4) -> 3190.01374 | D37: =INDEX('Compile Data'!$BP$12:$CM$93,$A37-1921,'Report - ALL (DASHBOARD)'!$W$4) -> 3188.607115 | E37: =INDEX('Compile Data'!$CP$12:$DM$93,$A37-1921,'Report - ALL (DASHBOARD)'!$W$4) -> 3188.609667 | F37: =INDEX('Compile Data'!$DP$12:$EM$93,$A37-1921,'Report - ALL (DASHBOARD)'!$W$4) -> 3189.189995 | G37: =INDEX('Compile Data'!$EP$12:$FM$93,$A37-1921,'Report - ALL (DASHBOARD)'!$W$4) -> 3189.120867 | H37: =INDEX('Compile Data'!$FP$12:$GM$93,$A37-1921,'Report - ALL (DASHBOARD)'!$W$4) -> 3189.894205 | I37: =INDEX('Compile Data'!$GP$12:$HM$93,$A37-1921,'Report - ALL (DASHBOARD)'!$W$4) -> 3189.978464 | J37: =INDEX('Compile Data'!$HP$12:$IM$93,$A37-1921,'Report - ALL (DASHBOARD)'!$W$4) -> 3188.913207 | K37: =INDEX('Compile Data'!$IP$12:$JM$93,$A37-1921,'Report - ALL (DASHBOARD)'!$W$4) -> 3188.994147 | O37: 6 | P37: 0.06172839506 | Q37: =INDEX('Compile Data'!$P$123:$AM$204,$O37,'Report - ALL (DASHBOARD)'!$W$4) -> 3400 | R37: =INDEX('Compile Data'!$AP$123:$BM$204,$O37,'Report - ALL (DASHBOARD)'!$W$4) -> 3400 | S37: =INDEX('Compile Data'!$BP$123:$CM$204,$O37,'Report - ALL (DASHBOARD)'!$W$4) -> 3400 | T37: =INDEX('Compile Data'!$CP$123:$DM$204,$O37,'Report - ALL (DASHBOARD)'!$W$4) -> 3400 | U37: =INDEX('Compile Data'!$DP$123:$EM$204,$O37,'Report - ALL (DASHBOARD)'!$W$4) -> 3400 | V37: =INDEX('Compile Data'!$EP$123:$FM$204,$O37,'Report - ALL (DASHBOARD)'!$W$4) -> 3400 | W37: =INDEX('Compile Data'!$FP$123:$GM$204,$O37,'Report - ALL (DASHBOARD)'!$W$4) -> 3400 | X37: =INDEX('Compile Data'!$GP$123:$HM$204,$O37,'Report - ALL (DASHBOARD)'!$W$4) -> 3400 | Y37: =INDEX('Compile Data'!$HP$123:$IM$204,$O37,'Report - ALL (DASHBOARD)'!$W$4) -> 3400 | Z37: =INDEX('Compile Data'!$IP$123:$JM$204,$O37,'Report - ALL (DASHBOARD)'!$W$4) -> 3400
A38: 1928 | B38: =INDEX('Compile Data'!$P$12:$AM$93,$A38-1921,'Report - ALL (DASHBOARD)'!$W$4) -> 2573.693903 | C38: =INDEX('Compile Data'!$AP$12:$BM$93,$A38-1921,'Report - ALL (DASHBOARD)'!$W$4) -> 2622.633482 | D38: =INDEX('Compile Data'!$BP$12:$CM$93,$A38-1921,'Report - ALL (DASHBOARD)'!$W$4) -> 2622.648057 | E38: =INDEX('Compile Data'!$CP$12:$DM$93,$A38-1921,'Report - ALL (DASHBOARD)'!$W$4) -> 2622.648091 | F38: =INDEX('Compile Data'!$DP$12:$EM$93,$A38-1921,'Report - ALL (DASHBOARD)'!$W$4) -> 2622.640338 | G38: =INDEX('Compile Data'!$EP$12:$FM$93,$A38-1921,'Report - ALL (DASHBOARD)'!$W$4) -> 2622.646256 | H38: =INDEX('Compile Data'!$FP$12:$GM$93,$A38-1921,'Report - ALL (DASHBOARD)'!$W$4) -> 2622.640616 | I38: =INDEX('Compile Data'!$GP$12:$HM$93,$A38-1921,'Report - ALL (DASHBOARD)'!$W$4) -> 2622.635093 | J38: =INDEX('Compile Data'!$HP$12:$IM$93,$A38-1921,'Report - ALL (DASHBOARD)'!$W$4) -> 2622.648296 | K38: =INDEX('Compile Data'!$IP$12:$JM$93,$A38-1921,'Report - ALL (DASHBOARD)'!$W$4) -> 2622.64838 | O38: 7 | P38: 0.07407407407 | Q38: =INDEX('Compile Data'!$P$123:$AM$204,$O38,'Report - ALL (DASHBOARD)'!$W$4) -> 3400 | R38: =INDEX('Compile Data'!$AP$123:$BM$204,$O38,'Report - ALL (DASHBOARD)'!$W$4) -> 3400 | S38: =INDEX('Compile Data'!$BP$123:$CM$204,$O38,'Report - ALL (DASHBOARD)'!$W$4) -> 3400 | T38: =INDEX('Compile Data'!$CP$123:$DM$204,$O38,'Report - ALL (DASHBOARD)'!$W$4) -> 3400 | U38: =INDEX('Compile Data'!$DP$123:$EM$204,$O38,'Report - ALL (DASHBOARD)'!$W$4) -> 3400 | V38: =INDEX('Compile Data'!$EP$123:$FM$204,$O38,'Report - ALL (DASHBOARD)'!$W$4) -> 3400 | W38: =INDEX('Compile Data'!$FP$123:$GM$204,$O38,'Report - ALL (DASHBOARD)'!$W$4) -> 3400 | X38: =INDEX('Compile Data'!$GP$123:$HM$204,$O38,'Report - ALL (DASHBOARD)'!$W$4) -> 3400 | Y38: =INDEX('Compile Data'!$HP$123:$IM$204,$O38,'Report - ALL (DASHBOARD)'!$W$4) -> 3400 | Z38: =INDEX('Compile Data'!$IP$123:$JM$204,$O38,'Report - ALL (DASHBOARD)'!$W$4) -> 3400
A39: 1929 | B39: =INDEX('Compile Data'!$P$12:$AM$93,$A39-1921,'Report - ALL (DASHBOARD)'!$W$4) -> 2020.162497 | C39: =INDEX('Compile Data'!$AP$12:$BM$93,$A39-1921,'Report - ALL (DASHBOARD)'!$W$4) -> 2106.591804 | D39: =INDEX('Compile Data'!$BP$12:$CM$93,$A39-1921,'Report - ALL (DASHBOARD)'!$W$4) -> 2143.670996 | E39: =INDEX('Compile Data'!$CP$12:$DM$93,$A39-1921,'Report - ALL (DASHBOARD)'!$W$4) -> 2143.702513 | F39: =INDEX('Compile Data'!$DP$12:$EM$93,$A39-1921,'Report - ALL (DASHBOARD)'!$W$4) -> 2116.957697 | G39: =INDEX('Compile Data'!$EP$12:$FM$93,$A39-1921,'Report - ALL (DASHBOARD)'!$W$4) -> 2126.162776 | H39: =INDEX('Compile Data'!$FP$12:$GM$93,$A39-1921,'Report - ALL (DASHBOARD)'!$W$4) -> 2115.343552 | I39: =INDEX('Compile Data'!$GP$12:$HM$93,$A39-1921,'Report - ALL (DASHBOARD)'!$W$4) -> 2108.412281 | J39: =INDEX('Compile Data'!$HP$12:$IM$93,$A39-1921,'Report - ALL (DASHBOARD)'!$W$4) -> 2143.938056 | K39: =INDEX('Compile Data'!$IP$12:$JM$93,$A39-1921,'Report - ALL (DASHBOARD)'!$W$4) -> 2144.017591 | O39: 8 | P39: 0.08641975309 | Q39: =INDEX('Compile Data'!$P$123:$AM$204,$O39,'Report - ALL (DASHBOARD)'!$W$4) -> 3400 | R39: =INDEX('Compile Data'!$AP$123:$BM$204,$O39,'Report - ALL (DASHBOARD)'!$W$4) -> 3400 | S39: =INDEX('Compile Data'!$BP$123:$CM$204,$O39,'Report - ALL (DASHBOARD)'!$W$4) -> 3400 | T39: =INDEX('Compile Data'!$CP$123:$DM$204,$O39,'Report - ALL (DASHBOARD)'!$W$4) -> 3400 | U39: =INDEX('Compile Data'!$DP$123:$EM$204,$O39,'Report - ALL (DASHBOARD)'!$W$4) -> 3400 | V39: =INDEX('Compile Data'!$EP$123:$FM$204,$O39,'Report - ALL (DASHBOARD)'!$W$4) -> 3400 | W39: =INDEX('Compile Data'!$FP$123:$GM$204,$O39,'Report - ALL (DASHBOARD)'!$W$4) -> 3400 | X39: =INDEX('Compile Data'!$GP$123:$HM$204,$O39,'Report - ALL (DASHBOARD)'!$W$4) -> 3400 | Y39: =INDEX('Compile Data'!$HP$123:$IM$204,$O39,'Report - ALL (DASHBOARD)'!$W$4) -> 3400 | Z39: =INDEX('Compile Data'!$IP$123:$JM$204,$O39,'Report - ALL (DASHBOARD)'!$W$4) -> 3400
A40: 1930 | B40: =INDEX('Compile Data'!$P$12:$AM$93,$A40-1921,'Report - ALL (DASHBOARD)'!$W$4) -> 2532.002882 | C40: =INDEX('Compile Data'!$AP$12:$BM$93,$A40-1921,'Report - ALL (DASHBOARD)'!$W$4) -> 2653.842406 | D40: =INDEX('Compile Data'!$BP$12:$CM$93,$A40-1921,'Report - ALL (DASHBOARD)'!$W$4) -> 2734.187882 | E40: =INDEX('Compile Data'!$CP$12:$DM$93,$A40-1921,'Report - ALL (DASHBOARD)'!$W$4) -> 2734.185334 | F40: =INDEX('Compile Data'!$DP$12:$EM$93,$A40-1921,'Report - ALL (DASHBOARD)'!$W$4) -> 2704.169641 | G40: =INDEX('Compile Data'!$EP$12:$FM$93,$A40-1921,'Report - ALL (DASHBOARD)'!$W$4) -> 2715.938915 | H40: =INDEX('Compile Data'!$FP$12:$GM$93,$A40-1921,'Report - ALL (DASHBOARD)'!$W$4) -> 2662.99029 | I40: =INDEX('Compile Data'!$GP$12:$HM$93,$A40-1921,'Report - ALL (DASHBOARD)'!$W$4) -> 2657.416554 | J40: =INDEX('Compile Data'!$HP$12:$IM$93,$A40-1921,'Report - ALL (DASHBOARD)'!$W$4) -> 2699.271637 | K40: =INDEX('Compile Data'!$IP$12:$JM$93,$A40-1921,'Report - ALL (DASHBOARD)'!$W$4) -> 2699.97339 | O40: 9 | P40: 0.0987654321 | Q40: =INDEX('Compile Data'!$P$123:$AM$204,$O40,'Report - ALL (DASHBOARD)'!$W$4) -> 3400 | R40: =INDEX('Compile Data'!$AP$123:$BM$204,$O40,'Report - ALL (DASHBOARD)'!$W$4) -> 3400 | S40: =INDEX('Compile Data'!$BP$123:$CM$204,$O40,'Report - ALL (DASHBOARD)'!$W$4) -> 3400 | T40: =INDEX('Compile Data'!$CP$123:$DM$204,$O40,'Report - ALL (DASHBOARD)'!$W$4) -> 3400 | U40: =INDEX('Compile Data'!$DP$123:$EM$204,$O40,'Report - ALL (DASHBOARD)'!$W$4) -> 3400 | V40: =INDEX('Compile Data'!$EP$123:$FM$204,$O40,'Report - ALL (DASHBOARD)'!$W$4) -> 3400 | W40: =INDEX('Compile Data'!$FP$123:$GM$204,$O40,'Report - ALL (DASHBOARD)'!$W$4) -> 3400 | X40: =INDEX('Compile Data'!$GP$123:$HM$204,$O40,'Report - ALL (DASHBOARD)'!$W$4) -> 3400 | Y40: =INDEX('Compile Data'!$HP$123:$IM$204,$O40,'Report - ALL (DASHBOARD)'!$W$4) -> 3400 | Z40: =INDEX('Compile Data'!$IP$123:$JM$204,$O40,'Report - ALL (DASHBOARD)'!$W$4) -> 3400
A41: 1931 | B41: =INDEX('Compile Data'!$P$12:$AM$93,$A41-1921,'Report - ALL (DASHBOARD)'!$W$4) -> 1330.316421 | C41: =INDEX('Compile Data'!$AP$12:$BM$93,$A41-1921,'Report - ALL (DASHBOARD)'!$W$4) -> 1290.382007 | D41: =INDEX('Compile Data'!$BP$12:$CM$93,$A41-1921,'Report - ALL (DASHBOARD)'!$W$4) -> 1314.78826 | E41: =INDEX('Compile Data'!$CP$12:$DM$93,$A41-1921,'Report - ALL (DASHBOARD)'!$W$4) -> 1314.757443 | F41: =INDEX('Compile Data'!$DP$12:$EM$93,$A41-1921,'Report - ALL (DASHBOARD)'!$W$4) -> 1345.609347 | G41: =INDEX('Compile Data'!$EP$12:$FM$93,$A41-1921,'Report - ALL (DASHBOARD)'!$W$4) -> 1352.520546 | H41: =INDEX('Compile Data'!$FP$12:$GM$93,$A41-1921,'Report - ALL (DASHBOARD)'!$W$4) -> 1323.362753 | I41: =INDEX('Compile Data'!$GP$12:$HM$93,$A41-1921,'Report - ALL (DASHBOARD)'!$W$4) -> 1292.100017 | J41: =INDEX('Compile Data'!$HP$12:$IM$93,$A41-1921,'Report - ALL (DASHBOARD)'!$W$4) -> 1362.400774 | K41: =INDEX('Compile Data'!$IP$12:$JM$93,$A41-1921,'Report - ALL (DASHBOARD)'!$W$4) -> 1361.211303 | O41: 10 | P41: 0.1111111111 | Q41: =INDEX('Compile Data'!$P$123:$AM$204,$O41,'Report - ALL (DASHBOARD)'!$W$4) -> 3400 | R41: =INDEX('Compile Data'!$AP$123:$BM$204,$O41,'Report - ALL (DASHBOARD)'!$W$4) -> 3400 | S41: =INDEX('Compile Data'!$BP$123:$CM$204,$O41,'Report - ALL (DASHBOARD)'!$W$4) -> 3400 | T41: =INDEX('Compile Data'!$CP$123:$DM$204,$O41,'Report - ALL (DASHBOARD)'!$W$4) -> 3400 | U41: =INDEX('Compile Data'!$DP$123:$EM$204,$O41,'Report - ALL (DASHBOARD)'!$W$4) -> 3400 | V41: =INDEX('Compile Data'!$EP$123:$FM$204,$O41,'Report - ALL (DASHBOARD)'!$W$4) -> 3400 | W41: =INDEX('Compile Data'!$FP$123:$GM$204,$O41,'Report - ALL (DASHBOARD)'!$W$4) -> 3400 | X41: =INDEX('Compile Data'!$GP$123:$HM$204,$O41,'Report - ALL (DASHBOARD)'!$W$4) -> 3400 | Y41: =INDEX('Compile Data'!$HP$123:$IM$204,$O41,'Report - ALL (DASHBOARD)'!$W$4) -> 3400 | Z41: =INDEX('Compile Data'!$IP$123:$JM$204,$O41,'Report - ALL (DASHBOARD)'!$W$4) -> 3400
A42: 1932 | B42: =INDEX('Compile Data'!$P$12:$AM$93,$A42-1921,'Report - ALL (DASHBOARD)'!$W$4) -> 1705.724077 | C42: =INDEX('Compile Data'!$AP$12:$BM$93,$A42-1921,'Report - ALL (DASHBOARD)'!$W$4) -> 1718.4424 | D42: =INDEX('Compile Data'!$BP$12:$CM$93,$A42-1921,'Report - ALL (DASHBOARD)'!$W$4) -> 1718.315437 | E42: =INDEX('Compile Data'!$CP$12:$DM$93,$A42-1921,'Report - ALL (DASHBOARD)'!$W$4) -> 1718.320371 | F42: =INDEX('Compile Data'!$DP$12:$EM$93,$A42-1921,'Report - ALL (DASHBOARD)'!$W$4) -> 1742.484656 | G42: =INDEX('Compile Data'!$EP$12:$FM$93,$A42-1921,'Report - ALL (DASHBOARD)'!$W$4) -> 1749.969451 | H42: =INDEX('Compile Data'!$FP$12:$GM$93,$A42-1921,'Report - ALL (DASHBOARD)'!$W$4) -> 1724.613747 | I42: =INDEX('Compile Data'!$GP$12:$HM$93,$A42-1921,'Report - ALL (DASHBOARD)'!$W$4) -> 1720.147269 | J42: =INDEX('Compile Data'!$HP$12:$IM$93,$A42-1921,'Report - ALL (DASHBOARD)'!$W$4) -> 1770.986947 | K42: =INDEX('Compile Data'!$IP$12:$JM$93,$A42-1921,'Report - ALL (DASHBOARD)'!$W$4) -> 1769.738568 | O42: 11 | P42: 0.1234567901 | Q42: =INDEX('Compile Data'!$P$123:$AM$204,$O42,'Report - ALL (DASHBOARD)'!$W$4) -> 3400 | R42: =INDEX('Compile Data'!$AP$123:$BM$204,$O42,'Report - ALL (DASHBOARD)'!$W$4) -> 3400 | S42: =INDEX('Compile Data'!$BP$123:$CM$204,$O42,'Report - ALL (DASHBOARD)'!$W$4) -> 3400 | T42: =INDEX('Compile Data'!$CP$123:$DM$204,$O42,'Report - ALL (DASHBOARD)'!$W$4) -> 3400 | U42: =INDEX('Compile Data'!$DP$123:$EM$204,$O42,'Report - ALL (DASHBOARD)'!$W$4) -> 3400 | V42: =INDEX('Compile Data'!$EP$123:$FM$204,$O42,'Report - ALL (DASHBOARD)'!$W$4) -> 3400 | W42: =INDEX('Compile Data'!$FP$123:$GM$204,$O42,'Report - ALL (DASHBOARD)'!$W$4) -> 3400 | X42: =INDEX('Compile Data'!$GP$123:$HM$204,$O42,'Report - ALL (DASHBOARD)'!$W$4) -> 3400 | Y42: =INDEX('Compile Data'!$HP$123:$IM$204,$O42,'Report - ALL (DASHBOARD)'!$W$4) -> 3400 | Z42: =INDEX('Compile Data'!$IP$123:$JM$204,$O42,'Report - ALL (DASHBOARD)'!$W$4) -> 3400
A43: 1933 | B43: =INDEX('Compile Data'!$P$12:$AM$93,$A43-1921,'Report - ALL (DASHBOARD)'!$W$4) -> 1518.788968 | C43: =INDEX('Compile Data'!$AP$12:$BM$93,$A43-1921,'Report - ALL (DASHBOARD)'!$W$4) -> 1551.20908 | D43: =INDEX('Compile Data'!$BP$12:$CM$93,$A43-1921,'Report - ALL (DASHBOARD)'!$W$4) -> 1568.618112 | E43: =INDEX('Compile Data'!$CP$12:$DM$93,$A43-1921,'Report - ALL (DASHBOARD)'!$W$4) -> 1552.669494 | F43: =INDEX('Compile Data'!$DP$12:$EM$93,$A43-1921,'Report - ALL (DASHBOARD)'!$W$4) -> 1601.572722 | G43: =INDEX('Compile Data'!$EP$12:$FM$93,$A43-1921,'Report - ALL (DASHBOARD)'!$W$4) -> 1608.464582 | H43: =INDEX('Compile Data'!$FP$12:$GM$93,$A43-1921,'Report - ALL (DASHBOARD)'!$W$4) -> 1549.53334 | I43: =INDEX('Compile Data'!$GP$12:$HM$93,$A43-1921,'Report - ALL (DASHBOARD)'!$W$4) -> 1548.391693 | J43: =INDEX('Compile Data'!$HP$12:$IM$93,$A43-1921,'Report - ALL (DASHBOARD)'!$W$4) -> 1615.101653 | K43: =INDEX('Compile Data'!$IP$12:$JM$93,$A43-1921,'Report - ALL (DASHBOARD)'!$W$4) -> 1598.866034 | O43: 12 | P43: 0.1358024691 | Q43: =INDEX('Compile Data'!$P$123:$AM$204,$O43,'Report - ALL (DASHBOARD)'!$W$4) -> 3400 | R43: =INDEX('Compile Data'!$AP$123:$BM$204,$O43,'Report - ALL (DASHBOARD)'!$W$4) -> 3400 | S43: =INDEX('Compile Data'!$BP$123:$CM$204,$O43,'Report - ALL (DASHBOARD)'!$W$4) -> 3400 | T43: =INDEX('Compile Data'!$CP$123:$DM$204,$O43,'Report - ALL (DASHBOARD)'!$W$4) -> 3400 | U43: =INDEX('Compile Data'!$DP$123:$EM$204,$O43,'Report - ALL (DASHBOARD)'!$W$4) -> 3400 | V43: =INDEX('Compile Data'!$EP$123:$FM$204,$O43,'Report - ALL (DASHBOARD)'!$W$4) -> 3400 | W43: =INDEX('Compile Data'!$FP$123:$GM$204,$O43,'Report - ALL (DASHBOARD)'!$W$4) -> 3400 | X43: =INDEX('Compile Data'!$GP$123:$HM$204,$O43,'Report - ALL (DASHBOARD)'!$W$4) -> 3400 | Y43: =INDEX('Compile Data'!$HP$123:$IM$204,$O43,'Report - ALL (DASHBOARD)'!$W$4) -> 3400 | Z43: =INDEX('Compile Data'!$IP$123:$JM$204,$O43,'Report - ALL (DASHBOARD)'!$W$4) -> 3400
A44: 1934 | B44: =INDEX('Compile Data'!$P$12:$AM$93,$A44-1921,'Report - ALL (DASHBOARD)'!$W$4) -> 1116.135388 | C44: =INDEX('Compile Data'!$AP$12:$BM$93,$A44-1921,'Report - ALL (DASHBOARD)'!$W$4) -> 1081.280772 | D44: =INDEX('Compile Data'!$BP$12:$CM$93,$A44-1921,'Report - ALL (DASHBOARD)'!$W$4) -> 1156.28432 | E44: =INDEX('Compile Data'!$CP$12:$DM$93,$A44-1921,'Report - ALL (DASHBOARD)'!$W$4) -> 1136.229001 | F44: =INDEX('Compile Data'!$DP$12:$EM$93,$A44-1921,'Report - ALL (DASHBOARD)'!$W$4) -> 846.0210675 | G44: =INDEX('Compile Data'!$EP$12:$FM$93,$A44-1921,'Report - ALL (DASHBOARD)'!$W$4) -> 1211.328892 | H44: =INDEX('Compile Data'!$FP$12:$GM$93,$A44-1921,'Report - ALL (DASHBOARD)'!$W$4) -> 1080.395176 | I44: =INDEX('Compile Data'!$GP$12:$HM$93,$A44-1921,'Report - ALL (DASHBOARD)'!$W$4) -> 1033.559484 | J44: =INDEX('Compile Data'!$HP$12:$IM$93,$A44-1921,'Report - ALL (DASHBOARD)'!$W$4) -> 1196.112435 | K44: =INDEX('Compile Data'!$IP$12:$JM$93,$A44-1921,'Report - ALL (DASHBOARD)'!$W$4) -> 1178.127017 | O44: 13 | P44: 0.1481481481 | Q44: =INDEX('Compile Data'!$P$123:$AM$204,$O44,'Report - ALL (DASHBOARD)'!$W$4) -> 3400 | R44: =INDEX('Compile Data'!$AP$123:$BM$204,$O44,'Report - ALL (DASHBOARD)'!$W$4) -> 3400 | S44: =INDEX('Compile Data'!$BP$123:$CM$204,$O44,'Report - ALL (DASHBOARD)'!$W$4) -> 3400 | T44: =INDEX('Compile Data'!$CP$123:$DM$204,$O44,'Report - ALL (DASHBOARD)'!$W$4) -> 3400 | U44: =INDEX('Compile Data'!$DP$123:$EM$204,$O44,'Report - ALL (DASHBOARD)'!$W$4) -> 3400 | V44: =INDEX('Compile Data'!$EP$123:$FM$204,$O44,'Report - ALL (DASHBOARD)'!$W$4) -> 3400 | W44: =INDEX('Compile Data'!$FP$123:$GM$204,$O44,'Report - ALL (DASHBOARD)'!$W$4) -> 3400 | X44: =INDEX('Compile Data'!$GP$123:$HM$204,$O44,'Report - ALL (DASHBOARD)'!$W$4) -> 3400 | Y44: =INDEX('Compile Data'!$HP$123:$IM$204,$O44,'Report - ALL (DASHBOARD)'!$W$4) -> 3400 | Z44: =INDEX('Compile Data'!$IP$123:$JM$204,$O44,'Report - ALL (DASHBOARD)'!$W$4) -> 3400
A45: 1935 | B45: =INDEX('Compile Data'!$P$12:$AM$93,$A45-1921,'Report - ALL (DASHBOARD)'!$W$4) -> 2433.015954 | C45: =INDEX('Compile Data'!$AP$12:$BM$93,$A45-1921,'Report - ALL (DASHBOARD)'!$W$4) -> 2482.202405 | D45: =INDEX('Compile Data'!$BP$12:$CM$93,$A45-1921,'Report - ALL (DASHBOARD)'!$W$4) -> 2552.230879 | E45: =INDEX('Compile Data'!$CP$12:$DM$93,$A45-1921,'Report - ALL (DASHBOARD)'!$W$4) -> 2536.76943 | F45: =INDEX('Compile Data'!$DP$12:$EM$93,$A45-1921,'Report - ALL (DASHBOARD)'!$W$4) -> 2253.073764 | G45: =INDEX('Compile Data'!$EP$12:$FM$93,$A45-1921,'Report - ALL (DASHBOARD)'!$W$4) -> 2579.005514 | H45: =INDEX('Compile Data'!$FP$12:$GM$93,$A45-1921,'Report - ALL (DASHBOARD)'!$W$4) -> 2480.878176 | I45: =INDEX('Compile Data'!$GP$12:$HM$93,$A45-1921,'Report - ALL (DASHBOARD)'!$W$4) -> 2389.646758 | J45: =INDEX('Compile Data'!$HP$12:$IM$93,$A45-1921,'Report - ALL (DASHBOARD)'!$W$4) -> 2574.99721 | K45: =INDEX('Compile Data'!$IP$12:$JM$93,$A45-1921,'Report - ALL (DASHBOARD)'!$W$4) -> 2552.39127 | O45: 14 | P45: 0.1604938272 | Q45: =INDEX('Compile Data'!$P$123:$AM$204,$O45,'Report - ALL (DASHBOARD)'!$W$4) -> 3400 | R45: =INDEX('Compile Data'!$AP$123:$BM$204,$O45,'Report - ALL (DASHBOARD)'!$W$4) -> 3400 | S45: =INDEX('Compile Data'!$BP$123:$CM$204,$O45,'Report - ALL (DASHBOARD)'!$W$4) -> 3400 | T45: =INDEX('Compile Data'!$CP$123:$DM$204,$O45,'Report - ALL (DASHBOARD)'!$W$4) -> 3400 | U45: =INDEX('Compile Data'!$DP$123:$EM$204,$O45,'Report - ALL (DASHBOARD)'!$W$4) -> 3400 | V45: =INDEX('Compile Data'!$EP$123:$FM$204,$O45,'Report - ALL (DASHBOARD)'!$W$4) -> 3400 | W45: =INDEX('Compile Data'!$FP$123:$GM$204,$O45,'Report - ALL (DASHBOARD)'!$W$4) -> 3400 | X45: =INDEX('Compile Data'!$GP$123:$HM$204,$O45,'Report - ALL (DASHBOARD)'!$W$4) -> 3400 | Y45: =INDEX('Compile Data'!$HP$123:$IM$204,$O45,'Report - ALL (DASHBOARD)'!$W$4) -> 3400 | Z45: =INDEX('Compile Data'!$IP$123:$JM$204,$O45,'Report - ALL (DASHBOARD)'!$W$4) -> 3400
A46: 1936 | B46: =INDEX('Compile Data'!$P$12:$AM$93,$A46-1921,'Report - ALL (DASHBOARD)'!$W$4) -> 2966.720554 | C46: =INDEX('Compile Data'!$AP$12:$BM$93,$A46-1921,'Report - ALL (DASHBOARD)'!$W$4) -> 3022.221542 | D46: =INDEX('Compile Data'!$BP$12:$CM$93,$A46-1921,'Report - ALL (DASHBOARD)'!$W$4) -> 3027.527118 | E46: =INDEX('Compile Data'!$CP$12:$DM$93,$A46-1921,'Report - ALL (DASHBOARD)'!$W$4) -> 3027.384294 | F46: =INDEX('Compile Data'!$DP$12:$EM$93,$A46-1921,'Report - ALL (DASHBOARD)'!$W$4) -> 2999.475946 | G46: =INDEX('Compile Data'!$EP$12:$FM$93,$A46-1921,'Report - ALL (DASHBOARD)'!$W$4) -> 3009.438457 | H46: =INDEX('Compile Data'!$FP$12:$GM$93,$A46-1921,'Report - ALL (DASHBOARD)'!$W$4) -> 3010.732945 | I46: =INDEX('Compile Data'!$GP$12:$HM$93,$A46-1921,'Report - ALL (DASHBOARD)'!$W$4) -> 3009.382975 | J46: =INDEX('Compile Data'!$HP$12:$IM$93,$A46-1921,'Report - ALL (DASHBOARD)'!$W$4) -> 3015.408608 | K46: =INDEX('Compile Data'!$IP$12:$JM$93,$A46-1921,'Report - ALL (DASHBOARD)'!$W$4) -> 3015.211048 | O46: 15 | P46: 0.1728395062 | Q46: =INDEX('Compile Data'!$P$123:$AM$204,$O46,'Report - ALL (DASHBOARD)'!$W$4) -> 3400 | R46: =INDEX('Compile Data'!$AP$123:$BM$204,$O46,'Report - ALL (DASHBOARD)'!$W$4) -> 3400 | S46: =INDEX('Compile Data'!$BP$123:$CM$204,$O46,'Report - ALL (DASHBOARD)'!$W$4) -> 3400 | T46: =INDEX('Compile Data'!$CP$123:$DM$204,$O46,'Report - ALL (DASHBOARD)'!$W$4) -> 3400 | U46: =INDEX('Compile Data'!$DP$123:$EM$204,$O46,'Report - ALL (DASHBOARD)'!$W$4) -> 3400 | V46: =INDEX('Compile Data'!$EP$123:$FM$204,$O46,'Report - ALL (DASHBOARD)'!$W$4) -> 3400 | W46: =INDEX('Compile Data'!$FP$123:$GM$204,$O46,'Report - ALL (DASHBOARD)'!$W$4) -> 3400 | X46: =INDEX('Compile Data'!$GP$123:$HM$204,$O46,'Report - ALL (DASHBOARD)'!$W$4) -> 3400 | Y46: =INDEX('Compile Data'!$HP$123:$IM$204,$O46,'Report - ALL (DASHBOARD)'!$W$4) -> 3400 | Z46: =INDEX('Compile Data'!$IP$123:$JM$204,$O46,'Report - ALL (DASHBOARD)'!$W$4) -> 3400
A47: 1937 | B47: =INDEX('Compile Data'!$P$12:$AM$93,$A47-1921,'Report - ALL (DASHBOARD)'!$W$4) -> 3002.573964 | C47: =INDEX('Compile Data'!$AP$12:$BM$93,$A47-1921,'Report - ALL (DASHBOARD)'!$W$4) -> 3074.347311 | D47: =INDEX('Compile Data'!$BP$12:$CM$93,$A47-1921,'Report - ALL (DASHBOARD)'!$W$4) -> 3080.421886 | E47: =INDEX('Compile Data'!$CP$12:$DM$93,$A47-1921,'Report - ALL (DASHBOARD)'!$W$4) -> 3037.287678 | F47: =INDEX('Compile Data'!$DP$12:$EM$93,$A47-1921,'Report - ALL (DASHBOARD)'!$W$4) -> 3021.916126 | G47: =INDEX('Compile Data'!$EP$12:$FM$93,$A47-1921,'Report - ALL (DASHBOARD)'!$W$4) -> 3026.875202 | H47: =INDEX('Compile Data'!$FP$12:$GM$93,$A47-1921,'Report - ALL (DASHBOARD)'!$W$4) -> 3034.952292 | I47: =INDEX('Compile Data'!$GP$12:$HM$93,$A47-1921,'Report - ALL (DASHBOARD)'!$W$4) -> 3025.064351 | J47: =INDEX('Compile Data'!$HP$12:$IM$93,$A47-1921,'Report - ALL (DASHBOARD)'!$W$4) -> 3038.735379 | K47: =INDEX('Compile Data'!$IP$12:$JM$93,$A47-1921,'Report - ALL (DASHBOARD)'!$W$4) -> 3028.720837 | O47: 16 | P47: 0.1851851852 | Q47: =INDEX('Compile Data'!$P$123:$AM$204,$O47,'Report - ALL (DASHBOARD)'!$W$4) -> 3400 | R47: =INDEX('Compile Data'!$AP$123:$BM$204,$O47,'Report - ALL (DASHBOARD)'!$W$4) -> 3400 | S47: =INDEX('Compile Data'!$BP$123:$CM$204,$O47,'Report - ALL (DASHBOARD)'!$W$4) -> 3400 | T47: =INDEX('Compile Data'!$CP$123:$DM$204,$O47,'Report - ALL (DASHBOARD)'!$W$4) -> 3400 | U47: =INDEX('Compile Data'!$DP$123:$EM$204,$O47,'Report - ALL (DASHBOARD)'!$W$4) -> 3400 | V47: =INDEX('Compile Data'!$EP$123:$FM$204,$O47,'Report - ALL (DASHBOARD)'!$W$4) -> 3400 | W47: =INDEX('Compile Data'!$FP$123:$GM$204,$O47,'Report - ALL (DASHBOARD)'!$W$4) -> 3400 | X47: =INDEX('Compile Data'!$GP$123:$HM$204,$O47,'Report - ALL (DASHBOARD)'!$W$4) -> 3400 | Y47: =INDEX('Compile Data'!$HP$123:$IM$204,$O47,'Report - ALL (DASHBOARD)'!$W$4) -> 3400 | Z47: =INDEX('Compile Data'!$IP$123:$JM$204,$O47,'Report - ALL (DASHBOARD)'!$W$4) -> 3400
A48: 1938 | B48: =INDEX('Compile Data'!$P$12:$AM$93,$A48-1921,'Report - ALL (DASHBOARD)'!$W$4) -> 3400 | C48: =INDEX('Compile Data'!$AP$12:$BM$93,$A48-1921,'Report - ALL (DASHBOARD)'!$W$4) -> 3400 | D48: =INDEX('Compile Data'!$BP$12:$CM$93,$A48-1921,'Report - ALL (DASHBOARD)'!$W$4) -> 3400 | E48: =INDEX('Compile Data'!$CP$12:$DM$93,$A48-1921,'Report - ALL (DASHBOARD)'!$W$4) -> 3400 | F48: =INDEX('Compile Data'!$DP$12:$EM$93,$A48-1921,'Report - ALL (DASHBOARD)'!$W$4) -> 3400 | G48: =INDEX('Compile Data'!$EP$12:$FM$93,$A48-1921,'Report - ALL (DASHBOARD)'!$W$4) -> 3400 | H48: =INDEX('Compile Data'!$FP$12:$GM$93,$A48-1921,'Report - ALL (DASHBOARD)'!$W$4) -> 3400 | I48: =INDEX('Compile Data'!$GP$12:$HM$93,$A48-1921,'Report - ALL (DASHBOARD)'!$W$4) -> 3400 | J48: =INDEX('Compile Data'!$HP$12:$IM$93,$A48-1921,'Report - ALL (DASHBOARD)'!$W$4) -> 3400 | K48: =INDEX('Compile Data'!$IP$12:$JM$93,$A48-1921,'Report - ALL (DASHBOARD)'!$W$4) -> 3400 | O48: 17 | P48: 0.1975308642 | Q48: =INDEX('Compile Data'!$P$123:$AM$204,$O48,'Report - ALL (DASHBOARD)'!$W$4) -> 3400 | R48: =INDEX('Compile Data'!$AP$123:$BM$204,$O48,'Report - ALL (DASHBOARD)'!$W$4) -> 3400 | S48: =INDEX('Compile Data'!$BP$123:$CM$204,$O48,'Report - ALL (DASHBOARD)'!$W$4) -> 3400 | T48: =INDEX('Compile Data'!$CP$123:$DM$204,$O48,'Report - ALL (DASHBOARD)'!$W$4) -> 3400 | U48: =INDEX('Compile Data'!$DP$123:$EM$204,$O48,'Report - ALL (DASHBOARD)'!$W$4) -> 3400 | V48: =INDEX('Compile Data'!$EP$123:$FM$204,$O48,'Report - ALL (DASHBOARD)'!$W$4) -> 3400 | W48: =INDEX('Compile Data'!$FP$123:$GM$204,$O48,'Report - ALL (DASHBOARD)'!$W$4) -> 3400 | X48: =INDEX('Compile Data'!$GP$123:$HM$204,$O48,'Report - ALL (DASHBOARD)'!$W$4) -> 3400 | Y48: =INDEX('Compile Data'!$HP$123:$IM$204,$O48,'Report - ALL (DASHBOARD)'!$W$4) -> 3400 | Z48: =INDEX('Compile Data'!$IP$123:$JM$204,$O48,'Report - ALL (DASHBOARD)'!$W$4) -> 3400
A49: 1939 | B49: =INDEX('Compile Data'!$P$12:$AM$93,$A49-1921,'Report - ALL (DASHBOARD)'!$W$4) -> 2522.828836 | C49: =INDEX('Compile Data'!$AP$12:$BM$93,$A49-1921,'Report - ALL (DASHBOARD)'!$W$4) -> 2583.345733 | D49: =INDEX('Compile Data'!$BP$12:$CM$93,$A49-1921,'Report - ALL (DASHBOARD)'!$W$4) -> 2649.381519 | E49: =INDEX('Compile Data'!$CP$12:$DM$93,$A49-1921,'Report - ALL (DASHBOARD)'!$W$4) -> 2649.372575 | F49: =INDEX('Compile Data'!$DP$12:$EM$93,$A49-1921,'Report - ALL (DASHBOARD)'!$W$4) -> 2576.872469 | G49: =INDEX('Compile Data'!$EP$12:$FM$93,$A49-1921,'Report - ALL (DASHBOARD)'!$W$4) -> 2577.677463 | H49: =INDEX('Compile Data'!$FP$12:$GM$93,$A49-1921,'Report - ALL (DASHBOARD)'!$W$4) -> 2584.22942 | I49: =INDEX('Compile Data'!$GP$12:$HM$93,$A49-1921,'Report - ALL (DASHBOARD)'!$W$4) -> 2583.335626 | J49: =INDEX('Compile Data'!$HP$12:$IM$93,$A49-1921,'Report - ALL (DASHBOARD)'!$W$4) -> 2649.186298 | K49: =INDEX('Compile Data'!$IP$12:$JM$93,$A49-1921,'Report - ALL (DASHBOARD)'!$W$4) -> 2649.155029 | O49: 18 | P49: 0.2098765432 | Q49: =INDEX('Compile Data'!$P$123:$AM$204,$O49,'Report - ALL (DASHBOARD)'!$W$4) -> 3400 | R49: =INDEX('Compile Data'!$AP$123:$BM$204,$O49,'Report - ALL (DASHBOARD)'!$W$4) -> 3400 | S49: =INDEX('Compile Data'!$BP$123:$CM$204,$O49,'Report - ALL (DASHBOARD)'!$W$4) -> 3400 | T49: =INDEX('Compile Data'!$CP$123:$DM$204,$O49,'Report - ALL (DASHBOARD)'!$W$4) -> 3400 | U49: =INDEX('Compile Data'!$DP$123:$EM$204,$O49,'Report - ALL (DASHBOARD)'!$W$4) -> 3400 | V49: =INDEX('Compile Data'!$EP$123:$FM$204,$O49,'Report - ALL (DASHBOARD)'!$W$4) -> 3400 | W49: =INDEX('Compile Data'!$FP$123:$GM$204,$O49,'Report - ALL (DASHBOARD)'!$W$4) -> 3400 | X49: =INDEX('Compile Data'!$GP$123:$HM$204,$O49,'Report - ALL (DASHBOARD)'!$W$4) -> 3400 | Y49: =INDEX('Compile Data'!$HP$123:$IM$204,$O49,'Report - ALL (DASHBOARD)'!$W$4) -> 3400 | Z49: =INDEX('Compile Data'!$IP$123:$JM$204,$O49,'Report - ALL (DASHBOARD)'!$W$4) -> 3400
A50: 1940 | B50: =INDEX('Compile Data'!$P$12:$AM$93,$A50-1921,'Report - ALL (DASHBOARD)'!$W$4) -> 2656.455073 | C50: =INDEX('Compile Data'!$AP$12:$BM$93,$A50-1921,'Report - ALL (DASHBOARD)'!$W$4) -> 2712.717765 | D50: =INDEX('Compile Data'!$BP$12:$CM$93,$A50-1921,'Report - ALL (DASHBOARD)'!$W$4) -> 2757.769334 | E50: =INDEX('Compile Data'!$CP$12:$DM$93,$A50-1921,'Report - ALL (DASHBOARD)'!$W$4) -> 2757.750335 | F50: =INDEX('Compile Data'!$DP$12:$EM$93,$A50-1921,'Report - ALL (DASHBOARD)'!$W$4) -> 2717.682947 | G50: =INDEX('Compile Data'!$EP$12:$FM$93,$A50-1921,'Report - ALL (DASHBOARD)'!$W$4) -> 2721.351187 | H50: =INDEX('Compile Data'!$FP$12:$GM$93,$A50-1921,'Report - ALL (DASHBOARD)'!$W$4) -> 2714.019386 | I50: =INDEX('Compile Data'!$GP$12:$HM$93,$A50-1921,'Report - ALL (DASHBOARD)'!$W$4) -> 2712.681157 | J50: =INDEX('Compile Data'!$HP$12:$IM$93,$A50-1921,'Report - ALL (DASHBOARD)'!$W$4) -> 2757.315525 | K50: =INDEX('Compile Data'!$IP$12:$JM$93,$A50-1921,'Report - ALL (DASHBOARD)'!$W$4) -> 2757.57686 | O50: 19 | P50: 0.2222222222 | Q50: =INDEX('Compile Data'!$P$123:$AM$204,$O50,'Report - ALL (DASHBOARD)'!$W$4) -> 3400 | R50: =INDEX('Compile Data'!$AP$123:$BM$204,$O50,'Report - ALL (DASHBOARD)'!$W$4) -> 3400 | S50: =INDEX('Compile Data'!$BP$123:$CM$204,$O50,'Report - ALL (DASHBOARD)'!$W$4) -> 3400 | T50: =INDEX('Compile Data'!$CP$123:$DM$204,$O50,'Report - ALL (DASHBOARD)'!$W$4) -> 3400 | U50: =INDEX('Compile Data'!$DP$123:$EM$204,$O50,'Report - ALL (DASHBOARD)'!$W$4) -> 3400 | V50: =INDEX('Compile Data'!$EP$123:$FM$204,$O50,'Report - ALL (DASHBOARD)'!$W$4) -> 3400 | W50: =INDEX('Compile Data'!$FP$123:$GM$204,$O50,'Report - ALL (DASHBOARD)'!$W$4) -> 3400 | X50: =INDEX('Compile Data'!$GP$123:$HM$204,$O50,'Report - ALL (DASHBOARD)'!$W$4) -> 3400 | Y50: =INDEX('Compile Data'!$HP$123:$IM$204,$O50,'Report - ALL (DASHBOARD)'!$W$4) -> 3400 | Z50: =INDEX('Compile Data'!$IP$123:$JM$204,$O50,'Report - ALL (DASHBOARD)'!$W$4) -> 3400
A51: 1941 | B51: =INDEX('Compile Data'!$P$12:$AM$93,$A51-1921,'Report - ALL (DASHBOARD)'!$W$4) -> 3400 | C51: =INDEX('Compile Data'!$AP$12:$BM$93,$A51-1921,'Report - ALL (DASHBOARD)'!$W$4) -> 3400 | D51: =INDEX('Compile Data'!$BP$12:$CM$93,$A51-1921,'Report - ALL (DASHBOARD)'!$W$4) -> 3400 | E51: =INDEX('Compile Data'!$CP$12:$DM$93,$A51-1921,'Report - ALL (DASHBOARD)'!$W$4) -> 3400 | F51: =INDEX('Compile Data'!$DP$12:$EM$93,$A51-1921,'Report - ALL (DASHBOARD)'!$W$4) -> 3400 | G51: =INDEX('Compile Data'!$EP$12:$FM$93,$A51-1921,'Report - ALL (DASHBOARD)'!$W$4) -> 3400 | H51: =INDEX('Compile Data'!$FP$12:$GM$93,$A51-1921,'Report - ALL (DASHBOARD)'!$W$4) -> 3400 | I51: =INDEX('Compile Data'!$GP$12:$HM$93,$A51-1921,'Report - ALL (DASHBOARD)'!$W$4) -> 3400 | J51: =INDEX('Compile Data'!$HP$12:$IM$93,$A51-1921,'Report - ALL (DASHBOARD)'!$W$4) -> 3400 | K51: =INDEX('Compile Data'!$IP$12:$JM$93,$A51-1921,'Report - ALL (DASHBOARD)'!$W$4) -> 3400 | O51: 20 | P51: 0.2345679012 | Q51: =INDEX('Compile Data'!$P$123:$AM$204,$O51,'Report - ALL (DASHBOARD)'!$W$4) -> 3400 | R51: =INDEX('Compile Data'!$AP$123:$BM$204,$O51,'Report - ALL (DASHBOARD)'!$W$4) -> 3400 | S51: =INDEX('Compile Data'!$BP$123:$CM$204,$O51,'Report - ALL (DASHBOARD)'!$W$4) -> 3400 | T51: =INDEX('Compile Data'!$CP$123:$DM$204,$O51,'Report - ALL (DASHBOARD)'!$W$4) -> 3400 | U51: =INDEX('Compile Data'!$DP$123:$EM$204,$O51,'Report - ALL (DASHBOARD)'!$W$4) -> 3400 | V51: =INDEX('Compile Data'!$EP$123:$FM$204,$O51,'Report - ALL (DASHBOARD)'!$W$4) -> 3400 | W51: =INDEX('Compile Data'!$FP$123:$GM$204,$O51,'Report - ALL (DASHBOARD)'!$W$4) -> 3400 | X51: =INDEX('Compile Data'!$GP$123:$HM$204,$O51,'Report - ALL (DASHBOARD)'!$W$4) -> 3400 | Y51: =INDEX('Compile Data'!$HP$123:$IM$204,$O51,'Report - ALL (DASHBOARD)'!$W$4) -> 3400 | Z51: =INDEX('Compile Data'!$IP$123:$JM$204,$O51,'Report - ALL (DASHBOARD)'!$W$4) -> 3400
A52: 1942 | B52: =INDEX('Compile Data'!$P$12:$AM$93,$A52-1921,'Report - ALL (DASHBOARD)'!$W$4) -> 3400 | C52: =INDEX('Compile Data'!$AP$12:$BM$93,$A52-1921,'Report - ALL (DASHBOARD)'!$W$4) -> 3400 | D52: =INDEX('Compile Data'!$BP$12:$CM$93,$A52-1921,'Report - ALL (DASHBOARD)'!$W$4) -> 3400 | E52: =INDEX('Compile Data'!$CP$12:$DM$93,$A52-1921,'Report - ALL (DASHBOARD)'!$W$4) -> 3400 | F52: =INDEX('Compile Data'!$DP$12:$EM$93,$A52-1921,'Report - ALL (DASHBOARD)'!$W$4) -> 3400 | G52: =INDEX('Compile Data'!$EP$12:$FM$93,$A52-1921,'Report - ALL (DASHBOARD)'!$W$4) -> 3400 | H52: =INDEX('Compile Data'!$FP$12:$GM$93,$A52-1921,'Report - ALL (DASHBOARD)'!$W$4) -> 3400 | I52: =INDEX('Compile Data'!$GP$12:$HM$93,$A52-1921,'Report - ALL (DASHBOARD)'!$W$4) -> 3400 | J52: =INDEX('Compile Data'!$HP$12:$IM$93,$A52-1921,'Report - ALL (DASHBOARD)'!$W$4) -> 3400 | K52: =INDEX('Compile Data'!$IP$12:$JM$93,$A52-1921,'Report - ALL (DASHBOARD)'!$W$4) -> 3400 | O52: 21 | P52: 0.2469135802 | Q52: =INDEX('Compile Data'!$P$123:$AM$204,$O52,'Report - ALL (DASHBOARD)'!$W$4) -> 3400 | R52: =INDEX('Compile Data'!$AP$123:$BM$204,$O52,'Report - ALL (DASHBOARD)'!$W$4) -> 3400 | S52: =INDEX('Compile Data'!$BP$123:$CM$204,$O52,'Report - ALL (DASHBOARD)'!$W$4) -> 3400 | T52: =INDEX('Compile Data'!$CP$123:$DM$204,$O52,'Report - ALL (DASHBOARD)'!$W$4) -> 3387.57 | U52: =INDEX('Compile Data'!$DP$123:$EM$204,$O52,'Report - ALL (DASHBOARD)'!$W$4) -> 3400 | V52: =INDEX('Compile Data'!$EP$123:$FM$204,$O52,'Report - ALL (DASHBOARD)'!$W$4) -> 3400 | W52: =INDEX('Compile Data'!$FP$123:$GM$204,$O52,'Report - ALL (DASHBOARD)'!$W$4) -> 3400 | X52: =INDEX('Compile Data'!$GP$123:$HM$204,$O52,'Report - ALL (DASHBOARD)'!$W$4) -> 3400 | Y52: =INDEX('Compile Data'!$HP$123:$IM$204,$O52,'Report - ALL (DASHBOARD)'!$W$4) -> 3400 | Z52: =INDEX('Compile Data'!$IP$123:$JM$204,$O52,'Report - ALL (DASHBOARD)'!$W$4) -> 3400
A53: 1943 | B53: =INDEX('Compile Data'!$P$12:$AM$93,$A53-1921,'Report - ALL (DASHBOARD)'!$W$4) -> 3102.077961 | C53: =INDEX('Compile Data'!$AP$12:$BM$93,$A53-1921,'Report - ALL (DASHBOARD)'!$W$4) -> 3119.369419 | D53: =INDEX('Compile Data'!$BP$12:$CM$93,$A53-1921,'Report - ALL (DASHBOARD)'!$W$4) -> 3119.475655 | E53: =INDEX('Compile Data'!$CP$12:$DM$93,$A53-1921,'Report - ALL (DASHBOARD)'!$W$4) -> 3119.467804 | F53: =INDEX('Compile Data'!$DP$12:$EM$93,$A53-1921,'Report - ALL (DASHBOARD)'!$W$4) -> 3119.408887 | G53: =INDEX('Compile Data'!$EP$12:$FM$93,$A53-1921,'Report - ALL (DASHBOARD)'!$W$4) -> 3119.439349 | H53: =INDEX('Compile Data'!$FP$12:$GM$93,$A53-1921,'Report - ALL (DASHBOARD)'!$W$4) -> 3119.438289 | I53: =INDEX('Compile Data'!$GP$12:$HM$93,$A53-1921,'Report - ALL (DASHBOARD)'!$W$4) -> 3119.420333 | J53: =INDEX('Compile Data'!$HP$12:$IM$93,$A53-1921,'Report - ALL (DASHBOARD)'!$W$4) -> 3119.452832 | K53: =INDEX('Compile Data'!$IP$12:$JM$93,$A53-1921,'Report - ALL (DASHBOARD)'!$W$4) -> 3119.445788 | O53: 22 | P53: 0.2592592593 | Q53: =INDEX('Compile Data'!$P$123:$AM$204,$O53,'Report - ALL (DASHBOARD)'!$W$4) -> 3378.750746 | R53: =INDEX('Compile Data'!$AP$123:$BM$204,$O53,'Report - ALL (DASHBOARD)'!$W$4) -> 3386.919376 | S53: =INDEX('Compile Data'!$BP$123:$CM$204,$O53,'Report - ALL (DASHBOARD)'!$W$4) -> 3394.578853 | T53: =INDEX('Compile Data'!$CP$123:$DM$204,$O53,'Report - ALL (DASHBOARD)'!$W$4) -> 3386.919376 | U53: =INDEX('Compile Data'!$DP$123:$EM$204,$O53,'Report - ALL (DASHBOARD)'!$W$4) -> 3400 | V53: =INDEX('Compile Data'!$EP$123:$FM$204,$O53,'Report - ALL (DASHBOARD)'!$W$4) -> 3400 | W53: =INDEX('Compile Data'!$FP$123:$GM$204,$O53,'Report - ALL (DASHBOARD)'!$W$4) -> 3400 | X53: =INDEX('Compile Data'!$GP$123:$HM$204,$O53,'Report - ALL (DASHBOARD)'!$W$4) -> 3400 | Y53: =INDEX('Compile Data'!$HP$123:$IM$204,$O53,'Report - ALL (DASHBOARD)'!$W$4) -> 3400 | Z53: =INDEX('Compile Data'!$IP$123:$JM$204,$O53,'Report - ALL (DASHBOARD)'!$W$4) -> 3400
A54: 1944 | B54: =INDEX('Compile Data'!$P$12:$AM$93,$A54-1921,'Report - ALL (DASHBOARD)'!$W$4) -> 2637.760857 | C54: =INDEX('Compile Data'!$AP$12:$BM$93,$A54-1921,'Report - ALL (DASHBOARD)'!$W$4) -> 2723.302941 | D54: =INDEX('Compile Data'!$BP$12:$CM$93,$A54-1921,'Report - ALL (DASHBOARD)'!$W$4) -> 2723.6515 | E54: =INDEX('Compile Data'!$CP$12:$DM$93,$A54-1921,'Report - ALL (DASHBOARD)'!$W$4) -> 2723.632354 | F54: =INDEX('Compile Data'!$DP$12:$EM$93,$A54-1921,'Report - ALL (DASHBOARD)'!$W$4) -> 2717.691146 | G54: =INDEX('Compile Data'!$EP$12:$FM$93,$A54-1921,'Report - ALL (DASHBOARD)'!$W$4) -> 2722.123882 | H54: =INDEX('Compile Data'!$FP$12:$GM$93,$A54-1921,'Report - ALL (DASHBOARD)'!$W$4) -> 2728.322277 | I54: =INDEX('Compile Data'!$GP$12:$HM$93,$A54-1921,'Report - ALL (DASHBOARD)'!$W$4) -> 2728.284337 | J54: =INDEX('Compile Data'!$HP$12:$IM$93,$A54-1921,'Report - ALL (DASHBOARD)'!$W$4) -> 2728.199238 | K54: =INDEX('Compile Data'!$IP$12:$JM$93,$A54-1921,'Report - ALL (DASHBOARD)'!$W$4) -> 2728.192537 | O54: 23 | P54: 0.2716049383 | Q54: =INDEX('Compile Data'!$P$123:$AM$204,$O54,'Report - ALL (DASHBOARD)'!$W$4) -> 3353.49032 | R54: =INDEX('Compile Data'!$AP$123:$BM$204,$O54,'Report - ALL (DASHBOARD)'!$W$4) -> 3355.633132 | S54: =INDEX('Compile Data'!$BP$123:$CM$204,$O54,'Report - ALL (DASHBOARD)'!$W$4) -> 3355.20226 | T54: =INDEX('Compile Data'!$CP$123:$DM$204,$O54,'Report - ALL (DASHBOARD)'!$W$4) -> 3355.191648 | U54: =INDEX('Compile Data'!$DP$123:$EM$204,$O54,'Report - ALL (DASHBOARD)'!$W$4) -> 3387.258114 | V54: =INDEX('Compile Data'!$EP$123:$FM$204,$O54,'Report - ALL (DASHBOARD)'!$W$4) -> 3387.282019 | W54: =INDEX('Compile Data'!$FP$123:$GM$204,$O54,'Report - ALL (DASHBOARD)'!$W$4) -> 3352.047804 | X54: =INDEX('Compile Data'!$GP$123:$HM$204,$O54,'Report - ALL (DASHBOARD)'!$W$4) -> 3352.035556 | Y54: =INDEX('Compile Data'!$HP$123:$IM$204,$O54,'Report - ALL (DASHBOARD)'!$W$4) -> 3349.230809 | Z54: =INDEX('Compile Data'!$IP$123:$JM$204,$O54,'Report - ALL (DASHBOARD)'!$W$4) -> 3349.22929
A55: 1945 | B55: =INDEX('Compile Data'!$P$12:$AM$93,$A55-1921,'Report - ALL (DASHBOARD)'!$W$4) -> 3283.65164 | C55: =INDEX('Compile Data'!$AP$12:$BM$93,$A55-1921,'Report - ALL (DASHBOARD)'!$W$4) -> 3307.247727 | D55: =INDEX('Compile Data'!$BP$12:$CM$93,$A55-1921,'Report - ALL (DASHBOARD)'!$W$4) -> 3309.343871 | E55: =INDEX('Compile Data'!$CP$12:$DM$93,$A55-1921,'Report - ALL (DASHBOARD)'!$W$4) -> 3309.333329 | F55: =INDEX('Compile Data'!$DP$12:$EM$93,$A55-1921,'Report - ALL (DASHBOARD)'!$W$4) -> 3306.850281 | G55: =INDEX('Compile Data'!$EP$12:$FM$93,$A55-1921,'Report - ALL (DASHBOARD)'!$W$4) -> 3309.101829 | H55: =INDEX('Compile Data'!$FP$12:$GM$93,$A55-1921,'Report - ALL (DASHBOARD)'!$W$4) -> 3305.158975 | I55: =INDEX('Compile Data'!$GP$12:$HM$93,$A55-1921,'Report - ALL (DASHBOARD)'!$W$4) -> 3305.144119 | J55: =INDEX('Compile Data'!$HP$12:$IM$93,$A55-1921,'Report - ALL (DASHBOARD)'!$W$4) -> 3306.939396 | K55: =INDEX('Compile Data'!$IP$12:$JM$93,$A55-1921,'Report - ALL (DASHBOARD)'!$W$4) -> 3306.937237 | O55: 24 | P55: 0.2839506173 | Q55: =INDEX('Compile Data'!$P$123:$AM$204,$O55,'Report - ALL (DASHBOARD)'!$W$4) -> 3283.65164 | R55: =INDEX('Compile Data'!$AP$123:$BM$204,$O55,'Report - ALL (DASHBOARD)'!$W$4) -> 3307.247727 | S55: =INDEX('Compile Data'!$BP$123:$CM$204,$O55,'Report - ALL (DASHBOARD)'!$W$4) -> 3309.343871 | T55: =INDEX('Compile Data'!$CP$123:$DM$204,$O55,'Report - ALL (DASHBOARD)'!$W$4) -> 3315.449762 | U55: =INDEX('Compile Data'!$DP$123:$EM$204,$O55,'Report - ALL (DASHBOARD)'!$W$4) -> 3306.850281 | V55: =INDEX('Compile Data'!$EP$123:$FM$204,$O55,'Report - ALL (DASHBOARD)'!$W$4) -> 3309.101829 | W55: =INDEX('Compile Data'!$FP$123:$GM$204,$O55,'Report - ALL (DASHBOARD)'!$W$4) -> 3305.158975 | X55: =INDEX('Compile Data'!$GP$123:$HM$204,$O55,'Report - ALL (DASHBOARD)'!$W$4) -> 3305.144119 | Y55: =INDEX('Compile Data'!$HP$123:$IM$204,$O55,'Report - ALL (DASHBOARD)'!$W$4) -> 3306.939396 | Z55: =INDEX('Compile Data'!$IP$123:$JM$204,$O55,'Report - ALL (DASHBOARD)'!$W$4) -> 3315.536752
A56: 1946 | B56: =INDEX('Compile Data'!$P$12:$AM$93,$A56-1921,'Report - ALL (DASHBOARD)'!$W$4) -> 3200 | C56: =INDEX('Compile Data'!$AP$12:$BM$93,$A56-1921,'Report - ALL (DASHBOARD)'!$W$4) -> 3220.995759 | D56: =INDEX('Compile Data'!$BP$12:$CM$93,$A56-1921,'Report - ALL (DASHBOARD)'!$W$4) -> 3224.639438 | E56: =INDEX('Compile Data'!$CP$12:$DM$93,$A56-1921,'Report - ALL (DASHBOARD)'!$W$4) -> 3224.623168 | F56: =INDEX('Compile Data'!$DP$12:$EM$93,$A56-1921,'Report - ALL (DASHBOARD)'!$W$4) -> 3224.415687 | G56: =INDEX('Compile Data'!$EP$12:$FM$93,$A56-1921,'Report - ALL (DASHBOARD)'!$W$4) -> 3224.506074 | H56: =INDEX('Compile Data'!$FP$12:$GM$93,$A56-1921,'Report - ALL (DASHBOARD)'!$W$4) -> 3220.678826 | I56: =INDEX('Compile Data'!$GP$12:$HM$93,$A56-1921,'Report - ALL (DASHBOARD)'!$W$4) -> 3220.656377 | J56: =INDEX('Compile Data'!$HP$12:$IM$93,$A56-1921,'Report - ALL (DASHBOARD)'!$W$4) -> 3224.458766 | K56: =INDEX('Compile Data'!$IP$12:$JM$93,$A56-1921,'Report - ALL (DASHBOARD)'!$W$4) -> 3224.45336 | O56: 25 | P56: 0.2962962963 | Q56: =INDEX('Compile Data'!$P$123:$AM$204,$O56,'Report - ALL (DASHBOARD)'!$W$4) -> 3266.772226 | R56: =INDEX('Compile Data'!$AP$123:$BM$204,$O56,'Report - ALL (DASHBOARD)'!$W$4) -> 3296.894297 | S56: =INDEX('Compile Data'!$BP$123:$CM$204,$O56,'Report - ALL (DASHBOARD)'!$W$4) -> 3291.603804 | T56: =INDEX('Compile Data'!$CP$123:$DM$204,$O56,'Report - ALL (DASHBOARD)'!$W$4) -> 3309.333329 | U56: =INDEX('Compile Data'!$DP$123:$EM$204,$O56,'Report - ALL (DASHBOARD)'!$W$4) -> 3291.186706 | V56: =INDEX('Compile Data'!$EP$123:$FM$204,$O56,'Report - ALL (DASHBOARD)'!$W$4) -> 3295.798156 | W56: =INDEX('Compile Data'!$FP$123:$GM$204,$O56,'Report - ALL (DASHBOARD)'!$W$4) -> 3290.583518 | X56: =INDEX('Compile Data'!$GP$123:$HM$204,$O56,'Report - ALL (DASHBOARD)'!$W$4) -> 3290.832318 | Y56: =INDEX('Compile Data'!$HP$123:$IM$204,$O56,'Report - ALL (DASHBOARD)'!$W$4) -> 3305.959226 | Z56: =INDEX('Compile Data'!$IP$123:$JM$204,$O56,'Report - ALL (DASHBOARD)'!$W$4) -> 3306.937237
A57: 1947 | B57: =INDEX('Compile Data'!$P$12:$AM$93,$A57-1921,'Report - ALL (DASHBOARD)'!$W$4) -> 2677.299546 | C57: =INDEX('Compile Data'!$AP$12:$BM$93,$A57-1921,'Report - ALL (DASHBOARD)'!$W$4) -> 2668.722753 | D57: =INDEX('Compile Data'!$BP$12:$CM$93,$A57-1921,'Report - ALL (DASHBOARD)'!$W$4) -> 2671.377508 | E57: =INDEX('Compile Data'!$CP$12:$DM$93,$A57-1921,'Report - ALL (DASHBOARD)'!$W$4) -> 2671.334191 | F57: =INDEX('Compile Data'!$DP$12:$EM$93,$A57-1921,'Report - ALL (DASHBOARD)'!$W$4) -> 2679.900236 | G57: =INDEX('Compile Data'!$EP$12:$FM$93,$A57-1921,'Report - ALL (DASHBOARD)'!$W$4) -> 2678.835178 | H57: =INDEX('Compile Data'!$FP$12:$GM$93,$A57-1921,'Report - ALL (DASHBOARD)'!$W$4) -> 2670.269884 | I57: =INDEX('Compile Data'!$GP$12:$HM$93,$A57-1921,'Report - ALL (DASHBOARD)'!$W$4) -> 2670.234378 | J57: =INDEX('Compile Data'!$HP$12:$IM$93,$A57-1921,'Report - ALL (DASHBOARD)'!$W$4) -> 2677.6048 | K57: =INDEX('Compile Data'!$IP$12:$JM$93,$A57-1921,'Report - ALL (DASHBOARD)'!$W$4) -> 2677.59976 | O57: 26 | P57: 0.3086419753 | Q57: =INDEX('Compile Data'!$P$123:$AM$204,$O57,'Report - ALL (DASHBOARD)'!$W$4) -> 3236.994921 | R57: =INDEX('Compile Data'!$AP$123:$BM$204,$O57,'Report - ALL (DASHBOARD)'!$W$4) -> 3271.739599 | S57: =INDEX('Compile Data'!$BP$123:$CM$204,$O57,'Report - ALL (DASHBOARD)'!$W$4) -> 3270.966964 | T57: =INDEX('Compile Data'!$CP$123:$DM$204,$O57,'Report - ALL (DASHBOARD)'!$W$4) -> 3271.288271 | U57: =INDEX('Compile Data'!$DP$123:$EM$204,$O57,'Report - ALL (DASHBOARD)'!$W$4) -> 3270.634211 | V57: =INDEX('Compile Data'!$EP$123:$FM$204,$O57,'Report - ALL (DASHBOARD)'!$W$4) -> 3270.495024 | W57: =INDEX('Compile Data'!$FP$123:$GM$204,$O57,'Report - ALL (DASHBOARD)'!$W$4) -> 3271.808862 | X57: =INDEX('Compile Data'!$GP$123:$HM$204,$O57,'Report - ALL (DASHBOARD)'!$W$4) -> 3271.778529 | Y57: =INDEX('Compile Data'!$HP$123:$IM$204,$O57,'Report - ALL (DASHBOARD)'!$W$4) -> 3270.943271 | Z57: =INDEX('Compile Data'!$IP$123:$JM$204,$O57,'Report - ALL (DASHBOARD)'!$W$4) -> 3271.27258
A58: 1948 | B58: =INDEX('Compile Data'!$P$12:$AM$93,$A58-1921,'Report - ALL (DASHBOARD)'!$W$4) -> 3400 | C58: =INDEX('Compile Data'!$AP$12:$BM$93,$A58-1921,'Report - ALL (DASHBOARD)'!$W$4) -> 3355.633132 | D58: =INDEX('Compile Data'!$BP$12:$CM$93,$A58-1921,'Report - ALL (DASHBOARD)'!$W$4) -> 3355.20226 | E58: =INDEX('Compile Data'!$CP$12:$DM$93,$A58-1921,'Report - ALL (DASHBOARD)'!$W$4) -> 3355.191648 | F58: =INDEX('Compile Data'!$DP$12:$EM$93,$A58-1921,'Report - ALL (DASHBOARD)'!$W$4) -> 3387.258114 | G58: =INDEX('Compile Data'!$EP$12:$FM$93,$A58-1921,'Report - ALL (DASHBOARD)'!$W$4) -> 3387.282019 | H58: =INDEX('Compile Data'!$FP$12:$GM$93,$A58-1921,'Report - ALL (DASHBOARD)'!$W$4) -> 3352.047804 | I58: =INDEX('Compile Data'!$GP$12:$HM$93,$A58-1921,'Report - ALL (DASHBOARD)'!$W$4) -> 3352.035556 | J58: =INDEX('Compile Data'!$HP$12:$IM$93,$A58-1921,'Report - ALL (DASHBOARD)'!$W$4) -> 3349.230809 | K58: =INDEX('Compile Data'!$IP$12:$JM$93,$A58-1921,'Report - ALL (DASHBOARD)'!$W$4) -> 3349.22929 | O58: 27 | P58: 0.3209876543 | Q58: =INDEX('Compile Data'!$P$123:$AM$204,$O58,'Report - ALL (DASHBOARD)'!$W$4) -> 3233.332407 | R58: =INDEX('Compile Data'!$AP$123:$BM$204,$O58,'Report - ALL (DASHBOARD)'!$W$4) -> 3232.920391 | S58: =INDEX('Compile Data'!$BP$123:$CM$204,$O58,'Report - ALL (DASHBOARD)'!$W$4) -> 3232.03032 | T58: =INDEX('Compile Data'!$CP$123:$DM$204,$O58,'Report - ALL (DASHBOARD)'!$W$4) -> 3228.722917 | U58: =INDEX('Compile Data'!$DP$123:$EM$204,$O58,'Report - ALL (DASHBOARD)'!$W$4) -> 3240.249798 | V58: =INDEX('Compile Data'!$EP$123:$FM$204,$O58,'Report - ALL (DASHBOARD)'!$W$4) -> 3239.385055 | W58: =INDEX('Compile Data'!$FP$123:$GM$204,$O58,'Report - ALL (DASHBOARD)'!$W$4) -> 3250.973364 | X58: =INDEX('Compile Data'!$GP$123:$HM$204,$O58,'Report - ALL (DASHBOARD)'!$W$4) -> 3250.374787 | Y58: =INDEX('Compile Data'!$HP$123:$IM$204,$O58,'Report - ALL (DASHBOARD)'!$W$4) -> 3239.408759 | Z58: =INDEX('Compile Data'!$IP$123:$JM$204,$O58,'Report - ALL (DASHBOARD)'!$W$4) -> 3232.581434
A59: 1949 | B59: =INDEX('Compile Data'!$P$12:$AM$93,$A59-1921,'Report - ALL (DASHBOARD)'!$W$4) -> 3203.978232 | C59: =INDEX('Compile Data'!$AP$12:$BM$93,$A59-1921,'Report - ALL (DASHBOARD)'!$W$4) -> 3219.270778 | D59: =INDEX('Compile Data'!$BP$12:$CM$93,$A59-1921,'Report - ALL (DASHBOARD)'!$W$4) -> 3219.561815 | E59: =INDEX('Compile Data'!$CP$12:$DM$93,$A59-1921,'Report - ALL (DASHBOARD)'!$W$4) -> 3219.55007 | F59: =INDEX('Compile Data'!$DP$12:$EM$93,$A59-1921,'Report - ALL (DASHBOARD)'!$W$4) -> 3214.437839 | G59: =INDEX('Compile Data'!$EP$12:$FM$93,$A59-1921,'Report - ALL (DASHBOARD)'!$W$4) -> 3217.652368 | H59: =INDEX('Compile Data'!$FP$12:$GM$93,$A59-1921,'Report - ALL (DASHBOARD)'!$W$4) -> 3226.536168 | I59: =INDEX('Compile Data'!$GP$12:$HM$93,$A59-1921,'Report - ALL (DASHBOARD)'!$W$4) -> 3223.988044 | J59: =INDEX('Compile Data'!$HP$12:$IM$93,$A59-1921,'Report - ALL (DASHBOARD)'!$W$4) -> 3226.005689 | K59: =INDEX('Compile Data'!$IP$12:$JM$93,$A59-1921,'Report - ALL (DASHBOARD)'!$W$4) -> 3222.895912 | O59: 28 | P59: 0.3333333333 | Q59: =INDEX('Compile Data'!$P$123:$AM$204,$O59,'Report - ALL (DASHBOARD)'!$W$4) -> 3203.978232 | R59: =INDEX('Compile Data'!$AP$123:$BM$204,$O59,'Report - ALL (DASHBOARD)'!$W$4) -> 3227.625074 | S59: =INDEX('Compile Data'!$BP$123:$CM$204,$O59,'Report - ALL (DASHBOARD)'!$W$4) -> 3228.746638 | T59: =INDEX('Compile Data'!$CP$123:$DM$204,$O59,'Report - ALL (DASHBOARD)'!$W$4) -> 3227.695001 | U59: =INDEX('Compile Data'!$DP$123:$EM$204,$O59,'Report - ALL (DASHBOARD)'!$W$4) -> 3227.628621 | V59: =INDEX('Compile Data'!$EP$123:$FM$204,$O59,'Report - ALL (DASHBOARD)'!$W$4) -> 3227.242685 | W59: =INDEX('Compile Data'!$FP$123:$GM$204,$O59,'Report - ALL (DASHBOARD)'!$W$4) -> 3232.581981 | X59: =INDEX('Compile Data'!$GP$123:$HM$204,$O59,'Report - ALL (DASHBOARD)'!$W$4) -> 3227.694614 | Y59: =INDEX('Compile Data'!$HP$123:$IM$204,$O59,'Report - ALL (DASHBOARD)'!$W$4) -> 3232.901293 | Z59: =INDEX('Compile Data'!$IP$123:$JM$204,$O59,'Report - ALL (DASHBOARD)'!$W$4) -> 3227.681404
A60: 1950 | B60: =INDEX('Compile Data'!$P$12:$AM$93,$A60-1921,'Report - ALL (DASHBOARD)'!$W$4) -> 3203.512854 | C60: =INDEX('Compile Data'!$AP$12:$BM$93,$A60-1921,'Report - ALL (DASHBOARD)'!$W$4) -> 3226.590999 | D60: =INDEX('Compile Data'!$BP$12:$CM$93,$A60-1921,'Report - ALL (DASHBOARD)'!$W$4) -> 3228.746638 | E60: =INDEX('Compile Data'!$CP$12:$DM$93,$A60-1921,'Report - ALL (DASHBOARD)'!$W$4) -> 3228.722917 | F60: =INDEX('Compile Data'!$DP$12:$EM$93,$A60-1921,'Report - ALL (DASHBOARD)'!$W$4) -> 3205.169344 | G60: =INDEX('Compile Data'!$EP$12:$FM$93,$A60-1921,'Report - ALL (DASHBOARD)'!$W$4) -> 3209.396846 | H60: =INDEX('Compile Data'!$FP$12:$GM$93,$A60-1921,'Report - ALL (DASHBOARD)'!$W$4) -> 3250.973364 | I60: =INDEX('Compile Data'!$GP$12:$HM$93,$A60-1921,'Report - ALL (DASHBOARD)'!$W$4) -> 3250.374787 | J60: =INDEX('Compile Data'!$HP$12:$IM$93,$A60-1921,'Report - ALL (DASHBOARD)'!$W$4) -> 3232.901293 | K60: =INDEX('Compile Data'!$IP$12:$JM$93,$A60-1921,'Report - ALL (DASHBOARD)'!$W$4) -> 3232.581434 | O60: 29 | P60: 0.3456790123 | Q60: =INDEX('Compile Data'!$P$123:$AM$204,$O60,'Report - ALL (DASHBOARD)'!$W$4) -> 3203.512854 | R60: =INDEX('Compile Data'!$AP$123:$BM$204,$O60,'Report - ALL (DASHBOARD)'!$W$4) -> 3226.590999 | S60: =INDEX('Compile Data'!$BP$123:$CM$204,$O60,'Report - ALL (DASHBOARD)'!$W$4) -> 3227.705669 | T60: =INDEX('Compile Data'!$CP$123:$DM$204,$O60,'Report - ALL (DASHBOARD)'!$W$4) -> 3224.623168 | U60: =INDEX('Compile Data'!$DP$123:$EM$204,$O60,'Report - ALL (DASHBOARD)'!$W$4) -> 3224.415687 | V60: =INDEX('Compile Data'!$EP$123:$FM$204,$O60,'Report - ALL (DASHBOARD)'!$W$4) -> 3224.506074 | W60: =INDEX('Compile Data'!$FP$123:$GM$204,$O60,'Report - ALL (DASHBOARD)'!$W$4) -> 3227.6494 | X60: =INDEX('Compile Data'!$GP$123:$HM$204,$O60,'Report - ALL (DASHBOARD)'!$W$4) -> 3223.988044 | Y60: =INDEX('Compile Data'!$HP$123:$IM$204,$O60,'Report - ALL (DASHBOARD)'!$W$4) -> 3231.835296 | Z60: =INDEX('Compile Data'!$IP$123:$JM$204,$O60,'Report - ALL (DASHBOARD)'!$W$4) -> 3224.45336
A61: 1951 | B61: =INDEX('Compile Data'!$P$12:$AM$93,$A61-1921,'Report - ALL (DASHBOARD)'!$W$4) -> 2901.943057 | C61: =INDEX('Compile Data'!$AP$12:$BM$93,$A61-1921,'Report - ALL (DASHBOARD)'!$W$4) -> 2933.321453 | D61: =INDEX('Compile Data'!$BP$12:$CM$93,$A61-1921,'Report - ALL (DASHBOARD)'!$W$4) -> 2953.555881 | E61: =INDEX('Compile Data'!$CP$12:$DM$93,$A61-1921,'Report - ALL (DASHBOARD)'!$W$4) -> 2953.543874 | F61: =INDEX('Compile Data'!$DP$12:$EM$93,$A61-1921,'Report - ALL (DASHBOARD)'!$W$4) -> 2928.590448 | G61: =INDEX('Compile Data'!$EP$12:$FM$93,$A61-1921,'Report - ALL (DASHBOARD)'!$W$4) -> 2932.590202 | H61: =INDEX('Compile Data'!$FP$12:$GM$93,$A61-1921,'Report - ALL (DASHBOARD)'!$W$4) -> 2932.714796 | I61: =INDEX('Compile Data'!$GP$12:$HM$93,$A61-1921,'Report - ALL (DASHBOARD)'!$W$4) -> 2931.875676 | J61: =INDEX('Compile Data'!$HP$12:$IM$93,$A61-1921,'Report - ALL (DASHBOARD)'!$W$4) -> 2940.958014 | K61: =INDEX('Compile Data'!$IP$12:$JM$93,$A61-1921,'Report - ALL (DASHBOARD)'!$W$4) -> 2940.14029 | O61: 30 | P61: 0.3580246914 | Q61: =INDEX('Compile Data'!$P$123:$AM$204,$O61,'Report - ALL (DASHBOARD)'!$W$4) -> 3200 | R61: =INDEX('Compile Data'!$AP$123:$BM$204,$O61,'Report - ALL (DASHBOARD)'!$W$4) -> 3220.995759 | S61: =INDEX('Compile Data'!$BP$123:$CM$204,$O61,'Report - ALL (DASHBOARD)'!$W$4) -> 3224.639438 | T61: =INDEX('Compile Data'!$CP$123:$DM$204,$O61,'Report - ALL (DASHBOARD)'!$W$4) -> 3219.55007 | U61: =INDEX('Compile Data'!$DP$123:$EM$204,$O61,'Report - ALL (DASHBOARD)'!$W$4) -> 3220.699217 | V61: =INDEX('Compile Data'!$EP$123:$FM$204,$O61,'Report - ALL (DASHBOARD)'!$W$4) -> 3220.240079 | W61: =INDEX('Compile Data'!$FP$123:$GM$204,$O61,'Report - ALL (DASHBOARD)'!$W$4) -> 3226.536168 | X61: =INDEX('Compile Data'!$GP$123:$HM$204,$O61,'Report - ALL (DASHBOARD)'!$W$4) -> 3220.896706 | Y61: =INDEX('Compile Data'!$HP$123:$IM$204,$O61,'Report - ALL (DASHBOARD)'!$W$4) -> 3227.682261 | Z61: =INDEX('Compile Data'!$IP$123:$JM$204,$O61,'Report - ALL (DASHBOARD)'!$W$4) -> 3222.895912
A62: 1952 | B62: =INDEX('Compile Data'!$P$12:$AM$93,$A62-1921,'Report - ALL (DASHBOARD)'!$W$4) -> 3400 | C62: =INDEX('Compile Data'!$AP$12:$BM$93,$A62-1921,'Report - ALL (DASHBOARD)'!$W$4) -> 3386.919376 | D62: =INDEX('Compile Data'!$BP$12:$CM$93,$A62-1921,'Report - ALL (DASHBOARD)'!$W$4) -> 3400 | E62: =INDEX('Compile Data'!$CP$12:$DM$93,$A62-1921,'Report - ALL (DASHBOARD)'!$W$4) -> 3386.919376 | F62: =INDEX('Compile Data'!$DP$12:$EM$93,$A62-1921,'Report - ALL (DASHBOARD)'!$W$4) -> 3400 | G62: =INDEX('Compile Data'!$EP$12:$FM$93,$A62-1921,'Report - ALL (DASHBOARD)'!$W$4) -> 3400 | H62: =INDEX('Compile Data'!$FP$12:$GM$93,$A62-1921,'Report - ALL (DASHBOARD)'!$W$4) -> 3400 | I62: =INDEX('Compile Data'!$GP$12:$HM$93,$A62-1921,'Report - ALL (DASHBOARD)'!$W$4) -> 3400 | J62: =INDEX('Compile Data'!$HP$12:$IM$93,$A62-1921,'Report - ALL (DASHBOARD)'!$W$4) -> 3400 | K62: =INDEX('Compile Data'!$IP$12:$JM$93,$A62-1921,'Report - ALL (DASHBOARD)'!$W$4) -> 3400 | O62: 31 | P62: 0.3703703704 | Q62: =INDEX('Compile Data'!$P$123:$AM$204,$O62,'Report - ALL (DASHBOARD)'!$W$4) -> 3200 | R62: =INDEX('Compile Data'!$AP$123:$BM$204,$O62,'Report - ALL (DASHBOARD)'!$W$4) -> 3219.270778 | S62: =INDEX('Compile Data'!$BP$123:$CM$204,$O62,'Report - ALL (DASHBOARD)'!$W$4) -> 3219.561815 | T62: =INDEX('Compile Data'!$CP$123:$DM$204,$O62,'Report - ALL (DASHBOARD)'!$W$4) -> 3216.297458 | U62: =INDEX('Compile Data'!$DP$123:$EM$204,$O62,'Report - ALL (DASHBOARD)'!$W$4) -> 3214.437839 | V62: =INDEX('Compile Data'!$EP$123:$FM$204,$O62,'Report - ALL (DASHBOARD)'!$W$4) -> 3217.652368 | W62: =INDEX('Compile Data'!$FP$123:$GM$204,$O62,'Report - ALL (DASHBOARD)'!$W$4) -> 3220.678826 | X62: =INDEX('Compile Data'!$GP$123:$HM$204,$O62,'Report - ALL (DASHBOARD)'!$W$4) -> 3220.656377 | Y62: =INDEX('Compile Data'!$HP$123:$IM$204,$O62,'Report - ALL (DASHBOARD)'!$W$4) -> 3226.005689 | Z62: =INDEX('Compile Data'!$IP$123:$JM$204,$O62,'Report - ALL (DASHBOARD)'!$W$4) -> 3220.826523
A63: 1953 | B63: =INDEX('Compile Data'!$P$12:$AM$93,$A63-1921,'Report - ALL (DASHBOARD)'!$W$4) -> 3400 | C63: =INDEX('Compile Data'!$AP$12:$BM$93,$A63-1921,'Report - ALL (DASHBOARD)'!$W$4) -> 3400 | D63: =INDEX('Compile Data'!$BP$12:$CM$93,$A63-1921,'Report - ALL (DASHBOARD)'!$W$4) -> 3400 | E63: =INDEX('Compile Data'!$CP$12:$DM$93,$A63-1921,'Report - ALL (DASHBOARD)'!$W$4) -> 3400 | F63: =INDEX('Compile Data'!$DP$12:$EM$93,$A63-1921,'Report - ALL (DASHBOARD)'!$W$4) -> 3400 | G63: =INDEX('Compile Data'!$EP$12:$FM$93,$A63-1921,'Report - ALL (DASHBOARD)'!$W$4) -> 3400 | H63: =INDEX('Compile Data'!$FP$12:$GM$93,$A63-1921,'Report - ALL (DASHBOARD)'!$W$4) -> 3400 | I63: =INDEX('Compile Data'!$GP$12:$HM$93,$A63-1921,'Report - ALL (DASHBOARD)'!$W$4) -> 3400 | J63: =INDEX('Compile Data'!$HP$12:$IM$93,$A63-1921,'Report - ALL (DASHBOARD)'!$W$4) -> 3400 | K63: =INDEX('Compile Data'!$IP$12:$JM$93,$A63-1921,'Report - ALL (DASHBOARD)'!$W$4) -> 3400 | O63: 32 | P63: 0.3827160494 | Q63: =INDEX('Compile Data'!$P$123:$AM$204,$O63,'Report - ALL (DASHBOARD)'!$W$4) -> 3184.04974 | R63: =INDEX('Compile Data'!$AP$123:$BM$204,$O63,'Report - ALL (DASHBOARD)'!$W$4) -> 3217.227853 | S63: =INDEX('Compile Data'!$BP$123:$CM$204,$O63,'Report - ALL (DASHBOARD)'!$W$4) -> 3213.113778 | T63: =INDEX('Compile Data'!$CP$123:$DM$204,$O63,'Report - ALL (DASHBOARD)'!$W$4) -> 3213.132035 | U63: =INDEX('Compile Data'!$DP$123:$EM$204,$O63,'Report - ALL (DASHBOARD)'!$W$4) -> 3205.169344 | V63: =INDEX('Compile Data'!$EP$123:$FM$204,$O63,'Report - ALL (DASHBOARD)'!$W$4) -> 3209.396846 | W63: =INDEX('Compile Data'!$FP$123:$GM$204,$O63,'Report - ALL (DASHBOARD)'!$W$4) -> 3218.621059 | X63: =INDEX('Compile Data'!$GP$123:$HM$204,$O63,'Report - ALL (DASHBOARD)'!$W$4) -> 3220.220505 | Y63: =INDEX('Compile Data'!$HP$123:$IM$204,$O63,'Report - ALL (DASHBOARD)'!$W$4) -> 3224.458766 | Z63: =INDEX('Compile Data'!$IP$123:$JM$204,$O63,'Report - ALL (DASHBOARD)'!$W$4) -> 3216.19036
A64: 1954 | B64: =INDEX('Compile Data'!$P$12:$AM$93,$A64-1921,'Report - ALL (DASHBOARD)'!$W$4) -> 3089.462031 | C64: =INDEX('Compile Data'!$AP$12:$BM$93,$A64-1921,'Report - ALL (DASHBOARD)'!$W$4) -> 3155.800977 | D64: =INDEX('Compile Data'!$BP$12:$CM$93,$A64-1921,'Report - ALL (DASHBOARD)'!$W$4) -> 3155.585143 | E64: =INDEX('Compile Data'!$CP$12:$DM$93,$A64-1921,'Report - ALL (DASHBOARD)'!$W$4) -> 3151.299677 | F64: =INDEX('Compile Data'!$DP$12:$EM$93,$A64-1921,'Report - ALL (DASHBOARD)'!$W$4) -> 3150.77544 | G64: =INDEX('Compile Data'!$EP$12:$FM$93,$A64-1921,'Report - ALL (DASHBOARD)'!$W$4) -> 3150.997181 | H64: =INDEX('Compile Data'!$FP$12:$GM$93,$A64-1921,'Report - ALL (DASHBOARD)'!$W$4) -> 3145.215576 | I64: =INDEX('Compile Data'!$GP$12:$HM$93,$A64-1921,'Report - ALL (DASHBOARD)'!$W$4) -> 3145.682834 | J64: =INDEX('Compile Data'!$HP$12:$IM$93,$A64-1921,'Report - ALL (DASHBOARD)'!$W$4) -> 3145.537016 | K64: =INDEX('Compile Data'!$IP$12:$JM$93,$A64-1921,'Report - ALL (DASHBOARD)'!$W$4) -> 3145.541424 | O64: 33 | P64: 0.3950617284 | Q64: =INDEX('Compile Data'!$P$123:$AM$204,$O64,'Report - ALL (DASHBOARD)'!$W$4) -> 3164.43635 | R64: =INDEX('Compile Data'!$AP$123:$BM$204,$O64,'Report - ALL (DASHBOARD)'!$W$4) -> 3190.876884 | S64: =INDEX('Compile Data'!$BP$123:$CM$204,$O64,'Report - ALL (DASHBOARD)'!$W$4) -> 3195.762129 | T64: =INDEX('Compile Data'!$CP$123:$DM$204,$O64,'Report - ALL (DASHBOARD)'!$W$4) -> 3195.744447 | U64: =INDEX('Compile Data'!$DP$123:$EM$204,$O64,'Report - ALL (DASHBOARD)'!$W$4) -> 3189.189995 | V64: =INDEX('Compile Data'!$EP$123:$FM$204,$O64,'Report - ALL (DASHBOARD)'!$W$4) -> 3194.142714 | W64: =INDEX('Compile Data'!$FP$123:$GM$204,$O64,'Report - ALL (DASHBOARD)'!$W$4) -> 3189.894205 | X64: =INDEX('Compile Data'!$GP$123:$HM$204,$O64,'Report - ALL (DASHBOARD)'!$W$4) -> 3189.978464 | Y64: =INDEX('Compile Data'!$HP$123:$IM$204,$O64,'Report - ALL (DASHBOARD)'!$W$4) -> 3195.707706 | Z64: =INDEX('Compile Data'!$IP$123:$JM$204,$O64,'Report - ALL (DASHBOARD)'!$W$4) -> 3195.699591
A65: 1955 | B65: =INDEX('Compile Data'!$P$12:$AM$93,$A65-1921,'Report - ALL (DASHBOARD)'!$W$4) -> 2992.927769 | C65: =INDEX('Compile Data'!$AP$12:$BM$93,$A65-1921,'Report - ALL (DASHBOARD)'!$W$4) -> 2980.168025 | D65: =INDEX('Compile Data'!$BP$12:$CM$93,$A65-1921,'Report - ALL (DASHBOARD)'!$W$4) -> 2991.419758 | E65: =INDEX('Compile Data'!$CP$12:$DM$93,$A65-1921,'Report - ALL (DASHBOARD)'!$W$4) -> 2989.796202 | F65: =INDEX('Compile Data'!$DP$12:$EM$93,$A65-1921,'Report - ALL (DASHBOARD)'!$W$4) -> 2979.122299 | G65: =INDEX('Compile Data'!$EP$12:$FM$93,$A65-1921,'Report - ALL (DASHBOARD)'!$W$4) -> 2979.259054 | H65: =INDEX('Compile Data'!$FP$12:$GM$93,$A65-1921,'Report - ALL (DASHBOARD)'!$W$4) -> 3018.468065 | I65: =INDEX('Compile Data'!$GP$12:$HM$93,$A65-1921,'Report - ALL (DASHBOARD)'!$W$4) -> 2976.843162 | J65: =INDEX('Compile Data'!$HP$12:$IM$93,$A65-1921,'Report - ALL (DASHBOARD)'!$W$4) -> 2988.213507 | K65: =INDEX('Compile Data'!$IP$12:$JM$93,$A65-1921,'Report - ALL (DASHBOARD)'!$W$4) -> 2988.220098 | O65: 34 | P65: 0.4074074074 | Q65: =INDEX('Compile Data'!$P$123:$AM$204,$O65,'Report - ALL (DASHBOARD)'!$W$4) -> 3162.722859 | R65: =INDEX('Compile Data'!$AP$123:$BM$204,$O65,'Report - ALL (DASHBOARD)'!$W$4) -> 3190.01374 | S65: =INDEX('Compile Data'!$BP$123:$CM$204,$O65,'Report - ALL (DASHBOARD)'!$W$4) -> 3188.607115 | T65: =INDEX('Compile Data'!$CP$123:$DM$204,$O65,'Report - ALL (DASHBOARD)'!$W$4) -> 3188.609667 | U65: =INDEX('Compile Data'!$DP$123:$EM$204,$O65,'Report - ALL (DASHBOARD)'!$W$4) -> 3188.445296 | V65: =INDEX('Compile Data'!$EP$123:$FM$204,$O65,'Report - ALL (DASHBOARD)'!$W$4) -> 3189.120867 | W65: =INDEX('Compile Data'!$FP$123:$GM$204,$O65,'Report - ALL (DASHBOARD)'!$W$4) -> 3184.672223 | X65: =INDEX('Compile Data'!$GP$123:$HM$204,$O65,'Report - ALL (DASHBOARD)'!$W$4) -> 3184.495231 | Y65: =INDEX('Compile Data'!$HP$123:$IM$204,$O65,'Report - ALL (DASHBOARD)'!$W$4) -> 3188.913207 | Z65: =INDEX('Compile Data'!$IP$123:$JM$204,$O65,'Report - ALL (DASHBOARD)'!$W$4) -> 3188.994147
A66: 1956 | B66: =INDEX('Compile Data'!$P$12:$AM$93,$A66-1921,'Report - ALL (DASHBOARD)'!$W$4) -> 3400 | C66: =INDEX('Compile Data'!$AP$12:$BM$93,$A66-1921,'Report - ALL (DASHBOARD)'!$W$4) -> 3400 | D66: =INDEX('Compile Data'!$BP$12:$CM$93,$A66-1921,'Report - ALL (DASHBOARD)'!$W$4) -> 3400 | E66: =INDEX('Compile Data'!$CP$12:$DM$93,$A66-1921,'Report - ALL (DASHBOARD)'!$W$4) -> 3400 | F66: =INDEX('Compile Data'!$DP$12:$EM$93,$A66-1921,'Report - ALL (DASHBOARD)'!$W$4) -> 3400 | G66: =INDEX('Compile Data'!$EP$12:$FM$93,$A66-1921,'Report - ALL (DASHBOARD)'!$W$4) -> 3400 | H66: =INDEX('Compile Data'!$FP$12:$GM$93,$A66-1921,'Report - ALL (DASHBOARD)'!$W$4) -> 3400 | I66: =INDEX('Compile Data'!$GP$12:$HM$93,$A66-1921,'Report - ALL (DASHBOARD)'!$W$4) -> 3400 | J66: =INDEX('Compile Data'!$HP$12:$IM$93,$A66-1921,'Report - ALL (DASHBOARD)'!$W$4) -> 3400 | K66: =INDEX('Compile Data'!$IP$12:$JM$93,$A66-1921,'Report - ALL (DASHBOARD)'!$W$4) -> 3400 | O66: 35 | P66: 0.4197530864 | Q66: =INDEX('Compile Data'!$P$123:$AM$204,$O66,'Report - ALL (DASHBOARD)'!$W$4) -> 3158.645217 | R66: =INDEX('Compile Data'!$AP$123:$BM$204,$O66,'Report - ALL (DASHBOARD)'!$W$4) -> 3186.048432 | S66: =INDEX('Compile Data'!$BP$123:$CM$204,$O66,'Report - ALL (DASHBOARD)'!$W$4) -> 3188.301922 | T66: =INDEX('Compile Data'!$CP$123:$DM$204,$O66,'Report - ALL (DASHBOARD)'!$W$4) -> 3188.286096 | U66: =INDEX('Compile Data'!$DP$123:$EM$204,$O66,'Report - ALL (DASHBOARD)'!$W$4) -> 3184.501773 | V66: =INDEX('Compile Data'!$EP$123:$FM$204,$O66,'Report - ALL (DASHBOARD)'!$W$4) -> 3184.780776 | W66: =INDEX('Compile Data'!$FP$123:$GM$204,$O66,'Report - ALL (DASHBOARD)'!$W$4) -> 3181.618096 | X66: =INDEX('Compile Data'!$GP$123:$HM$204,$O66,'Report - ALL (DASHBOARD)'!$W$4) -> 3181.870753 | Y66: =INDEX('Compile Data'!$HP$123:$IM$204,$O66,'Report - ALL (DASHBOARD)'!$W$4) -> 3184.356424 | Z66: =INDEX('Compile Data'!$IP$123:$JM$204,$O66,'Report - ALL (DASHBOARD)'!$W$4) -> 3184.396295
A67: 1957 | B67: =INDEX('Compile Data'!$P$12:$AM$93,$A67-1921,'Report - ALL (DASHBOARD)'!$W$4) -> 3162.722859 | C67: =INDEX('Compile Data'!$AP$12:$BM$93,$A67-1921,'Report - ALL (DASHBOARD)'!$W$4) -> 3232.920391 | D67: =INDEX('Compile Data'!$BP$12:$CM$93,$A67-1921,'Report - ALL (DASHBOARD)'!$W$4) -> 3232.03032 | E67: =INDEX('Compile Data'!$CP$12:$DM$93,$A67-1921,'Report - ALL (DASHBOARD)'!$W$4) -> 3216.297458 | F67: =INDEX('Compile Data'!$DP$12:$EM$93,$A67-1921,'Report - ALL (DASHBOARD)'!$W$4) -> 3220.699217 | G67: =INDEX('Compile Data'!$EP$12:$FM$93,$A67-1921,'Report - ALL (DASHBOARD)'!$W$4) -> 3220.240079 | H67: =INDEX('Compile Data'!$FP$12:$GM$93,$A67-1921,'Report - ALL (DASHBOARD)'!$W$4) -> 3232.581981 | I67: =INDEX('Compile Data'!$GP$12:$HM$93,$A67-1921,'Report - ALL (DASHBOARD)'!$W$4) -> 3220.896706 | J67: =INDEX('Compile Data'!$HP$12:$IM$93,$A67-1921,'Report - ALL (DASHBOARD)'!$W$4) -> 3231.835296 | K67: =INDEX('Compile Data'!$IP$12:$JM$93,$A67-1921,'Report - ALL (DASHBOARD)'!$W$4) -> 3216.19036 | O67: 36 | P67: 0.4320987654 | Q67: =INDEX('Compile Data'!$P$123:$AM$204,$O67,'Report - ALL (DASHBOARD)'!$W$4) -> 3151.505254 | R67: =INDEX('Compile Data'!$AP$123:$BM$204,$O67,'Report - ALL (DASHBOARD)'!$W$4) -> 3181.792347 | S67: =INDEX('Compile Data'!$BP$123:$CM$204,$O67,'Report - ALL (DASHBOARD)'!$W$4) -> 3181.91443 | T67: =INDEX('Compile Data'!$CP$123:$DM$204,$O67,'Report - ALL (DASHBOARD)'!$W$4) -> 3181.881217 | U67: =INDEX('Compile Data'!$DP$123:$EM$204,$O67,'Report - ALL (DASHBOARD)'!$W$4) -> 3181.894212 | V67: =INDEX('Compile Data'!$EP$123:$FM$204,$O67,'Report - ALL (DASHBOARD)'!$W$4) -> 3181.168701 | W67: =INDEX('Compile Data'!$FP$123:$GM$204,$O67,'Report - ALL (DASHBOARD)'!$W$4) -> 3169.663798 | X67: =INDEX('Compile Data'!$GP$123:$HM$204,$O67,'Report - ALL (DASHBOARD)'!$W$4) -> 3169.694608 | Y67: =INDEX('Compile Data'!$HP$123:$IM$204,$O67,'Report - ALL (DASHBOARD)'!$W$4) -> 3182.151141 | Z67: =INDEX('Compile Data'!$IP$123:$JM$204,$O67,'Report - ALL (DASHBOARD)'!$W$4) -> 3181.813793
A68: 1958 | B68: =INDEX('Compile Data'!$P$12:$AM$93,$A68-1921,'Report - ALL (DASHBOARD)'!$W$4) -> 3400 | C68: =INDEX('Compile Data'!$AP$12:$BM$93,$A68-1921,'Report - ALL (DASHBOARD)'!$W$4) -> 3400 | D68: =INDEX('Compile Data'!$BP$12:$CM$93,$A68-1921,'Report - ALL (DASHBOARD)'!$W$4) -> 3400 | E68: =INDEX('Compile Data'!$CP$12:$DM$93,$A68-1921,'Report - ALL (DASHBOARD)'!$W$4) -> 3400 | F68: =INDEX('Compile Data'!$DP$12:$EM$93,$A68-1921,'Report - ALL (DASHBOARD)'!$W$4) -> 3400 | G68: =INDEX('Compile Data'!$EP$12:$FM$93,$A68-1921,'Report - ALL (DASHBOARD)'!$W$4) -> 3400 | H68: =INDEX('Compile Data'!$FP$12:$GM$93,$A68-1921,'Report - ALL (DASHBOARD)'!$W$4) -> 3400 | I68: =INDEX('Compile Data'!$GP$12:$HM$93,$A68-1921,'Report - ALL (DASHBOARD)'!$W$4) -> 3400 | J68: =INDEX('Compile Data'!$HP$12:$IM$93,$A68-1921,'Report - ALL (DASHBOARD)'!$W$4) -> 3400 | K68: =INDEX('Compile Data'!$IP$12:$JM$93,$A68-1921,'Report - ALL (DASHBOARD)'!$W$4) -> 3400 | O68: 37 | P68: 0.4444444444 | Q68: =INDEX('Compile Data'!$P$123:$AM$204,$O68,'Report - ALL (DASHBOARD)'!$W$4) -> 3134.827548 | R68: =INDEX('Compile Data'!$AP$123:$BM$204,$O68,'Report - ALL (DASHBOARD)'!$W$4) -> 3160.818986 | S68: =INDEX('Compile Data'!$BP$123:$CM$204,$O68,'Report - ALL (DASHBOARD)'!$W$4) -> 3168.363252 | T68: =INDEX('Compile Data'!$CP$123:$DM$204,$O68,'Report - ALL (DASHBOARD)'!$W$4) -> 3168.315331 | U68: =INDEX('Compile Data'!$DP$123:$EM$204,$O68,'Report - ALL (DASHBOARD)'!$W$4) -> 3155.732583 | V68: =INDEX('Compile Data'!$EP$123:$FM$204,$O68,'Report - ALL (DASHBOARD)'!$W$4) -> 3152.733914 | W68: =INDEX('Compile Data'!$FP$123:$GM$204,$O68,'Report - ALL (DASHBOARD)'!$W$4) -> 3157.050416 | X68: =INDEX('Compile Data'!$GP$123:$HM$204,$O68,'Report - ALL (DASHBOARD)'!$W$4) -> 3157.194683 | Y68: =INDEX('Compile Data'!$HP$123:$IM$204,$O68,'Report - ALL (DASHBOARD)'!$W$4) -> 3162.600111 | Z68: =INDEX('Compile Data'!$IP$123:$JM$204,$O68,'Report - ALL (DASHBOARD)'!$W$4) -> 3162.595728
A69: 1959 | B69: =INDEX('Compile Data'!$P$12:$AM$93,$A69-1921,'Report - ALL (DASHBOARD)'!$W$4) -> 2819.708297 | C69: =INDEX('Compile Data'!$AP$12:$BM$93,$A69-1921,'Report - ALL (DASHBOARD)'!$W$4) -> 2907.170249 | D69: =INDEX('Compile Data'!$BP$12:$CM$93,$A69-1921,'Report - ALL (DASHBOARD)'!$W$4) -> 2912.173281 | E69: =INDEX('Compile Data'!$CP$12:$DM$93,$A69-1921,'Report - ALL (DASHBOARD)'!$W$4) -> 2912.325921 | F69: =INDEX('Compile Data'!$DP$12:$EM$93,$A69-1921,'Report - ALL (DASHBOARD)'!$W$4) -> 2913.740529 | G69: =INDEX('Compile Data'!$EP$12:$FM$93,$A69-1921,'Report - ALL (DASHBOARD)'!$W$4) -> 2913.755047 | H69: =INDEX('Compile Data'!$FP$12:$GM$93,$A69-1921,'Report - ALL (DASHBOARD)'!$W$4) -> 2907.092958 | I69: =INDEX('Compile Data'!$GP$12:$HM$93,$A69-1921,'Report - ALL (DASHBOARD)'!$W$4) -> 2907.159432 | J69: =INDEX('Compile Data'!$HP$12:$IM$93,$A69-1921,'Report - ALL (DASHBOARD)'!$W$4) -> 2911.970556 | K69: =INDEX('Compile Data'!$IP$12:$JM$93,$A69-1921,'Report - ALL (DASHBOARD)'!$W$4) -> 2912.131304 | O69: 38 | P69: 0.4567901235 | Q69: =INDEX('Compile Data'!$P$123:$AM$204,$O69,'Report - ALL (DASHBOARD)'!$W$4) -> 3119.737874 | R69: =INDEX('Compile Data'!$AP$123:$BM$204,$O69,'Report - ALL (DASHBOARD)'!$W$4) -> 3155.800977 | S69: =INDEX('Compile Data'!$BP$123:$CM$204,$O69,'Report - ALL (DASHBOARD)'!$W$4) -> 3155.585143 | T69: =INDEX('Compile Data'!$CP$123:$DM$204,$O69,'Report - ALL (DASHBOARD)'!$W$4) -> 3151.299677 | U69: =INDEX('Compile Data'!$DP$123:$EM$204,$O69,'Report - ALL (DASHBOARD)'!$W$4) -> 3150.77544 | V69: =INDEX('Compile Data'!$EP$123:$FM$204,$O69,'Report - ALL (DASHBOARD)'!$W$4) -> 3151.806778 | W69: =INDEX('Compile Data'!$FP$123:$GM$204,$O69,'Report - ALL (DASHBOARD)'!$W$4) -> 3149.942113 | X69: =INDEX('Compile Data'!$GP$123:$HM$204,$O69,'Report - ALL (DASHBOARD)'!$W$4) -> 3149.930814 | Y69: =INDEX('Compile Data'!$HP$123:$IM$204,$O69,'Report - ALL (DASHBOARD)'!$W$4) -> 3150.025397 | Z69: =INDEX('Compile Data'!$IP$123:$JM$204,$O69,'Report - ALL (DASHBOARD)'!$W$4) -> 3149.972276
A70: 1960 | B70: =INDEX('Compile Data'!$P$12:$AM$93,$A70-1921,'Report - ALL (DASHBOARD)'!$W$4) -> 2823.546091 | C70: =INDEX('Compile Data'!$AP$12:$BM$93,$A70-1921,'Report - ALL (DASHBOARD)'!$W$4) -> 2926.379206 | D70: =INDEX('Compile Data'!$BP$12:$CM$93,$A70-1921,'Report - ALL (DASHBOARD)'!$W$4) -> 3049.80903 | E70: =INDEX('Compile Data'!$CP$12:$DM$93,$A70-1921,'Report - ALL (DASHBOARD)'!$W$4) -> 3049.887699 | F70: =INDEX('Compile Data'!$DP$12:$EM$93,$A70-1921,'Report - ALL (DASHBOARD)'!$W$4) -> 2930.765717 | G70: =INDEX('Compile Data'!$EP$12:$FM$93,$A70-1921,'Report - ALL (DASHBOARD)'!$W$4) -> 2947.011509 | H70: =INDEX('Compile Data'!$FP$12:$GM$93,$A70-1921,'Report - ALL (DASHBOARD)'!$W$4) -> 2944.363253 | I70: =INDEX('Compile Data'!$GP$12:$HM$93,$A70-1921,'Report - ALL (DASHBOARD)'!$W$4) -> 2930.842493 | J70: =INDEX('Compile Data'!$HP$12:$IM$93,$A70-1921,'Report - ALL (DASHBOARD)'!$W$4) -> 2944.369463 | K70: =INDEX('Compile Data'!$IP$12:$JM$93,$A70-1921,'Report - ALL (DASHBOARD)'!$W$4) -> 2948.269148 | O70: 39 | P70: 0.4691358025 | Q70: =INDEX('Compile Data'!$P$123:$AM$204,$O70,'Report - ALL (DASHBOARD)'!$W$4) -> 3102.077961 | R70: =INDEX('Compile Data'!$AP$123:$BM$204,$O70,'Report - ALL (DASHBOARD)'!$W$4) -> 3149.903499 | S70: =INDEX('Compile Data'!$BP$123:$CM$204,$O70,'Report - ALL (DASHBOARD)'!$W$4) -> 3150.034248 | T70: =INDEX('Compile Data'!$CP$123:$DM$204,$O70,'Report - ALL (DASHBOARD)'!$W$4) -> 3150.010235 | U70: =INDEX('Compile Data'!$DP$123:$EM$204,$O70,'Report - ALL (DASHBOARD)'!$W$4) -> 3149.663829 | V70: =INDEX('Compile Data'!$EP$123:$FM$204,$O70,'Report - ALL (DASHBOARD)'!$W$4) -> 3150.997181 | W70: =INDEX('Compile Data'!$FP$123:$GM$204,$O70,'Report - ALL (DASHBOARD)'!$W$4) -> 3145.215576 | X70: =INDEX('Compile Data'!$GP$123:$HM$204,$O70,'Report - ALL (DASHBOARD)'!$W$4) -> 3145.682834 | Y70: =INDEX('Compile Data'!$HP$123:$IM$204,$O70,'Report - ALL (DASHBOARD)'!$W$4) -> 3145.537016 | Z70: =INDEX('Compile Data'!$IP$123:$JM$204,$O70,'Report - ALL (DASHBOARD)'!$W$4) -> 3145.541424
A71: 1961 | B71: =INDEX('Compile Data'!$P$12:$AM$93,$A71-1921,'Report - ALL (DASHBOARD)'!$W$4) -> 3039.018189 | C71: =INDEX('Compile Data'!$AP$12:$BM$93,$A71-1921,'Report - ALL (DASHBOARD)'!$W$4) -> 3021.436736 | D71: =INDEX('Compile Data'!$BP$12:$CM$93,$A71-1921,'Report - ALL (DASHBOARD)'!$W$4) -> 2997.823269 | E71: =INDEX('Compile Data'!$CP$12:$DM$93,$A71-1921,'Report - ALL (DASHBOARD)'!$W$4) -> 2997.799942 | F71: =INDEX('Compile Data'!$DP$12:$EM$93,$A71-1921,'Report - ALL (DASHBOARD)'!$W$4) -> 3004.62384 | G71: =INDEX('Compile Data'!$EP$12:$FM$93,$A71-1921,'Report - ALL (DASHBOARD)'!$W$4) -> 3005.372017 | H71: =INDEX('Compile Data'!$FP$12:$GM$93,$A71-1921,'Report - ALL (DASHBOARD)'!$W$4) -> 3001.441726 | I71: =INDEX('Compile Data'!$GP$12:$HM$93,$A71-1921,'Report - ALL (DASHBOARD)'!$W$4) -> 3001.069017 | J71: =INDEX('Compile Data'!$HP$12:$IM$93,$A71-1921,'Report - ALL (DASHBOARD)'!$W$4) -> 3016.614444 | K71: =INDEX('Compile Data'!$IP$12:$JM$93,$A71-1921,'Report - ALL (DASHBOARD)'!$W$4) -> 3016.22837 | O71: 40 | P71: 0.4814814815 | Q71: =INDEX('Compile Data'!$P$123:$AM$204,$O71,'Report - ALL (DASHBOARD)'!$W$4) -> 3089.462031 | R71: =INDEX('Compile Data'!$AP$123:$BM$204,$O71,'Report - ALL (DASHBOARD)'!$W$4) -> 3135.689927 | S71: =INDEX('Compile Data'!$BP$123:$CM$204,$O71,'Report - ALL (DASHBOARD)'!$W$4) -> 3138.706249 | T71: =INDEX('Compile Data'!$CP$123:$DM$204,$O71,'Report - ALL (DASHBOARD)'!$W$4) -> 3136.200931 | U71: =INDEX('Compile Data'!$DP$123:$EM$204,$O71,'Report - ALL (DASHBOARD)'!$W$4) -> 3140.544398 | V71: =INDEX('Compile Data'!$EP$123:$FM$204,$O71,'Report - ALL (DASHBOARD)'!$W$4) -> 3139.690875 | W71: =INDEX('Compile Data'!$FP$123:$GM$204,$O71,'Report - ALL (DASHBOARD)'!$W$4) -> 3136.816244 | X71: =INDEX('Compile Data'!$GP$123:$HM$204,$O71,'Report - ALL (DASHBOARD)'!$W$4) -> 3137.111723 | Y71: =INDEX('Compile Data'!$HP$123:$IM$204,$O71,'Report - ALL (DASHBOARD)'!$W$4) -> 3136.982904 | Z71: =INDEX('Compile Data'!$IP$123:$JM$204,$O71,'Report - ALL (DASHBOARD)'!$W$4) -> 3137.029424
A72: 1962 | B72: =INDEX('Compile Data'!$P$12:$AM$93,$A72-1921,'Report - ALL (DASHBOARD)'!$W$4) -> 3119.737874 | C72: =INDEX('Compile Data'!$AP$12:$BM$93,$A72-1921,'Report - ALL (DASHBOARD)'!$W$4) -> 3135.689927 | D72: =INDEX('Compile Data'!$BP$12:$CM$93,$A72-1921,'Report - ALL (DASHBOARD)'!$W$4) -> 3136.194175 | E72: =INDEX('Compile Data'!$CP$12:$DM$93,$A72-1921,'Report - ALL (DASHBOARD)'!$W$4) -> 3136.200931 | F72: =INDEX('Compile Data'!$DP$12:$EM$93,$A72-1921,'Report - ALL (DASHBOARD)'!$W$4) -> 3140.544398 | G72: =INDEX('Compile Data'!$EP$12:$FM$93,$A72-1921,'Report - ALL (DASHBOARD)'!$W$4) -> 3139.690875 | H72: =INDEX('Compile Data'!$FP$12:$GM$93,$A72-1921,'Report - ALL (DASHBOARD)'!$W$4) -> 3136.816244 | I72: =INDEX('Compile Data'!$GP$12:$HM$93,$A72-1921,'Report - ALL (DASHBOARD)'!$W$4) -> 3137.111723 | J72: =INDEX('Compile Data'!$HP$12:$IM$93,$A72-1921,'Report - ALL (DASHBOARD)'!$W$4) -> 3136.982904 | K72: =INDEX('Compile Data'!$IP$12:$JM$93,$A72-1921,'Report - ALL (DASHBOARD)'!$W$4) -> 3137.029424 | O72: 41 | P72: 0.4938271605 | Q72: =INDEX('Compile Data'!$P$123:$AM$204,$O72,'Report - ALL (DASHBOARD)'!$W$4) -> 3075.156219 | R72: =INDEX('Compile Data'!$AP$123:$BM$204,$O72,'Report - ALL (DASHBOARD)'!$W$4) -> 3120.215218 | S72: =INDEX('Compile Data'!$BP$123:$CM$204,$O72,'Report - ALL (DASHBOARD)'!$W$4) -> 3136.194175 | T72: =INDEX('Compile Data'!$CP$123:$DM$204,$O72,'Report - ALL (DASHBOARD)'!$W$4) -> 3136.016514 | U72: =INDEX('Compile Data'!$DP$123:$EM$204,$O72,'Report - ALL (DASHBOARD)'!$W$4) -> 3131.344418 | V72: =INDEX('Compile Data'!$EP$123:$FM$204,$O72,'Report - ALL (DASHBOARD)'!$W$4) -> 3132.066333 | W72: =INDEX('Compile Data'!$FP$123:$GM$204,$O72,'Report - ALL (DASHBOARD)'!$W$4) -> 3126.042866 | X72: =INDEX('Compile Data'!$GP$123:$HM$204,$O72,'Report - ALL (DASHBOARD)'!$W$4) -> 3126.042868 | Y72: =INDEX('Compile Data'!$HP$123:$IM$204,$O72,'Report - ALL (DASHBOARD)'!$W$4) -> 3123.728795 | Z72: =INDEX('Compile Data'!$IP$123:$JM$204,$O72,'Report - ALL (DASHBOARD)'!$W$4) -> 3123.72888
A73: 1963 | B73: =INDEX('Compile Data'!$P$12:$AM$93,$A73-1921,'Report - ALL (DASHBOARD)'!$W$4) -> 3236.994921 | C73: =INDEX('Compile Data'!$AP$12:$BM$93,$A73-1921,'Report - ALL (DASHBOARD)'!$W$4) -> 3217.227853 | D73: =INDEX('Compile Data'!$BP$12:$CM$93,$A73-1921,'Report - ALL (DASHBOARD)'!$W$4) -> 3213.113778 | E73: =INDEX('Compile Data'!$CP$12:$DM$93,$A73-1921,'Report - ALL (DASHBOARD)'!$W$4) -> 3213.132035 | F73: =INDEX('Compile Data'!$DP$12:$EM$93,$A73-1921,'Report - ALL (DASHBOARD)'!$W$4) -> 3240.249798 | G73: =INDEX('Compile Data'!$EP$12:$FM$93,$A73-1921,'Report - ALL (DASHBOARD)'!$W$4) -> 3239.385055 | H73: =INDEX('Compile Data'!$FP$12:$GM$93,$A73-1921,'Report - ALL (DASHBOARD)'!$W$4) -> 3218.621059 | I73: =INDEX('Compile Data'!$GP$12:$HM$93,$A73-1921,'Report - ALL (DASHBOARD)'!$W$4) -> 3220.220505 | J73: =INDEX('Compile Data'!$HP$12:$IM$93,$A73-1921,'Report - ALL (DASHBOARD)'!$W$4) -> 3239.408759 | K73: =INDEX('Compile Data'!$IP$12:$JM$93,$A73-1921,'Report - ALL (DASHBOARD)'!$W$4) -> 3220.826523 | O73: 42 | P73: 0.5061728395 | Q73: =INDEX('Compile Data'!$P$123:$AM$204,$O73,'Report - ALL (DASHBOARD)'!$W$4) -> 3067.864588 | R73: =INDEX('Compile Data'!$AP$123:$BM$204,$O73,'Report - ALL (DASHBOARD)'!$W$4) -> 3119.369419 | S73: =INDEX('Compile Data'!$BP$123:$CM$204,$O73,'Report - ALL (DASHBOARD)'!$W$4) -> 3119.475655 | T73: =INDEX('Compile Data'!$CP$123:$DM$204,$O73,'Report - ALL (DASHBOARD)'!$W$4) -> 3119.467804 | U73: =INDEX('Compile Data'!$DP$123:$EM$204,$O73,'Report - ALL (DASHBOARD)'!$W$4) -> 3119.408887 | V73: =INDEX('Compile Data'!$EP$123:$FM$204,$O73,'Report - ALL (DASHBOARD)'!$W$4) -> 3119.439349 | W73: =INDEX('Compile Data'!$FP$123:$GM$204,$O73,'Report - ALL (DASHBOARD)'!$W$4) -> 3119.438289 | X73: =INDEX('Compile Data'!$GP$123:$HM$204,$O73,'Report - ALL (DASHBOARD)'!$W$4) -> 3119.420333 | Y73: =INDEX('Compile Data'!$HP$123:$IM$204,$O73,'Report - ALL (DASHBOARD)'!$W$4) -> 3119.452832 | Z73: =INDEX('Compile Data'!$IP$123:$JM$204,$O73,'Report - ALL (DASHBOARD)'!$W$4) -> 3119.445788
A74: 1964 | B74: =INDEX('Compile Data'!$P$12:$AM$93,$A74-1921,'Report - ALL (DASHBOARD)'!$W$4) -> 2820.756265 | C74: =INDEX('Compile Data'!$AP$12:$BM$93,$A74-1921,'Report - ALL (DASHBOARD)'!$W$4) -> 2849.819109 | D74: =INDEX('Compile Data'!$BP$12:$CM$93,$A74-1921,'Report - ALL (DASHBOARD)'!$W$4) -> 2905.772192 | E74: =INDEX('Compile Data'!$CP$12:$DM$93,$A74-1921,'Report - ALL (DASHBOARD)'!$W$4) -> 2905.77161 | F74: =INDEX('Compile Data'!$DP$12:$EM$93,$A74-1921,'Report - ALL (DASHBOARD)'!$W$4) -> 2851.185695 | G74: =INDEX('Compile Data'!$EP$12:$FM$93,$A74-1921,'Report - ALL (DASHBOARD)'!$W$4) -> 2857.944346 | H74: =INDEX('Compile Data'!$FP$12:$GM$93,$A74-1921,'Report - ALL (DASHBOARD)'!$W$4) -> 2849.362203 | I74: =INDEX('Compile Data'!$GP$12:$HM$93,$A74-1921,'Report - ALL (DASHBOARD)'!$W$4) -> 2846.816894 | J74: =INDEX('Compile Data'!$HP$12:$IM$93,$A74-1921,'Report - ALL (DASHBOARD)'!$W$4) -> 2876.161897 | K74: =INDEX('Compile Data'!$IP$12:$JM$93,$A74-1921,'Report - ALL (DASHBOARD)'!$W$4) -> 2874.052738 | O74: 43 | P74: 0.5185185185 | Q74: =INDEX('Compile Data'!$P$123:$AM$204,$O74,'Report - ALL (DASHBOARD)'!$W$4) -> 3039.018189 | R74: =INDEX('Compile Data'!$AP$123:$BM$204,$O74,'Report - ALL (DASHBOARD)'!$W$4) -> 3104.113457 | S74: =INDEX('Compile Data'!$BP$123:$CM$204,$O74,'Report - ALL (DASHBOARD)'!$W$4) -> 3105.363755 | T74: =INDEX('Compile Data'!$CP$123:$DM$204,$O74,'Report - ALL (DASHBOARD)'!$W$4) -> 3105.346825 | U74: =INDEX('Compile Data'!$DP$123:$EM$204,$O74,'Report - ALL (DASHBOARD)'!$W$4) -> 3102.624389 | V74: =INDEX('Compile Data'!$EP$123:$FM$204,$O74,'Report - ALL (DASHBOARD)'!$W$4) -> 3101.691315 | W74: =INDEX('Compile Data'!$FP$123:$GM$204,$O74,'Report - ALL (DASHBOARD)'!$W$4) -> 3103.897894 | X74: =INDEX('Compile Data'!$GP$123:$HM$204,$O74,'Report - ALL (DASHBOARD)'!$W$4) -> 3104.246305 | Y74: =INDEX('Compile Data'!$HP$123:$IM$204,$O74,'Report - ALL (DASHBOARD)'!$W$4) -> 3105.432434 | Z74: =INDEX('Compile Data'!$IP$123:$JM$204,$O74,'Report - ALL (DASHBOARD)'!$W$4) -> 3105.435533
A75: 1965 | B75: =INDEX('Compile Data'!$P$12:$AM$93,$A75-1921,'Report - ALL (DASHBOARD)'!$W$4) -> 3400 | C75: =INDEX('Compile Data'!$AP$12:$BM$93,$A75-1921,'Report - ALL (DASHBOARD)'!$W$4) -> 3400 | D75: =INDEX('Compile Data'!$BP$12:$CM$93,$A75-1921,'Report - ALL (DASHBOARD)'!$W$4) -> 3400 | E75: =INDEX('Compile Data'!$CP$12:$DM$93,$A75-1921,'Report - ALL (DASHBOARD)'!$W$4) -> 3400 | F75: =INDEX('Compile Data'!$DP$12:$EM$93,$A75-1921,'Report - ALL (DASHBOARD)'!$W$4) -> 3400 | G75: =INDEX('Compile Data'!$EP$12:$FM$93,$A75-1921,'Report - ALL (DASHBOARD)'!$W$4) -> 3400 | H75: =INDEX('Compile Data'!$FP$12:$GM$93,$A75-1921,'Report - ALL (DASHBOARD)'!$W$4) -> 3400 | I75: =INDEX('Compile Data'!$GP$12:$HM$93,$A75-1921,'Report - ALL (DASHBOARD)'!$W$4) -> 3400 | J75: =INDEX('Compile Data'!$HP$12:$IM$93,$A75-1921,'Report - ALL (DASHBOARD)'!$W$4) -> 3400 | K75: =INDEX('Compile Data'!$IP$12:$JM$93,$A75-1921,'Report - ALL (DASHBOARD)'!$W$4) -> 3400 | O75: 44 | P75: 0.5308641975 | Q75: =INDEX('Compile Data'!$P$123:$AM$204,$O75,'Report - ALL (DASHBOARD)'!$W$4) -> 3026.323497 | R75: =INDEX('Compile Data'!$AP$123:$BM$204,$O75,'Report - ALL (DASHBOARD)'!$W$4) -> 3086.358975 | S75: =INDEX('Compile Data'!$BP$123:$CM$204,$O75,'Report - ALL (DASHBOARD)'!$W$4) -> 3083.250857 | T75: =INDEX('Compile Data'!$CP$123:$DM$204,$O75,'Report - ALL (DASHBOARD)'!$W$4) -> 3092.147806 | U75: =INDEX('Compile Data'!$DP$123:$EM$204,$O75,'Report - ALL (DASHBOARD)'!$W$4) -> 3102.253719 | V75: =INDEX('Compile Data'!$EP$123:$FM$204,$O75,'Report - ALL (DASHBOARD)'!$W$4) -> 3101.479756 | W75: =INDEX('Compile Data'!$FP$123:$GM$204,$O75,'Report - ALL (DASHBOARD)'!$W$4) -> 3086.549185 | X75: =INDEX('Compile Data'!$GP$123:$HM$204,$O75,'Report - ALL (DASHBOARD)'!$W$4) -> 3086.5571 | Y75: =INDEX('Compile Data'!$HP$123:$IM$204,$O75,'Report - ALL (DASHBOARD)'!$W$4) -> 3092.106619 | Z75: =INDEX('Compile Data'!$IP$123:$JM$204,$O75,'Report - ALL (DASHBOARD)'!$W$4) -> 3092.107962
A76: 1966 | B76: =INDEX('Compile Data'!$P$12:$AM$93,$A76-1921,'Report - ALL (DASHBOARD)'!$W$4) -> 2809.750365 | C76: =INDEX('Compile Data'!$AP$12:$BM$93,$A76-1921,'Report - ALL (DASHBOARD)'!$W$4) -> 2875.957107 | D76: =INDEX('Compile Data'!$BP$12:$CM$93,$A76-1921,'Report - ALL (DASHBOARD)'!$W$4) -> 2908.796415 | E76: =INDEX('Compile Data'!$CP$12:$DM$93,$A76-1921,'Report - ALL (DASHBOARD)'!$W$4) -> 2908.79439 | F76: =INDEX('Compile Data'!$DP$12:$EM$93,$A76-1921,'Report - ALL (DASHBOARD)'!$W$4) -> 2843.721884 | G76: =INDEX('Compile Data'!$EP$12:$FM$93,$A76-1921,'Report - ALL (DASHBOARD)'!$W$4) -> 2894.565266 | H76: =INDEX('Compile Data'!$FP$12:$GM$93,$A76-1921,'Report - ALL (DASHBOARD)'!$W$4) -> 2872.62847 | I76: =INDEX('Compile Data'!$GP$12:$HM$93,$A76-1921,'Report - ALL (DASHBOARD)'!$W$4) -> 2867.804221 | J76: =INDEX('Compile Data'!$HP$12:$IM$93,$A76-1921,'Report - ALL (DASHBOARD)'!$W$4) -> 2900.974826 | K76: =INDEX('Compile Data'!$IP$12:$JM$93,$A76-1921,'Report - ALL (DASHBOARD)'!$W$4) -> 2904.559757 | O76: 45 | P76: 0.5432098765 | Q76: =INDEX('Compile Data'!$P$123:$AM$204,$O76,'Report - ALL (DASHBOARD)'!$W$4) -> 3020.072703 | R76: =INDEX('Compile Data'!$AP$123:$BM$204,$O76,'Report - ALL (DASHBOARD)'!$W$4) -> 3077.562733 | S76: =INDEX('Compile Data'!$BP$123:$CM$204,$O76,'Report - ALL (DASHBOARD)'!$W$4) -> 3080.421886 | T76: =INDEX('Compile Data'!$CP$123:$DM$204,$O76,'Report - ALL (DASHBOARD)'!$W$4) -> 3086.579188 | U76: =INDEX('Compile Data'!$DP$123:$EM$204,$O76,'Report - ALL (DASHBOARD)'!$W$4) -> 3086.732989 | V76: =INDEX('Compile Data'!$EP$123:$FM$204,$O76,'Report - ALL (DASHBOARD)'!$W$4) -> 3086.579041 | W76: =INDEX('Compile Data'!$FP$123:$GM$204,$O76,'Report - ALL (DASHBOARD)'!$W$4) -> 3077.623394 | X76: =INDEX('Compile Data'!$GP$123:$HM$204,$O76,'Report - ALL (DASHBOARD)'!$W$4) -> 3077.610175 | Y76: =INDEX('Compile Data'!$HP$123:$IM$204,$O76,'Report - ALL (DASHBOARD)'!$W$4) -> 3082.89854 | Z76: =INDEX('Compile Data'!$IP$123:$JM$204,$O76,'Report - ALL (DASHBOARD)'!$W$4) -> 3086.567717
A77: 1967 | B77: =INDEX('Compile Data'!$P$12:$AM$93,$A77-1921,'Report - ALL (DASHBOARD)'!$W$4) -> 3400 | C77: =INDEX('Compile Data'!$AP$12:$BM$93,$A77-1921,'Report - ALL (DASHBOARD)'!$W$4) -> 3400 | D77: =INDEX('Compile Data'!$BP$12:$CM$93,$A77-1921,'Report - ALL (DASHBOARD)'!$W$4) -> 3400 | E77: =INDEX('Compile Data'!$CP$12:$DM$93,$A77-1921,'Report - ALL (DASHBOARD)'!$W$4) -> 3400 | F77: =INDEX('Compile Data'!$DP$12:$EM$93,$A77-1921,'Report - ALL (DASHBOARD)'!$W$4) -> 3400 | G77: =INDEX('Compile Data'!$EP$12:$FM$93,$A77-1921,'Report - ALL (DASHBOARD)'!$W$4) -> 3400 | H77: =INDEX('Compile Data'!$FP$12:$GM$93,$A77-1921,'Report - ALL (DASHBOARD)'!$W$4) -> 3400 | I77: =INDEX('Compile Data'!$GP$12:$HM$93,$A77-1921,'Report - ALL (DASHBOARD)'!$W$4) -> 3400 | J77: =INDEX('Compile Data'!$HP$12:$IM$93,$A77-1921,'Report - ALL (DASHBOARD)'!$W$4) -> 3400 | K77: =INDEX('Compile Data'!$IP$12:$JM$93,$A77-1921,'Report - ALL (DASHBOARD)'!$W$4) -> 3400 | O77: 46 | P77: 0.5555555556 | Q77: =INDEX('Compile Data'!$P$123:$AM$204,$O77,'Report - ALL (DASHBOARD)'!$W$4) -> 3002.573964 | R77: =INDEX('Compile Data'!$AP$123:$BM$204,$O77,'Report - ALL (DASHBOARD)'!$W$4) -> 3074.347311 | S77: =INDEX('Compile Data'!$BP$123:$CM$204,$O77,'Report - ALL (DASHBOARD)'!$W$4) -> 3077.703447 | T77: =INDEX('Compile Data'!$CP$123:$DM$204,$O77,'Report - ALL (DASHBOARD)'!$W$4) -> 3049.887699 | U77: =INDEX('Compile Data'!$DP$123:$EM$204,$O77,'Report - ALL (DASHBOARD)'!$W$4) -> 3021.916126 | V77: =INDEX('Compile Data'!$EP$123:$FM$204,$O77,'Report - ALL (DASHBOARD)'!$W$4) -> 3026.875202 | W77: =INDEX('Compile Data'!$FP$123:$GM$204,$O77,'Report - ALL (DASHBOARD)'!$W$4) -> 3034.952292 | X77: =INDEX('Compile Data'!$GP$123:$HM$204,$O77,'Report - ALL (DASHBOARD)'!$W$4) -> 3025.064351 | Y77: =INDEX('Compile Data'!$HP$123:$IM$204,$O77,'Report - ALL (DASHBOARD)'!$W$4) -> 3038.735379 | Z77: =INDEX('Compile Data'!$IP$123:$JM$204,$O77,'Report - ALL (DASHBOARD)'!$W$4) -> 3028.720837
A78: 1968 | B78: =INDEX('Compile Data'!$P$12:$AM$93,$A78-1921,'Report - ALL (DASHBOARD)'!$W$4) -> 3020.072703 | C78: =INDEX('Compile Data'!$AP$12:$BM$93,$A78-1921,'Report - ALL (DASHBOARD)'!$W$4) -> 3104.113457 | D78: =INDEX('Compile Data'!$BP$12:$CM$93,$A78-1921,'Report - ALL (DASHBOARD)'!$W$4) -> 3105.363755 | E78: =INDEX('Compile Data'!$CP$12:$DM$93,$A78-1921,'Report - ALL (DASHBOARD)'!$W$4) -> 3105.346825 | F78: =INDEX('Compile Data'!$DP$12:$EM$93,$A78-1921,'Report - ALL (DASHBOARD)'!$W$4) -> 3102.624389 | G78: =INDEX('Compile Data'!$EP$12:$FM$93,$A78-1921,'Report - ALL (DASHBOARD)'!$W$4) -> 3101.691315 | H78: =INDEX('Compile Data'!$FP$12:$GM$93,$A78-1921,'Report - ALL (DASHBOARD)'!$W$4) -> 3103.897894 | I78: =INDEX('Compile Data'!$GP$12:$HM$93,$A78-1921,'Report - ALL (DASHBOARD)'!$W$4) -> 3104.246305 | J78: =INDEX('Compile Data'!$HP$12:$IM$93,$A78-1921,'Report - ALL (DASHBOARD)'!$W$4) -> 3105.432434 | K78: =INDEX('Compile Data'!$IP$12:$JM$93,$A78-1921,'Report - ALL (DASHBOARD)'!$W$4) -> 3105.435533 | O78: 47 | P78: 0.5679012346 | Q78: =INDEX('Compile Data'!$P$123:$AM$204,$O78,'Report - ALL (DASHBOARD)'!$W$4) -> 2992.927769 | R78: =INDEX('Compile Data'!$AP$123:$BM$204,$O78,'Report - ALL (DASHBOARD)'!$W$4) -> 3022.221542 | S78: =INDEX('Compile Data'!$BP$123:$CM$204,$O78,'Report - ALL (DASHBOARD)'!$W$4) -> 3049.80903 | T78: =INDEX('Compile Data'!$CP$123:$DM$204,$O78,'Report - ALL (DASHBOARD)'!$W$4) -> 3037.287678 | U78: =INDEX('Compile Data'!$DP$123:$EM$204,$O78,'Report - ALL (DASHBOARD)'!$W$4) -> 3004.62384 | V78: =INDEX('Compile Data'!$EP$123:$FM$204,$O78,'Report - ALL (DASHBOARD)'!$W$4) -> 3009.438457 | W78: =INDEX('Compile Data'!$FP$123:$GM$204,$O78,'Report - ALL (DASHBOARD)'!$W$4) -> 3018.468065 | X78: =INDEX('Compile Data'!$GP$123:$HM$204,$O78,'Report - ALL (DASHBOARD)'!$W$4) -> 3009.382975 | Y78: =INDEX('Compile Data'!$HP$123:$IM$204,$O78,'Report - ALL (DASHBOARD)'!$W$4) -> 3016.614444 | Z78: =INDEX('Compile Data'!$IP$123:$JM$204,$O78,'Report - ALL (DASHBOARD)'!$W$4) -> 3016.22837
A79: 1969 | B79: =INDEX('Compile Data'!$P$12:$AM$93,$A79-1921,'Report - ALL (DASHBOARD)'!$W$4) -> 3400 | C79: =INDEX('Compile Data'!$AP$12:$BM$93,$A79-1921,'Report - ALL (DASHBOARD)'!$W$4) -> 3400 | D79: =INDEX('Compile Data'!$BP$12:$CM$93,$A79-1921,'Report - ALL (DASHBOARD)'!$W$4) -> 3400 | E79: =INDEX('Compile Data'!$CP$12:$DM$93,$A79-1921,'Report - ALL (DASHBOARD)'!$W$4) -> 3400 | F79: =INDEX('Compile Data'!$DP$12:$EM$93,$A79-1921,'Report - ALL (DASHBOARD)'!$W$4) -> 3400 | G79: =INDEX('Compile Data'!$EP$12:$FM$93,$A79-1921,'Report - ALL (DASHBOARD)'!$W$4) -> 3400 | H79: =INDEX('Compile Data'!$FP$12:$GM$93,$A79-1921,'Report - ALL (DASHBOARD)'!$W$4) -> 3400 | I79: =INDEX('Compile Data'!$GP$12:$HM$93,$A79-1921,'Report - ALL (DASHBOARD)'!$W$4) -> 3400 | J79: =INDEX('Compile Data'!$HP$12:$IM$93,$A79-1921,'Report - ALL (DASHBOARD)'!$W$4) -> 3400 | K79: =INDEX('Compile Data'!$IP$12:$JM$93,$A79-1921,'Report - ALL (DASHBOARD)'!$W$4) -> 3400 | O79: 48 | P79: 0.5802469136 | Q79: =INDEX('Compile Data'!$P$123:$AM$204,$O79,'Report - ALL (DASHBOARD)'!$W$4) -> 2966.720554 | R79: =INDEX('Compile Data'!$AP$123:$BM$204,$O79,'Report - ALL (DASHBOARD)'!$W$4) -> 3021.436736 | S79: =INDEX('Compile Data'!$BP$123:$CM$204,$O79,'Report - ALL (DASHBOARD)'!$W$4) -> 3027.527118 | T79: =INDEX('Compile Data'!$CP$123:$DM$204,$O79,'Report - ALL (DASHBOARD)'!$W$4) -> 3027.384294 | U79: =INDEX('Compile Data'!$DP$123:$EM$204,$O79,'Report - ALL (DASHBOARD)'!$W$4) -> 2999.475946 | V79: =INDEX('Compile Data'!$EP$123:$FM$204,$O79,'Report - ALL (DASHBOARD)'!$W$4) -> 3005.372017 | W79: =INDEX('Compile Data'!$FP$123:$GM$204,$O79,'Report - ALL (DASHBOARD)'!$W$4) -> 3010.732945 | X79: =INDEX('Compile Data'!$GP$123:$HM$204,$O79,'Report - ALL (DASHBOARD)'!$W$4) -> 3001.069017 | Y79: =INDEX('Compile Data'!$HP$123:$IM$204,$O79,'Report - ALL (DASHBOARD)'!$W$4) -> 3015.408608 | Z79: =INDEX('Compile Data'!$IP$123:$JM$204,$O79,'Report - ALL (DASHBOARD)'!$W$4) -> 3015.211048
A80: 1970 | B80: =INDEX('Compile Data'!$P$12:$AM$93,$A80-1921,'Report - ALL (DASHBOARD)'!$W$4) -> 2609.23813 | C80: =INDEX('Compile Data'!$AP$12:$BM$93,$A80-1921,'Report - ALL (DASHBOARD)'!$W$4) -> 2612.173636 | D80: =INDEX('Compile Data'!$BP$12:$CM$93,$A80-1921,'Report - ALL (DASHBOARD)'!$W$4) -> 2612.304672 | E80: =INDEX('Compile Data'!$CP$12:$DM$93,$A80-1921,'Report - ALL (DASHBOARD)'!$W$4) -> 2612.287236 | F80: =INDEX('Compile Data'!$DP$12:$EM$93,$A80-1921,'Report - ALL (DASHBOARD)'!$W$4) -> 2612.110742 | G80: =INDEX('Compile Data'!$EP$12:$FM$93,$A80-1921,'Report - ALL (DASHBOARD)'!$W$4) -> 2611.07259 | H80: =INDEX('Compile Data'!$FP$12:$GM$93,$A80-1921,'Report - ALL (DASHBOARD)'!$W$4) -> 2612.167019 | I80: =INDEX('Compile Data'!$GP$12:$HM$93,$A80-1921,'Report - ALL (DASHBOARD)'!$W$4) -> 2612.152511 | J80: =INDEX('Compile Data'!$HP$12:$IM$93,$A80-1921,'Report - ALL (DASHBOARD)'!$W$4) -> 2612.188922 | K80: =INDEX('Compile Data'!$IP$12:$JM$93,$A80-1921,'Report - ALL (DASHBOARD)'!$W$4) -> 2612.192649 | O80: 49 | P80: 0.5925925926 | Q80: =INDEX('Compile Data'!$P$123:$AM$204,$O80,'Report - ALL (DASHBOARD)'!$W$4) -> 2963.304111 | R80: =INDEX('Compile Data'!$AP$123:$BM$204,$O80,'Report - ALL (DASHBOARD)'!$W$4) -> 2980.168025 | S80: =INDEX('Compile Data'!$BP$123:$CM$204,$O80,'Report - ALL (DASHBOARD)'!$W$4) -> 2997.823269 | T80: =INDEX('Compile Data'!$CP$123:$DM$204,$O80,'Report - ALL (DASHBOARD)'!$W$4) -> 2997.799942 | U80: =INDEX('Compile Data'!$DP$123:$EM$204,$O80,'Report - ALL (DASHBOARD)'!$W$4) -> 2979.122299 | V80: =INDEX('Compile Data'!$EP$123:$FM$204,$O80,'Report - ALL (DASHBOARD)'!$W$4) -> 2979.259054 | W80: =INDEX('Compile Data'!$FP$123:$GM$204,$O80,'Report - ALL (DASHBOARD)'!$W$4) -> 3001.441726 | X80: =INDEX('Compile Data'!$GP$123:$HM$204,$O80,'Report - ALL (DASHBOARD)'!$W$4) -> 2976.843162 | Y80: =INDEX('Compile Data'!$HP$123:$IM$204,$O80,'Report - ALL (DASHBOARD)'!$W$4) -> 2988.213507 | Z80: =INDEX('Compile Data'!$IP$123:$JM$204,$O80,'Report - ALL (DASHBOARD)'!$W$4) -> 2988.220098
A81: 1971 | B81: =INDEX('Compile Data'!$P$12:$AM$93,$A81-1921,'Report - ALL (DASHBOARD)'!$W$4) -> 3400 | C81: =INDEX('Compile Data'!$AP$12:$BM$93,$A81-1921,'Report - ALL (DASHBOARD)'!$W$4) -> 3400 | D81: =INDEX('Compile Data'!$BP$12:$CM$93,$A81-1921,'Report - ALL (DASHBOARD)'!$W$4) -> 3400 | E81: =INDEX('Compile Data'!$CP$12:$DM$93,$A81-1921,'Report - ALL (DASHBOARD)'!$W$4) -> 3400 | F81: =INDEX('Compile Data'!$DP$12:$EM$93,$A81-1921,'Report - ALL (DASHBOARD)'!$W$4) -> 3400 | G81: =INDEX('Compile Data'!$EP$12:$FM$93,$A81-1921,'Report - ALL (DASHBOARD)'!$W$4) -> 3400 | H81: =INDEX('Compile Data'!$FP$12:$GM$93,$A81-1921,'Report - ALL (DASHBOARD)'!$W$4) -> 3400 | I81: =INDEX('Compile Data'!$GP$12:$HM$93,$A81-1921,'Report - ALL (DASHBOARD)'!$W$4) -> 3400 | J81: =INDEX('Compile Data'!$HP$12:$IM$93,$A81-1921,'Report - ALL (DASHBOARD)'!$W$4) -> 3400 | K81: =INDEX('Compile Data'!$IP$12:$JM$93,$A81-1921,'Report - ALL (DASHBOARD)'!$W$4) -> 3400 | O81: 50 | P81: 0.6049382716 | Q81: =INDEX('Compile Data'!$P$123:$AM$204,$O81,'Report - ALL (DASHBOARD)'!$W$4) -> 2918.581988 | R81: =INDEX('Compile Data'!$AP$123:$BM$204,$O81,'Report - ALL (DASHBOARD)'!$W$4) -> 2954.070677 | S81: =INDEX('Compile Data'!$BP$123:$CM$204,$O81,'Report - ALL (DASHBOARD)'!$W$4) -> 2991.419758 | T81: =INDEX('Compile Data'!$CP$123:$DM$204,$O81,'Report - ALL (DASHBOARD)'!$W$4) -> 2989.796202 | U81: =INDEX('Compile Data'!$DP$123:$EM$204,$O81,'Report - ALL (DASHBOARD)'!$W$4) -> 2948.577985 | V81: =INDEX('Compile Data'!$EP$123:$FM$204,$O81,'Report - ALL (DASHBOARD)'!$W$4) -> 2951.158275 | W81: =INDEX('Compile Data'!$FP$123:$GM$204,$O81,'Report - ALL (DASHBOARD)'!$W$4) -> 2952.344876 | X81: =INDEX('Compile Data'!$GP$123:$HM$204,$O81,'Report - ALL (DASHBOARD)'!$W$4) -> 2952.344875 | Y81: =INDEX('Compile Data'!$HP$123:$IM$204,$O81,'Report - ALL (DASHBOARD)'!$W$4) -> 2950.488077 | Z81: =INDEX('Compile Data'!$IP$123:$JM$204,$O81,'Report - ALL (DASHBOARD)'!$W$4) -> 2950.119741
A82: 1972 | B82: =INDEX('Compile Data'!$P$12:$AM$93,$A82-1921,'Report - ALL (DASHBOARD)'!$W$4) -> 3026.323497 | C82: =INDEX('Compile Data'!$AP$12:$BM$93,$A82-1921,'Report - ALL (DASHBOARD)'!$W$4) -> 3086.358975 | D82: =INDEX('Compile Data'!$BP$12:$CM$93,$A82-1921,'Report - ALL (DASHBOARD)'!$W$4) -> 3083.250857 | E82: =INDEX('Compile Data'!$CP$12:$DM$93,$A82-1921,'Report - ALL (DASHBOARD)'!$W$4) -> 3086.579188 | F82: =INDEX('Compile Data'!$DP$12:$EM$93,$A82-1921,'Report - ALL (DASHBOARD)'!$W$4) -> 3086.732989 | G82: =INDEX('Compile Data'!$EP$12:$FM$93,$A82-1921,'Report - ALL (DASHBOARD)'!$W$4) -> 3086.579041 | H82: =INDEX('Compile Data'!$FP$12:$GM$93,$A82-1921,'Report - ALL (DASHBOARD)'!$W$4) -> 3086.549185 | I82: =INDEX('Compile Data'!$GP$12:$HM$93,$A82-1921,'Report - ALL (DASHBOARD)'!$W$4) -> 3086.5571 | J82: =INDEX('Compile Data'!$HP$12:$IM$93,$A82-1921,'Report - ALL (DASHBOARD)'!$W$4) -> 3082.89854 | K82: =INDEX('Compile Data'!$IP$12:$JM$93,$A82-1921,'Report - ALL (DASHBOARD)'!$W$4) -> 3086.567717 | O82: 51 | P82: 0.6172839506 | Q82: =INDEX('Compile Data'!$P$123:$AM$204,$O82,'Report - ALL (DASHBOARD)'!$W$4) -> 2901.943057 | R82: =INDEX('Compile Data'!$AP$123:$BM$204,$O82,'Report - ALL (DASHBOARD)'!$W$4) -> 2947.288212 | S82: =INDEX('Compile Data'!$BP$123:$CM$204,$O82,'Report - ALL (DASHBOARD)'!$W$4) -> 2978.505838 | T82: =INDEX('Compile Data'!$CP$123:$DM$204,$O82,'Report - ALL (DASHBOARD)'!$W$4) -> 2978.439676 | U82: =INDEX('Compile Data'!$DP$123:$EM$204,$O82,'Report - ALL (DASHBOARD)'!$W$4) -> 2930.765717 | V82: =INDEX('Compile Data'!$EP$123:$FM$204,$O82,'Report - ALL (DASHBOARD)'!$W$4) -> 2947.011509 | W82: =INDEX('Compile Data'!$FP$123:$GM$204,$O82,'Report - ALL (DASHBOARD)'!$W$4) -> 2948.410078 | X82: =INDEX('Compile Data'!$GP$123:$HM$204,$O82,'Report - ALL (DASHBOARD)'!$W$4) -> 2940.304201 | Y82: =INDEX('Compile Data'!$HP$123:$IM$204,$O82,'Report - ALL (DASHBOARD)'!$W$4) -> 2947.969992 | Z82: =INDEX('Compile Data'!$IP$123:$JM$204,$O82,'Report - ALL (DASHBOARD)'!$W$4) -> 2948.269148
A83: 1973 | B83: =INDEX('Compile Data'!$P$12:$AM$93,$A83-1921,'Report - ALL (DASHBOARD)'!$W$4) -> 3075.156219 | C83: =INDEX('Compile Data'!$AP$12:$BM$93,$A83-1921,'Report - ALL (DASHBOARD)'!$W$4) -> 3149.903499 | D83: =INDEX('Compile Data'!$BP$12:$CM$93,$A83-1921,'Report - ALL (DASHBOARD)'!$W$4) -> 3150.034248 | E83: =INDEX('Compile Data'!$CP$12:$DM$93,$A83-1921,'Report - ALL (DASHBOARD)'!$W$4) -> 3150.010235 | F83: =INDEX('Compile Data'!$DP$12:$EM$93,$A83-1921,'Report - ALL (DASHBOARD)'!$W$4) -> 3149.663829 | G83: =INDEX('Compile Data'!$EP$12:$FM$93,$A83-1921,'Report - ALL (DASHBOARD)'!$W$4) -> 3152.733914 | H83: =INDEX('Compile Data'!$FP$12:$GM$93,$A83-1921,'Report - ALL (DASHBOARD)'!$W$4) -> 3149.942113 | I83: =INDEX('Compile Data'!$GP$12:$HM$93,$A83-1921,'Report - ALL (DASHBOARD)'!$W$4) -> 3149.930814 | J83: =INDEX('Compile Data'!$HP$12:$IM$93,$A83-1921,'Report - ALL (DASHBOARD)'!$W$4) -> 3150.025397 | K83: =INDEX('Compile Data'!$IP$12:$JM$93,$A83-1921,'Report - ALL (DASHBOARD)'!$W$4) -> 3149.972276 | O83: 52 | P83: 0.6296296296 | Q83: =INDEX('Compile Data'!$P$123:$AM$204,$O83,'Report - ALL (DASHBOARD)'!$W$4) -> 2900.669761 | R83: =INDEX('Compile Data'!$AP$123:$BM$204,$O83,'Report - ALL (DASHBOARD)'!$W$4) -> 2933.321453 | S83: =INDEX('Compile Data'!$BP$123:$CM$204,$O83,'Report - ALL (DASHBOARD)'!$W$4) -> 2953.555881 | T83: =INDEX('Compile Data'!$CP$123:$DM$204,$O83,'Report - ALL (DASHBOARD)'!$W$4) -> 2953.543874 | U83: =INDEX('Compile Data'!$DP$123:$EM$204,$O83,'Report - ALL (DASHBOARD)'!$W$4) -> 2928.590448 | V83: =INDEX('Compile Data'!$EP$123:$FM$204,$O83,'Report - ALL (DASHBOARD)'!$W$4) -> 2943.687434 | W83: =INDEX('Compile Data'!$FP$123:$GM$204,$O83,'Report - ALL (DASHBOARD)'!$W$4) -> 2944.363253 | X83: =INDEX('Compile Data'!$GP$123:$HM$204,$O83,'Report - ALL (DASHBOARD)'!$W$4) -> 2931.875676 | Y83: =INDEX('Compile Data'!$HP$123:$IM$204,$O83,'Report - ALL (DASHBOARD)'!$W$4) -> 2944.369463 | Z83: =INDEX('Compile Data'!$IP$123:$JM$204,$O83,'Report - ALL (DASHBOARD)'!$W$4) -> 2947.970321
A84: 1974 | B84: =INDEX('Compile Data'!$P$12:$AM$93,$A84-1921,'Report - ALL (DASHBOARD)'!$W$4) -> 3400 | C84: =INDEX('Compile Data'!$AP$12:$BM$93,$A84-1921,'Report - ALL (DASHBOARD)'!$W$4) -> 3400 | D84: =INDEX('Compile Data'!$BP$12:$CM$93,$A84-1921,'Report - ALL (DASHBOARD)'!$W$4) -> 3400 | E84: =INDEX('Compile Data'!$CP$12:$DM$93,$A84-1921,'Report - ALL (DASHBOARD)'!$W$4) -> 3400 | F84: =INDEX('Compile Data'!$DP$12:$EM$93,$A84-1921,'Report - ALL (DASHBOARD)'!$W$4) -> 3400 | G84: =INDEX('Compile Data'!$EP$12:$FM$93,$A84-1921,'Report - ALL (DASHBOARD)'!$W$4) -> 3400 | H84: =INDEX('Compile Data'!$FP$12:$GM$93,$A84-1921,'Report - ALL (DASHBOARD)'!$W$4) -> 3400 | I84: =INDEX('Compile Data'!$GP$12:$HM$93,$A84-1921,'Report - ALL (DASHBOARD)'!$W$4) -> 3400 | J84: =INDEX('Compile Data'!$HP$12:$IM$93,$A84-1921,'Report - ALL (DASHBOARD)'!$W$4) -> 3400 | K84: =INDEX('Compile Data'!$IP$12:$JM$93,$A84-1921,'Report - ALL (DASHBOARD)'!$W$4) -> 3400 | O84: 53 | P84: 0.6419753086 | Q84: =INDEX('Compile Data'!$P$123:$AM$204,$O84,'Report - ALL (DASHBOARD)'!$W$4) -> 2864.022912 | R84: =INDEX('Compile Data'!$AP$123:$BM$204,$O84,'Report - ALL (DASHBOARD)'!$W$4) -> 2927.292621 | S84: =INDEX('Compile Data'!$BP$123:$CM$204,$O84,'Report - ALL (DASHBOARD)'!$W$4) -> 2951.120498 | T84: =INDEX('Compile Data'!$CP$123:$DM$204,$O84,'Report - ALL (DASHBOARD)'!$W$4) -> 2951.106981 | U84: =INDEX('Compile Data'!$DP$123:$EM$204,$O84,'Report - ALL (DASHBOARD)'!$W$4) -> 2922.893067 | V84: =INDEX('Compile Data'!$EP$123:$FM$204,$O84,'Report - ALL (DASHBOARD)'!$W$4) -> 2932.590202 | W84: =INDEX('Compile Data'!$FP$123:$GM$204,$O84,'Report - ALL (DASHBOARD)'!$W$4) -> 2943.445129 | X84: =INDEX('Compile Data'!$GP$123:$HM$204,$O84,'Report - ALL (DASHBOARD)'!$W$4) -> 2930.842493 | Y84: =INDEX('Compile Data'!$HP$123:$IM$204,$O84,'Report - ALL (DASHBOARD)'!$W$4) -> 2940.958014 | Z84: =INDEX('Compile Data'!$IP$123:$JM$204,$O84,'Report - ALL (DASHBOARD)'!$W$4) -> 2940.14029
A85: 1975 | B85: =INDEX('Compile Data'!$P$12:$AM$93,$A85-1921,'Report - ALL (DASHBOARD)'!$W$4) -> 3400 | C85: =INDEX('Compile Data'!$AP$12:$BM$93,$A85-1921,'Report - ALL (DASHBOARD)'!$W$4) -> 3400 | D85: =INDEX('Compile Data'!$BP$12:$CM$93,$A85-1921,'Report - ALL (DASHBOARD)'!$W$4) -> 3400 | E85: =INDEX('Compile Data'!$CP$12:$DM$93,$A85-1921,'Report - ALL (DASHBOARD)'!$W$4) -> 3400 | F85: =INDEX('Compile Data'!$DP$12:$EM$93,$A85-1921,'Report - ALL (DASHBOARD)'!$W$4) -> 3400 | G85: =INDEX('Compile Data'!$EP$12:$FM$93,$A85-1921,'Report - ALL (DASHBOARD)'!$W$4) -> 3400 | H85: =INDEX('Compile Data'!$FP$12:$GM$93,$A85-1921,'Report - ALL (DASHBOARD)'!$W$4) -> 3400 | I85: =INDEX('Compile Data'!$GP$12:$HM$93,$A85-1921,'Report - ALL (DASHBOARD)'!$W$4) -> 3400 | J85: =INDEX('Compile Data'!$HP$12:$IM$93,$A85-1921,'Report - ALL (DASHBOARD)'!$W$4) -> 3400 | K85: =INDEX('Compile Data'!$IP$12:$JM$93,$A85-1921,'Report - ALL (DASHBOARD)'!$W$4) -> 3400 | O85: 54 | P85: 0.6543209877 | Q85: =INDEX('Compile Data'!$P$123:$AM$204,$O85,'Report - ALL (DASHBOARD)'!$W$4) -> 2823.546091 | R85: =INDEX('Compile Data'!$AP$123:$BM$204,$O85,'Report - ALL (DASHBOARD)'!$W$4) -> 2926.379206 | S85: =INDEX('Compile Data'!$BP$123:$CM$204,$O85,'Report - ALL (DASHBOARD)'!$W$4) -> 2935.423261 | T85: =INDEX('Compile Data'!$CP$123:$DM$204,$O85,'Report - ALL (DASHBOARD)'!$W$4) -> 2935.412144 | U85: =INDEX('Compile Data'!$DP$123:$EM$204,$O85,'Report - ALL (DASHBOARD)'!$W$4) -> 2913.740529 | V85: =INDEX('Compile Data'!$EP$123:$FM$204,$O85,'Report - ALL (DASHBOARD)'!$W$4) -> 2925.208771 | W85: =INDEX('Compile Data'!$FP$123:$GM$204,$O85,'Report - ALL (DASHBOARD)'!$W$4) -> 2932.714796 | X85: =INDEX('Compile Data'!$GP$123:$HM$204,$O85,'Report - ALL (DASHBOARD)'!$W$4) -> 2917.719163 | Y85: =INDEX('Compile Data'!$HP$123:$IM$204,$O85,'Report - ALL (DASHBOARD)'!$W$4) -> 2934.440394 | Z85: =INDEX('Compile Data'!$IP$123:$JM$204,$O85,'Report - ALL (DASHBOARD)'!$W$4) -> 2935.382311
A86: 1976 | B86: =INDEX('Compile Data'!$P$12:$AM$93,$A86-1921,'Report - ALL (DASHBOARD)'!$W$4) -> 2963.304111 | C86: =INDEX('Compile Data'!$AP$12:$BM$93,$A86-1921,'Report - ALL (DASHBOARD)'!$W$4) -> 3077.562733 | D86: =INDEX('Compile Data'!$BP$12:$CM$93,$A86-1921,'Report - ALL (DASHBOARD)'!$W$4) -> 3077.703447 | E86: =INDEX('Compile Data'!$CP$12:$DM$93,$A86-1921,'Report - ALL (DASHBOARD)'!$W$4) -> 3092.147806 | F86: =INDEX('Compile Data'!$DP$12:$EM$93,$A86-1921,'Report - ALL (DASHBOARD)'!$W$4) -> 3102.253719 | G86: =INDEX('Compile Data'!$EP$12:$FM$93,$A86-1921,'Report - ALL (DASHBOARD)'!$W$4) -> 3101.479756 | H86: =INDEX('Compile Data'!$FP$12:$GM$93,$A86-1921,'Report - ALL (DASHBOARD)'!$W$4) -> 3077.623394 | I86: =INDEX('Compile Data'!$GP$12:$HM$93,$A86-1921,'Report - ALL (DASHBOARD)'!$W$4) -> 3077.610175 | J86: =INDEX('Compile Data'!$HP$12:$IM$93,$A86-1921,'Report - ALL (DASHBOARD)'!$W$4) -> 3092.106619 | K86: =INDEX('Compile Data'!$IP$12:$JM$93,$A86-1921,'Report - ALL (DASHBOARD)'!$W$4) -> 3092.107962 | O86: 55 | P86: 0.6666666667 | Q86: =INDEX('Compile Data'!$P$123:$AM$204,$O86,'Report - ALL (DASHBOARD)'!$W$4) -> 2820.756265 | R86: =INDEX('Compile Data'!$AP$123:$BM$204,$O86,'Report - ALL (DASHBOARD)'!$W$4) -> 2907.170249 | S86: =INDEX('Compile Data'!$BP$123:$CM$204,$O86,'Report - ALL (DASHBOARD)'!$W$4) -> 2915.035478 | T86: =INDEX('Compile Data'!$CP$123:$DM$204,$O86,'Report - ALL (DASHBOARD)'!$W$4) -> 2915.221125 | U86: =INDEX('Compile Data'!$DP$123:$EM$204,$O86,'Report - ALL (DASHBOARD)'!$W$4) -> 2912.700756 | V86: =INDEX('Compile Data'!$EP$123:$FM$204,$O86,'Report - ALL (DASHBOARD)'!$W$4) -> 2913.755047 | W86: =INDEX('Compile Data'!$FP$123:$GM$204,$O86,'Report - ALL (DASHBOARD)'!$W$4) -> 2911.164287 | X86: =INDEX('Compile Data'!$GP$123:$HM$204,$O86,'Report - ALL (DASHBOARD)'!$W$4) -> 2911.05828 | Y86: =INDEX('Compile Data'!$HP$123:$IM$204,$O86,'Report - ALL (DASHBOARD)'!$W$4) -> 2914.880815 | Z86: =INDEX('Compile Data'!$IP$123:$JM$204,$O86,'Report - ALL (DASHBOARD)'!$W$4) -> 2915.09191
A87: 1977 | B87: =INDEX('Compile Data'!$P$12:$AM$93,$A87-1921,'Report - ALL (DASHBOARD)'!$W$4) -> 641.4961471 | C87: =INDEX('Compile Data'!$AP$12:$BM$93,$A87-1921,'Report - ALL (DASHBOARD)'!$W$4) -> 794.6766998 | D87: =INDEX('Compile Data'!$BP$12:$CM$93,$A87-1921,'Report - ALL (DASHBOARD)'!$W$4) -> 795.0841101 | E87: =INDEX('Compile Data'!$CP$12:$DM$93,$A87-1921,'Report - ALL (DASHBOARD)'!$W$4) -> 812.913163 | F87: =INDEX('Compile Data'!$DP$12:$EM$93,$A87-1921,'Report - ALL (DASHBOARD)'!$W$4) -> 796.8615952 | G87: =INDEX('Compile Data'!$EP$12:$FM$93,$A87-1921,'Report - ALL (DASHBOARD)'!$W$4) -> 800.0668128 | H87: =INDEX('Compile Data'!$FP$12:$GM$93,$A87-1921,'Report - ALL (DASHBOARD)'!$W$4) -> 794.8189936 | I87: =INDEX('Compile Data'!$GP$12:$HM$93,$A87-1921,'Report - ALL (DASHBOARD)'!$W$4) -> 789.8563713 | J87: =INDEX('Compile Data'!$HP$12:$IM$93,$A87-1921,'Report - ALL (DASHBOARD)'!$W$4) -> 812.4225583 | K87: =INDEX('Compile Data'!$IP$12:$JM$93,$A87-1921,'Report - ALL (DASHBOARD)'!$W$4) -> 812.3551184 | O87: 56 | P87: 0.6790123457 | Q87: =INDEX('Compile Data'!$P$123:$AM$204,$O87,'Report - ALL (DASHBOARD)'!$W$4) -> 2819.708297 | R87: =INDEX('Compile Data'!$AP$123:$BM$204,$O87,'Report - ALL (DASHBOARD)'!$W$4) -> 2905.120951 | S87: =INDEX('Compile Data'!$BP$123:$CM$204,$O87,'Report - ALL (DASHBOARD)'!$W$4) -> 2912.173281 | T87: =INDEX('Compile Data'!$CP$123:$DM$204,$O87,'Report - ALL (DASHBOARD)'!$W$4) -> 2912.325921 | U87: =INDEX('Compile Data'!$DP$123:$EM$204,$O87,'Report - ALL (DASHBOARD)'!$W$4) -> 2889.919885 | V87: =INDEX('Compile Data'!$EP$123:$FM$204,$O87,'Report - ALL (DASHBOARD)'!$W$4) -> 2911.64178 | W87: =INDEX('Compile Data'!$FP$123:$GM$204,$O87,'Report - ALL (DASHBOARD)'!$W$4) -> 2907.092958 | X87: =INDEX('Compile Data'!$GP$123:$HM$204,$O87,'Report - ALL (DASHBOARD)'!$W$4) -> 2907.159432 | Y87: =INDEX('Compile Data'!$HP$123:$IM$204,$O87,'Report - ALL (DASHBOARD)'!$W$4) -> 2911.970556 | Z87: =INDEX('Compile Data'!$IP$123:$JM$204,$O87,'Report - ALL (DASHBOARD)'!$W$4) -> 2912.131304
A88: 1978 | B88: =INDEX('Compile Data'!$P$12:$AM$93,$A88-1921,'Report - ALL (DASHBOARD)'!$W$4) -> 3400 | C88: =INDEX('Compile Data'!$AP$12:$BM$93,$A88-1921,'Report - ALL (DASHBOARD)'!$W$4) -> 3400 | D88: =INDEX('Compile Data'!$BP$12:$CM$93,$A88-1921,'Report - ALL (DASHBOARD)'!$W$4) -> 3400 | E88: =INDEX('Compile Data'!$CP$12:$DM$93,$A88-1921,'Report - ALL (DASHBOARD)'!$W$4) -> 3400 | F88: =INDEX('Compile Data'!$DP$12:$EM$93,$A88-1921,'Report - ALL (DASHBOARD)'!$W$4) -> 3400 | G88: =INDEX('Compile Data'!$EP$12:$FM$93,$A88-1921,'Report - ALL (DASHBOARD)'!$W$4) -> 3400 | H88: =INDEX('Compile Data'!$FP$12:$GM$93,$A88-1921,'Report - ALL (DASHBOARD)'!$W$4) -> 3400 | I88: =INDEX('Compile Data'!$GP$12:$HM$93,$A88-1921,'Report - ALL (DASHBOARD)'!$W$4) -> 3400 | J88: =INDEX('Compile Data'!$HP$12:$IM$93,$A88-1921,'Report - ALL (DASHBOARD)'!$W$4) -> 3400 | K88: =INDEX('Compile Data'!$IP$12:$JM$93,$A88-1921,'Report - ALL (DASHBOARD)'!$W$4) -> 3400 | O88: 57 | P88: 0.6913580247 | Q88: =INDEX('Compile Data'!$P$123:$AM$204,$O88,'Report - ALL (DASHBOARD)'!$W$4) -> 2809.750365 | R88: =INDEX('Compile Data'!$AP$123:$BM$204,$O88,'Report - ALL (DASHBOARD)'!$W$4) -> 2875.957107 | S88: =INDEX('Compile Data'!$BP$123:$CM$204,$O88,'Report - ALL (DASHBOARD)'!$W$4) -> 2908.796415 | T88: =INDEX('Compile Data'!$CP$123:$DM$204,$O88,'Report - ALL (DASHBOARD)'!$W$4) -> 2908.79439 | U88: =INDEX('Compile Data'!$DP$123:$EM$204,$O88,'Report - ALL (DASHBOARD)'!$W$4) -> 2851.185695 | V88: =INDEX('Compile Data'!$EP$123:$FM$204,$O88,'Report - ALL (DASHBOARD)'!$W$4) -> 2894.565266 | W88: =INDEX('Compile Data'!$FP$123:$GM$204,$O88,'Report - ALL (DASHBOARD)'!$W$4) -> 2872.62847 | X88: =INDEX('Compile Data'!$GP$123:$HM$204,$O88,'Report - ALL (DASHBOARD)'!$W$4) -> 2867.804221 | Y88: =INDEX('Compile Data'!$HP$123:$IM$204,$O88,'Report - ALL (DASHBOARD)'!$W$4) -> 2900.974826 | Z88: =INDEX('Compile Data'!$IP$123:$JM$204,$O88,'Report - ALL (DASHBOARD)'!$W$4) -> 2904.559757
A89: 1979 | B89: =INDEX('Compile Data'!$P$12:$AM$93,$A89-1921,'Report - ALL (DASHBOARD)'!$W$4) -> 3134.827548 | C89: =INDEX('Compile Data'!$AP$12:$BM$93,$A89-1921,'Report - ALL (DASHBOARD)'!$W$4) -> 3160.818986 | D89: =INDEX('Compile Data'!$BP$12:$CM$93,$A89-1921,'Report - ALL (DASHBOARD)'!$W$4) -> 3168.363252 | E89: =INDEX('Compile Data'!$CP$12:$DM$93,$A89-1921,'Report - ALL (DASHBOARD)'!$W$4) -> 3168.315331 | F89: =INDEX('Compile Data'!$DP$12:$EM$93,$A89-1921,'Report - ALL (DASHBOARD)'!$W$4) -> 3155.732583 | G89: =INDEX('Compile Data'!$EP$12:$FM$93,$A89-1921,'Report - ALL (DASHBOARD)'!$W$4) -> 3151.806778 | H89: =INDEX('Compile Data'!$FP$12:$GM$93,$A89-1921,'Report - ALL (DASHBOARD)'!$W$4) -> 3157.050416 | I89: =INDEX('Compile Data'!$GP$12:$HM$93,$A89-1921,'Report - ALL (DASHBOARD)'!$W$4) -> 3157.194683 | J89: =INDEX('Compile Data'!$HP$12:$IM$93,$A89-1921,'Report - ALL (DASHBOARD)'!$W$4) -> 3162.600111 | K89: =INDEX('Compile Data'!$IP$12:$JM$93,$A89-1921,'Report - ALL (DASHBOARD)'!$W$4) -> 3162.595728 | O89: 58 | P89: 0.7037037037 | Q89: =INDEX('Compile Data'!$P$123:$AM$204,$O89,'Report - ALL (DASHBOARD)'!$W$4) -> 2792.208948 | R89: =INDEX('Compile Data'!$AP$123:$BM$204,$O89,'Report - ALL (DASHBOARD)'!$W$4) -> 2849.819109 | S89: =INDEX('Compile Data'!$BP$123:$CM$204,$O89,'Report - ALL (DASHBOARD)'!$W$4) -> 2905.772192 | T89: =INDEX('Compile Data'!$CP$123:$DM$204,$O89,'Report - ALL (DASHBOARD)'!$W$4) -> 2905.77161 | U89: =INDEX('Compile Data'!$DP$123:$EM$204,$O89,'Report - ALL (DASHBOARD)'!$W$4) -> 2843.721884 | V89: =INDEX('Compile Data'!$EP$123:$FM$204,$O89,'Report - ALL (DASHBOARD)'!$W$4) -> 2857.944346 | W89: =INDEX('Compile Data'!$FP$123:$GM$204,$O89,'Report - ALL (DASHBOARD)'!$W$4) -> 2849.362203 | X89: =INDEX('Compile Data'!$GP$123:$HM$204,$O89,'Report - ALL (DASHBOARD)'!$W$4) -> 2846.816894 | Y89: =INDEX('Compile Data'!$HP$123:$IM$204,$O89,'Report - ALL (DASHBOARD)'!$W$4) -> 2876.161897 | Z89: =INDEX('Compile Data'!$IP$123:$JM$204,$O89,'Report - ALL (DASHBOARD)'!$W$4) -> 2874.052738
A90: 1980 | B90: =INDEX('Compile Data'!$P$12:$AM$93,$A90-1921,'Report - ALL (DASHBOARD)'!$W$4) -> 3378.750746 | C90: =INDEX('Compile Data'!$AP$12:$BM$93,$A90-1921,'Report - ALL (DASHBOARD)'!$W$4) -> 3400 | D90: =INDEX('Compile Data'!$BP$12:$CM$93,$A90-1921,'Report - ALL (DASHBOARD)'!$W$4) -> 3400 | E90: =INDEX('Compile Data'!$CP$12:$DM$93,$A90-1921,'Report - ALL (DASHBOARD)'!$W$4) -> 3400 | F90: =INDEX('Compile Data'!$DP$12:$EM$93,$A90-1921,'Report - ALL (DASHBOARD)'!$W$4) -> 3400 | G90: =INDEX('Compile Data'!$EP$12:$FM$93,$A90-1921,'Report - ALL (DASHBOARD)'!$W$4) -> 3400 | H90: =INDEX('Compile Data'!$FP$12:$GM$93,$A90-1921,'Report - ALL (DASHBOARD)'!$W$4) -> 3400 | I90: =INDEX('Compile Data'!$GP$12:$HM$93,$A90-1921,'Report - ALL (DASHBOARD)'!$W$4) -> 3400 | J90: =INDEX('Compile Data'!$HP$12:$IM$93,$A90-1921,'Report - ALL (DASHBOARD)'!$W$4) -> 3400 | K90: =INDEX('Compile Data'!$IP$12:$JM$93,$A90-1921,'Report - ALL (DASHBOARD)'!$W$4) -> 3400 | O90: 59 | P90: 0.7160493827 | Q90: =INDEX('Compile Data'!$P$123:$AM$204,$O90,'Report - ALL (DASHBOARD)'!$W$4) -> 2771.67479 | R90: =INDEX('Compile Data'!$AP$123:$BM$204,$O90,'Report - ALL (DASHBOARD)'!$W$4) -> 2786.346756 | S90: =INDEX('Compile Data'!$BP$123:$CM$204,$O90,'Report - ALL (DASHBOARD)'!$W$4) -> 2786.637976 | T90: =INDEX('Compile Data'!$CP$123:$DM$204,$O90,'Report - ALL (DASHBOARD)'!$W$4) -> 2786.613043 | U90: =INDEX('Compile Data'!$DP$123:$EM$204,$O90,'Report - ALL (DASHBOARD)'!$W$4) -> 2784.915013 | V90: =INDEX('Compile Data'!$EP$123:$FM$204,$O90,'Report - ALL (DASHBOARD)'!$W$4) -> 2784.804589 | W90: =INDEX('Compile Data'!$FP$123:$GM$204,$O90,'Report - ALL (DASHBOARD)'!$W$4) -> 2786.615351 | X90: =INDEX('Compile Data'!$GP$123:$HM$204,$O90,'Report - ALL (DASHBOARD)'!$W$4) -> 2786.535414 | Y90: =INDEX('Compile Data'!$HP$123:$IM$204,$O90,'Report - ALL (DASHBOARD)'!$W$4) -> 2784.987375 | Z90: =INDEX('Compile Data'!$IP$123:$JM$204,$O90,'Report - ALL (DASHBOARD)'!$W$4) -> 2786.591859
A91: 1981 | B91: =INDEX('Compile Data'!$P$12:$AM$93,$A91-1921,'Report - ALL (DASHBOARD)'!$W$4) -> 2864.022912 | C91: =INDEX('Compile Data'!$AP$12:$BM$93,$A91-1921,'Report - ALL (DASHBOARD)'!$W$4) -> 2947.288212 | D91: =INDEX('Compile Data'!$BP$12:$CM$93,$A91-1921,'Report - ALL (DASHBOARD)'!$W$4) -> 2951.120498 | E91: =INDEX('Compile Data'!$CP$12:$DM$93,$A91-1921,'Report - ALL (DASHBOARD)'!$W$4) -> 2951.106981 | F91: =INDEX('Compile Data'!$DP$12:$EM$93,$A91-1921,'Report - ALL (DASHBOARD)'!$W$4) -> 2889.919885 | G91: =INDEX('Compile Data'!$EP$12:$FM$93,$A91-1921,'Report - ALL (DASHBOARD)'!$W$4) -> 2943.687434 | H91: =INDEX('Compile Data'!$FP$12:$GM$93,$A91-1921,'Report - ALL (DASHBOARD)'!$W$4) -> 2948.410078 | I91: =INDEX('Compile Data'!$GP$12:$HM$93,$A91-1921,'Report - ALL (DASHBOARD)'!$W$4) -> 2917.719163 | J91: =INDEX('Compile Data'!$HP$12:$IM$93,$A91-1921,'Report - ALL (DASHBOARD)'!$W$4) -> 2950.488077 | K91: =INDEX('Compile Data'!$IP$12:$JM$93,$A91-1921,'Report - ALL (DASHBOARD)'!$W$4) -> 2950.119741 | O91: 60 | P91: 0.7283950617 | Q91: =INDEX('Compile Data'!$P$123:$AM$204,$O91,'Report - ALL (DASHBOARD)'!$W$4) -> 2719.827887 | R91: =INDEX('Compile Data'!$AP$123:$BM$204,$O91,'Report - ALL (DASHBOARD)'!$W$4) -> 2734.265529 | S91: =INDEX('Compile Data'!$BP$123:$CM$204,$O91,'Report - ALL (DASHBOARD)'!$W$4) -> 2757.769334 | T91: =INDEX('Compile Data'!$CP$123:$DM$204,$O91,'Report - ALL (DASHBOARD)'!$W$4) -> 2757.750335 | U91: =INDEX('Compile Data'!$DP$123:$EM$204,$O91,'Report - ALL (DASHBOARD)'!$W$4) -> 2717.691146 | V91: =INDEX('Compile Data'!$EP$123:$FM$204,$O91,'Report - ALL (DASHBOARD)'!$W$4) -> 2722.123882 | W91: =INDEX('Compile Data'!$FP$123:$GM$204,$O91,'Report - ALL (DASHBOARD)'!$W$4) -> 2733.433014 | X91: =INDEX('Compile Data'!$GP$123:$HM$204,$O91,'Report - ALL (DASHBOARD)'!$W$4) -> 2728.284337 | Y91: =INDEX('Compile Data'!$HP$123:$IM$204,$O91,'Report - ALL (DASHBOARD)'!$W$4) -> 2757.315525 | Z91: =INDEX('Compile Data'!$IP$123:$JM$204,$O91,'Report - ALL (DASHBOARD)'!$W$4) -> 2757.57686
A92: 1982 | B92: =INDEX('Compile Data'!$P$12:$AM$93,$A92-1921,'Report - ALL (DASHBOARD)'!$W$4) -> 3400 | C92: =INDEX('Compile Data'!$AP$12:$BM$93,$A92-1921,'Report - ALL (DASHBOARD)'!$W$4) -> 3400 | D92: =INDEX('Compile Data'!$BP$12:$CM$93,$A92-1921,'Report - ALL (DASHBOARD)'!$W$4) -> 3400 | E92: =INDEX('Compile Data'!$CP$12:$DM$93,$A92-1921,'Report - ALL (DASHBOARD)'!$W$4) -> 3400 | F92: =INDEX('Compile Data'!$DP$12:$EM$93,$A92-1921,'Report - ALL (DASHBOARD)'!$W$4) -> 3400 | G92: =INDEX('Compile Data'!$EP$12:$FM$93,$A92-1921,'Report - ALL (DASHBOARD)'!$W$4) -> 3400 | H92: =INDEX('Compile Data'!$FP$12:$GM$93,$A92-1921,'Report - ALL (DASHBOARD)'!$W$4) -> 3400 | I92: =INDEX('Compile Data'!$GP$12:$HM$93,$A92-1921,'Report - ALL (DASHBOARD)'!$W$4) -> 3400 | J92: =INDEX('Compile Data'!$HP$12:$IM$93,$A92-1921,'Report - ALL (DASHBOARD)'!$W$4) -> 3400 | K92: =INDEX('Compile Data'!$IP$12:$JM$93,$A92-1921,'Report - ALL (DASHBOARD)'!$W$4) -> 3400 | O92: 61 | P92: 0.7407407407 | Q92: =INDEX('Compile Data'!$P$123:$AM$204,$O92,'Report - ALL (DASHBOARD)'!$W$4) -> 2677.299546 | R92: =INDEX('Compile Data'!$AP$123:$BM$204,$O92,'Report - ALL (DASHBOARD)'!$W$4) -> 2723.302941 | S92: =INDEX('Compile Data'!$BP$123:$CM$204,$O92,'Report - ALL (DASHBOARD)'!$W$4) -> 2734.187882 | T92: =INDEX('Compile Data'!$CP$123:$DM$204,$O92,'Report - ALL (DASHBOARD)'!$W$4) -> 2734.185334 | U92: =INDEX('Compile Data'!$DP$123:$EM$204,$O92,'Report - ALL (DASHBOARD)'!$W$4) -> 2717.682947 | V92: =INDEX('Compile Data'!$EP$123:$FM$204,$O92,'Report - ALL (DASHBOARD)'!$W$4) -> 2721.351187 | W92: =INDEX('Compile Data'!$FP$123:$GM$204,$O92,'Report - ALL (DASHBOARD)'!$W$4) -> 2728.322277 | X92: =INDEX('Compile Data'!$GP$123:$HM$204,$O92,'Report - ALL (DASHBOARD)'!$W$4) -> 2723.969042 | Y92: =INDEX('Compile Data'!$HP$123:$IM$204,$O92,'Report - ALL (DASHBOARD)'!$W$4) -> 2728.199238 | Z92: =INDEX('Compile Data'!$IP$123:$JM$204,$O92,'Report - ALL (DASHBOARD)'!$W$4) -> 2728.192537
A93: 1983 | B93: =INDEX('Compile Data'!$P$12:$AM$93,$A93-1921,'Report - ALL (DASHBOARD)'!$W$4) -> 3400 | C93: =INDEX('Compile Data'!$AP$12:$BM$93,$A93-1921,'Report - ALL (DASHBOARD)'!$W$4) -> 3400 | D93: =INDEX('Compile Data'!$BP$12:$CM$93,$A93-1921,'Report - ALL (DASHBOARD)'!$W$4) -> 3400 | E93: =INDEX('Compile Data'!$CP$12:$DM$93,$A93-1921,'Report - ALL (DASHBOARD)'!$W$4) -> 3400 | F93: =INDEX('Compile Data'!$DP$12:$EM$93,$A93-1921,'Report - ALL (DASHBOARD)'!$W$4) -> 3400 | G93: =INDEX('Compile Data'!$EP$12:$FM$93,$A93-1921,'Report - ALL (DASHBOARD)'!$W$4) -> 3400 | H93: =INDEX('Compile Data'!$FP$12:$GM$93,$A93-1921,'Report - ALL (DASHBOARD)'!$W$4) -> 3400 | I93: =INDEX('Compile Data'!$GP$12:$HM$93,$A93-1921,'Report - ALL (DASHBOARD)'!$W$4) -> 3400 | J93: =INDEX('Compile Data'!$HP$12:$IM$93,$A93-1921,'Report - ALL (DASHBOARD)'!$W$4) -> 3400 | K93: =INDEX('Compile Data'!$IP$12:$JM$93,$A93-1921,'Report - ALL (DASHBOARD)'!$W$4) -> 3400 | O93: 62 | P93: 0.7530864198 | Q93: =INDEX('Compile Data'!$P$123:$AM$204,$O93,'Report - ALL (DASHBOARD)'!$W$4) -> 2656.455073 | R93: =INDEX('Compile Data'!$AP$123:$BM$204,$O93,'Report - ALL (DASHBOARD)'!$W$4) -> 2712.717765 | S93: =INDEX('Compile Data'!$BP$123:$CM$204,$O93,'Report - ALL (DASHBOARD)'!$W$4) -> 2723.6515 | T93: =INDEX('Compile Data'!$CP$123:$DM$204,$O93,'Report - ALL (DASHBOARD)'!$W$4) -> 2723.632354 | U93: =INDEX('Compile Data'!$DP$123:$EM$204,$O93,'Report - ALL (DASHBOARD)'!$W$4) -> 2706.982834 | V93: =INDEX('Compile Data'!$EP$123:$FM$204,$O93,'Report - ALL (DASHBOARD)'!$W$4) -> 2718.5738 | W93: =INDEX('Compile Data'!$FP$123:$GM$204,$O93,'Report - ALL (DASHBOARD)'!$W$4) -> 2714.019386 | X93: =INDEX('Compile Data'!$GP$123:$HM$204,$O93,'Report - ALL (DASHBOARD)'!$W$4) -> 2712.681157 | Y93: =INDEX('Compile Data'!$HP$123:$IM$204,$O93,'Report - ALL (DASHBOARD)'!$W$4) -> 2724.043197 | Z93: =INDEX('Compile Data'!$IP$123:$JM$204,$O93,'Report - ALL (DASHBOARD)'!$W$4) -> 2722.274048
A94: 1984 | B94: =INDEX('Compile Data'!$P$12:$AM$93,$A94-1921,'Report - ALL (DASHBOARD)'!$W$4) -> 3233.332407 | C94: =INDEX('Compile Data'!$AP$12:$BM$93,$A94-1921,'Report - ALL (DASHBOARD)'!$W$4) -> 3227.625074 | D94: =INDEX('Compile Data'!$BP$12:$CM$93,$A94-1921,'Report - ALL (DASHBOARD)'!$W$4) -> 3227.705669 | E94: =INDEX('Compile Data'!$CP$12:$DM$93,$A94-1921,'Report - ALL (DASHBOARD)'!$W$4) -> 3227.695001 | F94: =INDEX('Compile Data'!$DP$12:$EM$93,$A94-1921,'Report - ALL (DASHBOARD)'!$W$4) -> 3227.628621 | G94: =INDEX('Compile Data'!$EP$12:$FM$93,$A94-1921,'Report - ALL (DASHBOARD)'!$W$4) -> 3227.242685 | H94: =INDEX('Compile Data'!$FP$12:$GM$93,$A94-1921,'Report - ALL (DASHBOARD)'!$W$4) -> 3227.6494 | I94: =INDEX('Compile Data'!$GP$12:$HM$93,$A94-1921,'Report - ALL (DASHBOARD)'!$W$4) -> 3227.694614 | J94: =INDEX('Compile Data'!$HP$12:$IM$93,$A94-1921,'Report - ALL (DASHBOARD)'!$W$4) -> 3227.682261 | K94: =INDEX('Compile Data'!$IP$12:$JM$93,$A94-1921,'Report - ALL (DASHBOARD)'!$W$4) -> 3227.681404 | O94: 63 | P94: 0.7654320988 | Q94: =INDEX('Compile Data'!$P$123:$AM$204,$O94,'Report - ALL (DASHBOARD)'!$W$4) -> 2649.679033 | R94: =INDEX('Compile Data'!$AP$123:$BM$204,$O94,'Report - ALL (DASHBOARD)'!$W$4) -> 2712.282039 | S94: =INDEX('Compile Data'!$BP$123:$CM$204,$O94,'Report - ALL (DASHBOARD)'!$W$4) -> 2722.363209 | T94: =INDEX('Compile Data'!$CP$123:$DM$204,$O94,'Report - ALL (DASHBOARD)'!$W$4) -> 2722.316387 | U94: =INDEX('Compile Data'!$DP$123:$EM$204,$O94,'Report - ALL (DASHBOARD)'!$W$4) -> 2704.169641 | V94: =INDEX('Compile Data'!$EP$123:$FM$204,$O94,'Report - ALL (DASHBOARD)'!$W$4) -> 2715.938915 | W94: =INDEX('Compile Data'!$FP$123:$GM$204,$O94,'Report - ALL (DASHBOARD)'!$W$4) -> 2690.052398 | X94: =INDEX('Compile Data'!$GP$123:$HM$204,$O94,'Report - ALL (DASHBOARD)'!$W$4) -> 2690.146364 | Y94: =INDEX('Compile Data'!$HP$123:$IM$204,$O94,'Report - ALL (DASHBOARD)'!$W$4) -> 2699.271637 | Z94: =INDEX('Compile Data'!$IP$123:$JM$204,$O94,'Report - ALL (DASHBOARD)'!$W$4) -> 2699.97339
A95: 1985 | B95: =INDEX('Compile Data'!$P$12:$AM$93,$A95-1921,'Report - ALL (DASHBOARD)'!$W$4) -> 2649.679033 | C95: =INDEX('Compile Data'!$AP$12:$BM$93,$A95-1921,'Report - ALL (DASHBOARD)'!$W$4) -> 2689.995797 | D95: =INDEX('Compile Data'!$BP$12:$CM$93,$A95-1921,'Report - ALL (DASHBOARD)'!$W$4) -> 2690.374979 | E95: =INDEX('Compile Data'!$CP$12:$DM$93,$A95-1921,'Report - ALL (DASHBOARD)'!$W$4) -> 2690.349732 | F95: =INDEX('Compile Data'!$DP$12:$EM$93,$A95-1921,'Report - ALL (DASHBOARD)'!$W$4) -> 2690.186937 | G95: =INDEX('Compile Data'!$EP$12:$FM$93,$A95-1921,'Report - ALL (DASHBOARD)'!$W$4) -> 2689.37218 | H95: =INDEX('Compile Data'!$FP$12:$GM$93,$A95-1921,'Report - ALL (DASHBOARD)'!$W$4) -> 2690.052398 | I95: =INDEX('Compile Data'!$GP$12:$HM$93,$A95-1921,'Report - ALL (DASHBOARD)'!$W$4) -> 2690.146364 | J95: =INDEX('Compile Data'!$HP$12:$IM$93,$A95-1921,'Report - ALL (DASHBOARD)'!$W$4) -> 2690.338048 | K95: =INDEX('Compile Data'!$IP$12:$JM$93,$A95-1921,'Report - ALL (DASHBOARD)'!$W$4) -> 2690.314243 | O95: 64 | P95: 0.7777777778 | Q95: =INDEX('Compile Data'!$P$123:$AM$204,$O95,'Report - ALL (DASHBOARD)'!$W$4) -> 2637.760857 | R95: =INDEX('Compile Data'!$AP$123:$BM$204,$O95,'Report - ALL (DASHBOARD)'!$W$4) -> 2689.995797 | S95: =INDEX('Compile Data'!$BP$123:$CM$204,$O95,'Report - ALL (DASHBOARD)'!$W$4) -> 2690.374979 | T95: =INDEX('Compile Data'!$CP$123:$DM$204,$O95,'Report - ALL (DASHBOARD)'!$W$4) -> 2690.349732 | U95: =INDEX('Compile Data'!$DP$123:$EM$204,$O95,'Report - ALL (DASHBOARD)'!$W$4) -> 2690.186937 | V95: =INDEX('Compile Data'!$EP$123:$FM$204,$O95,'Report - ALL (DASHBOARD)'!$W$4) -> 2712.007309 | W95: =INDEX('Compile Data'!$FP$123:$GM$204,$O95,'Report - ALL (DASHBOARD)'!$W$4) -> 2677.389948 | X95: =INDEX('Compile Data'!$GP$123:$HM$204,$O95,'Report - ALL (DASHBOARD)'!$W$4) -> 2670.234378 | Y95: =INDEX('Compile Data'!$HP$123:$IM$204,$O95,'Report - ALL (DASHBOARD)'!$W$4) -> 2690.338048 | Z95: =INDEX('Compile Data'!$IP$123:$JM$204,$O95,'Report - ALL (DASHBOARD)'!$W$4) -> 2690.314243
A96: 1986 | B96: =INDEX('Compile Data'!$P$12:$AM$93,$A96-1921,'Report - ALL (DASHBOARD)'!$W$4) -> 3158.645217 | C96: =INDEX('Compile Data'!$AP$12:$BM$93,$A96-1921,'Report - ALL (DASHBOARD)'!$W$4) -> 3181.792347 | D96: =INDEX('Compile Data'!$BP$12:$CM$93,$A96-1921,'Report - ALL (DASHBOARD)'!$W$4) -> 3181.91443 | E96: =INDEX('Compile Data'!$CP$12:$DM$93,$A96-1921,'Report - ALL (DASHBOARD)'!$W$4) -> 3181.881217 | F96: =INDEX('Compile Data'!$DP$12:$EM$93,$A96-1921,'Report - ALL (DASHBOARD)'!$W$4) -> 3181.894212 | G96: =INDEX('Compile Data'!$EP$12:$FM$93,$A96-1921,'Report - ALL (DASHBOARD)'!$W$4) -> 3181.168701 | H96: =INDEX('Compile Data'!$FP$12:$GM$93,$A96-1921,'Report - ALL (DASHBOARD)'!$W$4) -> 3181.618096 | I96: =INDEX('Compile Data'!$GP$12:$HM$93,$A96-1921,'Report - ALL (DASHBOARD)'!$W$4) -> 3181.870753 | J96: =INDEX('Compile Data'!$HP$12:$IM$93,$A96-1921,'Report - ALL (DASHBOARD)'!$W$4) -> 3182.151141 | K96: =INDEX('Compile Data'!$IP$12:$JM$93,$A96-1921,'Report - ALL (DASHBOARD)'!$W$4) -> 3181.813793 | O96: 65 | P96: =(O96-1)/81 -> 0.7901234568 | Q96: =INDEX('Compile Data'!$P$123:$AM$204,$O96,'Report - ALL (DASHBOARD)'!$W$4) -> 2634.760748 | R96: =INDEX('Compile Data'!$AP$123:$BM$204,$O96,'Report - ALL (DASHBOARD)'!$W$4) -> 2668.722753 | S96: =INDEX('Compile Data'!$BP$123:$CM$204,$O96,'Report - ALL (DASHBOARD)'!$W$4) -> 2671.377508 | T96: =INDEX('Compile Data'!$CP$123:$DM$204,$O96,'Report - ALL (DASHBOARD)'!$W$4) -> 2671.334191 | U96: =INDEX('Compile Data'!$DP$123:$EM$204,$O96,'Report - ALL (DASHBOARD)'!$W$4) -> 2679.900236 | V96: =INDEX('Compile Data'!$EP$123:$FM$204,$O96,'Report - ALL (DASHBOARD)'!$W$4) -> 2689.37218 | W96: =INDEX('Compile Data'!$FP$123:$GM$204,$O96,'Report - ALL (DASHBOARD)'!$W$4) -> 2670.269884 | X96: =INDEX('Compile Data'!$GP$123:$HM$204,$O96,'Report - ALL (DASHBOARD)'!$W$4) -> 2657.416554 | Y96: =INDEX('Compile Data'!$HP$123:$IM$204,$O96,'Report - ALL (DASHBOARD)'!$W$4) -> 2677.6048 | Z96: =INDEX('Compile Data'!$IP$123:$JM$204,$O96,'Report - ALL (DASHBOARD)'!$W$4) -> 2677.59976
A97: 1987 | B97: =INDEX('Compile Data'!$P$12:$AM$93,$A97-1921,'Report - ALL (DASHBOARD)'!$W$4) -> 2453.523125 | C97: =INDEX('Compile Data'!$AP$12:$BM$93,$A97-1921,'Report - ALL (DASHBOARD)'!$W$4) -> 2287.965681 | D97: =INDEX('Compile Data'!$BP$12:$CM$93,$A97-1921,'Report - ALL (DASHBOARD)'!$W$4) -> 2304.604467 | E97: =INDEX('Compile Data'!$CP$12:$DM$93,$A97-1921,'Report - ALL (DASHBOARD)'!$W$4) -> 2304.553264 | F97: =INDEX('Compile Data'!$DP$12:$EM$93,$A97-1921,'Report - ALL (DASHBOARD)'!$W$4) -> 2287.75964 | G97: =INDEX('Compile Data'!$EP$12:$FM$93,$A97-1921,'Report - ALL (DASHBOARD)'!$W$4) -> 2283.651844 | H97: =INDEX('Compile Data'!$FP$12:$GM$93,$A97-1921,'Report - ALL (DASHBOARD)'!$W$4) -> 2293.824577 | I97: =INDEX('Compile Data'!$GP$12:$HM$93,$A97-1921,'Report - ALL (DASHBOARD)'!$W$4) -> 2298.71373 | J97: =INDEX('Compile Data'!$HP$12:$IM$93,$A97-1921,'Report - ALL (DASHBOARD)'!$W$4) -> 2308.795458 | K97: =INDEX('Compile Data'!$IP$12:$JM$93,$A97-1921,'Report - ALL (DASHBOARD)'!$W$4) -> 2304.392482 | O97: 66 | P97: 0.8024691358 | Q97: =INDEX('Compile Data'!$P$123:$AM$204,$O97,'Report - ALL (DASHBOARD)'!$W$4) -> 2609.23813 | R97: =INDEX('Compile Data'!$AP$123:$BM$204,$O97,'Report - ALL (DASHBOARD)'!$W$4) -> 2653.842406 | S97: =INDEX('Compile Data'!$BP$123:$CM$204,$O97,'Report - ALL (DASHBOARD)'!$W$4) -> 2659.482165 | T97: =INDEX('Compile Data'!$CP$123:$DM$204,$O97,'Report - ALL (DASHBOARD)'!$W$4) -> 2670.936694 | U97: =INDEX('Compile Data'!$DP$123:$EM$204,$O97,'Report - ALL (DASHBOARD)'!$W$4) -> 2622.640338 | V97: =INDEX('Compile Data'!$EP$123:$FM$204,$O97,'Report - ALL (DASHBOARD)'!$W$4) -> 2678.835178 | W97: =INDEX('Compile Data'!$FP$123:$GM$204,$O97,'Report - ALL (DASHBOARD)'!$W$4) -> 2662.99029 | X97: =INDEX('Compile Data'!$GP$123:$HM$204,$O97,'Report - ALL (DASHBOARD)'!$W$4) -> 2622.635093 | Y97: =INDEX('Compile Data'!$HP$123:$IM$204,$O97,'Report - ALL (DASHBOARD)'!$W$4) -> 2666.593916 | Z97: =INDEX('Compile Data'!$IP$123:$JM$204,$O97,'Report - ALL (DASHBOARD)'!$W$4) -> 2670.993834
A98: =A97+1 -> 1988 | B98: =INDEX('Compile Data'!$P$12:$AM$93,$A98-1921,'Report - ALL (DASHBOARD)'!$W$4) -> 2274.009432 | C98: =INDEX('Compile Data'!$AP$12:$BM$93,$A98-1921,'Report - ALL (DASHBOARD)'!$W$4) -> 2160.492235 | D98: =INDEX('Compile Data'!$BP$12:$CM$93,$A98-1921,'Report - ALL (DASHBOARD)'!$W$4) -> 2168.538132 | E98: =INDEX('Compile Data'!$CP$12:$DM$93,$A98-1921,'Report - ALL (DASHBOARD)'!$W$4) -> 2168.479399 | F98: =INDEX('Compile Data'!$DP$12:$EM$93,$A98-1921,'Report - ALL (DASHBOARD)'!$W$4) -> 2172.139354 | G98: =INDEX('Compile Data'!$EP$12:$FM$93,$A98-1921,'Report - ALL (DASHBOARD)'!$W$4) -> 2169.476587 | H98: =INDEX('Compile Data'!$FP$12:$GM$93,$A98-1921,'Report - ALL (DASHBOARD)'!$W$4) -> 2186.060262 | I98: =INDEX('Compile Data'!$GP$12:$HM$93,$A98-1921,'Report - ALL (DASHBOARD)'!$W$4) -> 2184.757272 | J98: =INDEX('Compile Data'!$HP$12:$IM$93,$A98-1921,'Report - ALL (DASHBOARD)'!$W$4) -> 2170.913707 | K98: =INDEX('Compile Data'!$IP$12:$JM$93,$A98-1921,'Report - ALL (DASHBOARD)'!$W$4) -> 2168.327283 | O98: 67 | P98: 0.8148148148 | Q98: =INDEX('Compile Data'!$P$123:$AM$204,$O98,'Report - ALL (DASHBOARD)'!$W$4) -> 2573.693903 | R98: =INDEX('Compile Data'!$AP$123:$BM$204,$O98,'Report - ALL (DASHBOARD)'!$W$4) -> 2622.633482 | S98: =INDEX('Compile Data'!$BP$123:$CM$204,$O98,'Report - ALL (DASHBOARD)'!$W$4) -> 2649.381519 | T98: =INDEX('Compile Data'!$CP$123:$DM$204,$O98,'Report - ALL (DASHBOARD)'!$W$4) -> 2649.372575 | U98: =INDEX('Compile Data'!$DP$123:$EM$204,$O98,'Report - ALL (DASHBOARD)'!$W$4) -> 2617.691597 | V98: =INDEX('Compile Data'!$EP$123:$FM$204,$O98,'Report - ALL (DASHBOARD)'!$W$4) -> 2622.646256 | W98: =INDEX('Compile Data'!$FP$123:$GM$204,$O98,'Report - ALL (DASHBOARD)'!$W$4) -> 2622.640616 | X98: =INDEX('Compile Data'!$GP$123:$HM$204,$O98,'Report - ALL (DASHBOARD)'!$W$4) -> 2619.565844 | Y98: =INDEX('Compile Data'!$HP$123:$IM$204,$O98,'Report - ALL (DASHBOARD)'!$W$4) -> 2649.186298 | Z98: =INDEX('Compile Data'!$IP$123:$JM$204,$O98,'Report - ALL (DASHBOARD)'!$W$4) -> 2649.155029
A99: 1989 | B99: =INDEX('Compile Data'!$P$12:$AM$93,$A99-1921,'Report - ALL (DASHBOARD)'!$W$4) -> 2900.669761 | C99: =INDEX('Compile Data'!$AP$12:$BM$93,$A99-1921,'Report - ALL (DASHBOARD)'!$W$4) -> 2927.292621 | D99: =INDEX('Compile Data'!$BP$12:$CM$93,$A99-1921,'Report - ALL (DASHBOARD)'!$W$4) -> 2935.423261 | E99: =INDEX('Compile Data'!$CP$12:$DM$93,$A99-1921,'Report - ALL (DASHBOARD)'!$W$4) -> 2935.412144 | F99: =INDEX('Compile Data'!$DP$12:$EM$93,$A99-1921,'Report - ALL (DASHBOARD)'!$W$4) -> 2922.893067 | G99: =INDEX('Compile Data'!$EP$12:$FM$93,$A99-1921,'Report - ALL (DASHBOARD)'!$W$4) -> 2925.208771 | H99: =INDEX('Compile Data'!$FP$12:$GM$93,$A99-1921,'Report - ALL (DASHBOARD)'!$W$4) -> 2943.445129 | I99: =INDEX('Compile Data'!$GP$12:$HM$93,$A99-1921,'Report - ALL (DASHBOARD)'!$W$4) -> 2940.304201 | J99: =INDEX('Compile Data'!$HP$12:$IM$93,$A99-1921,'Report - ALL (DASHBOARD)'!$W$4) -> 2934.440394 | K99: =INDEX('Compile Data'!$IP$12:$JM$93,$A99-1921,'Report - ALL (DASHBOARD)'!$W$4) -> 2935.382311 | O99: 68 | P99: 0.8271604938 | Q99: =INDEX('Compile Data'!$P$123:$AM$204,$O99,'Report - ALL (DASHBOARD)'!$W$4) -> 2542.848237 | R99: =INDEX('Compile Data'!$AP$123:$BM$204,$O99,'Report - ALL (DASHBOARD)'!$W$4) -> 2614.01502 | S99: =INDEX('Compile Data'!$BP$123:$CM$204,$O99,'Report - ALL (DASHBOARD)'!$W$4) -> 2622.648057 | T99: =INDEX('Compile Data'!$CP$123:$DM$204,$O99,'Report - ALL (DASHBOARD)'!$W$4) -> 2622.710483 | U99: =INDEX('Compile Data'!$DP$123:$EM$204,$O99,'Report - ALL (DASHBOARD)'!$W$4) -> 2612.110742 | V99: =INDEX('Compile Data'!$EP$123:$FM$204,$O99,'Report - ALL (DASHBOARD)'!$W$4) -> 2614.687776 | W99: =INDEX('Compile Data'!$FP$123:$GM$204,$O99,'Report - ALL (DASHBOARD)'!$W$4) -> 2616.473946 | X99: =INDEX('Compile Data'!$GP$123:$HM$204,$O99,'Report - ALL (DASHBOARD)'!$W$4) -> 2619.257743 | Y99: =INDEX('Compile Data'!$HP$123:$IM$204,$O99,'Report - ALL (DASHBOARD)'!$W$4) -> 2622.648296 | Z99: =INDEX('Compile Data'!$IP$123:$JM$204,$O99,'Report - ALL (DASHBOARD)'!$W$4) -> 2622.64838
A100: 1990 | B100: =INDEX('Compile Data'!$P$12:$AM$93,$A100-1921,'Report - ALL (DASHBOARD)'!$W$4) -> 2634.760748 | C100: =INDEX('Compile Data'!$AP$12:$BM$93,$A100-1921,'Report - ALL (DASHBOARD)'!$W$4) -> 2712.282039 | D100: =INDEX('Compile Data'!$BP$12:$CM$93,$A100-1921,'Report - ALL (DASHBOARD)'!$W$4) -> 2722.363209 | E100: =INDEX('Compile Data'!$CP$12:$DM$93,$A100-1921,'Report - ALL (DASHBOARD)'!$W$4) -> 2722.316387 | F100: =INDEX('Compile Data'!$DP$12:$EM$93,$A100-1921,'Report - ALL (DASHBOARD)'!$W$4) -> 2706.982834 | G100: =INDEX('Compile Data'!$EP$12:$FM$93,$A100-1921,'Report - ALL (DASHBOARD)'!$W$4) -> 2712.007309 | H100: =INDEX('Compile Data'!$FP$12:$GM$93,$A100-1921,'Report - ALL (DASHBOARD)'!$W$4) -> 2733.433014 | I100: =INDEX('Compile Data'!$GP$12:$HM$93,$A100-1921,'Report - ALL (DASHBOARD)'!$W$4) -> 2723.969042 | J100: =INDEX('Compile Data'!$HP$12:$IM$93,$A100-1921,'Report - ALL (DASHBOARD)'!$W$4) -> 2724.043197 | K100: =INDEX('Compile Data'!$IP$12:$JM$93,$A100-1921,'Report - ALL (DASHBOARD)'!$W$4) -> 2722.274048 | O100: 69 | P100: 0.8395061728 | Q100: =INDEX('Compile Data'!$P$123:$AM$204,$O100,'Report - ALL (DASHBOARD)'!$W$4) -> 2532.002882 | R100: =INDEX('Compile Data'!$AP$123:$BM$204,$O100,'Report - ALL (DASHBOARD)'!$W$4) -> 2612.173636 | S100: =INDEX('Compile Data'!$BP$123:$CM$204,$O100,'Report - ALL (DASHBOARD)'!$W$4) -> 2618.085661 | T100: =INDEX('Compile Data'!$CP$123:$DM$204,$O100,'Report - ALL (DASHBOARD)'!$W$4) -> 2622.648091 | U100: =INDEX('Compile Data'!$DP$123:$EM$204,$O100,'Report - ALL (DASHBOARD)'!$W$4) -> 2576.872469 | V100: =INDEX('Compile Data'!$EP$123:$FM$204,$O100,'Report - ALL (DASHBOARD)'!$W$4) -> 2611.07259 | W100: =INDEX('Compile Data'!$FP$123:$GM$204,$O100,'Report - ALL (DASHBOARD)'!$W$4) -> 2612.167019 | X100: =INDEX('Compile Data'!$GP$123:$HM$204,$O100,'Report - ALL (DASHBOARD)'!$W$4) -> 2612.152511 | Y100: =INDEX('Compile Data'!$HP$123:$IM$204,$O100,'Report - ALL (DASHBOARD)'!$W$4) -> 2616.251609 | Z100: =INDEX('Compile Data'!$IP$123:$JM$204,$O100,'Report - ALL (DASHBOARD)'!$W$4) -> 2616.251641
A101: 1991 | B101: =INDEX('Compile Data'!$P$12:$AM$93,$A101-1921,'Report - ALL (DASHBOARD)'!$W$4) -> 1960.766191 | C101: =INDEX('Compile Data'!$AP$12:$BM$93,$A101-1921,'Report - ALL (DASHBOARD)'!$W$4) -> 2059.127258 | D101: =INDEX('Compile Data'!$BP$12:$CM$93,$A101-1921,'Report - ALL (DASHBOARD)'!$W$4) -> 2078.240572 | E101: =INDEX('Compile Data'!$CP$12:$DM$93,$A101-1921,'Report - ALL (DASHBOARD)'!$W$4) -> 2078.1598 | F101: =INDEX('Compile Data'!$DP$12:$EM$93,$A101-1921,'Report - ALL (DASHBOARD)'!$W$4) -> 2056.203273 | G101: =INDEX('Compile Data'!$EP$12:$FM$93,$A101-1921,'Report - ALL (DASHBOARD)'!$W$4) -> 2059.724614 | H101: =INDEX('Compile Data'!$FP$12:$GM$93,$A101-1921,'Report - ALL (DASHBOARD)'!$W$4) -> 1994.500638 | I101: =INDEX('Compile Data'!$GP$12:$HM$93,$A101-1921,'Report - ALL (DASHBOARD)'!$W$4) -> 2071.316277 | J101: =INDEX('Compile Data'!$HP$12:$IM$93,$A101-1921,'Report - ALL (DASHBOARD)'!$W$4) -> 2078.41597 | K101: =INDEX('Compile Data'!$IP$12:$JM$93,$A101-1921,'Report - ALL (DASHBOARD)'!$W$4) -> 2075.557677 | O101: 70 | P101: 0.8518518519 | Q101: =INDEX('Compile Data'!$P$123:$AM$204,$O101,'Report - ALL (DASHBOARD)'!$W$4) -> 2522.828836 | R101: =INDEX('Compile Data'!$AP$123:$BM$204,$O101,'Report - ALL (DASHBOARD)'!$W$4) -> 2583.345733 | S101: =INDEX('Compile Data'!$BP$123:$CM$204,$O101,'Report - ALL (DASHBOARD)'!$W$4) -> 2612.304672 | T101: =INDEX('Compile Data'!$CP$123:$DM$204,$O101,'Report - ALL (DASHBOARD)'!$W$4) -> 2612.287236 | U101: =INDEX('Compile Data'!$DP$123:$EM$204,$O101,'Report - ALL (DASHBOARD)'!$W$4) -> 2572.534044 | V101: =INDEX('Compile Data'!$EP$123:$FM$204,$O101,'Report - ALL (DASHBOARD)'!$W$4) -> 2579.005514 | W101: =INDEX('Compile Data'!$FP$123:$GM$204,$O101,'Report - ALL (DASHBOARD)'!$W$4) -> 2584.22942 | X101: =INDEX('Compile Data'!$GP$123:$HM$204,$O101,'Report - ALL (DASHBOARD)'!$W$4) -> 2583.335626 | Y101: =INDEX('Compile Data'!$HP$123:$IM$204,$O101,'Report - ALL (DASHBOARD)'!$W$4) -> 2612.188922 | Z101: =INDEX('Compile Data'!$IP$123:$JM$204,$O101,'Report - ALL (DASHBOARD)'!$W$4) -> 2612.192649
A102: 1992 | B102: =INDEX('Compile Data'!$P$12:$AM$93,$A102-1921,'Report - ALL (DASHBOARD)'!$W$4) -> 1621.600701 | C102: =INDEX('Compile Data'!$AP$12:$BM$93,$A102-1921,'Report - ALL (DASHBOARD)'!$W$4) -> 1744.003635 | D102: =INDEX('Compile Data'!$BP$12:$CM$93,$A102-1921,'Report - ALL (DASHBOARD)'!$W$4) -> 1766.689799 | E102: =INDEX('Compile Data'!$CP$12:$DM$93,$A102-1921,'Report - ALL (DASHBOARD)'!$W$4) -> 1766.589433 | F102: =INDEX('Compile Data'!$DP$12:$EM$93,$A102-1921,'Report - ALL (DASHBOARD)'!$W$4) -> 1719.292638 | G102: =INDEX('Compile Data'!$EP$12:$FM$93,$A102-1921,'Report - ALL (DASHBOARD)'!$W$4) -> 1735.963478 | H102: =INDEX('Compile Data'!$FP$12:$GM$93,$A102-1921,'Report - ALL (DASHBOARD)'!$W$4) -> 1617.118987 | I102: =INDEX('Compile Data'!$GP$12:$HM$93,$A102-1921,'Report - ALL (DASHBOARD)'!$W$4) -> 1727.089301 | J102: =INDEX('Compile Data'!$HP$12:$IM$93,$A102-1921,'Report - ALL (DASHBOARD)'!$W$4) -> 1755.653419 | K102: =INDEX('Compile Data'!$IP$12:$JM$93,$A102-1921,'Report - ALL (DASHBOARD)'!$W$4) -> 1750.884681 | O102: 71 | P102: 0.8641975309 | Q102: =INDEX('Compile Data'!$P$123:$AM$204,$O102,'Report - ALL (DASHBOARD)'!$W$4) -> 2453.523125 | R102: =INDEX('Compile Data'!$AP$123:$BM$204,$O102,'Report - ALL (DASHBOARD)'!$W$4) -> 2482.202405 | S102: =INDEX('Compile Data'!$BP$123:$CM$204,$O102,'Report - ALL (DASHBOARD)'!$W$4) -> 2552.230879 | T102: =INDEX('Compile Data'!$CP$123:$DM$204,$O102,'Report - ALL (DASHBOARD)'!$W$4) -> 2536.76943 | U102: =INDEX('Compile Data'!$DP$123:$EM$204,$O102,'Report - ALL (DASHBOARD)'!$W$4) -> 2287.75964 | V102: =INDEX('Compile Data'!$EP$123:$FM$204,$O102,'Report - ALL (DASHBOARD)'!$W$4) -> 2577.677463 | W102: =INDEX('Compile Data'!$FP$123:$GM$204,$O102,'Report - ALL (DASHBOARD)'!$W$4) -> 2480.878176 | X102: =INDEX('Compile Data'!$GP$123:$HM$204,$O102,'Report - ALL (DASHBOARD)'!$W$4) -> 2389.646758 | Y102: =INDEX('Compile Data'!$HP$123:$IM$204,$O102,'Report - ALL (DASHBOARD)'!$W$4) -> 2574.99721 | Z102: =INDEX('Compile Data'!$IP$123:$JM$204,$O102,'Report - ALL (DASHBOARD)'!$W$4) -> 2552.39127
A103: 1993 | B103: =INDEX('Compile Data'!$P$12:$AM$93,$A103-1921,'Report - ALL (DASHBOARD)'!$W$4) -> 3266.772226 | C103: =INDEX('Compile Data'!$AP$12:$BM$93,$A103-1921,'Report - ALL (DASHBOARD)'!$W$4) -> 3296.894297 | D103: =INDEX('Compile Data'!$BP$12:$CM$93,$A103-1921,'Report - ALL (DASHBOARD)'!$W$4) -> 3291.603804 | E103: =INDEX('Compile Data'!$CP$12:$DM$93,$A103-1921,'Report - ALL (DASHBOARD)'!$W$4) -> 3315.449762 | F103: =INDEX('Compile Data'!$DP$12:$EM$93,$A103-1921,'Report - ALL (DASHBOARD)'!$W$4) -> 3291.186706 | G103: =INDEX('Compile Data'!$EP$12:$FM$93,$A103-1921,'Report - ALL (DASHBOARD)'!$W$4) -> 3295.798156 | H103: =INDEX('Compile Data'!$FP$12:$GM$93,$A103-1921,'Report - ALL (DASHBOARD)'!$W$4) -> 3290.583518 | I103: =INDEX('Compile Data'!$GP$12:$HM$93,$A103-1921,'Report - ALL (DASHBOARD)'!$W$4) -> 3290.832318 | J103: =INDEX('Compile Data'!$HP$12:$IM$93,$A103-1921,'Report - ALL (DASHBOARD)'!$W$4) -> 3305.959226 | K103: =INDEX('Compile Data'!$IP$12:$JM$93,$A103-1921,'Report - ALL (DASHBOARD)'!$W$4) -> 3315.536752 | O103: 72 | P103: 0.8765432099 | Q103: =INDEX('Compile Data'!$P$123:$AM$204,$O103,'Report - ALL (DASHBOARD)'!$W$4) -> 2433.015954 | R103: =INDEX('Compile Data'!$AP$123:$BM$204,$O103,'Report - ALL (DASHBOARD)'!$W$4) -> 2287.965681 | S103: =INDEX('Compile Data'!$BP$123:$CM$204,$O103,'Report - ALL (DASHBOARD)'!$W$4) -> 2304.604467 | T103: =INDEX('Compile Data'!$CP$123:$DM$204,$O103,'Report - ALL (DASHBOARD)'!$W$4) -> 2304.553264 | U103: =INDEX('Compile Data'!$DP$123:$EM$204,$O103,'Report - ALL (DASHBOARD)'!$W$4) -> 2253.073764 | V103: =INDEX('Compile Data'!$EP$123:$FM$204,$O103,'Report - ALL (DASHBOARD)'!$W$4) -> 2283.651844 | W103: =INDEX('Compile Data'!$FP$123:$GM$204,$O103,'Report - ALL (DASHBOARD)'!$W$4) -> 2293.824577 | X103: =INDEX('Compile Data'!$GP$123:$HM$204,$O103,'Report - ALL (DASHBOARD)'!$W$4) -> 2298.71373 | Y103: =INDEX('Compile Data'!$HP$123:$IM$204,$O103,'Report - ALL (DASHBOARD)'!$W$4) -> 2308.795458 | Z103: =INDEX('Compile Data'!$IP$123:$JM$204,$O103,'Report - ALL (DASHBOARD)'!$W$4) -> 2304.392482
A104: 1994 | B104: =INDEX('Compile Data'!$P$12:$AM$93,$A104-1921,'Report - ALL (DASHBOARD)'!$W$4) -> 2542.848237 | C104: =INDEX('Compile Data'!$AP$12:$BM$93,$A104-1921,'Report - ALL (DASHBOARD)'!$W$4) -> 2734.265529 | D104: =INDEX('Compile Data'!$BP$12:$CM$93,$A104-1921,'Report - ALL (DASHBOARD)'!$W$4) -> 2659.482165 | E104: =INDEX('Compile Data'!$CP$12:$DM$93,$A104-1921,'Report - ALL (DASHBOARD)'!$W$4) -> 2670.936694 | F104: =INDEX('Compile Data'!$DP$12:$EM$93,$A104-1921,'Report - ALL (DASHBOARD)'!$W$4) -> 2572.534044 | G104: =INDEX('Compile Data'!$EP$12:$FM$93,$A104-1921,'Report - ALL (DASHBOARD)'!$W$4) -> 2718.5738 | H104: =INDEX('Compile Data'!$FP$12:$GM$93,$A104-1921,'Report - ALL (DASHBOARD)'!$W$4) -> 2677.389948 | I104: =INDEX('Compile Data'!$GP$12:$HM$93,$A104-1921,'Report - ALL (DASHBOARD)'!$W$4) -> 2619.257743 | J104: =INDEX('Compile Data'!$HP$12:$IM$93,$A104-1921,'Report - ALL (DASHBOARD)'!$W$4) -> 2666.593916 | K104: =INDEX('Compile Data'!$IP$12:$JM$93,$A104-1921,'Report - ALL (DASHBOARD)'!$W$4) -> 2670.993834 | O104: 73 | P104: 0.8888888889 | Q104: =INDEX('Compile Data'!$P$123:$AM$204,$O104,'Report - ALL (DASHBOARD)'!$W$4) -> 2274.009432 | R104: =INDEX('Compile Data'!$AP$123:$BM$204,$O104,'Report - ALL (DASHBOARD)'!$W$4) -> 2160.492235 | S104: =INDEX('Compile Data'!$BP$123:$CM$204,$O104,'Report - ALL (DASHBOARD)'!$W$4) -> 2168.538132 | T104: =INDEX('Compile Data'!$CP$123:$DM$204,$O104,'Report - ALL (DASHBOARD)'!$W$4) -> 2168.479399 | U104: =INDEX('Compile Data'!$DP$123:$EM$204,$O104,'Report - ALL (DASHBOARD)'!$W$4) -> 2172.139354 | V104: =INDEX('Compile Data'!$EP$123:$FM$204,$O104,'Report - ALL (DASHBOARD)'!$W$4) -> 2169.476587 | W104: =INDEX('Compile Data'!$FP$123:$GM$204,$O104,'Report - ALL (DASHBOARD)'!$W$4) -> 2186.060262 | X104: =INDEX('Compile Data'!$GP$123:$HM$204,$O104,'Report - ALL (DASHBOARD)'!$W$4) -> 2184.757272 | Y104: =INDEX('Compile Data'!$HP$123:$IM$204,$O104,'Report - ALL (DASHBOARD)'!$W$4) -> 2170.913707 | Z104: =INDEX('Compile Data'!$IP$123:$JM$204,$O104,'Report - ALL (DASHBOARD)'!$W$4) -> 2168.327283
A105: 1995 | B105: =INDEX('Compile Data'!$P$12:$AM$93,$A105-1921,'Report - ALL (DASHBOARD)'!$W$4) -> 3400 | C105: =INDEX('Compile Data'!$AP$12:$BM$93,$A105-1921,'Report - ALL (DASHBOARD)'!$W$4) -> 3400 | D105: =INDEX('Compile Data'!$BP$12:$CM$93,$A105-1921,'Report - ALL (DASHBOARD)'!$W$4) -> 3400 | E105: =INDEX('Compile Data'!$CP$12:$DM$93,$A105-1921,'Report - ALL (DASHBOARD)'!$W$4) -> 3400 | F105: =INDEX('Compile Data'!$DP$12:$EM$93,$A105-1921,'Report - ALL (DASHBOARD)'!$W$4) -> 3400 | G105: =INDEX('Compile Data'!$EP$12:$FM$93,$A105-1921,'Report - ALL (DASHBOARD)'!$W$4) -> 3400 | H105: =INDEX('Compile Data'!$FP$12:$GM$93,$A105-1921,'Report - ALL (DASHBOARD)'!$W$4) -> 3400 | I105: =INDEX('Compile Data'!$GP$12:$HM$93,$A105-1921,'Report - ALL (DASHBOARD)'!$W$4) -> 3400 | J105: =INDEX('Compile Data'!$HP$12:$IM$93,$A105-1921,'Report - ALL (DASHBOARD)'!$W$4) -> 3400 | K105: =INDEX('Compile Data'!$IP$12:$JM$93,$A105-1921,'Report - ALL (DASHBOARD)'!$W$4) -> 3400 | O105: 74 | P105: 0.9012345679 | Q105: =INDEX('Compile Data'!$P$123:$AM$204,$O105,'Report - ALL (DASHBOARD)'!$W$4) -> 2020.162497 | R105: =INDEX('Compile Data'!$AP$123:$BM$204,$O105,'Report - ALL (DASHBOARD)'!$W$4) -> 2106.591804 | S105: =INDEX('Compile Data'!$BP$123:$CM$204,$O105,'Report - ALL (DASHBOARD)'!$W$4) -> 2143.670996 | T105: =INDEX('Compile Data'!$CP$123:$DM$204,$O105,'Report - ALL (DASHBOARD)'!$W$4) -> 2143.702513 | U105: =INDEX('Compile Data'!$DP$123:$EM$204,$O105,'Report - ALL (DASHBOARD)'!$W$4) -> 2116.957697 | V105: =INDEX('Compile Data'!$EP$123:$FM$204,$O105,'Report - ALL (DASHBOARD)'!$W$4) -> 2126.162776 | W105: =INDEX('Compile Data'!$FP$123:$GM$204,$O105,'Report - ALL (DASHBOARD)'!$W$4) -> 2115.343552 | X105: =INDEX('Compile Data'!$GP$123:$HM$204,$O105,'Report - ALL (DASHBOARD)'!$W$4) -> 2108.412281 | Y105: =INDEX('Compile Data'!$HP$123:$IM$204,$O105,'Report - ALL (DASHBOARD)'!$W$4) -> 2143.938056 | Z105: =INDEX('Compile Data'!$IP$123:$JM$204,$O105,'Report - ALL (DASHBOARD)'!$W$4) -> 2144.017591
A106: 1996 | B106: =INDEX('Compile Data'!$P$12:$AM$93,$A106-1921,'Report - ALL (DASHBOARD)'!$W$4) -> 3400 | C106: =INDEX('Compile Data'!$AP$12:$BM$93,$A106-1921,'Report - ALL (DASHBOARD)'!$W$4) -> 3400 | D106: =INDEX('Compile Data'!$BP$12:$CM$93,$A106-1921,'Report - ALL (DASHBOARD)'!$W$4) -> 3400 | E106: =INDEX('Compile Data'!$CP$12:$DM$93,$A106-1921,'Report - ALL (DASHBOARD)'!$W$4) -> 3400 | F106: =INDEX('Compile Data'!$DP$12:$EM$93,$A106-1921,'Report - ALL (DASHBOARD)'!$W$4) -> 3400 | G106: =INDEX('Compile Data'!$EP$12:$FM$93,$A106-1921,'Report - ALL (DASHBOARD)'!$W$4) -> 3400 | H106: =INDEX('Compile Data'!$FP$12:$GM$93,$A106-1921,'Report - ALL (DASHBOARD)'!$W$4) -> 3400 | I106: =INDEX('Compile Data'!$GP$12:$HM$93,$A106-1921,'Report - ALL (DASHBOARD)'!$W$4) -> 3400 | J106: =INDEX('Compile Data'!$HP$12:$IM$93,$A106-1921,'Report - ALL (DASHBOARD)'!$W$4) -> 3400 | K106: =INDEX('Compile Data'!$IP$12:$JM$93,$A106-1921,'Report - ALL (DASHBOARD)'!$W$4) -> 3400 | O106: 75 | P106: 0.9135802469 | Q106: =INDEX('Compile Data'!$P$123:$AM$204,$O106,'Report - ALL (DASHBOARD)'!$W$4) -> 1960.766191 | R106: =INDEX('Compile Data'!$AP$123:$BM$204,$O106,'Report - ALL (DASHBOARD)'!$W$4) -> 2059.127258 | S106: =INDEX('Compile Data'!$BP$123:$CM$204,$O106,'Report - ALL (DASHBOARD)'!$W$4) -> 2078.240572 | T106: =INDEX('Compile Data'!$CP$123:$DM$204,$O106,'Report - ALL (DASHBOARD)'!$W$4) -> 2078.1598 | U106: =INDEX('Compile Data'!$DP$123:$EM$204,$O106,'Report - ALL (DASHBOARD)'!$W$4) -> 2056.203273 | V106: =INDEX('Compile Data'!$EP$123:$FM$204,$O106,'Report - ALL (DASHBOARD)'!$W$4) -> 2059.724614 | W106: =INDEX('Compile Data'!$FP$123:$GM$204,$O106,'Report - ALL (DASHBOARD)'!$W$4) -> 1994.500638 | X106: =INDEX('Compile Data'!$GP$123:$HM$204,$O106,'Report - ALL (DASHBOARD)'!$W$4) -> 2071.316277 | Y106: =INDEX('Compile Data'!$HP$123:$IM$204,$O106,'Report - ALL (DASHBOARD)'!$W$4) -> 2078.41597 | Z106: =INDEX('Compile Data'!$IP$123:$JM$204,$O106,'Report - ALL (DASHBOARD)'!$W$4) -> 2075.557677
A107: 1997 | B107: =INDEX('Compile Data'!$P$12:$AM$93,$A107-1921,'Report - ALL (DASHBOARD)'!$W$4) -> 2771.67479 | C107: =INDEX('Compile Data'!$AP$12:$BM$93,$A107-1921,'Report - ALL (DASHBOARD)'!$W$4) -> 2786.346756 | D107: =INDEX('Compile Data'!$BP$12:$CM$93,$A107-1921,'Report - ALL (DASHBOARD)'!$W$4) -> 2786.637976 | E107: =INDEX('Compile Data'!$CP$12:$DM$93,$A107-1921,'Report - ALL (DASHBOARD)'!$W$4) -> 2786.613043 | F107: =INDEX('Compile Data'!$DP$12:$EM$93,$A107-1921,'Report - ALL (DASHBOARD)'!$W$4) -> 2784.915013 | G107: =INDEX('Compile Data'!$EP$12:$FM$93,$A107-1921,'Report - ALL (DASHBOARD)'!$W$4) -> 2784.804589 | H107: =INDEX('Compile Data'!$FP$12:$GM$93,$A107-1921,'Report - ALL (DASHBOARD)'!$W$4) -> 2786.615351 | I107: =INDEX('Compile Data'!$GP$12:$HM$93,$A107-1921,'Report - ALL (DASHBOARD)'!$W$4) -> 2786.535414 | J107: =INDEX('Compile Data'!$HP$12:$IM$93,$A107-1921,'Report - ALL (DASHBOARD)'!$W$4) -> 2784.987375 | K107: =INDEX('Compile Data'!$IP$12:$JM$93,$A107-1921,'Report - ALL (DASHBOARD)'!$W$4) -> 2786.591859 | O107: 76 | P107: 0.9259259259 | Q107: =INDEX('Compile Data'!$P$123:$AM$204,$O107,'Report - ALL (DASHBOARD)'!$W$4) -> 1705.724077 | R107: =INDEX('Compile Data'!$AP$123:$BM$204,$O107,'Report - ALL (DASHBOARD)'!$W$4) -> 1744.003635 | S107: =INDEX('Compile Data'!$BP$123:$CM$204,$O107,'Report - ALL (DASHBOARD)'!$W$4) -> 1766.689799 | T107: =INDEX('Compile Data'!$CP$123:$DM$204,$O107,'Report - ALL (DASHBOARD)'!$W$4) -> 1766.589433 | U107: =INDEX('Compile Data'!$DP$123:$EM$204,$O107,'Report - ALL (DASHBOARD)'!$W$4) -> 1742.484656 | V107: =INDEX('Compile Data'!$EP$123:$FM$204,$O107,'Report - ALL (DASHBOARD)'!$W$4) -> 1749.969451 | W107: =INDEX('Compile Data'!$FP$123:$GM$204,$O107,'Report - ALL (DASHBOARD)'!$W$4) -> 1724.613747 | X107: =INDEX('Compile Data'!$GP$123:$HM$204,$O107,'Report - ALL (DASHBOARD)'!$W$4) -> 1727.089301 | Y107: =INDEX('Compile Data'!$HP$123:$IM$204,$O107,'Report - ALL (DASHBOARD)'!$W$4) -> 1770.986947 | Z107: =INDEX('Compile Data'!$IP$123:$JM$204,$O107,'Report - ALL (DASHBOARD)'!$W$4) -> 1769.738568
A108: 1998 | B108: =INDEX('Compile Data'!$P$12:$AM$93,$A108-1921,'Report - ALL (DASHBOARD)'!$W$4) -> 3400 | C108: =INDEX('Compile Data'!$AP$12:$BM$93,$A108-1921,'Report - ALL (DASHBOARD)'!$W$4) -> 3400 | D108: =INDEX('Compile Data'!$BP$12:$CM$93,$A108-1921,'Report - ALL (DASHBOARD)'!$W$4) -> 3400 | E108: =INDEX('Compile Data'!$CP$12:$DM$93,$A108-1921,'Report - ALL (DASHBOARD)'!$W$4) -> 3400 | F108: =INDEX('Compile Data'!$DP$12:$EM$93,$A108-1921,'Report - ALL (DASHBOARD)'!$W$4) -> 3400 | G108: =INDEX('Compile Data'!$EP$12:$FM$93,$A108-1921,'Report - ALL (DASHBOARD)'!$W$4) -> 3400 | H108: =INDEX('Compile Data'!$FP$12:$GM$93,$A108-1921,'Report - ALL (DASHBOARD)'!$W$4) -> 3400 | I108: =INDEX('Compile Data'!$GP$12:$HM$93,$A108-1921,'Report - ALL (DASHBOARD)'!$W$4) -> 3400 | J108: =INDEX('Compile Data'!$HP$12:$IM$93,$A108-1921,'Report - ALL (DASHBOARD)'!$W$4) -> 3400 | K108: =INDEX('Compile Data'!$IP$12:$JM$93,$A108-1921,'Report - ALL (DASHBOARD)'!$W$4) -> 3400 | O108: 77 | P108: 0.9382716049 | Q108: =INDEX('Compile Data'!$P$123:$AM$204,$O108,'Report - ALL (DASHBOARD)'!$W$4) -> 1621.600701 | R108: =INDEX('Compile Data'!$AP$123:$BM$204,$O108,'Report - ALL (DASHBOARD)'!$W$4) -> 1718.4424 | S108: =INDEX('Compile Data'!$BP$123:$CM$204,$O108,'Report - ALL (DASHBOARD)'!$W$4) -> 1718.315437 | T108: =INDEX('Compile Data'!$CP$123:$DM$204,$O108,'Report - ALL (DASHBOARD)'!$W$4) -> 1718.320371 | U108: =INDEX('Compile Data'!$DP$123:$EM$204,$O108,'Report - ALL (DASHBOARD)'!$W$4) -> 1719.292638 | V108: =INDEX('Compile Data'!$EP$123:$FM$204,$O108,'Report - ALL (DASHBOARD)'!$W$4) -> 1735.963478 | W108: =INDEX('Compile Data'!$FP$123:$GM$204,$O108,'Report - ALL (DASHBOARD)'!$W$4) -> 1617.118987 | X108: =INDEX('Compile Data'!$GP$123:$HM$204,$O108,'Report - ALL (DASHBOARD)'!$W$4) -> 1720.147269 | Y108: =INDEX('Compile Data'!$HP$123:$IM$204,$O108,'Report - ALL (DASHBOARD)'!$W$4) -> 1755.653419 | Z108: =INDEX('Compile Data'!$IP$123:$JM$204,$O108,'Report - ALL (DASHBOARD)'!$W$4) -> 1750.884681
A109: 1999 | B109: =INDEX('Compile Data'!$P$12:$AM$93,$A109-1921,'Report - ALL (DASHBOARD)'!$W$4) -> 3400 | C109: =INDEX('Compile Data'!$AP$12:$BM$93,$A109-1921,'Report - ALL (DASHBOARD)'!$W$4) -> 3400 | D109: =INDEX('Compile Data'!$BP$12:$CM$93,$A109-1921,'Report - ALL (DASHBOARD)'!$W$4) -> 3400 | E109: =INDEX('Compile Data'!$CP$12:$DM$93,$A109-1921,'Report - ALL (DASHBOARD)'!$W$4) -> 3400 | F109: =INDEX('Compile Data'!$DP$12:$EM$93,$A109-1921,'Report - ALL (DASHBOARD)'!$W$4) -> 3400 | G109: =INDEX('Compile Data'!$EP$12:$FM$93,$A109-1921,'Report - ALL (DASHBOARD)'!$W$4) -> 3400 | H109: =INDEX('Compile Data'!$FP$12:$GM$93,$A109-1921,'Report - ALL (DASHBOARD)'!$W$4) -> 3400 | I109: =INDEX('Compile Data'!$GP$12:$HM$93,$A109-1921,'Report - ALL (DASHBOARD)'!$W$4) -> 3400 | J109: =INDEX('Compile Data'!$HP$12:$IM$93,$A109-1921,'Report - ALL (DASHBOARD)'!$W$4) -> 3400 | K109: =INDEX('Compile Data'!$IP$12:$JM$93,$A109-1921,'Report - ALL (DASHBOARD)'!$W$4) -> 3400 | O109: 78 | P109: 0.950617284 | Q109: =INDEX('Compile Data'!$P$123:$AM$204,$O109,'Report - ALL (DASHBOARD)'!$W$4) -> 1518.788968 | R109: =INDEX('Compile Data'!$AP$123:$BM$204,$O109,'Report - ALL (DASHBOARD)'!$W$4) -> 1551.20908 | S109: =INDEX('Compile Data'!$BP$123:$CM$204,$O109,'Report - ALL (DASHBOARD)'!$W$4) -> 1568.618112 | T109: =INDEX('Compile Data'!$CP$123:$DM$204,$O109,'Report - ALL (DASHBOARD)'!$W$4) -> 1552.669494 | U109: =INDEX('Compile Data'!$DP$123:$EM$204,$O109,'Report - ALL (DASHBOARD)'!$W$4) -> 1601.572722 | V109: =INDEX('Compile Data'!$EP$123:$FM$204,$O109,'Report - ALL (DASHBOARD)'!$W$4) -> 1608.464582 | W109: =INDEX('Compile Data'!$FP$123:$GM$204,$O109,'Report - ALL (DASHBOARD)'!$W$4) -> 1549.53334 | X109: =INDEX('Compile Data'!$GP$123:$HM$204,$O109,'Report - ALL (DASHBOARD)'!$W$4) -> 1548.391693 | Y109: =INDEX('Compile Data'!$HP$123:$IM$204,$O109,'Report - ALL (DASHBOARD)'!$W$4) -> 1615.101653 | Z109: =INDEX('Compile Data'!$IP$123:$JM$204,$O109,'Report - ALL (DASHBOARD)'!$W$4) -> 1598.866034
A110: 2000 | B110: =INDEX('Compile Data'!$P$12:$AM$93,$A110-1921,'Report - ALL (DASHBOARD)'!$W$4) -> 3200 | C110: =INDEX('Compile Data'!$AP$12:$BM$93,$A110-1921,'Report - ALL (DASHBOARD)'!$W$4) -> 3271.739599 | D110: =INDEX('Compile Data'!$BP$12:$CM$93,$A110-1921,'Report - ALL (DASHBOARD)'!$W$4) -> 3270.966964 | E110: =INDEX('Compile Data'!$CP$12:$DM$93,$A110-1921,'Report - ALL (DASHBOARD)'!$W$4) -> 3271.288271 | F110: =INDEX('Compile Data'!$DP$12:$EM$93,$A110-1921,'Report - ALL (DASHBOARD)'!$W$4) -> 3270.634211 | G110: =INDEX('Compile Data'!$EP$12:$FM$93,$A110-1921,'Report - ALL (DASHBOARD)'!$W$4) -> 3270.495024 | H110: =INDEX('Compile Data'!$FP$12:$GM$93,$A110-1921,'Report - ALL (DASHBOARD)'!$W$4) -> 3271.808862 | I110: =INDEX('Compile Data'!$GP$12:$HM$93,$A110-1921,'Report - ALL (DASHBOARD)'!$W$4) -> 3271.778529 | J110: =INDEX('Compile Data'!$HP$12:$IM$93,$A110-1921,'Report - ALL (DASHBOARD)'!$W$4) -> 3270.943271 | K110: =INDEX('Compile Data'!$IP$12:$JM$93,$A110-1921,'Report - ALL (DASHBOARD)'!$W$4) -> 3271.27258 | O110: 79 | P110: 0.962962963 | Q110: =INDEX('Compile Data'!$P$123:$AM$204,$O110,'Report - ALL (DASHBOARD)'!$W$4) -> 1350.069812 | R110: =INDEX('Compile Data'!$AP$123:$BM$204,$O110,'Report - ALL (DASHBOARD)'!$W$4) -> 1385.799051 | S110: =INDEX('Compile Data'!$BP$123:$CM$204,$O110,'Report - ALL (DASHBOARD)'!$W$4) -> 1399.655446 | T110: =INDEX('Compile Data'!$CP$123:$DM$204,$O110,'Report - ALL (DASHBOARD)'!$W$4) -> 1395.298583 | U110: =INDEX('Compile Data'!$DP$123:$EM$204,$O110,'Report - ALL (DASHBOARD)'!$W$4) -> 1379.440265 | V110: =INDEX('Compile Data'!$EP$123:$FM$204,$O110,'Report - ALL (DASHBOARD)'!$W$4) -> 1378.321295 | W110: =INDEX('Compile Data'!$FP$123:$GM$204,$O110,'Report - ALL (DASHBOARD)'!$W$4) -> 1385.006759 | X110: =INDEX('Compile Data'!$GP$123:$HM$204,$O110,'Report - ALL (DASHBOARD)'!$W$4) -> 1385.006758 | Y110: =INDEX('Compile Data'!$HP$123:$IM$204,$O110,'Report - ALL (DASHBOARD)'!$W$4) -> 1379.450006 | Z110: =INDEX('Compile Data'!$IP$123:$JM$204,$O110,'Report - ALL (DASHBOARD)'!$W$4) -> 1379.450116
A111: 2001 | B111: =INDEX('Compile Data'!$P$12:$AM$93,$A111-1921,'Report - ALL (DASHBOARD)'!$W$4) -> 2792.208948 | C111: =INDEX('Compile Data'!$AP$12:$BM$93,$A111-1921,'Report - ALL (DASHBOARD)'!$W$4) -> 2905.120951 | D111: =INDEX('Compile Data'!$BP$12:$CM$93,$A111-1921,'Report - ALL (DASHBOARD)'!$W$4) -> 2915.035478 | E111: =INDEX('Compile Data'!$CP$12:$DM$93,$A111-1921,'Report - ALL (DASHBOARD)'!$W$4) -> 2915.221125 | F111: =INDEX('Compile Data'!$DP$12:$EM$93,$A111-1921,'Report - ALL (DASHBOARD)'!$W$4) -> 2912.700756 | G111: =INDEX('Compile Data'!$EP$12:$FM$93,$A111-1921,'Report - ALL (DASHBOARD)'!$W$4) -> 2911.64178 | H111: =INDEX('Compile Data'!$FP$12:$GM$93,$A111-1921,'Report - ALL (DASHBOARD)'!$W$4) -> 2911.164287 | I111: =INDEX('Compile Data'!$GP$12:$HM$93,$A111-1921,'Report - ALL (DASHBOARD)'!$W$4) -> 2911.05828 | J111: =INDEX('Compile Data'!$HP$12:$IM$93,$A111-1921,'Report - ALL (DASHBOARD)'!$W$4) -> 2914.880815 | K111: =INDEX('Compile Data'!$IP$12:$JM$93,$A111-1921,'Report - ALL (DASHBOARD)'!$W$4) -> 2915.09191 | O111: 80 | P111: 0.975308642 | Q111: =INDEX('Compile Data'!$P$123:$AM$204,$O111,'Report - ALL (DASHBOARD)'!$W$4) -> 1330.316421 | R111: =INDEX('Compile Data'!$AP$123:$BM$204,$O111,'Report - ALL (DASHBOARD)'!$W$4) -> 1290.382007 | S111: =INDEX('Compile Data'!$BP$123:$CM$204,$O111,'Report - ALL (DASHBOARD)'!$W$4) -> 1314.78826 | T111: =INDEX('Compile Data'!$CP$123:$DM$204,$O111,'Report - ALL (DASHBOARD)'!$W$4) -> 1314.757443 | U111: =INDEX('Compile Data'!$DP$123:$EM$204,$O111,'Report - ALL (DASHBOARD)'!$W$4) -> 1345.609347 | V111: =INDEX('Compile Data'!$EP$123:$FM$204,$O111,'Report - ALL (DASHBOARD)'!$W$4) -> 1352.520546 | W111: =INDEX('Compile Data'!$FP$123:$GM$204,$O111,'Report - ALL (DASHBOARD)'!$W$4) -> 1323.362753 | X111: =INDEX('Compile Data'!$GP$123:$HM$204,$O111,'Report - ALL (DASHBOARD)'!$W$4) -> 1292.100017 | Y111: =INDEX('Compile Data'!$HP$123:$IM$204,$O111,'Report - ALL (DASHBOARD)'!$W$4) -> 1362.400774 | Z111: =INDEX('Compile Data'!$IP$123:$JM$204,$O111,'Report - ALL (DASHBOARD)'!$W$4) -> 1361.211303
A112: 2002 | B112: =INDEX('Compile Data'!$P$12:$AM$93,$A112-1921,'Report - ALL (DASHBOARD)'!$W$4) -> 3164.43635 | C112: =INDEX('Compile Data'!$AP$12:$BM$93,$A112-1921,'Report - ALL (DASHBOARD)'!$W$4) -> 3190.876884 | D112: =INDEX('Compile Data'!$BP$12:$CM$93,$A112-1921,'Report - ALL (DASHBOARD)'!$W$4) -> 3195.762129 | E112: =INDEX('Compile Data'!$CP$12:$DM$93,$A112-1921,'Report - ALL (DASHBOARD)'!$W$4) -> 3195.744447 | F112: =INDEX('Compile Data'!$DP$12:$EM$93,$A112-1921,'Report - ALL (DASHBOARD)'!$W$4) -> 3188.445296 | G112: =INDEX('Compile Data'!$EP$12:$FM$93,$A112-1921,'Report - ALL (DASHBOARD)'!$W$4) -> 3194.142714 | H112: =INDEX('Compile Data'!$FP$12:$GM$93,$A112-1921,'Report - ALL (DASHBOARD)'!$W$4) -> 3184.672223 | I112: =INDEX('Compile Data'!$GP$12:$HM$93,$A112-1921,'Report - ALL (DASHBOARD)'!$W$4) -> 3184.495231 | J112: =INDEX('Compile Data'!$HP$12:$IM$93,$A112-1921,'Report - ALL (DASHBOARD)'!$W$4) -> 3195.707706 | K112: =INDEX('Compile Data'!$IP$12:$JM$93,$A112-1921,'Report - ALL (DASHBOARD)'!$W$4) -> 3195.699591 | O112: 81 | P112: 0.987654321 | Q112: =INDEX('Compile Data'!$P$123:$AM$204,$O112,'Report - ALL (DASHBOARD)'!$W$4) -> 1116.135388 | R112: =INDEX('Compile Data'!$AP$123:$BM$204,$O112,'Report - ALL (DASHBOARD)'!$W$4) -> 1081.280772 | S112: =INDEX('Compile Data'!$BP$123:$CM$204,$O112,'Report - ALL (DASHBOARD)'!$W$4) -> 1156.28432 | T112: =INDEX('Compile Data'!$CP$123:$DM$204,$O112,'Report - ALL (DASHBOARD)'!$W$4) -> 1136.229001 | U112: =INDEX('Compile Data'!$DP$123:$EM$204,$O112,'Report - ALL (DASHBOARD)'!$W$4) -> 846.0210675 | V112: =INDEX('Compile Data'!$EP$123:$FM$204,$O112,'Report - ALL (DASHBOARD)'!$W$4) -> 1211.328892 | W112: =INDEX('Compile Data'!$FP$123:$GM$204,$O112,'Report - ALL (DASHBOARD)'!$W$4) -> 1080.395176 | X112: =INDEX('Compile Data'!$GP$123:$HM$204,$O112,'Report - ALL (DASHBOARD)'!$W$4) -> 1033.559484 | Y112: =INDEX('Compile Data'!$HP$123:$IM$204,$O112,'Report - ALL (DASHBOARD)'!$W$4) -> 1196.112435 | Z112: =INDEX('Compile Data'!$IP$123:$JM$204,$O112,'Report - ALL (DASHBOARD)'!$W$4) -> 1178.127017
A113: 2003 | B113: =INDEX('Compile Data'!$P$12:$AM$93,$A113-1921,'Report - ALL (DASHBOARD)'!$W$4) -> 3151.505254 | C113: =INDEX('Compile Data'!$AP$12:$BM$93,$A113-1921,'Report - ALL (DASHBOARD)'!$W$4) -> 3186.048432 | D113: =INDEX('Compile Data'!$BP$12:$CM$93,$A113-1921,'Report - ALL (DASHBOARD)'!$W$4) -> 3188.301922 | E113: =INDEX('Compile Data'!$CP$12:$DM$93,$A113-1921,'Report - ALL (DASHBOARD)'!$W$4) -> 3188.286096 | F113: =INDEX('Compile Data'!$DP$12:$EM$93,$A113-1921,'Report - ALL (DASHBOARD)'!$W$4) -> 3184.501773 | G113: =INDEX('Compile Data'!$EP$12:$FM$93,$A113-1921,'Report - ALL (DASHBOARD)'!$W$4) -> 3184.780776 | H113: =INDEX('Compile Data'!$FP$12:$GM$93,$A113-1921,'Report - ALL (DASHBOARD)'!$W$4) -> 3169.663798 | I113: =INDEX('Compile Data'!$GP$12:$HM$93,$A113-1921,'Report - ALL (DASHBOARD)'!$W$4) -> 3169.694608 | J113: =INDEX('Compile Data'!$HP$12:$IM$93,$A113-1921,'Report - ALL (DASHBOARD)'!$W$4) -> 3184.356424 | K113: =INDEX('Compile Data'!$IP$12:$JM$93,$A113-1921,'Report - ALL (DASHBOARD)'!$W$4) -> 3184.396295 | O113: 82 | P113: 1 | Q113: =INDEX('Compile Data'!$P$123:$AM$204,$O113,'Report - ALL (DASHBOARD)'!$W$4) -> 641.4961471 | R113: =INDEX('Compile Data'!$AP$123:$BM$204,$O113,'Report - ALL (DASHBOARD)'!$W$4) -> 794.6766998 | S113: =INDEX('Compile Data'!$BP$123:$CM$204,$O113,'Report - ALL (DASHBOARD)'!$W$4) -> 795.0841101 | T113: =INDEX('Compile Data'!$CP$123:$DM$204,$O113,'Report - ALL (DASHBOARD)'!$W$4) -> 812.913163 | U113: =INDEX('Compile Data'!$DP$123:$EM$204,$O113,'Report - ALL (DASHBOARD)'!$W$4) -> 796.8615952 | V113: =INDEX('Compile Data'!$EP$123:$FM$204,$O113,'Report - ALL (DASHBOARD)'!$W$4) -> 800.0668128 | W113: =INDEX('Compile Data'!$FP$123:$GM$204,$O113,'Report - ALL (DASHBOARD)'!$W$4) -> 794.8189936 | X113: =INDEX('Compile Data'!$GP$123:$HM$204,$O113,'Report - ALL (DASHBOARD)'!$W$4) -> 789.8563713 | Y113: =INDEX('Compile Data'!$HP$123:$IM$204,$O113,'Report - ALL (DASHBOARD)'!$W$4) -> 812.4225583 | Z113: =INDEX('Compile Data'!$IP$123:$JM$204,$O113,'Report - ALL (DASHBOARD)'!$W$4) -> 812.3551184

Sheet Compile Data
B1: =Control!$B$5 -> NAA 011221 | C1: =Control!$B$6 -> ALT 1B 011221 | D1: =Control!$B$7 -> ALT1B 011221 NoFW | E1: =Control!$B$8 -> ALT1B 011221 NoFW WS10.7k AM | F1: =Control!$B$9 -> ALT1B 011221 NoFW WS10.7k | G1: =Control!$B$10 -> ALT1B 011221 NoFW NoPPZ WS10.7k | H1: =Control!$B$11 -> ALT 1B MAM NoFW NoPPZ WS10.7k | I1: =Control!$B$12 -> ALT 1B MAM NoFW WS10.7k | J1: =Control!$B$13 -> ALT 1B NoFW MAM NoPPZ WS10.7k | K1: =Control!$B$14 -> ALT 1B NoFW MAM WS10.7k | AI1: =$B$8 -> INST-VAL | BI1: =$C$8 -> INST-VAL | CI1: =$D$8 -> INST-VAL | DI1: =$E$8 -> INST-VAL | EI1: =$F$8 -> INST-VAL | FI1: =$G$8 -> INST-VAL | GI1: =$G$8 -> INST-VAL | HI1: =$G$8 -> INST-VAL | II1: =$G$8 -> INST-VAL | JI1: =$G$8 -> INST-VAL
A2: Index: | B2: ='Report - ALL (DASHBOARD)'!W2 -> 5 | C2: =B2 -> 5 | D2: 5 | E2: 5 | F2: 5 | G2: 5 | H2: 5 | I2: 5 | J2: =I2 -> 5 | K2: =J2 -> 5
A3: Convert? | B3: =IF('Report - ALL (DASHBOARD)'!W5,1,0) -> 0 | C3: 0 | D3: 0 | E3: 0 | F3: 0 | G3: 0 | H3: 0 | I3: 0 | J3: 0 | K3: 0
A4: Column: | B4: =TRIM(VLOOKUP(B$2+2,DSSPathnames!$H$7:$K$178,2)) -> G | C4: G | D4: G | E4: G | F4: G | G4: G | H4: G | I4: G | J4: G | K4: G
A5: Title: | B5: =TRIM(VLOOKUP(B$2+2,DSSPathnames!$H$7:$K$178,4)) -> Shasta Storage | C5: =TRIM(VLOOKUP(C$2+2,DSSPathnames!$H$7:$K$178,4)) -> Shasta Storage | D5: =TRIM(VLOOKUP(D$2+2,DSSPathnames!$H$7:$K$178,4)) -> Shasta Storage | E5: =TRIM(VLOOKUP(E$2+2,DSSPathnames!$H$7:$K$178,4)) -> Shasta Storage | F5: =TRIM(VLOOKUP(F$2+2,DSSPathnames!$H$7:$K$178,4)) -> Shasta Storage | G5: =TRIM(VLOOKUP(G$2+2,DSSPathnames!$H$7:$K$178,4)) -> Shasta Storage | H5: =TRIM(VLOOKUP(H$2+2,DSSPathnames!$H$7:$K$178,4)) -> Shasta Storage | I5: =TRIM(VLOOKUP(I$2+2,DSSPathnames!$H$7:$K$178,4)) -> Shasta Storage | J5: =TRIM(VLOOKUP(J$2+2,DSSPathnames!$H$7:$K$178,4)) -> Shasta Storage | K5: =TRIM(VLOOKUP(K$2+2,DSSPathnames!$H$7:$K$178,4)) -> Shasta Storage
A6: Parameter: | B6: =INDIRECT(CONCATENATE("'",B$1,"'!",B$4,2)) -> S4 | C6: S4 | D6: S4 | E6: S4 | F6: S4 | G6: S4 | H6: =INDIRECT(CONCATENATE("'",H$1,"'!",H$4,2)) -> S4 | I6: S4 | J6: S4 | K6: S4
B7: =INDIRECT(CONCATENATE("'",B$1,"'!",B$4,3)) -> STORAGE | C7: STORAGE | D7: STORAGE | E7: STORAGE | F7: STORAGE | G7: STORAGE | H7: =INDIRECT(CONCATENATE("'",H$1,"'!",H$4,3)) -> STORAGE | I7: STORAGE | J7: STORAGE | K7: STORAGE
A8: Type: | B8: =TRIM(VLOOKUP(B$2+2,DSSPathnames!$H$7:$K$178,3)) -> INST-VAL | C8: =TRIM(VLOOKUP(C$2+2,DSSPathnames!$H$7:$K$178,3)) -> INST-VAL | D8: =TRIM(VLOOKUP(D$2+2,DSSPathnames!$H$7:$K$178,3)) -> INST-VAL | E8: =TRIM(VLOOKUP(E$2+2,DSSPathnames!$H$7:$K$178,3)) -> INST-VAL | F8: =TRIM(VLOOKUP(F$2+2,DSSPathnames!$H$7:$K$178,3)) -> INST-VAL | G8: =TRIM(VLOOKUP(G$2+2,DSSPathnames!$H$7:$K$178,3)) -> INST-VAL | H8: =TRIM(VLOOKUP(H$2+2,DSSPathnames!$H$7:$K$178,3)) -> INST-VAL | I8: =TRIM(VLOOKUP(I$2+2,DSSPathnames!$H$7:$K$178,3)) -> INST-VAL | J8: =TRIM(VLOOKUP(J$2+2,DSSPathnames!$H$7:$K$178,3)) -> INST-VAL | K8: =TRIM(VLOOKUP(K$2+2,DSSPathnames!$H$7:$K$178,3)) -> INST-VAL | O8: =CONCATENATE(TRIM(B$1),": ",TRIM(B$5)," - ",TRIM(B$6)," ",TRIM(B$7)," (",TRIM(B$10),") ",TRIM(B$11)) -> NAA 011221: Shasta Storage - S4 STORAGE (TAF) | AO8: =CONCATENATE(TRIM(C$1),": ",TRIM(C$5)," - ",TRIM(C$6)," ",TRIM(C$7)," (",TRIM(C$10),") ",TRIM(C$11)) -> ALT 1B 011221: Shasta Storage - S4 STORAGE (TAF) | BO8: =CONCATENATE(TRIM(D$1),": ",TRIM(D$5)," - ",TRIM(D$6)," ",TRIM(D$7)," (",TRIM(D$10),") ",TRIM(D$11)) -> ALT1B 011221 NoFW: Shasta Storage - S4 STORAGE (TAF) | CO8: =CONCATENATE(TRIM(E$1),": ",TRIM(E$5)," - ",TRIM(E$6)," ",TRIM(E$7)," (",TRIM(E$10),") ",TRIM(E$11)) -> ALT1B 011221 NoFW WS10.7k AM: Shasta Storage - S4 STORAGE (TAF) | DO8: =CONCATENATE(TRIM(F$1),": ",TRIM(F$5)," - ",TRIM(F$6)," ",TRIM(F$7)," (",TRIM(F$10),") ",TRIM(F$11)) -> ALT1B 011221 NoFW WS10.7k: Shasta Storage - S4 STORAGE (TAF) | EO8: =CONCATENATE(TRIM(G$1),": ",TRIM(G$5)," - ",TRIM(G$6)," ",TRIM(G$7)," (",TRIM(G$10),") ",TRIM(G$11)) -> ALT1B 011221 NoFW NoPPZ WS10.7k: Shasta Storage - S4 STORAGE (TAF) | FO8: =CONCATENATE(TRIM(H$1),": ",TRIM(H$5)," - ",TRIM(H$6)," ",TRIM(AG$7)," (",TRIM(H$10),") ",TRIM(H$11)) -> ALT 1B MAM NoFW NoPPZ WS10.7k: Shasta Storage - S4 (TAF) | GO8: =CONCATENATE(TRIM(I$1),": ",TRIM(I$5)," - ",TRIM(I$6)," ",TRIM(CG$7)," (",TRIM(I$10),") ",TRIM(I$11)) -> ALT 1B MAM NoFW WS10.7k: Shasta Storage - S4 (TAF) | HO8: =CONCATENATE(TRIM(J$1),": ",TRIM(J$5)," - ",TRIM(J$6)," ",TRIM(DG$7)," (",TRIM(J$10),") ",TRIM(J$11)) -> ALT 1B NoFW MAM NoPPZ WS10.7k: Shasta Storage - S4 (TAF) | IO8: =CONCATENATE(TRIM(K$1),": ",TRIM(K$5)," - ",TRIM(K$6)," ",TRIM(DG$7)," (",TRIM(K$10),") ",TRIM(K$11)) -> ALT 1B NoFW MAM WS10.7k: Shasta Storage - S4 (TAF)
A9: Units-native: | B9: =TRIM(INDIRECT(CONCATENATE("'",B$1,"'!",B$4,11))) -> TAF | C9: TAF | D9: TAF | E9: TAF | F9: TAF | G9: TAF | H9: TAF | I9: TAF | J9: TAF | K9: TAF
A10: Units-shown: | B10: =IF(AND(B$3>0,B$9="CFS"),"TAF",B$9) -> TAF | C10: TAF | D10: TAF | E10: TAF | F10: TAF | G10: TAF | H10: TAF | I10: TAF | J10: TAF | K10: TAF | AC10: Jan-Dec | AD10: Mar-Feb | AE10: Oct-Sep | AG10: Nov-Mar | AH10: Aug-Oct | AI10: Oct-Jan | AJ10: Dec-Feb | AK10: Mar-Jun | AL10: Jun-Sep | AM10: Sep-Nov | BC10: Jan-Dec | BD10: Mar-Feb | BE10: Oct-Sep | BG10: Nov-Mar | BH10: Aug-Oct | BI10: Oct-Jan | BJ10: Dec-Feb | BK10: Mar-Jun | BL10: Jun-Sep | BM10: Sep-Nov | CC10: Jan-Dec | CD10: Mar-Feb | CE10: Oct-Sep | CG10: Nov-Mar | CH10: Aug-Oct | CI10: Oct-Jan | CJ10: Dec-Feb | CK10: Mar-Jun | CL10: Jun-Sep | CM10: Sep-Nov | DC10: Jan-Dec | DD10: Mar-Feb | DE10: Oct-Sep | DG10: Nov-Mar | DH10: Aug-Oct | DI10: Oct-Jan | DJ10: Dec-Feb | DK10: Mar-Jun | DL10: Jun-Sep | DM10: Sep-Nov | EC10: Jan-Dec | ED10: Mar-Feb | EE10: Oct-Sep | EG10: Nov-Mar | EH10: Aug-Oct | EI10: Oct-Jan | EJ10: Dec-Feb | EK10: Mar-Jun | EL10: Jun-Sep | EM10: Sep-Nov | FC10: Jan-Dec | FD10: Mar-Feb | FE10: Oct-Sep | FG10: Nov-Mar | FH10: Aug-Oct | FI10: Oct-Jan | FJ10: Dec-Feb | FK10: Mar-Jun | FL10: Jun-Sep | FM10: Sep-Nov | GC10: Jan-Dec | GD10: Mar-Feb | GE10: Oct-Sep | GG10: Nov-Mar | GH10: Aug-Oct | GI10: Oct-Jan | GJ10: Dec-Feb | GK10: Mar-Jun | GL10: Jun-Sep | GM10: Sep-Nov | HC10: Jan-Dec | HD10: Mar-Feb | HE10: Oct-Sep | HG10: Nov-Mar | HH10: Aug-Oct | HI10: Oct-Jan | HJ10: Dec-Feb | HK10: Mar-Jun | HL10: Jun-Sep | HM10: Sep-Nov | IC10: Jan-Dec | ID10: Mar-Feb | IE10: Oct-Sep | IG10: Nov-Mar | IH10: Aug-Oct | II10: Oct-Jan | IJ10: Dec-Feb | IK10: Mar-Jun | IL10: Jun-Sep | IM10: Sep-Nov | JC10: Jan-Dec | JD10: Mar-Feb | JE10: Oct-Sep | JG10: Nov-Mar | JH10: Aug-Oct | JI10: Oct-Jan | JJ10: Dec-Feb | JK10: Mar-Jun | JL10: Jun-Sep | JM10: Sep-Nov
A11: Date | B11: =IF(ISNUMBER(FIND("PRV",B$6)),"SHIFTED","") ->  | C11: =IF(ISNUMBER(FIND("PRV",C$6)),"SHIFTED","") ->  | D11: =IF(ISNUMBER(FIND("PRV",D$6)),"SHIFTED","") ->  | E11: =IF(ISNUMBER(FIND("PRV",E$6)),"SHIFTED","") ->  | F11: =IF(ISNUMBER(FIND("PRV",F$6)),"SHIFTED","") ->  | O11: YEAR | P11: OCT | Q11: NOV | R11: DEC | S11: JAN | T11: FEB | U11: MAR | V11: APR | W11: MAY | X11: JUN | Y11: JUL | Z11: AUG | AA11: SEP | AC11: =IF(AND($B$10="TAF",$B$8="PER-AVER"),"TOT","AVG") -> AVG | AD11: =IF(AND($B$10="TAF",$B$8="PER-AVER"),"TOT","AVG") -> AVG | AE11: =IF(AND($B$10="TAF",$B$8="PER-AVER"),"TOT","AVG") -> AVG | AG11: =IF(AND($B$10="TAF",$B$8="PER-AVER"),"TOT","AVG") -> AVG | AH11: AVG | AI11: AVG | AJ11: AVG | AK11: AVG | AL11: AVG | AM11: AVG | AO11: YEAR | AP11: OCT | AQ11: NOV | AR11: DEC | AS11: JAN | AT11: FEB | AU11: MAR | AV11: APR | AW11: MAY | AX11: JUN | AY11: JUL | AZ11: AUG | BA11: SEP | BC11: =IF(AND($C$10="TAF",$C$8="PER-AVER"),"TOT","AVG") -> AVG | BD11: =IF(AND($C$10="TAF",$C$8="PER-AVER"),"TOT","AVG") -> AVG | BE11: =IF(AND($C$10="TAF",$C$8="PER-AVER"),"TOT","AVG") -> AVG | BG11: =IF(AND($B$10="TAF",$B$8="PER-AVER"),"TOT","AVG") -> AVG | BH11: =IF(AND($B$10="TAF",$B$8="PER-AVER"),"TOT","AVG") -> AVG | BI11: =IF(AND($C$10="TAF",$C$8="PER-AVER"),"TOT","AVG") -> AVG | BJ11: =IF(AND($C$10="TAF",$C$8="PER-AVER"),"TOT","AVG") -> AVG | BK11: =IF(AND($C$10="TAF",$C$8="PER-AVER"),"TOT","AVG") -> AVG | BL11: =IF(AND($C$10="TAF",$C$8="PER-AVER"),"TOT","AVG") -> AVG | BM11: =IF(AND($C$10="TAF",$C$8="PER-AVER"),"TOT","AVG") -> AVG | BO11: YEAR | BP11: OCT | BQ11: NOV | BR11: DEC | BS11: JAN | BT11: FEB | BU11: MAR | BV11: APR | BW11: MAY | BX11: JUN | BY11: JUL | BZ11: AUG | CA11: SEP | CC11: =IF(AND($D$10="TAF",$D$8="PER-AVER"),"TOT","AVG") -> AVG | CD11: =IF(AND($D$10="TAF",$D$8="PER-AVER"),"TOT","AVG") -> AVG | CE11: =IF(AND($D$10="TAF",$D$8="PER-AVER"),"TOT","AVG") -> AVG | CG11: =IF(AND($B$10="TAF",$B$8="PER-AVER"),"TOT","AVG") -> AVG | CH11: =IF(AND($B$10="TAF",$B$8="PER-AVER"),"TOT","AVG") -> AVG | CI11: =IF(AND($D$10="TAF",$D$8="PER-AVER"),"TOT","AVG") -> AVG | CJ11: =IF(AND($D$10="TAF",$D$8="PER-AVER"),"TOT","AVG") -> AVG | CK11: =IF(AND($D$10="TAF",$D$8="PER-AVER"),"TOT","AVG") -> AVG | CL11: =IF(AND($D$10="TAF",$D$8="PER-AVER"),"TOT","AVG") -> AVG | CM11: =IF(AND($D$10="TAF",$D$8="PER-AVER"),"TOT","AVG") -> AVG | CO11: YEAR | CP11: OCT | CQ11: NOV | CR11: DEC | CS11: JAN | CT11: FEB | CU11: MAR | CV11: APR | CW11: MAY | CX11: JUN | CY11: JUL | CZ11: AUG | DA11: SEP | DC11: =IF(AND($E$10="TAF",$E$8="PER-AVER"),"TOT","AVG") -> AVG | DD11: =IF(AND($E$10="TAF",$E$8="PER-AVER"),"TOT","AVG") -> AVG | DE11: =IF(AND($E$10="TAF",$E$8="PER-AVER"),"TOT","AVG") -> AVG | DG11: =IF(AND($B$10="TAF",$B$8="PER-AVER"),"TOT","AVG") -> AVG | DH11: =IF(AND($B$10="TAF",$B$8="PER-AVER"),"TOT","AVG") -> AVG | DI11: =IF(AND($E$10="TAF",$E$8="PER-AVER"),"TOT","AVG") -> AVG | DJ11: =IF(AND($E$10="TAF",$E$8="PER-AVER"),"TOT","AVG") -> AVG | DK11: =IF(AND($E$10="TAF",$E$8="PER-AVER"),"TOT","AVG") -> AVG | DL11: =IF(AND($E$10="TAF",$E$8="PER-AVER"),"TOT","AVG") -> AVG | DM11: =IF(AND($E$10="TAF",$E$8="PER-AVER"),"TOT","AVG") -> AVG | DO11: YEAR | DP11: OCT | DQ11: NOV | DR11: DEC | DS11: JAN | DT11: FEB | DU11: MAR | DV11: APR | DW11: MAY | DX11: JUN | DY11: JUL | DZ11: AUG | EA11: SEP | EC11: =IF(AND($F$10="TAF",$F$8="PER-AVER"),"TOT","AVG") -> AVG | ED11: =IF(AND($F$10="TAF",$F$8="PER-AVER"),"TOT","AVG") -> AVG | EE11: =IF(AND($F$10="TAF",$F$8="PER-AVER"),"TOT","AVG") -> AVG | EG11: =IF(AND($B$10="TAF",$B$8="PER-AVER"),"TOT","AVG") -> AVG | EH11: =IF(AND($B$10="TAF",$B$8="PER-AVER"),"TOT","AVG") -> AVG | EI11: =IF(AND($F$10="TAF",$F$8="PER-AVER"),"TOT","AVG") -> AVG | EJ11: =IF(AND($F$10="TAF",$F$8="PER-AVER"),"TOT","AVG") -> AVG | EK11: =IF(AND($F$10="TAF",$F$8="PER-AVER"),"TOT","AVG") -> AVG | EL11: =IF(AND($F$10="TAF",$F$8="PER-AVER"),"TOT","AVG") -> AVG | EM11: =IF(AND($F$10="TAF",$F$8="PER-AVER"),"TOT","AVG") -> AVG | EO11: YEAR | EP11: OCT | EQ11: NOV | ER11: DEC | ES11: JAN | ET11: FEB | EU11: MAR | EV11: APR | EW11: MAY | EX11: JUN | EY11: JUL | EZ11: AUG | FA11: SEP | FC11: =IF(AND($F$10="TAF",$F$8="PER-AVER"),"TOT","AVG") -> AVG | FD11: =IF(AND($F$10="TAF",$F$8="PER-AVER"),"TOT","AVG") -> AVG | FE11: =IF(AND($F$10="TAF",$F$8="PER-AVER"),"TOT","AVG") -> AVG | FG11: =IF(AND($B$10="TAF",$B$8="PER-AVER"),"TOT","AVG") -> AVG | FH11: =IF(AND($B$10="TAF",$B$8="PER-AVER"),"TOT","AVG") -> AVG | FI11: =IF(AND($F$10="TAF",$F$8="PER-AVER"),"TOT","AVG") -> AVG | FJ11: =IF(AND($F$10="TAF",$F$8="PER-AVER"),"TOT","AVG") -> AVG | FK11: =IF(AND($F$10="TAF",$F$8="PER-AVER"),"TOT","AVG") -> AVG | FL11: =IF(AND($F$10="TAF",$F$8="PER-AVER"),"TOT","AVG") -> AVG | FM11: =IF(AND($F$10="TAF",$F$8="PER-AVER"),"TOT","AVG") -> AVG | FO11: YEAR | FP11: OCT | FQ11: NOV | FR11: DEC | FS11: JAN | FT11: FEB | FU11: MAR | FV11: APR | FW11: MAY | FX11: JUN | FY11: JUL | FZ11: AUG | GA11: SEP | GC11: =IF(AND($F$10="TAF",$F$8="PER-AVER"),"TOT","AVG") -> AVG | GD11: =IF(AND($F$10="TAF",$F$8="PER-AVER"),"TOT","AVG") -> AVG | GE11: =IF(AND($F$10="TAF",$F$8="PER-AVER"),"TOT","AVG") -> AVG | GG11: =IF(AND($B$10="TAF",$B$8="PER-AVER"),"TOT","AVG") -> AVG | GH11: =IF(AND($B$10="TAF",$B$8="PER-AVER"),"TOT","AVG") -> AVG | GI11: =IF(AND($F$10="TAF",$F$8="PER-AVER"),"TOT","AVG") -> AVG | GJ11: =IF(AND($F$10="TAF",$F$8="PER-AVER"),"TOT","AVG") -> AVG | GK11: =IF(AND($F$10="TAF",$F$8="PER-AVER"),"TOT","AVG") -> AVG | GL11: =IF(AND($F$10="TAF",$F$8="PER-AVER"),"TOT","AVG") -> AVG | GM11: =IF(AND($F$10="TAF",$F$8="PER-AVER"),"TOT","AVG") -> AVG | GO11: YEAR | GP11: OCT | GQ11: NOV | GR11: DEC | GS11: JAN | GT11: FEB | GU11: MAR | GV11: APR | GW11: MAY | GX11: JUN | GY11: JUL | GZ11: AUG | HA11: SEP | HC11: =IF(AND($F$10="TAF",$F$8="PER-AVER"),"TOT","AVG") -> AVG | HD11: =IF(AND($F$10="TAF",$F$8="PER-AVER"),"TOT","AVG") -> AVG | HE11: =IF(AND($F$10="TAF",$F$8="PER-AVER"),"TOT","AVG") -> AVG | HG11: =IF(AND($B$10="TAF",$B$8="PER-AVER"),"TOT","AVG") -> AVG | HH11: =IF(AND($B$10="TAF",$B$8="PER-AVER"),"TOT","AVG") -> AVG | HI11: =IF(AND($F$10="TAF",$F$8="PER-AVER"),"TOT","AVG") -> AVG | HJ11: =IF(AND($F$10="TAF",$F$8="PER-AVER"),"TOT","AVG") -> AVG | HK11: =IF(AND($F$10="TAF",$F$8="PER-AVER"),"TOT","AVG") -> AVG | HL11: =IF(AND($F$10="TAF",$F$8="PER-AVER"),"TOT","AVG") -> AVG | HM11: =IF(AND($F$10="TAF",$F$8="PER-AVER"),"TOT","AVG") -> AVG | HO11: YEAR | HP11: OCT | HQ11: NOV | HR11: DEC | HS11: JAN | HT11: FEB | HU11: MAR | HV11: APR | HW11: MAY | HX11: JUN | HY11: JUL | HZ11: AUG | IA11: SEP | IC11: =IF(AND($F$10="TAF",$F$8="PER-AVER"),"TOT","AVG") -> AVG | ID11: =IF(AND($F$10="TAF",$F$8="PER-AVER"),"TOT","AVG") -> AVG | IE11: =IF(AND($F$10="TAF",$F$8="PER-AVER"),"TOT","AVG") -> AVG | IG11: =IF(AND($B$10="TAF",$B$8="PER-AVER"),"TOT","AVG") -> AVG | IH11: =IF(AND($B$10="TAF",$B$8="PER-AVER"),"TOT","AVG") -> AVG | II11: =IF(AND($F$10="TAF",$F$8="PER-AVER"),"TOT","AVG") -> AVG | IJ11: =IF(AND($F$10="TAF",$F$8="PER-AVER"),"TOT","AVG") -> AVG | IK11: =IF(AND($F$10="TAF",$F$8="PER-AVER"),"TOT","AVG") -> AVG | IL11: =IF(AND($F$10="TAF",$F$8="PER-AVER"),"TOT","AVG") -> AVG | IM11: =IF(AND($F$10="TAF",$F$8="PER-AVER"),"TOT","AVG") -> AVG | IO11: YEAR | IP11: OCT | IQ11: NOV | IR11: DEC | IS11: JAN | IT11: FEB | IU11: MAR | IV11: APR | IW11: MAY | IX11: JUN | IY11: JUL | IZ11: AUG | JA11: SEP | JC11: =IF(AND($F$10="TAF",$F$8="PER-AVER"),"TOT","AVG") -> AVG | JD11: =IF(AND($F$10="TAF",$F$8="PER-AVER"),"TOT","AVG") -> AVG | JE11: =IF(AND($F$10="TAF",$F$8="PER-AVER"),"TOT","AVG") -> AVG | JG11: =IF(AND($B$10="TAF",$B$8="PER-AVER"),"TOT","AVG") -> AVG | JH11: =IF(AND($B$10="TAF",$B$8="PER-AVER"),"TOT","AVG") -> AVG | JI11: =IF(AND($F$10="TAF",$F$8="PER-AVER"),"TOT","AVG") -> AVG | JJ11: =IF(AND($F$10="TAF",$F$8="PER-AVER"),"TOT","AVG") -> AVG | JK11: =IF(AND($F$10="TAF",$F$8="PER-AVER"),"TOT","AVG") -> AVG | JL11: =IF(AND($F$10="TAF",$F$8="PER-AVER"),"TOT","AVG") -> AVG | JM11: =IF(AND($F$10="TAF",$F$8="PER-AVER"),"TOT","AVG") -> AVG
A12: 1921-09-30 | O12: 1922 | P12: =B13 -> 2739.663051 | Q12: =B14 -> 2699.42931 | R12: =B15 -> 2874.796432 | S12: =B16 -> 3021.45025 | T12: =B17 -> 3448.078868 | U12: =B18 -> 3968.731586 | V12: =B19 -> 4552 | W12: =B20 -> 4552 | X12: =B21 -> 4288.190126 | Y12: =B22 -> 3876.566529 | Z12: =B23 -> 3520.599895 | AA12: =B24 -> 3353.49032 | AC12: =IF(AC$11="AVG",AVERAGE(S12:AA12,P13:R13),SUM(S12:AA12,P13:R13)) -> 3704.342298 | AD12: =IF(AD$11="AVG",AVERAGE(U12:AA12,P13:T13),SUM(U12:AA12,P13:T13)) -> 3767.133297 | AE12: =IF(AE$11="AVG",AVERAGE(P12:AA12),SUM(P12:AA12)) -> 3574.58303 | AG12: =IF(AG$11="AVG",IF(AI$1="INST-VAL",AVERAGE(P12:T12,Q12:U12),AVERAGE(Q12:U12)),SUM(Q12:U12)) -> 3079.590436 | AH12: =IF(AH$11="AVG",IF(AI$1="INST-VAL",AVERAGE(Y12:AA12,Z12:AA12,P13),AVERAGE(Z12:AA12,P13)),SUM(Z12:AA12,P13)) -> 3479.124493 | AI12: =IF(AI$11="AVG",IF(AI$1="INST-VAL",AVERAGE(AA11,P12:R12,P12:S12),AVERAGE(P12:S12)),SUM(P12:S12)) -> 2807.032548 | AJ12: =IF(AJ$11="AVG",IF(AI$1="INST-VAL",AVERAGE(Q12:S12,R12:T12),AVERAGE(R12:T12)),SUM(R12:T12)) -> 2990.000257 | AK12: =IF(AK$11="AVG",IF(AI$1="INST-VAL",AVERAGE(T12:W12,U12:X12),AVERAGE(U12:X12)),SUM(U12:X12)) -> 4235.216521 | AL12: =IF(AL$11="AVG",IF(AI$1="INST-VAL",AVERAGE(W12:Z12,X12:AA12),AVERAGE(X12:AA12)),SUM(X12:AA12)) -> 3909.525427 | AM12: =IF(AM$11="AVG",IF(AI$1="INST-VAL",AVERAGE(Z12:AA12,P13,AA12,P13:Q13),AVERAGE(AA12,P13:Q13)),SUM(AA12,P13:Q13)) -> 3329.930089 | AO12: 1922 | AP12: =C13 -> 2753.209232 | AQ12: =C14 -> 2737.513064 | AR12: =C15 -> 2912.852221 | AS12: =C16 -> 3059.482836 | AT12: =C17 -> 3486.086573 | AU12: =C18 -> 4006.69414 | AV12: =C19 -> 4552 | AW12: =C20 -> 4552 | AX12: =C21 -> 4318.89356 | AY12: =C22 -> 3954.053545 | AZ12: =C23 -> 3598.310308 | BA12: =C24 -> 3400 | BC12: =IF(BC$11="AVG",AVERAGE(AS12:BA12,AP13:AR13),SUM(AS12:BA12,AP13:AR13)) -> 3733.21008 | BD12: =IF(BD$11="AVG",AVERAGE(AU12:BA12,AP13:AT13),SUM(AU12:BA12,AP13:AT13)) -> 3790.283449 | BE12: =IF(BE$11="AVG",AVERAGE(AP12:BA12),SUM(AP12:BA12)) -> 3610.924623 | BG12: =IF(BG$11="AVG",IF(BI$1="INST-VAL",AVERAGE(AP12:AT12,AQ12:AU12),AVERAGE(AQ12:AU12)),SUM(AQ12:AU12)) -> 3115.177276 | BH12: =IF(BH$11="AVG",IF(BI$1="INST-VAL",AVERAGE(AY12:BA12,AZ12:BA12,AP13),AVERAGE(AZ12:BA12,AP13)),SUM(AZ12:BA12,AP13)) -> 3533.445693 | BI12: =IF(BI$11="AVG",IF(BI$1="INST-VAL",AVERAGE(BA11,AP12:AR12,AP12:AS12),AVERAGE(AP12:AS12)),SUM(AP12:AS12)) -> 2838.090267 | BJ12: =IF(BJ$11="AVG",IF(BI$1="INST-VAL",AVERAGE(AQ12:AS12,AR12:AT12),AVERAGE(AR12:AT12)),SUM(AR12:AT12)) -> 3028.044958 | BK12: =IF(BK$11="AVG",IF(BI$1="INST-VAL",AVERAGE(AT12:AW12,AU12:AX12),AVERAGE(AU12:AX12)),SUM(AU12:AX12)) -> 4253.296052 | BL12: =IF(BL$11="AVG",IF(BI$1="INST-VAL",AVERAGE(AW12:AZ12,AX12:BA12),AVERAGE(AX12:BA12)),SUM(AX12:BA12)) -> 3961.814353 | BM12: =IF(BM$11="AVG",IF(BI$1="INST-VAL",AVERAGE(AZ12:BA12,AP13,BA12,AP13:AQ13),AVERAGE(BA12,AP13:AQ13)),SUM(BA12,AP13:AQ13)) -> 3358.385051 | BO12: 1922 | BP12: =D13 -> 2753.209232 | BQ12: =D14 -> 2737.513064 | BR12: =D15 -> 2912.852221 | BS12: =D16 -> 3059.482836 | BT12: =D17 -> 3486.086573 | BU12: =D18 -> 4006.69414 | BV12: =D19 -> 4552 | BW12: =D20 -> 4552 | BX12: =D21 -> 4318.439927 | BY12: =D22 -> 4010.163196 | BZ12: =D23 -> 3654.356066 | CA12: =D24 -> 3394.578853 | CC12: =IF(CC$11="AVG",AVERAGE(BS12:CA12,BP13:BR13),SUM(BS12:CA12,BP13:BR13)) -> 3742.066799 | CD12: =IF(CD$11="AVG",AVERAGE(BU12:CA12,BP13:BT13),SUM(BU12:CA12,BP13:BT13)) -> 3800.757321 | CE12: =IF(CE$11="AVG",AVERAGE(BP12:CA12),SUM(BP12:CA12)) -> 3619.781342 | CG12: =IF(CG$11="AVG",IF(CI$1="INST-VAL",AVERAGE(BP12:BT12,BQ12:BU12),AVERAGE(BQ12:BU12)),SUM(BQ12:BU12)) -> 3115.177276 | CH12: =IF(CH$11="AVG",IF(CI$1="INST-VAL",AVERAGE(BY12:CA12,BZ12:CA12,BP13),AVERAGE(BZ12:CA12,BP13)),SUM(BZ12:CA12,BP13)) -> 3559.672172 | CI12: =IF(CI$11="AVG",IF(CI$1="INST-VAL",AVERAGE(CA11,BP12:BR12,BP12:BS12),AVERAGE(BP12:BS12)),SUM(BP12:BS12)) -> 2838.090267 | CJ12: =IF(CJ$11="AVG",IF(CI$1="INST-VAL",AVERAGE(BQ12:BS12,BR12:BT12),AVERAGE(BR12:BT12)),SUM(BR12:BT12)) -> 3028.044958 | CK12: =IF(CK$11="AVG",IF(CI$1="INST-VAL",AVERAGE(BT12:BW12,BU12:BX12),AVERAGE(BU12:BX12)),SUM(BU12:BX12)) -> 4253.239347 | CL12: =IF(CL$11="AVG",IF(CI$1="INST-VAL",AVERAGE(BW12:BZ12,BX12:CA12),AVERAGE(BX12:CA12)),SUM(BX12:CA12)) -> 3989.062154 | CM12: =IF(CM$11="AVG",IF(CI$1="INST-VAL",AVERAGE(BZ12:CA12,BP13,CA12,BP13:BQ13),AVERAGE(CA12,BP13:BQ13)),SUM(CA12,BP13:BQ13)) -> 3365.918962 | CO12: 1922 | CP12: =E13 -> 2753.209232 | CQ12: =E14 -> 2737.513064 | CR12: =E15 -> 2912.852221 | CS12: =E16 -> 3059.482836 | CT12: =E17 -> 3486.086573 | CU12: =E18 -> 4006.69414 | CV12: =E19 -> 4552 | CW12: =E20 -> 4552 | CX12: =E21 -> 4317.199031 | CY12: =E22 -> 4002.773952 | CZ12: =E23 -> 3647.240642 | DA12: =E24 -> 3387.57 | DC12: =IF(DC$11="AVG",AVERAGE(CS12:DA12,CP13:CR13),SUM(CS12:DA12,CP13:CR13)) -> 3740.170598 | DD12: =IF(DD$11="AVG",AVERAGE(CU12:DA12,CP13:CT13),SUM(CU12:DA12,CP13:CT13)) -> 3798.857938 | DE12: =IF(DE$11="AVG",AVERAGE(CP12:DA12),SUM(CP12:DA12)) -> 3617.885141 | DG12: =IF(DG$11="AVG",IF(DI$1="INST-VAL",AVERAGE(CP12:CT12,CQ12:CU12),AVERAGE(CQ12:CU12)),SUM(CQ12:CU12)) -> 3115.177276 | DH12: =IF(DH$11="AVG",IF(DI$1="INST-VAL",AVERAGE(CY12:DA12,CZ12:DA12,CP13),AVERAGE(CZ12:DA12,CP13)),SUM(CZ12:DA12,CP13)) -> 3553.732539 | DI12: =IF(DI$11="AVG",IF(DI$1="INST-VAL",AVERAGE(DA11,CP12:CR12,CP12:CS12),AVERAGE(CP12:CS12)),SUM(CP12:CS12)) -> 2838.090267 | DJ12: =IF(DJ$11="AVG",IF(DI$1="INST-VAL",AVERAGE(CQ12:CS12,CR12:CT12),AVERAGE(CR12:CT12)),SUM(CR12:CT12)) -> 3028.044958 | DK12: =IF(DK$11="AVG",IF(DI$1="INST-VAL",AVERAGE(CT12:CW12,CU12:CX12),AVERAGE(CU12:CX12)),SUM(CU12:CX12)) -> 4253.084235 | DL12: =IF(DL$11="AVG",IF(DI$1="INST-VAL",AVERAGE(CW12:CZ12,CX12:DA12),AVERAGE(CX12:DA12)),SUM(CX12:DA12)) -> 3984.249656 | DM12: =IF(DM$11="AVG",IF(DI$1="INST-VAL",AVERAGE(CZ12:DA12,CP13,DA12,CP13:CQ13),AVERAGE(DA12,CP13:CQ13)),SUM(DA12,CP13:CQ13)) -> 3362.396774 | DO12: 1922 | DP12: =F13 -> 2753.209232 | DQ12: =F14 -> 2737.513064 | DR12: =F15 -> 2912.852221 | DS12: =F16 -> 3059.482836 | DT12: =F17 -> 3486.086573 | DU12: =F18 -> 4006.69414 | DV12: =F19 -> 4552 | DW12: =F20 -> 4552 | DX12: =F21 -> 4318.468993 | DY12: =F22 -> 3945.619815 | DZ12: =F23 -> 3590.411152 | EA12: =F24 -> 3400 | EC12: =IF(EC$11="AVG",AVERAGE(DS12:EA12,DP13:DR13),SUM(DS12:EA12,DP13:DR13)) -> 3731.813626 | ED12: =IF(ED$11="AVG",AVERAGE(DU12:EA12,DP13:DT13),SUM(DU12:EA12,DP13:DT13)) -> 3788.307127 | EE12: =IF(EE$11="AVG",AVERAGE(DP12:EA12),SUM(DP12:EA12)) -> 3609.528169 | EG12: =IF(EG$11="AVG",IF(EI$1="INST-VAL",AVERAGE(DP12:DT12,DQ12:DU12),AVERAGE(DQ12:DU12)),SUM(DQ12:DU12)) -> 3115.177276 | EH12: =IF(EH$11="AVG",IF(EI$1="INST-VAL",AVERAGE(DY12:EA12,DZ12:EA12,DP13),AVERAGE(DZ12:EA12,DP13)),SUM(DZ12:EA12,DP13)) -> 3529.40702 | EI12: =IF(EI$11="AVG",IF(EI$1="INST-VAL",AVERAGE(EA11,DP12:DR12,DP12:DS12),AVERAGE(DP12:DS12)),SUM(DP12:DS12)) -> 2838.090267 | EJ12: =IF(EJ$11="AVG",IF(EI$1="INST-VAL",AVERAGE(DQ12:DS12,DR12:DT12),AVERAGE(DR12:DT12)),SUM(DR12:DT12)) -> 3028.044958 | EK12: =IF(EK$11="AVG",IF(EI$1="INST-VAL",AVERAGE(DT12:DW12,DU12:DX12),AVERAGE(DU12:DX12)),SUM(DU12:DX12)) -> 4253.242981 | EL12: =IF(EL$11="AVG",IF(EI$1="INST-VAL",AVERAGE(DW12:DZ12,DX12:EA12),AVERAGE(DX12:EA12)),SUM(DX12:EA12)) -> 3957.62499 | EM12: =IF(EM$11="AVG",IF(EI$1="INST-VAL",AVERAGE(DZ12:EA12,DP13,EA12,DP13:DQ13),AVERAGE(EA12,DP13:DQ13)),SUM(EA12,DP13:DQ13)) -> 3357.068525 | EO12: 1922 | EP12: =G13 -> 2753.209232 | EQ12: =G14 -> 2737.513064 | ER12: =G15 -> 2912.852221 | ES12: =G16 -> 3059.482836 | ET12: =G17 -> 3486.086573 | EU12: =G18 -> 4006.69414 | EV12: =G19 -> 4552 | EW12: =G20 -> 4552 | EX12: =G21 -> 4318.398581 | EY12: =G22 -> 3947.054427 | EZ12: =G23 -> 3591.825983 | FA12: =G24 -> 3400 | FC12: =IF(FC$11="AVG",AVERAGE(ES12:FA12,EP13:ER13),SUM(ES12:FA12,EP13:ER13)) -> 3732.045212 | FD12: =IF(FD$11="AVG",AVERAGE(EU12:FA12,EP13:ET13),SUM(EU12:FA12,EP13:ET13)) -> 3788.538929 | FE12: =IF(FE$11="AVG",AVERAGE(EP12:FA12),SUM(EP12:FA12)) -> 3609.759755 | FG12: =IF(FG$11="AVG",IF(FI$1="INST-VAL",AVERAGE(EP12:ET12,EQ12:EU12),AVERAGE(EQ12:EU12)),SUM(EQ12:EU12)) -> 3115.177276 | FH12: =IF(FH$11="AVG",IF(FI$1="INST-VAL",AVERAGE(EY12:FA12,EZ12:FA12,EP13),AVERAGE(EZ12:FA12,EP13)),SUM(EZ12:FA12,EP13)) -> 3530.117732 | FI12: =IF(FI$11="AVG",IF(FI$1="INST-VAL",AVERAGE(FA11,EP12:ER12,EP12:ES12),AVERAGE(EP12:ES12)),SUM(EP12:ES12)) -> 2838.090267 | FJ12: =IF(FJ$11="AVG",IF(FI$1="INST-VAL",AVERAGE(EQ12:ES12,ER12:ET12),AVERAGE(ER12:ET12)),SUM(ER12:ET12)) -> 3028.044958 | FK12: =IF(FK$11="AVG",IF(FI$1="INST-VAL",AVERAGE(ET12:EW12,EU12:EX12),AVERAGE(EU12:EX12)),SUM(EU12:EX12)) -> 4253.234179 | FL12: =IF(FL$11="AVG",IF(FI$1="INST-VAL",AVERAGE(EW12:EZ12,EX12:FA12),AVERAGE(EX12:FA12)),SUM(EX12:FA12)) -> 3958.319748 | FM12: =IF(FM$11="AVG",IF(FI$1="INST-VAL",AVERAGE(EZ12:FA12,EP13,FA12,EP13:EQ13),AVERAGE(FA12,EP13:EQ13)),SUM(FA12,EP13:EQ13)) -> 3357.304331 | FO12: 1922 | FP12: =H13 -> 2753.209232 | FQ12: =H14 -> 2737.513064 | FR12: =H15 -> 2912.852221 | FS12: =H16 -> 3059.482836 | FT12: =H17 -> 3486.086573 | FU12: =H18 -> 4006.69414 | FV12: =H19 -> 4552 | FW12: =H20 -> 4552 | FX12: =H21 -> 4318.566047 | FY12: =H22 -> 3946.29159 | FZ12: =H23 -> 3591.1102 | GA12: =H24 -> 3400 | GC12: =IF(GC$11="AVG",AVERAGE(FS12:GA12,FP13:FR13),SUM(FS12:GA12,FP13:FR13)) -> 3731.935949 | GD12: =IF(GD$11="AVG",AVERAGE(FU12:GA12,FP13:FT13),SUM(FU12:GA12,FP13:FT13)) -> 3789.00938 | GE12: =IF(GE$11="AVG",AVERAGE(FP12:GA12),SUM(FP12:GA12)) -> 3609.650492 | GG12: =IF(GG$11="AVG",IF(GI$1="INST-VAL",AVERAGE(FP12:FT12,FQ12:FU12),AVERAGE(FQ12:FU12)),SUM(FQ12:FU12)) -> 3115.177276 | GH12: =IF(GH$11="AVG",IF(GI$1="INST-VAL",AVERAGE(FY12:GA12,FZ12:GA12,FP13),AVERAGE(FZ12:GA12,FP13)),SUM(FZ12:GA12,FP13)) -> 3529.751998 | GI12: =IF(GI$11="AVG",IF(GI$1="INST-VAL",AVERAGE(GA11,FP12:FR12,FP12:FS12),AVERAGE(FP12:FS12)),SUM(FP12:FS12)) -> 2838.090267 | GJ12: =IF(GJ$11="AVG",IF(GI$1="INST-VAL",AVERAGE(FQ12:FS12,FR12:FT12),AVERAGE(FR12:FT12)),SUM(FR12:FT12)) -> 3028.044958 | GK12: =IF(GK$11="AVG",IF(GI$1="INST-VAL",AVERAGE(FT12:FW12,FU12:FX12),AVERAGE(FU12:FX12)),SUM(FU12:FX12)) -> 4253.255112 | GL12: =IF(GL$11="AVG",IF(GI$1="INST-VAL",AVERAGE(FW12:FZ12,FX12:GA12),AVERAGE(FX12:GA12)),SUM(FX12:GA12)) -> 3957.991959 | GM12: =IF(GM$11="AVG",IF(GI$1="INST-VAL",AVERAGE(FZ12:GA12,FP13,GA12,FP13:FQ13),AVERAGE(GA12,FP13:FQ13)),SUM(GA12,FP13:FQ13)) -> 3357.185033 | GO12: 1922 | GP12: =I13 -> 2753.209232 | GQ12: =I14 -> 2737.513064 | GR12: =I15 -> 2912.852221 | GS12: =I16 -> 3059.482836 | GT12: =I17 -> 3486.086573 | GU12: =I18 -> 4006.69414 | GV12: =I19 -> 4552 | GW12: =I20 -> 4552 | GX12: =I21 -> 4318.566047 | GY12: =I22 -> 3946.291571 | GZ12: =I23 -> 3591.110182 | HA12: =I24 -> 3400 | HC12: =IF(HC$11="AVG",AVERAGE(GS12:HA12,GP13:GR13),SUM(GS12:HA12,GP13:GR13)) -> 3731.935946 | HD12: =IF(HD$11="AVG",AVERAGE(GU12:HA12,GP13:GT13),SUM(GU12:HA12,GP13:GT13)) -> 3789.009376 | HE12: =IF(HE$11="AVG",AVERAGE(GP12:HA12),SUM(GP12:HA12)) -> 3609.650489 | HG12: =IF(HG$11="AVG",IF(HI$1="INST-VAL",AVERAGE(GP12:GT12,GQ12:GU12),AVERAGE(GQ12:GU12)),SUM(GQ12:GU12)) -> 3115.177276 | HH12: =IF(HH$11="AVG",IF(HI$1="INST-VAL",AVERAGE(GY12:HA12,GZ12:HA12,GP13),AVERAGE(GZ12:HA12,GP13)),SUM(GZ12:HA12,GP13)) -> 3529.751989 | HI12: =IF(HI$11="AVG",IF(HI$1="INST-VAL",AVERAGE(HA11,GP12:GR12,GP12:GS12),AVERAGE(GP12:GS12)),SUM(GP12:GS12)) -> 2838.090267 | HJ12: =IF(HJ$11="AVG",IF(HI$1="INST-VAL",AVERAGE(GQ12:GS12,GR12:GT12),AVERAGE(GR12:GT12)),SUM(GR12:GT12)) -> 3028.044958 | HK12: =IF(HK$11="AVG",IF(HI$1="INST-VAL",AVERAGE(GT12:GW12,GU12:GX12),AVERAGE(GU12:GX12)),SUM(GU12:GX12)) -> 4253.255112 | HL12: =IF(HL$11="AVG",IF(HI$1="INST-VAL",AVERAGE(GW12:GZ12,GX12:HA12),AVERAGE(GX12:HA12)),SUM(GX12:HA12)) -> 3957.99195 | HM12: =IF(HM$11="AVG",IF(HI$1="INST-VAL",AVERAGE(GZ12:HA12,GP13,HA12,GP13:GQ13),AVERAGE(HA12,GP13:GQ13)),SUM(HA12,GP13:GQ13)) -> 3357.18503 | HO12: 1922 | HP12: =J13 -> 2753.209232 | HQ12: =J14 -> 2737.513064 | HR12: =J15 -> 2912.852221 | HS12: =J16 -> 3059.482836 | HT12: =J17 -> 3486.086573 | HU12: =J18 -> 4006.69414 | HV12: =J19 -> 4552 | HW12: =J20 -> 4552 | HX12: =J21 -> 4318.245803 | HY12: =J22 -> 3953.131286 | HZ12: =J23 -> 3597.860423 | IA12: =J24 -> 3400 | IC12: =IF(IC$11="AVG",AVERAGE(HS12:IA12,HP13:HR13),SUM(HS12:IA12,HP13:HR13)) -> 3733.041755 | ID12: =IF(ID$11="AVG",AVERAGE(HU12:IA12,HP13:HT13),SUM(HU12:IA12,HP13:HT13)) -> 3788.821586 | IE12: =IF(IE$11="AVG",AVERAGE(HP12:IA12),SUM(HP12:IA12)) -> 3610.756298 | IG12: =IF(IG$11="AVG",IF(II$1="INST-VAL",AVERAGE(HP12:HT12,HQ12:HU12),AVERAGE(HQ12:HU12)),SUM(HQ12:HU12)) -> 3115.177276 | IH12: =IF(IH$11="AVG",IF(II$1="INST-VAL",AVERAGE(HY12:IA12,HZ12:IA12,HP13),AVERAGE(HZ12:IA12,HP13)),SUM(HZ12:IA12,HP13)) -> 3533.142022 | II12: =IF(II$11="AVG",IF(II$1="INST-VAL",AVERAGE(IA11,HP12:HR12,HP12:HS12),AVERAGE(HP12:HS12)),SUM(HP12:HS12)) -> 2838.090267 | IJ12: =IF(IJ$11="AVG",IF(II$1="INST-VAL",AVERAGE(HQ12:HS12,HR12:HT12),AVERAGE(HR12:HT12)),SUM(HR12:HT12)) -> 3028.044958 | IK12: =IF(IK$11="AVG",IF(II$1="INST-VAL",AVERAGE(HT12:HW12,HU12:HX12),AVERAGE(HU12:HX12)),SUM(HU12:HX12)) -> 4253.215082 | IL12: =IF(IL$11="AVG",IF(II$1="INST-VAL",AVERAGE(HW12:HZ12,HX12:IA12),AVERAGE(HX12:IA12)),SUM(HX12:IA12)) -> 3961.309378 | IM12: =IF(IM$11="AVG",IF(II$1="INST-VAL",AVERAGE(HZ12:IA12,HP13,IA12,HP13:HQ13),AVERAGE(IA12,HP13:HQ13)),SUM(IA12,HP13:HQ13)) -> 3358.310071 | IO12: 1922 | IP12: =K13 -> 2753.209232 | IQ12: =K14 -> 2737.513064 | IR12: =K15 -> 2912.852221 | IS12: =K16 -> 3059.482836 | IT12: =K17 -> 3486.086573 | IU12: =K18 -> 4006.69414 | IV12: =K19 -> 4552 | IW12: =K20 -> 4552 | IX12: =K21 -> 4318.245803 | IY12: =K22 -> 3953.131286 | IZ12: =K23 -> 3597.860423 | JA12: =K24 -> 3400 | JC12: =IF(JC$11="AVG",AVERAGE(IS12:JA12,IP13:IR13),SUM(IS12:JA12,IP13:IR13)) -> 3733.041755 | JD12: =IF(JD$11="AVG",AVERAGE(IU12:JA12,IP13:IT13),SUM(IU12:JA12,IP13:IT13)) -> 3788.821586 | JE12: =IF(JE$11="AVG",AVERAGE(IP12:JA12),SUM(IP12:JA12)) -> 3610.756298 | JG12: =IF(JG$11="AVG",IF(JI$1="INST-VAL",AVERAGE(IP12:IT12,IQ12:IU12),AVERAGE(IQ12:IU12)),SUM(IQ12:IU12)) -> 3115.177276 | JH12: =IF(JH$11="AVG",IF(JI$1="INST-VAL",AVERAGE(IY12:JA12,IZ12:JA12,IP13),AVERAGE(IZ12:JA12,IP13)),SUM(IZ12:JA12,IP13)) -> 3533.142022 | JI12: =IF(JI$11="AVG",IF(JI$1="INST-VAL",AVERAGE(JA11,IP12:IR12,IP12:IS12),AVERAGE(IP12:IS12)),SUM(IP12:IS12)) -> 2838.090267 | JJ12: =IF(JJ$11="AVG",IF(JI$1="INST-VAL",AVERAGE(IQ12:IS12,IR12:IT12),AVERAGE(IR12:IT12)),SUM(IR12:IT12)) -> 3028.044958 | JK12: =IF(JK$11="AVG",IF(JI$1="INST-VAL",AVERAGE(IT12:IW12,IU12:IX12),AVERAGE(IU12:IX12)),SUM(IU12:IX12)) -> 4253.215082 | JL12: =IF(JL$11="AVG",IF(JI$1="INST-VAL",AVERAGE(IW12:IZ12,IX12:JA12),AVERAGE(IX12:JA12)),SUM(IX12:JA12)) -> 3961.309378 | JM12: =IF(JM$11="AVG",IF(JI$1="INST-VAL",AVERAGE(IZ12:JA12,IP13,JA12,IP13:IQ13),AVERAGE(JA12,IP13:IQ13)),SUM(JA12,IP13:IQ13)) -> 3358.310071
A13: 1921-10-31 | B13: =INDIRECT(CONCATENATE("'",B$1,"'!",B$4,(YEAR($A13)-1921)*12+MONTH($A13)+3+IF(ISNUMBER(FIND("PRV",B$6)),1,0)))*IF(AND(B$3>0,TRIM(B$9)="CFS"),Conversions!$C13,1) -> 2739.663051 | C13: =INDIRECT(CONCATENATE("'",C$1,"'!",C$4,(YEAR($A13)-1921)*12+MONTH($A13)+3+IF(ISNUMBER(FIND("PRV",C$6)),1,0)))*IF(AND(C$3>0,TRIM(C$9)="CFS"),Conversions!$C13,1) -> 2753.209232 | D13: =INDIRECT(CONCATENATE("'",D$1,"'!",D$4,(YEAR($A13)-1921)*12+MONTH($A13)+3+IF(ISNUMBER(FIND("PRV",D$6)),1,0)))*IF(AND(D$3>0,TRIM(D$9)="CFS"),Conversions!$C13,1) -> 2753.209232 | E13: =INDIRECT(CONCATENATE("'",E$1,"'!",E$4,(YEAR($A13)-1921)*12+MONTH($A13)+3+IF(ISNUMBER(FIND("PRV",E$6)),1,0)))*IF(AND(E$3>0,TRIM(E$9)="CFS"),Conversions!$C13,1) -> 2753.209232 | F13: =INDIRECT(CONCATENATE("'",F$1,"'!",F$4,(YEAR($A13)-1921)*12+MONTH($A13)+3+IF(ISNUMBER(FIND("PRV",F$6)),1,0)))*IF(AND(F$3>0,TRIM(F$9)="CFS"),Conversions!$C13,1) -> 2753.209232 | G13: =INDIRECT(CONCATENATE("'",G$1,"'!",G$4,(YEAR($A13)-1921)*12+MONTH($A13)+3+IF(ISNUMBER(FIND("PRV",G$6)),1,0)))*IF(AND(G$3>0,TRIM(G$9)="CFS"),Conversions!$C13,1) -> 2753.209232 | H13: =INDIRECT(CONCATENATE("'",H$1,"'!",H$4,(YEAR($A13)-1921)*12+MONTH($A13)+3+IF(ISNUMBER(FIND("PRV",H$6)),1,0)))*IF(AND(H$3>0,TRIM(H$9)="CFS"),Conversions!$C13,1) -> 2753.209232 | I13: =INDIRECT(CONCATENATE("'",I$1,"'!",I$4,(YEAR($A13)-1921)*12+MONTH($A13)+3+IF(ISNUMBER(FIND("PRV",I$6)),1,0)))*IF(AND(I$3>0,TRIM(I$9)="CFS"),Conversions!$C13,1) -> 2753.209232 | J13: =INDIRECT(CONCATENATE("'",J$1,"'!",J$4,(YEAR($A13)-1921)*12+MONTH($A13)+3+IF(ISNUMBER(FIND("PRV",J$6)),1,0)))*IF(AND(J$3>0,TRIM(J$9)="CFS"),Conversions!$C13,1) -> 2753.209232 | K13: =INDIRECT(CONCATENATE("'",K$1,"'!",K$4,(YEAR($A13)-1921)*12+MONTH($A13)+3+IF(ISNUMBER(FIND("PRV",K$6)),1,0)))*IF(AND(K$3>0,TRIM(K$9)="CFS"),Conversions!$C13,1) -> 2753.209232 | O13: 1923 | P13: =B25 -> 3250 | Q13: =B26 -> 3252 | R13: =B27 -> 3369 | S13: =B28 -> 3589.959766 | T13: =B29 -> 3633.061339 | U13: =B30 -> 3769.078447 | V13: =B31 -> 4229.79085 | W13: =B32 -> 3964.600475 | X13: =B33 -> 3642.950162 | Y13: =B34 -> 3264.73171 | Z13: =B35 -> 2946.763879 | AA13: =B36 -> 2918.581988 | AC13: 3353.296033 | AD13: 3230.751164 | AE13: 3485.876551 | AG13: =IF(AG$11="AVG",IF(AI$1="INST-VAL",AVERAGE(P13:T13,Q13:U13),AVERAGE(Q13:U13)),SUM(Q13:U13)) -> 3470.712066 | AH13: =IF(AH$11="AVG",IF(AI$1="INST-VAL",AVERAGE(Y13:AA13,Z13:AA13,P14),AVERAGE(Z13:AA13,P14)),SUM(Z13:AA13,P14)) -> 2975.818399 | AI13: =IF(AI$11="AVG",IF(AI$1="INST-VAL",AVERAGE(AA12,P13:R13,P13:S13),AVERAGE(P13:S13)),SUM(P13:S13)) -> 3335.681261 | AJ13: 3467.163478 | AK13: 3900.368881 | AL13: 3324.009246 | AM13: 2874.327411 | AO13: 1923 | AP13: =C25 -> 3250 | AQ13: =C26 -> 3252 | AR13: =C27 -> 3369 | AS13: =C28 -> 3589.959766 | AT13: =C29 -> 3640.490063 | AU13: =C30 -> 3776.496516 | AV13: =C31 -> 4246.003274 | AW13: =C32 -> 3991.377675 | AX13: =C33 -> 3675.367982 | AY13: =C34 -> 3298.201907 | AZ13: =C35 -> 2989.326513 | BA13: =C36 -> 2954.070677 | BC13: 3375.910215 | BD13: 3257.217419 | BE13: 3502.691198 | BG13: =IF(BG$11="AVG",IF(BI$1="INST-VAL",AVERAGE(AP13:AT13,AQ13:AU13),AVERAGE(AQ13:AU13)),SUM(AQ13:AU13)) -> 3472.939617 | BH13: =IF(BH$11="AVG",IF(BI$1="INST-VAL",AVERAGE(AY13:BA13,AZ13:BA13,AP14),AVERAGE(AZ13:BA13,AP14)),SUM(AZ13:BA13,AP14)) -> 3010.765367 | BI13: 3341.494971 | BJ13: 3468.401599 | BK13: 3917.951622 | BL13: 3358.905144 | BM13: 2903.725051 | BO13: 1923 | BP13: =D25 -> 3250 | BQ13: =D26 -> 3252 | BR13: =D27 -> 3369 | BS13: =D28 -> 3589.959766 | BT13: =D29 -> 3659.895901 | BU13: =D30 -> 3795.874512 | BV13: =D31 -> 4265.355 | BW13: =D32 -> 4009.660379 | BX13: =D33 -> 3727.836333 | BY13: =D34 -> 3308.157513 | BZ13: =D35 -> 3001.429236 | CA13: =D36 -> 2978.505838 | CC13: 3394.089177 | CD13: 3275.915564 | CE13: 3517.306207 | CG13: =IF(CG$11="AVG",IF(CI$1="INST-VAL",AVERAGE(BP13:BT13,BQ13:BU13),AVERAGE(BQ13:BU13)),SUM(BQ13:BU13)) -> 3478.758585 | CH13: =IF(CH$11="AVG",IF(CI$1="INST-VAL",AVERAGE(BY13:CA13,BZ13:CA13,BP14),AVERAGE(BZ13:CA13,BP14)),SUM(BZ13:CA13,BP14)) -> 3027.193749 | CI13: 3340.817327 | CJ13: 3471.635905 | CK13: 3941.189002 | CL13: 3382.876548 | CM13: 2921.466165 | CO13: 1923 | CP13: =E25 -> 3250 | CQ13: =E26 -> 3252 | CR13: =E27 -> 3369 | CS13: =E28 -> 3589.959766 | CT13: =E29 -> 3659.857726 | CU13: =E30 -> 3795.836391 | CV13: =E31 -> 4265.31693 | CW13: =E32 -> 4009.613656 | CX13: =E33 -> 3727.768118 | CY13: =E34 -> 3308.089423 | CZ13: =E35 -> 3001.362017 | DA13: =E36 -> 2978.439676 | DC13: 3393.49594 | DD13: 3274.99301 | DE13: 3517.270309 | DG13: 3478.747137 | DH13: 3026.742221 | DI13: 3339.941221 | DJ13: 3471.629543 | DK13: 3941.144975 | DL13: 3382.811556 | DM13: 2920.255389 | DO13: 1923 | DP13: =F25 -> 3250 | DQ13: =F26 -> 3252 | DR13: =F27 -> 3369 | DS13: =F28 -> 3589.959766 | DT13: =F29 -> 3633.531663 | DU13: =F30 -> 3769.548096 | DV13: =F31 -> 4239.064262 | DW13: =F32 -> 3984.608098 | DX13: =F33 -> 3668.721676 | DY13: =F34 -> 3293.33255 | DZ13: =F35 -> 2984.515638 | EA13: =F36 -> 2948.577985 | EC13: 3370.860664 | ED13: 3252.193973 | EE13: 3498.571645 | EG13: 3470.853095 | EH13: 3005.842438 | EI13: 3341.494971 | EJ13: 3467.241866 | EK13: 3911.086782 | EL13: 3353.290726 | EM13: 2899.109895 | EO13: 1923 | EP13: =G25 -> 3250 | EQ13: =G26 -> 3252 | ER13: =G27 -> 3369 | ES13: =G28 -> 3589.959766 | ET13: =G29 -> 3633.534253 | EU13: =G30 -> 3769.550682 | EV13: =G31 -> 4239.066845 | EW13: =G32 -> 3984.610673 | EX13: =G33 -> 3668.723953 | EY13: =G34 -> 3293.334951 | EZ13: =G35 -> 2984.517235 | FA13: =G36 -> 2951.158275 | FC13: 3371.18179 | FD13: 3252.573979 | FE13: 3498.788053 | FG13: 3470.853872 | FH13: 3006.789752 | FI13: 3341.494971 | FJ13: 3467.242297 | FK13: 3911.089326 | FL13: 3353.615153 | FM13: 2900.206816 | FO13: 1923 | FP13: =H25 -> 3250 | FQ13: =H26 -> 3252 | FR13: =H27 -> 3369 | FS13: =H28 -> 3589.959766 | FT13: =H29 -> 3640.490812 | FU13: =H30 -> 3776.497263 | FV13: =H31 -> 4246.00402 | FW13: =H32 -> 3991.38318 | FX13: =H33 -> 3675.379269 | FY13: =H34 -> 3298.219375 | FZ13: =H35 -> 2989.348973 | GA13: =H36 -> 2952.344876 | GC13: 3375.715817 | GD13: 3256.991586 | GE13: 3502.552295 | GG13: 3472.939842 | GH13: 3010.153706 | GI13: 3341.494971 | GJ13: 3468.401724 | GK13: 3917.954876 | GL13: 3358.702911 | GM13: 2903.027157 | GO13: 1923 | GP13: =I25 -> 3250 | GQ13: =I26 -> 3252 | GR13: =I27 -> 3369 | GS13: =I28 -> 3589.959766 | GT13: =I29 -> 3640.490812 | GU13: =I30 -> 3776.497263 | GV13: =I31 -> 4246.00402 | GW13: =I32 -> 3991.38318 | GX13: =I33 -> 3675.379269 | GY13: =I34 -> 3298.219375 | GZ13: =I35 -> 2989.348973 | HA13: =I36 -> 2952.344875 | HC13: 3375.715817 | HD13: 3256.991586 | HE13: 3502.552294 | HG13: 3472.939842 | HH13: 3010.153706 | HI13: 3341.494971 | HJ13: 3468.401724 | HK13: 3917.954876 | HL13: 3358.702911 | HM13: 2903.027156 | HO13: 1923 | HP13: =J25 -> 3250 | HQ13: =J26 -> 3252 | HR13: =J27 -> 3369 | HS13: =J28 -> 3589.959766 | HT13: =J29 -> 3624.967611 | HU13: =J30 -> 3760.996326 | HV13: =J31 -> 4230.524062 | HW13: =J32 -> 3975.562988 | HX13: =J33 -> 3666.679343 | HY13: =J34 -> 3247.320353 | HZ13: =J35 -> 2940.911515 | IA13: =J36 -> 2947.969992 | IC13: 3359.506217 | ID13: 3241.042706 | IE13: 3487.990996 | IG13: 3468.285108 | IH13: 2982.954213 | II13: 3341.494971 | IJ13: 3465.814524 | IK13: 3903.226713 | IL13: 3329.169425 | IM13: 2890.121204 | IO13: 1923 | IP13: =K25 -> 3250 | IQ13: =K26 -> 3252 | IR13: =K27 -> 3369 | IS13: =K28 -> 3589.959766 | IT13: =K29 -> 3624.967611 | IU13: =K30 -> 3760.996326 | IV13: =K31 -> 4230.524062 | IW13: =K32 -> 3975.562988 | IX13: =K33 -> 3666.679342 | IY13: =K34 -> 3247.320353 | IZ13: =K35 -> 2940.911826 | JA13: =K36 -> 2947.970321 | JC13: =IF(JC$11="AVG",AVERAGE(IS13:JA13,IP14:IR14),SUM(IS13:JA13,IP14:IR14)) -> 3359.506289 | JD13: =IF(JD$11="AVG",AVERAGE(IU13:JA13,IP14:IT14),SUM(IU13:JA13,IP14:IT14)) -> 3241.042787 | JE13: =IF(JE$11="AVG",AVERAGE(IP13:JA13),SUM(IP13:JA13)) -> 3487.99105 | JG13: 3468.285108 | JH13: =IF(JH$11="AVG",IF(JI$1="INST-VAL",AVERAGE(IY13:JA13,IZ13:JA13,IP14),AVERAGE(IZ13:JA13,IP14)),SUM(IZ13:JA13,IP14)) -> 2982.954442 | JI13: =IF(JI$11="AVG",IF(JI$1="INST-VAL",AVERAGE(JA12,IP13:IR13,IP13:IS13),AVERAGE(IP13:IS13)),SUM(IP13:IS13)) -> 3341.494971 | JJ13: =IF(JJ$11="AVG",IF(JI$1="INST-VAL",AVERAGE(IQ13:IS13,IR13:IT13),AVERAGE(IR13:IT13)),SUM(IR13:IT13)) -> 3465.814524 | JK13: =IF(JK$11="AVG",IF(JI$1="INST-VAL",AVERAGE(IT13:IW13,IU13:IX13),AVERAGE(IU13:IX13)),SUM(IU13:IX13)) -> 3903.226713 | JL13: =IF(JL$11="AVG",IF(JI$1="INST-VAL",AVERAGE(IW13:IZ13,IX13:JA13),AVERAGE(IX13:JA13)),SUM(IX13:JA13)) -> 3329.169544 | JM13: =IF(JM$11="AVG",IF(JI$1="INST-VAL",AVERAGE(IZ13:JA13,IP14,JA13,IP14:IQ14),AVERAGE(JA13,IP14:IQ14)),SUM(JA13,IP14:IQ14)) -> 2890.121406
A14: 1921-11-30 | B14: =INDIRECT(CONCATENATE("'",B$1,"'!",B$4,(YEAR($A14)-1921)*12+MONTH($A14)+3+IF(ISNUMBER(FIND("PRV",B$6)),1,0)))*IF(AND(B$3>0,TRIM(B$9)="CFS"),Conversions!$C14,1) -> 2699.42931 | C14: =INDIRECT(CONCATENATE("'",C$1,"'!",C$4,(YEAR($A14)-1921)*12+MONTH($A14)+3+IF(ISNUMBER(FIND("PRV",C$6)),1,0)))*IF(AND(C$3>0,TRIM(C$9)="CFS"),Conversions!$C14,1) -> 2737.513064 | D14: =INDIRECT(CONCATENATE("'",D$1,"'!",D$4,(YEAR($A14)-1921)*12+MONTH($A14)+3+IF(ISNUMBER(FIND("PRV",D$6)),1,0)))*IF(AND(D$3>0,TRIM(D$9)="CFS"),Conversions!$C14,1) -> 2737.513064 | E14: =INDIRECT(CONCATENATE("'",E$1,"'!",E$4,(YEAR($A14)-1921)*12+MONTH($A14)+3+IF(ISNUMBER(FIND("PRV",E$6)),1,0)))*IF(AND(E$3>0,TRIM(E$9)="CFS"),Conversions!$C14,1) -> 2737.513064 | F14: =INDIRECT(CONCATENATE("'",F$1,"'!",F$4,(YEAR($A14)-1921)*12+MONTH($A14)+3+IF(ISNUMBER(FIND("PRV",F$6)),1,0)))*IF(AND(F$3>0,TRIM(F$9)="CFS"),Conversions!$C14,1) -> 2737.513064 | G14: =INDIRECT(CONCATENATE("'",G$1,"'!",G$4,(YEAR($A14)-1921)*12+MONTH($A14)+3+IF(ISNUMBER(FIND("PRV",G$6)),1,0)))*IF(AND(G$3>0,TRIM(G$9)="CFS"),Conversions!$C14,1) -> 2737.513064 | H14: =INDIRECT(CONCATENATE("'",H$1,"'!",H$4,(YEAR($A14)-1921)*12+MONTH($A14)+3+IF(ISNUMBER(FIND("PRV",H$6)),1,0)))*IF(AND(H$3>0,TRIM(H$9)="CFS"),Conversions!$C14,1) -> 2737.513064 | I14: =INDIRECT(CONCATENATE("'",I$1,"'!",I$4,(YEAR($A14)-1921)*12+MONTH($A14)+3+IF(ISNUMBER(FIND("PRV",I$6)),1,0)))*IF(AND(I$3>0,TRIM(I$9)="CFS"),Conversions!$C14,1) -> 2737.513064 | J14: =INDIRECT(CONCATENATE("'",J$1,"'!",J$4,(YEAR($A14)-1921)*12+MONTH($A14)+3+IF(ISNUMBER(FIND("PRV",J$6)),1,0)))*IF(AND(J$3>0,TRIM(J$9)="CFS"),Conversions!$C14,1) -> 2737.513064 | K14: =INDIRECT(CONCATENATE("'",K$1,"'!",K$4,(YEAR($A14)-1921)*12+MONTH($A14)+3+IF(ISNUMBER(FIND("PRV",K$6)),1,0)))*IF(AND(K$3>0,TRIM(K$9)="CFS"),Conversions!$C14,1) -> 2737.513064 | O14: 1924 | P14: =B37 -> 2859.486952 | Q14: =B38 -> 2743.06271 | R14: =B39 -> 2677.484118 | S14: =B40 -> 2771.837045 | T14: =B41 -> 2980.645633 | U14: =B42 -> 2853.496776 | V14: =B43 -> 2757.091955 | W14: =B44 -> 2408.197813 | X14: =B45 -> 2036.059248 | Y14: =B46 -> 1693.912774 | Z14: =B47 -> 1424.342838 | AA14: =B48 -> 1350.069812 | AC14: 2060.957465 | AD14: 1991.569022 | AE14: 2379.64064 | AG14: =IF(AG$11="AVG",IF(AI$1="INST-VAL",AVERAGE(P14:T14,Q14:U14),AVERAGE(Q14:U14)),SUM(Q14:U14)) -> 2805.904274 | AH14: =IF(AH$11="AVG",IF(AI$1="INST-VAL",AVERAGE(Y14:AA14,Z14:AA14,P15),AVERAGE(Z14:AA14,P15)),SUM(Z14:AA14,P15)) -> 1431.020916 | AI14: =IF(AI$11="AVG",IF(AI$1="INST-VAL",AVERAGE(AA13,P14:R14,P14:S14),AVERAGE(P14:S14)),SUM(P14:S14)) -> 2781.310824 | AJ14: 2770.391778 | AK14: 2631.784746 | AL14: 1758.362168 | AM14: 1385.17369 | AO14: 1924 | AP14: =C37 -> 2879.595914 | AQ14: =C38 -> 2765.690609 | AR14: =C39 -> 2704.341684 | AS14: =C40 -> 2798.67752 | AT14: =C41 -> 3007.458759 | AU14: =C42 -> 2881.915543 | AV14: =C43 -> 2787.567365 | AW14: =C44 -> 2437.614183 | AX14: =C45 -> 2065.25094 | AY14: =C46 -> 1722.263035 | AZ14: =C47 -> 1457.045654 | BA14: =C48 -> 1385.799051 | BC14: 2093.269104 | BD14: 2024.530792 | BE14: 2407.768355 | BG14: =IF(BG$11="AVG",IF(BI$1="INST-VAL",AVERAGE(AP14:AT14,AQ14:AU14),AVERAGE(AQ14:AU14)),SUM(AQ14:AU14)) -> 2831.38486 | BH14: 1468.019879 | BI14: 2806.500576 | BJ14: 2796.531296 | BK14: 2660.862985 | BL14: 1789.066561 | BM14: 1426.83643 | BO14: 1924 | BP14: =D37 -> 2895.134831 | BQ14: =D38 -> 2780.086416 | BR14: =D39 -> 2717.174401 | BS14: =D40 -> 2811.50207 | BT14: =D41 -> 3020.270241 | BU14: =D42 -> 2895.180652 | BV14: =D43 -> 2800.705616 | BW14: =D44 -> 2450.30365 | BX14: =D45 -> 2077.664947 | BY14: =D46 -> 1732.851395 | BZ14: =D47 -> 1461.58531 | CA14: =D48 -> 1399.655446 | CC14: 2106.015278 | CD14: 2037.137909 | CE14: 2420.176248 | CG14: =IF(CG$11="AVG",IF(CI$1="INST-VAL",AVERAGE(BP14:BT14,BQ14:BU14),AVERAGE(BQ14:BU14)),SUM(BQ14:BU14)) -> 2844.838174 | CH14: 1479.380299 | CI14: 2821.8499 | CJ14: 2809.618267 | CK14: 2673.789378 | CL14: 1799.2703 | CM14: 1441.480219 | CO14: 1924 | CP14: =E37 -> 2892.760517 | CQ14: =E38 -> 2777.769935 | CR14: =E39 -> 2715.177125 | CS14: =E40 -> 2809.506066 | CT14: =E41 -> 3018.276271 | CU14: =E42 -> 2893.113739 | CV14: =E43 -> 2798.640551 | CW14: =E44 -> 2448.241483 | CX14: =E45 -> 2075.608871 | CY14: =E46 -> 1730.956965 | CZ14: =E47 -> 1458.367924 | DA14: =E48 -> 1395.298583 | DC14: 2103.167563 | DD14: 2033.976726 | DE14: 2417.809836 | DG14: 2842.733305 | DH14: 1475.757295 | DI14: 2819.920112 | DJ14: 2807.568765 | DK14: 2671.734586 | DL14: 1796.675948 | DM14: 1437.278669 | DO14: 1924 | DP14: =F37 -> 2875.534834 | DQ14: =F38 -> 2761.918097 | DR14: =F39 -> 2701.015304 | DS14: =F40 -> 2795.353257 | DT14: =F41 -> 3004.137883 | DU14: =F42 -> 2878.48341 | DV14: =F43 -> 2783.251561 | DW14: =F44 -> 2433.348467 | DX14: =F45 -> 2061.032111 | DY14: =F46 -> 1718.64139 | DZ14: =F47 -> 1454.400114 | EA14: =F48 -> 1379.440265 | EC14: 2090.039507 | ED14: 2022.038193 | EE14: 2403.879724 | EG14: 2827.886732 | EH14: 1463.750898 | EI14: 2802.608464 | EJ14: 2793.132183 | EK14: 2656.917109 | EL14: 1785.116995 | EM14: 1422.886587 | EO14: 1924 | EP14: =G37 -> 2876.052542 | EQ14: =G38 -> 2762.302024 | ER14: =G39 -> 2701.370282 | ES14: =G40 -> 2795.708009 | ET14: =G41 -> 3004.492274 | EU14: =G42 -> 2878.848154 | EV14: =G43 -> 2784.51657 | EW14: =G44 -> 2434.610338 | EX14: =G45 -> 2062.282518 | EY14: =G46 -> 1719.841655 | EZ14: =G47 -> 1453.413243 | FA14: =G48 -> 1378.321295 | FC14: 2090.008874 | FD14: 2021.688561 | FE14: 2404.313242 | FG14: 2828.264587 | FH14: 1463.034007 | FI14: 2803.289498 | FJ14: 2793.491813 | FK14: 2657.840615 | FL14: 1785.500808 | FM14: 1421.675493 | FO14: 1924 | FP14: =H37 -> 2879.315166 | FQ14: =H38 -> 2765.493882 | FR14: =H39 -> 2704.153226 | FS14: =H40 -> 2798.489182 | FT14: =H41 -> 3007.270613 | FU14: =H42 -> 2881.723835 | FV14: =H43 -> 2787.377479 | FW14: =H44 -> 2437.435097 | FX14: =H45 -> 2065.078757 | FY14: =H46 -> 1722.559062 | FZ14: =H47 -> 1459.911255 | GA14: =H48 -> 1385.006759 | GC14: 2094.387515 | GD14: 2026.587901 | GE14: 2407.817859 | GG14: 2831.185281 | GH14: 1469.175796 | GI14: 2806.094826 | GJ14: 2796.341552 | GK14: 2660.677774 | GL14: 1789.692501 | GM14: 1428.58378 | GO14: 1924 | GP14: =I37 -> 2879.315167 | GQ14: =I38 -> 2765.493882 | GR14: =I39 -> 2704.153226 | GS14: =I40 -> 2798.489182 | GT14: =I41 -> 3007.270613 | GU14: =I42 -> 2881.723835 | GV14: =I43 -> 2787.377479 | GW14: =I44 -> 2437.435097 | GX14: =I45 -> 2065.078757 | GY14: =I46 -> 1722.559062 | GZ14: =I47 -> 1459.911255 | HA14: =I48 -> 1385.006758 | HC14: 2094.387514 | HD14: 2026.5879 | HE14: 2407.817859 | HG14: 2831.185281 | HH14: 1469.175796 | HI14: 2806.094826 | HJ14: 2796.341552 | HK14: 2660.677774 | HL14: 1789.6925 | HM14: 1428.583778 | HO14: 1924 | HP14: =J37 -> 2872.641914 | HQ14: =J38 -> 2758.591895 | HR14: =J39 -> 2697.948842 | HS14: =J40 -> 2792.288747 | HT14: =J41 -> 3001.076495 | HU14: =J42 -> 2875.303242 | HV14: =J43 -> 2780.961702 | HW14: =J44 -> 2431.062998 | HX14: =J45 -> 2058.753477 | HY14: =J46 -> 1715.415901 | HZ14: =J47 -> 1447.930909 | IA14: =J48 -> 1379.450006 | IC14: 2086.397517 | ID14: 2017.181247 | IE14: 2400.952177 | IG14: 2824.775711 | IH14: 1461.108993 | II14: 2799.828005 | IJ14: 2790.023928 | IK14: 2654.310732 | IL14: 1781.839197 | IM14: 1420.611575 | IO14: 1924 | IP14: =K37 -> 2872.642002 | IQ14: =K38 -> 2758.591964 | IR14: =K39 -> 2697.948901 | IS14: =K40 -> 2792.288806 | IT14: =K41 -> 3001.076554 | IU14: =K42 -> 2875.303302 | IV14: =K43 -> 2780.961761 | IW14: =K44 -> 2431.063059 | IX14: =K45 -> 2058.753537 | IY14: =K46 -> 1715.415962 | IZ14: =K47 -> 1447.931019 | JA14: =K48 -> 1379.450116 | JC14: =IF(JC$11="AVG",AVERAGE(IS14:JA14,IP15:IR15),SUM(IS14:JA14,IP15:IR15)) -> 2086.397598 | JD14: =IF(JD$11="AVG",AVERAGE(IU14:JA14,IP15:IT15),SUM(IU14:JA14,IP15:IT15)) -> 2017.181336 | JE14: =IF(JE$11="AVG",AVERAGE(IP14:JA14),SUM(IP14:JA14)) -> 2400.952249 | JG14: 2824.775775 | JH14: =IF(JH$11="AVG",IF(JI$1="INST-VAL",AVERAGE(IY14:JA14,IZ14:JA14,IP15),AVERAGE(IZ14:JA14,IP15)),SUM(IZ14:JA14,IP15)) -> 1461.109094 | JI14: =IF(JI$11="AVG",IF(JI$1="INST-VAL",AVERAGE(JA13,IP14:IR14,IP14:IS14),AVERAGE(IP14:IS14)),SUM(IP14:IS14)) -> 2799.828108 | JJ14: =IF(JJ$11="AVG",IF(JI$1="INST-VAL",AVERAGE(IQ14:IS14,IR14:IT14),AVERAGE(IR14:IT14)),SUM(IR14:IT14)) -> 2790.023989 | JK14: =IF(JK$11="AVG",IF(JI$1="INST-VAL",AVERAGE(IT14:IW14,IU14:IX14),AVERAGE(IU14:IX14)),SUM(IU14:IX14)) -> 2654.310792 | JL14: =IF(JL$11="AVG",IF(JI$1="INST-VAL",AVERAGE(IW14:IZ14,IX14:JA14),AVERAGE(IX14:JA14)),SUM(IX14:JA14)) -> 1781.839276 | JM14: =IF(JM$11="AVG",IF(JI$1="INST-VAL",AVERAGE(IZ14:JA14,IP15,JA14,IP15:IQ15),AVERAGE(JA14,IP15:IQ15)),SUM(JA14,IP15:IQ15)) -> 1420.611684
A15: 1921-12-31 | B15: =INDIRECT(CONCATENATE("'",B$1,"'!",B$4,(YEAR($A15)-1921)*12+MONTH($A15)+3+IF(ISNUMBER(FIND("PRV",B$6)),1,0)))*IF(AND(B$3>0,TRIM(B$9)="CFS"),Conversions!$C15,1) -> 2874.796432 | C15: =INDIRECT(CONCATENATE("'",C$1,"'!",C$4,(YEAR($A15)-1921)*12+MONTH($A15)+3+IF(ISNUMBER(FIND("PRV",C$6)),1,0)))*IF(AND(C$3>0,TRIM(C$9)="CFS"),Conversions!$C15,1) -> 2912.852221 | D15: =INDIRECT(CONCATENATE("'",D$1,"'!",D$4,(YEAR($A15)-1921)*12+MONTH($A15)+3+IF(ISNUMBER(FIND("PRV",D$6)),1,0)))*IF(AND(D$3>0,TRIM(D$9)="CFS"),Conversions!$C15,1) -> 2912.852221 | E15: =INDIRECT(CONCATENATE("'",E$1,"'!",E$4,(YEAR($A15)-1921)*12+MONTH($A15)+3+IF(ISNUMBER(FIND("PRV",E$6)),1,0)))*IF(AND(E$3>0,TRIM(E$9)="CFS"),Conversions!$C15,1) -> 2912.852221 | F15: =INDIRECT(CONCATENATE("'",F$1,"'!",F$4,(YEAR($A15)-1921)*12+MONTH($A15)+3+IF(ISNUMBER(FIND("PRV",F$6)),1,0)))*IF(AND(F$3>0,TRIM(F$9)="CFS"),Conversions!$C15,1) -> 2912.852221 | G15: =INDIRECT(CONCATENATE("'",G$1,"'!",G$4,(YEAR($A15)-1921)*12+MONTH($A15)+3+IF(ISNUMBER(FIND("PRV",G$6)),1,0)))*IF(AND(G$3>0,TRIM(G$9)="CFS"),Conversions!$C15,1) -> 2912.852221 | H15: =INDIRECT(CONCATENATE("'",H$1,"'!",H$4,(YEAR($A15)-1921)*12+MONTH($A15)+3+IF(ISNUMBER(FIND("PRV",H$6)),1,0)))*IF(AND(H$3>0,TRIM(H$9)="CFS"),Conversions!$C15,1) -> 2912.852221 | I15: =INDIRECT(CONCATENATE("'",I$1,"'!",I$4,(YEAR($A15)-1921)*12+MONTH($A15)+3+IF(ISNUMBER(FIND("PRV",I$6)),1,0)))*IF(AND(I$3>0,TRIM(I$9)="CFS"),Conversions!$C15,1) -> 2912.852221 | J15: =INDIRECT(CONCATENATE("'",J$1,"'!",J$4,(YEAR($A15)-1921)*12+MONTH($A15)+3+IF(ISNUMBER(FIND("PRV",J$6)),1,0)))*IF(AND(J$3>0,TRIM(J$9)="CFS"),Conversions!$C15,1) -> 2912.852221 | K15: =INDIRECT(CONCATENATE("'",K$1,"'!",K$4,(YEAR($A15)-1921)*12+MONTH($A15)+3+IF(ISNUMBER(FIND("PRV",K$6)),1,0)))*IF(AND(K$3>0,TRIM(K$9)="CFS"),Conversions!$C15,1) -> 2912.852221 | O15: 1925 | P15: =B49 -> 1343.38742 | Q15: =B50 -> 1499.784842 | R15: =B51 -> 1612.663428 | S15: =B52 -> 1852.177913 | T15: =B53 -> 3067.643448 | U15: =B54 -> 3441.873918 | V15: =B55 -> 4144.70203 | W15: =B56 -> 4286.178038 | X15: =B57 -> 4072.235571 | Y15: =B58 -> 3542.212452 | Z15: =B59 -> 3193.757345 | AA15: =B60 -> 3067.864588 | AC15: 3287.88845 | AD15: 3432.824768 | AE15: 2927.040083 | AG15: =IF(AG$11="AVG",IF(AI$1="INST-VAL",AVERAGE(P15:T15,Q15:U15),AVERAGE(Q15:U15)),SUM(Q15:U15)) -> 2084.98006 | AH15: 3171.143291 | AI15: 1514.239888 | AJ15: 1916.185162 | AK15: 3860.673374 | AL15: 3621.306671 | AM15: 3025.686415 | AO15: 1925 | AP15: =C49 -> 1400.166829 | AQ15: =C50 -> 1532.04117 | AR15: =C51 -> 1643.4292 | AS15: =C52 -> 1882.920771 | AT15: =C53 -> 3098.355763 | AU15: =C54 -> 3472.543604 | AV15: =C55 -> 4175.308564 | AW15: =C56 -> 4344.307713 | AX15: =C57 -> 4159.820803 | AY15: =C58 -> 3604.667214 | AZ15: =C59 -> 3244.997458 | BA15: =C60 -> 3120.215218 | BC15: 3337.259334 | BD15: 3484.889579 | BE15: 2973.231192 | BG15: =IF(BG$11="AVG",IF(BI$1="INST-VAL",AVERAGE(AP15:AT15,AQ15:AU15),AVERAGE(AQ15:AU15)),SUM(AQ15:AU15)) -> 2118.620424 | BH15: =IF(BH$11="AVG",IF(BI$1="INST-VAL",AVERAGE(AY15:BA15,AZ15:BA15,AP16),AVERAGE(AZ15:BA15,AP16)),SUM(AZ15:BA15,AP16)) -> 3225.440916 | BI15: 1552.499277 | BJ15: 1947.182813 | BK15: 3905.312041 | BL15: 3685.436735 | BM15: 3079.537588 | BO15: 1925 | BP15: =D49 -> 1420.948886 | BQ15: =D50 -> 1546.087338 | BR15: =D51 -> 1655.427782 | BS15: =D52 -> 1894.910404 | BT15: =D53 -> 3110.333485 | BU15: =D54 -> 3484.504701 | BV15: =D55 -> 4187.245032 | BW15: =D56 -> 4356.185673 | BX15: =D57 -> 4186.830315 | BY15: =D58 -> 3624.737124 | BZ15: =D59 -> 3263.949081 | CA15: =D60 -> 3138.706249 | CC15: 3353.116364 | CD15: 3501.01001 | CE15: 2989.155506 | CG15: 2131.897161 | CH15: 3244.034163 | CI15: 1567.436733 | CJ15: 1959.516199 | CK15: 3919.129327 | CL15: 3705.74062 | CM15: 3097.033986 | CO15: 1925 | CP15: =E49 -> 1416.253793 | CQ15: =E50 -> 1542.199339 | CR15: =E51 -> 1651.547167 | CS15: =E52 -> 1891.032684 | CT15: =E53 -> 3106.459617 | CU15: =E54 -> 3480.63621 | CV15: =E55 -> 4183.384507 | CW15: =E56 -> 4352.333584 | CX15: =E57 -> 4183.00464 | CY15: =E58 -> 3621.95894 | CZ15: =E59 -> 3261.271529 | DA15: =E60 -> 3136.016514 | DC15: 3349.905807 | DD15: 3498.07386 | DE15: 2985.50821 | DG15: 2127.936762 | DH15: 3241.332599 | DI15: 1563.291483 | DJ15: 1955.636443 | DK15: 3915.271607 | DL15: 3702.602539 | DM15: 3094.409869 | DO15: 1925 | DP15: =F49 -> 1396.183236 | DQ15: =F50 -> 1531.672404 | DR15: =F51 -> 1644.529985 | DS15: =F52 -> 1884.020735 | DT15: =F53 -> 3099.454634 | DU15: =F54 -> 3473.64095 | DV15: =F55 -> 4176.403651 | DW15: =F56 -> 4345.590426 | DX15: =F57 -> 4158.819589 | DY15: =F58 -> 3604.263853 | DZ15: =F59 -> 3254.482456 | EA15: =F60 -> 3131.344418 | EC15: 3341.124713 | ED15: 3490.324999 | EE15: 2975.033862 | EG15: 2118.91797 | EH15: 3233.139105 | EI15: 1551.029031 | EJ15: 1948.03808 | EK15: 3906.193035 | EL15: 3689.00833 | EM15: 3087.55046 | EO15: 1925 | EP15: =G49 -> 1394.893313 | EQ15: =G50 -> 1530.210503 | ER15: =G51 -> 1642.96862 | ES15: =G52 -> 1882.460534 | ET15: =G53 -> 3097.895984 | EU15: =G54 -> 3472.084463 | EV15: =G55 -> 4174.850369 | EW15: =G56 -> 4343.95696 | EX15: =G57 -> 4160.010166 | EY15: =G58 -> 3605.002972 | EZ15: =G59 -> 3254.569917 | FA15: =G60 -> 3132.066333 | FC15: 3341.130875 | FD15: 3490.935114 | FE15: 2974.247511 | FG15: 2117.404906 | FH15: 3233.861569 | FI15: 1549.615838 | FJ15: 1946.494133 | FK15: 3904.961216 | FL15: 3689.398675 | FM15: 3088.656892 | FO15: 1925 | FP15: =H49 -> 1402.659688 | FQ15: =H50 -> 1536.258528 | FR15: =H51 -> 1648.87992 | FS15: =H52 -> 1888.367426 | FT15: =H53 -> 3103.797008 | FU15: =H54 -> 3477.977296 | FV15: =H55 -> 4180.731068 | FW15: =H56 -> 4349.72633 | FX15: =H57 -> 4164.162335 | FY15: =H58 -> 3607.80088 | FZ15: =H59 -> 3248.25681 | GA15: =H60 -> 3126.042866 | GC15: 3342.668784 | GD15: 3491.656038 | GE15: 2977.888346 | GG15: 2123.524275 | GH15: 3229.64732 | GI15: 1556.121307 | GJ15: 1952.425038 | GK15: 3910.603591 | GL15: 3689.526156 | GM15: 3083.943082 | GO15: 1925 | GP15: =I49 -> 1402.659686 | GQ15: =I50 -> 1536.258525 | GR15: =I51 -> 1648.879916 | GS15: =I52 -> 1888.367422 | GT15: =I53 -> 3103.797003 | GU15: =I54 -> 3477.977292 | GV15: =I55 -> 4180.731064 | GW15: =I56 -> 4349.726326 | GX15: =I57 -> 4164.162335 | GY15: =I58 -> 3607.800879 | GZ15: =I59 -> 3248.256816 | HA15: =I60 -> 3126.042868 | HC15: 3342.668782 | HD15: 3491.656037 | HE15: 2977.888344 | HG15: 2123.524271 | HH15: 3229.647322 | HI15: 1556.121304 | HJ15: 1952.425034 | HK15: 3910.603588 | HL15: 3689.526157 | HM15: 3083.943083 | HO15: 1925 | HP15: =J49 -> 1396.476227 | HQ15: =J50 -> 1523.886076 | HR15: =J51 -> 1634.164427 | HS15: =J52 -> 1873.662903 | HT15: =J53 -> 3089.107093 | HU15: =J54 -> 3463.307771 | HV15: =J55 -> 4166.091749 | HW15: =J56 -> 4335.117804 | HX15: =J57 -> 4165.911621 | HY15: =J58 -> 3609.599574 | HZ15: =J59 -> 3249.023826 | IA15: =J60 -> 3123.728795 | IC15: 3335.438038 | ID15: 3484.773611 | IE15: 2969.173156 | IG15: 2110.1425 | IH15: 3229.049601 | II15: 1545.270796 | IJ15: 1938.107971 | IK15: 3898.00667 | IL15: 3688.48958 | IM15: 3082.444927 | IO15: 1925 | IP15: =K49 -> 1396.476333 | IQ15: =K50 -> 1523.886187 | IR15: =K51 -> 1634.164539 | IS15: =K52 -> 1873.663015 | IT15: =K53 -> 3089.107205 | IU15: =K54 -> 3463.307883 | IV15: =K55 -> 4166.09186 | IW15: =K56 -> 4335.117915 | IX15: =K57 -> 4165.911731 | IY15: =K58 -> 3609.599662 | IZ15: =K59 -> 3249.023911 | JA15: =K60 -> 3123.72888 | JC15: =IF(JC$11="AVG",AVERAGE(IS15:JA15,IP16:IR16),SUM(IS15:JA15,IP16:IR16)) -> 3335.438134 | JD15: =IF(JD$11="AVG",AVERAGE(IU15:JA15,IP16:IT16),SUM(IU15:JA15,IP16:IT16)) -> 3484.7737 | JE15: =IF(JE$11="AVG",AVERAGE(IP15:JA15),SUM(IP15:JA15)) -> 2969.17326 | JG15: 2110.142611 | JH15: =IF(JH$11="AVG",IF(JI$1="INST-VAL",AVERAGE(IY15:JA15,IZ15:JA15,IP16),AVERAGE(IZ15:JA15,IP16)),SUM(IZ15:JA15,IP16)) -> 3229.049686 | JI15: =IF(JI$11="AVG",IF(JI$1="INST-VAL",AVERAGE(JA14,IP15:IR15,IP15:IS15),AVERAGE(IP15:IS15)),SUM(IP15:IS15)) -> 1545.270906 | JJ15: =IF(JJ$11="AVG",IF(JI$1="INST-VAL",AVERAGE(IQ15:IS15,IR15:IT15),AVERAGE(IR15:IT15)),SUM(IR15:IT15)) -> 1938.108083 | JK15: =IF(JK$11="AVG",IF(JI$1="INST-VAL",AVERAGE(IT15:IW15,IU15:IX15),AVERAGE(IU15:IX15)),SUM(IU15:IX15)) -> 3898.006781 | JL15: =IF(JL$11="AVG",IF(JI$1="INST-VAL",AVERAGE(IW15:IZ15,IX15:JA15),AVERAGE(IX15:JA15)),SUM(IX15:JA15)) -> 3688.489675 | JM15: =IF(JM$11="AVG",IF(JI$1="INST-VAL",AVERAGE(IZ15:JA15,IP16,JA15,IP16:IQ16),AVERAGE(JA15,IP16:IQ16)),SUM(JA15,IP16:IQ16)) -> 3082.445009
A16: 1922-01-31 | B16: =INDIRECT(CONCATENATE("'",B$1,"'!",B$4,(YEAR($A16)-1921)*12+MONTH($A16)+3+IF(ISNUMBER(FIND("PRV",B$6)),1,0)))*IF(AND(B$3>0,TRIM(B$9)="CFS"),Conversions!$C16,1) -> 3021.45025 | C16: =INDIRECT(CONCATENATE("'",C$1,"'!",C$4,(YEAR($A16)-1921)*12+MONTH($A16)+3+IF(ISNUMBER(FIND("PRV",C$6)),1,0)))*IF(AND(C$3>0,TRIM(C$9)="CFS"),Conversions!$C16,1) -> 3059.482836 | D16: =INDIRECT(CONCATENATE("'",D$1,"'!",D$4,(YEAR($A16)-1921)*12+MONTH($A16)+3+IF(ISNUMBER(FIND("PRV",D$6)),1,0)))*IF(AND(D$3>0,TRIM(D$9)="CFS"),Conversions!$C16,1) -> 3059.482836 | E16: =INDIRECT(CONCATENATE("'",E$1,"'!",E$4,(YEAR($A16)-1921)*12+MONTH($A16)+3+IF(ISNUMBER(FIND("PRV",E$6)),1,0)))*IF(AND(E$3>0,TRIM(E$9)="CFS"),Conversions!$C16,1) -> 3059.482836 | F16: =INDIRECT(CONCATENATE("'",F$1,"'!",F$4,(YEAR($A16)-1921)*12+MONTH($A16)+3+IF(ISNUMBER(FIND("PRV",F$6)),1,0)))*IF(AND(F$3>0,TRIM(F$9)="CFS"),Conversions!$C16,1) -> 3059.482836 | G16: =INDIRECT(CONCATENATE("'",G$1,"'!",G$4,(YEAR($A16)-1921)*12+MONTH($A16)+3+IF(ISNUMBER(FIND("PRV",G$6)),1,0)))*IF(AND(G$3>0,TRIM(G$9)="CFS"),Conversions!$C16,1) -> 3059.482836 | H16: =INDIRECT(CONCATENATE("'",H$1,"'!",H$4,(YEAR($A16)-1921)*12+MONTH($A16)+3+IF(ISNUMBER(FIND("PRV",H$6)),1,0)))*IF(AND(H$3>0,TRIM(H$9)="CFS"),Conversions!$C16,1) -> 3059.482836 | I16: =INDIRECT(CONCATENATE("'",I$1,"'!",I$4,(YEAR($A16)-1921)*12+MONTH($A16)+3+IF(ISNUMBER(FIND("PRV",I$6)),1,0)))*IF(AND(I$3>0,TRIM(I$9)="CFS"),Conversions!$C16,1) -> 3059.482836 | J16: =INDIRECT(CONCATENATE("'",J$1,"'!",J$4,(YEAR($A16)-1921)*12+MONTH($A16)+3+IF(ISNUMBER(FIND("PRV",J$6)),1,0)))*IF(AND(J$3>0,TRIM(J$9)="CFS"),Conversions!$C16,1) -> 3059.482836 | K16: =INDIRECT(CONCATENATE("'",K$1,"'!",K$4,(YEAR($A16)-1921)*12+MONTH($A16)+3+IF(ISNUMBER(FIND("PRV",K$6)),1,0)))*IF(AND(K$3>0,TRIM(K$9)="CFS"),Conversions!$C16,1) -> 3059.482836 | O16: 1926 | P16: =B61 -> 2961.40343 | Q16: =B62 -> 2901.825106 | R16: =B63 -> 2922.787565 | S16: =B64 -> 2958.819405 | T16: =B65 -> 3700.237766 | U16: =B66 -> 3719.610331 | V16: =B67 -> 4008.364793 | W16: =B68 -> 3714.452745 | X16: =B69 -> 3391.650819 | Y16: =B70 -> 3005.37459 | Z16: =B71 -> 2779.603715 | AA16: =B72 -> 2719.827887 | AC16: 3267.834892 | AD16: 3307.080128 | AE16: 3231.996513 | AG16: 3164.835345 | AH16: 2784.703489 | AI16: 2949.839524 | AJ16: 3060.879469 | AK16: 3747.09304 | AL16: 3098.44236 | AM16: 2798.719882 | AO16: 1926 | AP16: =C61 -> 3017.552929 | AQ16: =C62 -> 2956.691777 | AR16: =C63 -> 2969.730195 | AS16: =C64 -> 3005.732368 | AT16: =C65 -> 3747.1071 | AU16: =C66 -> 3776.831392 | AV16: =C67 -> 4100.682404 | AW16: =C68 -> 3795.713003 | AX16: =C69 -> 3433.321899 | AY16: =C70 -> 2936.335318 | AZ16: =C71 -> 2677.539384 | BA16: =C72 -> 2614.01502 | BC16: 3242.757051 | BD16: 3274.187095 | BE16: 3252.604399 | BG16: 3215.29072 | BH16: 2671.361886 | BI16: 3001.737173 | BJ16: 3109.120667 | BK16: 3815.860324 | BL16: 3063.015153 | BM16: 2648.850555 | BO16: 1926 | BP16: =D61 -> 3034.157195 | BQ16: =D62 -> 2972.527945 | BR16: =D63 -> 2983.309167 | BS16: =D64 -> 3019.30276 | BT16: =D65 -> 3760.664871 | BU16: =D66 -> 3783.263066 | BV16: =D67 -> 4105.836925 | BW16: =D68 -> 3800.666815 | BX16: =D69 -> 3438.317618 | BY16: =D70 -> 2940.911561 | BZ16: =D71 -> 2683.455798 | CA16: =D72 -> 2618.085661 | CC16: 3248.872977 | CD16: 3278.042341 | CE16: 3261.708282 | CG16: 3228.902975 | CH16: 2676.301161 | CI16: 3017.249703 | CJ16: 3123.069445 | CK16: 3822.314513 | CL16: 3068.015304 | CM16: 2653.735043 | CO16: 1926 | CP16: =E61 -> 3031.460568 | CQ16: =E62 -> 2970.233519 | CR16: =E63 -> 2981.077372 | CS16: =E64 -> 3017.072375 | CT16: =E65 -> 3758.436561 | CU16: =E66 -> 3781.372048 | CV16: =E67 -> 4113.414214 | CW16: =E68 -> 3808.154885 | CX16: =E69 -> 3443.779043 | CY16: =E70 -> 2945.650446 | CZ16: =E71 -> 2688.13065 | DA16: =E72 -> 2622.710483 | DC16: 3251.900248 | DD16: 3281.44117 | DE16: 3263.45768 | DG16: 3226.647227 | DH16: 2680.867253 | DI16: 3014.828976 | DJ16: 3120.828263 | DK16: 3826.012237 | DL16: 3073.248206 | DM16: 2658.084117 | DO16: 1926 | DP16: =F61 -> 3022.917029 | DQ16: =F62 -> 2962.297406 | DR16: =F63 -> 2980.261411 | DS16: =F64 -> 3016.256929 | DT16: =F65 -> 3757.621873 | DU16: =F66 -> 3771.49953 | DV16: =F67 -> 4103.559821 | DW16: =F68 -> 3798.747551 | DX16: =F69 -> 3433.418891 | DY16: =F70 -> 2939.974311 | DZ16: =F71 -> 2682.776587 | EA16: =F72 -> 2617.691597 | EC16: 3245.224688 | ED16: 3274.901455 | EE16: 3257.251911 | EG16: 3222.72918 | EH16: 2674.55126 | EI16: 3009.81913 | EJ16: 3118.825993 | EK16: 3817.331821 | EL16: 3066.097341 | EM16: 2649.784305 | EO16: 1926 | EP16: =G61 -> 3024.893944 | EQ16: =G62 -> 2963.450884 | ER16: =G63 -> 2982.327972 | ES16: =G64 -> 3018.322184 | ET16: =G65 -> 3759.685208 | EU16: =G66 -> 3775.180811 | EV16: =G67 -> 4107.234345 | EW16: =G68 -> 3802.30848 | EX16: =G69 -> 3434.085939 | EY16: =G70 -> 2936.889625 | EZ16: =G71 -> 2679.605019 | FA16: =G72 -> 2614.687776 | FC16: 3245.303417 | FD16: 3274.636135 | FE16: 3258.222682 | FG16: 3224.764725 | FH16: 2671.519419 | FI16: 3011.466764 | FJ16: 3120.739401 | FK16: 3820.402302 | FL16: 3064.769678 | FM16: 2646.877248 | FO16: 1926 | FP16: =H61 -> 3021.483686 | FQ16: =H62 -> 2960.348579 | FR16: =H63 -> 2983.33112 | FS16: =H64 -> 3019.324698 | FT16: =H65 -> 3760.686789 | FU16: =H66 -> 3772.588975 | FV16: =H67 -> 4104.647266 | FW16: =H68 -> 3805.003262 | FX16: =H69 -> 3439.105048 | FY16: =H70 -> 2938.548167 | FZ16: =H71 -> 2681.041556 | GA16: =H72 -> 2616.473946 | GC16: 3246.489657 | GD16: 3275.655366 | GE16: 3258.548591 | GG16: 3224.145503 | GH16: 2673.271555 | GI16: 3009.461792 | GJ16: 3121.057834 | GK16: 3820.533856 | GL16: 3067.358344 | GM16: 2648.915963 | GO16: 1926 | GP16: =I61 -> 3021.483685 | GQ16: =I62 -> 2960.348578 | GR16: =I63 -> 2983.331119 | GS16: =I64 -> 3019.324697 | GT16: =I65 -> 3760.686788 | GU16: =I66 -> 3788.345573 | GV16: =I67 -> 4120.37493 | GW16: =I68 -> 3815.101585 | GX16: =I69 -> 3447.32937 | GY16: =I70 -> 2945.681583 | GZ16: =I71 -> 2686.56684 | HA16: =I72 -> 2619.565844 | HC16: 3253.248315 | HD16: 3282.414025 | HE16: 3264.011716 | HG16: 3225.721162 | HH16: 2678.629236 | HI16: 3009.461791 | HJ16: 3121.057833 | HK16: 3831.957542 | HL16: 3074.227877 | HM16: 2654.754927 | HO16: 1926 | HP16: =J61 -> 3019.192789 | HQ16: =J62 -> 2959.802566 | HR16: =J63 -> 2970.709967 | HS16: =J64 -> 3006.711522 | HT16: =J65 -> 3748.085344 | HU16: =J66 -> 3772.595932 | HV16: =J67 -> 4104.654211 | HW16: =J68 -> 3799.560712 | HX16: =J69 -> 3436.340732 | HY16: =J70 -> 2939.124485 | HZ16: =J71 -> 2681.612228 | IA16: =J72 -> 2616.251609 | IC16: 3244.843844 | ID16: 3276.110772 | IE16: 3254.553508 | IG16: 3216.240752 | IH16: 2674.545515 | II16: 3003.73137 | IJ16: 3110.455148 | IK16: 3817.255973 | IL16: 3066.245901 | IM16: 2652.120955 | IO16: 1926 | IP16: =K61 -> 3019.192873 | IQ16: =K62 -> 2959.802638 | IR16: =K63 -> 2970.710038 | IS16: =K64 -> 3006.711593 | IT16: =K65 -> 3748.085414 | IU16: =K66 -> 3772.595991 | IV16: =K67 -> 4104.65427 | IW16: =K68 -> 3799.560769 | IX16: =K69 -> 3436.340784 | IY16: =K70 -> 2939.124534 | IZ16: =K71 -> 2681.612261 | JA16: =K72 -> 2616.251641 | JC16: =IF(JC$11="AVG",AVERAGE(IS16:JA16,IP17:IR17),SUM(IS16:JA16,IP17:IR17)) -> 3244.8439 | JD16: =IF(JD$11="AVG",AVERAGE(IU16:JA16,IP17:IT17),SUM(IU16:JA16,IP17:IT17)) -> 3276.110816 | JE16: =IF(JE$11="AVG",AVERAGE(IP16:JA16),SUM(IP16:JA16)) -> 3254.553567 | JG16: 3216.240823 | JH16: =IF(JH$11="AVG",IF(JI$1="INST-VAL",AVERAGE(IY16:JA16,IZ16:JA16,IP17),AVERAGE(IZ16:JA16,IP17)),SUM(IZ16:JA16,IP17)) -> 2674.54556 | JI16: =IF(JI$11="AVG",IF(JI$1="INST-VAL",AVERAGE(JA15,IP16:IR16,IP16:IS16),AVERAGE(IP16:IS16)),SUM(IP16:IS16)) -> 3003.731447 | JJ16: =IF(JJ$11="AVG",IF(JI$1="INST-VAL",AVERAGE(IQ16:IS16,IR16:IT16),AVERAGE(IR16:IT16)),SUM(IR16:IT16)) -> 3110.455219 | JK16: =IF(JK$11="AVG",IF(JI$1="INST-VAL",AVERAGE(IT16:IW16,IU16:IX16),AVERAGE(IU16:IX16)),SUM(IU16:IX16)) -> 3817.256032 | JL16: =IF(JL$11="AVG",IF(JI$1="INST-VAL",AVERAGE(IW16:IZ16,IX16:JA16),AVERAGE(IX16:JA16)),SUM(IX16:JA16)) -> 3066.245946 | JM16: =IF(JM$11="AVG",IF(JI$1="INST-VAL",AVERAGE(IZ16:JA16,IP17,JA16,IP17:IQ17),AVERAGE(JA16,IP17:IQ17)),SUM(JA16,IP17:IQ17)) -> 2652.121017
A17: 1922-02-28 | B17: =INDIRECT(CONCATENATE("'",B$1,"'!",B$4,(YEAR($A17)-1921)*12+MONTH($A17)+3+IF(ISNUMBER(FIND("PRV",B$6)),1,0)))*IF(AND(B$3>0,TRIM(B$9)="CFS"),Conversions!$C17,1) -> 3448.078868 | C17: =INDIRECT(CONCATENATE("'",C$1,"'!",C$4,(YEAR($A17)-1921)*12+MONTH($A17)+3+IF(ISNUMBER(FIND("PRV",C$6)),1,0)))*IF(AND(C$3>0,TRIM(C$9)="CFS"),Conversions!$C17,1) -> 3486.086573 | D17: =INDIRECT(CONCATENATE("'",D$1,"'!",D$4,(YEAR($A17)-1921)*12+MONTH($A17)+3+IF(ISNUMBER(FIND("PRV",D$6)),1,0)))*IF(AND(D$3>0,TRIM(D$9)="CFS"),Conversions!$C17,1) -> 3486.086573 | E17: =INDIRECT(CONCATENATE("'",E$1,"'!",E$4,(YEAR($A17)-1921)*12+MONTH($A17)+3+IF(ISNUMBER(FIND("PRV",E$6)),1,0)))*IF(AND(E$3>0,TRIM(E$9)="CFS"),Conversions!$C17,1) -> 3486.086573 | F17: =INDIRECT(CONCATENATE("'",F$1,"'!",F$4,(YEAR($A17)-1921)*12+MONTH($A17)+3+IF(ISNUMBER(FIND("PRV",F$6)),1,0)))*IF(AND(F$3>0,TRIM(F$9)="CFS"),Conversions!$C17,1) -> 3486.086573 | G17: =INDIRECT(CONCATENATE("'",G$1,"'!",G$4,(YEAR($A17)-1921)*12+MONTH($A17)+3+IF(ISNUMBER(FIND("PRV",G$6)),1,0)))*IF(AND(G$3>0,TRIM(G$9)="CFS"),Conversions!$C17,1) -> 3486.086573 | H17: =INDIRECT(CONCATENATE("'",H$1,"'!",H$4,(YEAR($A17)-1921)*12+MONTH($A17)+3+IF(ISNUMBER(FIND("PRV",H$6)),1,0)))*IF(AND(H$3>0,TRIM(H$9)="CFS"),Conversions!$C17,1) -> 3486.086573 | I17: =INDIRECT(CONCATENATE("'",I$1,"'!",I$4,(YEAR($A17)-1921)*12+MONTH($A17)+3+IF(ISNUMBER(FIND("PRV",I$6)),1,0)))*IF(AND(I$3>0,TRIM(I$9)="CFS"),Conversions!$C17,1) -> 3486.086573 | J17: =INDIRECT(CONCATENATE("'",J$1,"'!",J$4,(YEAR($A17)-1921)*12+MONTH($A17)+3+IF(ISNUMBER(FIND("PRV",J$6)),1,0)))*IF(AND(J$3>0,TRIM(J$9)="CFS"),Conversions!$C17,1) -> 3486.086573 | K17: =INDIRECT(CONCATENATE("'",K$1,"'!",K$4,(YEAR($A17)-1921)*12+MONTH($A17)+3+IF(ISNUMBER(FIND("PRV",K$6)),1,0)))*IF(AND(K$3>0,TRIM(K$9)="CFS"),Conversions!$C17,1) -> 3486.086573 | O17: 1927 | P17: =B73 -> 2703.983144 | Q17: =B74 -> 3165.093514 | R17: =B75 -> 3347 | S17: =B76 -> 3668 | T17: =B77 -> 3462 | U17: =B78 -> 4085.375156 | V17: =B79 -> 4552 | W17: =B80 -> 4552 | X17: =B81 -> 4346.501847 | Y17: =B82 -> 3842.863245 | Z17: =B83 -> 3463.109571 | AA17: =B84 -> 3184.04974 | AC17: 3736.512304 | AD17: 3788.54325 | AE17: 3697.664685 | AG17: 3407.354533 | AH17: 3367.404993 | AI17: 3102.49765 | AJ17: 3442.848919 | AK17: 4273.40652 | AL17: 3880.124883 | AM17: 3202.950873 | AO17: 1927 | AP17: =C73 -> 2508.727187 | AQ17: =C74 -> 2970.079532 | AR17: =C75 -> 3347 | AS17: =C76 -> 3668 | AT17: =C77 -> 3462 | AU17: =C78 -> 4085.375156 | AV17: =C79 -> 4552 | AW17: =C80 -> 4552 | AX17: =C81 -> 4356.732902 | AY17: =C82 -> 3847.257286 | AZ17: =C83 -> 3467.137898 | BA17: =C84 -> 3190.01374 | BC17: 3739.048411 | BD17: 3791.079357 | BE17: 3667.193642 | BG17: 3348.826141 | BH17: 3372.437419 | BI17: 2991.703557 | BJ17: 3410.346589 | BK17: 4274.685402 | BL17: 3885.533739 | BM17: 3207.54888 | BO17: 1927 | BP17: =D73 -> 2513.812489 | BQ17: =D74 -> 2975.158161 | BR17: =D75 -> 3347 | BS17: =D76 -> 3668 | BT17: =D77 -> 3462 | BU17: =D78 -> 4085.375156 | BV17: =D79 -> 4552 | BW17: =D80 -> 4552 | BX17: =D81 -> 4356.073297 | BY17: =D82 -> 3845.992228 | BZ17: =D83 -> 3465.638444 | CA17: =D84 -> 3188.607115 | CC17: 3738.527422 | CD17: 3790.558368 | CE17: 3667.638074 | CG17: =IF(CG$11="AVG",IF(CI$1="INST-VAL",AVERAGE(BP17:BT17,BQ17:BU17),AVERAGE(BQ17:BU17)),SUM(BQ17:BU17)) -> 3350.350397 | CH17: =IF(CH$11="AVG",IF(CI$1="INST-VAL",AVERAGE(BY17:CA17,BZ17:CA17,BP18),AVERAGE(BZ17:CA17,BP18)),SUM(BZ17:CA17,BP18)) -> 3371.021028 | CI17: 2994.75337 | CJ17: 3411.193027 | CK17: 4274.602951 | CL17: 3884.501882 | CM17: 3206.356386 | CO17: 1927 | CP17: =E73 -> 2517.870809 | CQ17: =E74 -> 2979.211468 | CR17: =E75 -> 3347 | CS17: =E76 -> 3668 | CT17: =E77 -> 3462 | CU17: =E78 -> 4085.375156 | CV17: =E79 -> 4552 | CW17: =E80 -> 4552 | CX17: =E81 -> 4356.077753 | CY17: =E82 -> 3845.996856 | CZ17: =E83 -> 3465.644619 | DA17: =E84 -> 3188.609667 | DC17: 3738.529111 | DD17: 3790.560057 | DE17: 3668.315527 | DG17: 3351.56689 | DH17: 3371.025118 | DI17: 2997.35938 | DJ17: 3411.868578 | DK17: 4274.603508 | DL17: 3884.506016 | DM17: 3206.359085 | DO17: 1927 | DP17: =F73 -> 2506.396883 | DQ17: =F74 -> 2967.752285 | DR17: =F75 -> 3347 | DS17: =F76 -> 3668 | DT17: =F77 -> 3462 | DU17: =F78 -> 4085.375156 | DV17: =F79 -> 4552 | DW17: =F80 -> 4552 | DX17: =F81 -> 4356.460939 | DY17: =F82 -> 3846.415023 | DZ17: =F83 -> 3466.187025 | EA17: =F84 -> 3189.189995 | EC17: 3738.738858 | ED17: 3790.769804 | EE17: 3666.564775 | EG17: 3348.127661 | EH17: 3371.567871 | EI17: 2990.998742 | EJ17: 3409.958714 | EK17: 4274.651406 | EL17: 3884.914496 | EM17: 3206.840556 | EO17: 1927 | EP17: =G73 -> 2503.641301 | EQ17: =G74 -> 2965.000318 | ER17: =G75 -> 3347 | ES17: =G76 -> 3668 | ET17: =G77 -> 3462 | EU17: =G78 -> 4085.375156 | EV17: =G79 -> 4552 | EW17: =G80 -> 4552 | EX17: =G81 -> 4356.409332 | EY17: =G82 -> 3846.359603 | EZ17: =G83 -> 3466.122286 | FA17: =G84 -> 3189.120867 | FC17: 3738.713063 | FD17: 3790.744009 | FE17: 3666.085739 | FG17: 3347.301709 | FH17: 3371.502571 | FI17: 2989.246377 | FJ17: 3409.500053 | FK17: 4274.644955 | FL17: 3884.862914 | FM17: 3206.783842 | FO17: 1927 | FP17: =H73 -> 2506.050157 | FQ17: =H74 -> 2967.406014 | FR17: =H75 -> 3347 | FS17: =H76 -> 3668 | FT17: =H77 -> 3462 | FU17: =H78 -> 4085.375156 | FV17: =H79 -> 4552 | FW17: =H80 -> 4552 | FX17: =H81 -> 4356.656934 | FY17: =H82 -> 3847.164515 | FZ17: =H83 -> 3467.025931 | GA17: =H84 -> 3189.894205 | GC17: 3739.005111 | GD17: 3791.036057 | GE17: 3666.714409 | GG17: 3348.023734 | GH17: 3372.324896 | GI17: 2990.673286 | GJ17: 3409.901002 | GK17: 4274.675906 | GL17: 3885.448621 | GM17: 3207.450586 | GO17: 1927 | GP17: =I73 -> 2513.828462 | GQ17: =I74 -> 2975.174113 | GR17: =I75 -> 3347 | GS17: =I76 -> 3668 | GT17: =I77 -> 3462 | GU17: =I78 -> 4085.375156 | GV17: =I79 -> 4552 | GW17: =I80 -> 4552 | GX17: =I81 -> 4356.715388 | GY17: =I82 -> 3847.215662 | GZ17: =I83 -> 3467.091834 | HA17: =I84 -> 3189.978464 | HC17: 3739.033874 | HD17: 3791.06482 | HE17: 3668.03159 | HG17: 3350.355184 | HH17: 3372.397707 | HI17: 2994.946374 | HJ17: 3411.195685 | HK17: 4274.683212 | HL17: 3885.503029 | HM17: 3207.518122 | HO17: 1927 | HP17: =J73 -> 2512.420929 | HQ17: =J74 -> 2973.768427 | HR17: =J75 -> 3347 | HS17: =J76 -> 3668 | HT17: =J77 -> 3462 | HU17: =J78 -> 4085.375156 | HV17: =J79 -> 4552 | HW17: =J80 -> 4552 | HX17: =J81 -> 4356.280548 | HY17: =J82 -> 3846.216522 | HZ17: =J83 -> 3465.936589 | IA17: =J84 -> 3188.913207 | IC17: 3738.639803 | ID17: 3790.670748 | IE17: 3667.492615 | IG17: 3349.933294 | IH17: 3371.311954 | II17: 2993.82879 | IJ17: 3410.961405 | IK17: 4274.628857 | IL17: 3884.722566 | IM17: 3206.61237 | IO17: 1927 | IP17: =K73 -> 2512.42102 | IQ17: =K74 -> 2973.768519 | IR17: =K75 -> 3347 | IS17: =K76 -> 3668 | IT17: =K77 -> 3462 | IU17: =K78 -> 4085.375156 | IV17: =K79 -> 4552 | IW17: =K80 -> 4552 | IX17: =K81 -> 4356.336137 | IY17: =K82 -> 3846.277191 | IZ17: =K83 -> 3466.012981 | JA17: =K84 -> 3188.994147 | JC17: =IF(JC$11="AVG",AVERAGE(IS17:JA17,IP18:IR18),SUM(IS17:JA17,IP18:IR18)) -> 3738.669459 | JD17: =IF(JD$11="AVG",AVERAGE(IU17:JA17,IP18:IT18),SUM(IU17:JA17,IP18:IT18)) -> 3790.700405 | JE17: =IF(JE$11="AVG",AVERAGE(IP17:JA17),SUM(IP17:JA17)) -> 3667.515429 | JG17: 3349.933321 | JH17: =IF(JH$11="AVG",IF(JI$1="INST-VAL",AVERAGE(IY17:JA17,IZ17:JA17,IP18),AVERAGE(IZ17:JA17,IP18)),SUM(IZ17:JA17,IP18)) -> 3371.388224 | JI17: =IF(JI$11="AVG",IF(JI$1="INST-VAL",AVERAGE(JA16,IP17:IR17,IP17:IS17),AVERAGE(IP17:IS17)),SUM(IP17:IS17)) -> 2993.82884 | JJ17: =IF(JJ$11="AVG",IF(JI$1="INST-VAL",AVERAGE(IQ17:IS17,IR17:IT17),AVERAGE(IR17:IT17)),SUM(IR17:IT17)) -> 3410.96142 | JK17: =IF(JK$11="AVG",IF(JI$1="INST-VAL",AVERAGE(IT17:IW17,IU17:IX17),AVERAGE(IU17:IX17)),SUM(IU17:IX17)) -> 4274.635806 | JL17: =IF(JL$11="AVG",IF(JI$1="INST-VAL",AVERAGE(IW17:IZ17,IX17:JA17),AVERAGE(IX17:JA17)),SUM(IX17:JA17)) -> 3884.780846 | JM17: =IF(JM$11="AVG",IF(JI$1="INST-VAL",AVERAGE(IZ17:JA17,IP18,JA17,IP18:IQ18),AVERAGE(JA17,IP18:IQ18)),SUM(JA17,IP18:IQ18)) -> 3206.679511
A18: 1922-03-31 | B18: =INDIRECT(CONCATENATE("'",B$1,"'!",B$4,(YEAR($A18)-1921)*12+MONTH($A18)+3+IF(ISNUMBER(FIND("PRV",B$6)),1,0)))*IF(AND(B$3>0,TRIM(B$9)="CFS"),Conversions!$C18,1) -> 3968.731586 | C18: =INDIRECT(CONCATENATE("'",C$1,"'!",C$4,(YEAR($A18)-1921)*12+MONTH($A18)+3+IF(ISNUMBER(FIND("PRV",C$6)),1,0)))*IF(AND(C$3>0,TRIM(C$9)="CFS"),Conversions!$C18,1) -> 4006.69414 | D18: =INDIRECT(CONCATENATE("'",D$1,"'!",D$4,(YEAR($A18)-1921)*12+MONTH($A18)+3+IF(ISNUMBER(FIND("PRV",D$6)),1,0)))*IF(AND(D$3>0,TRIM(D$9)="CFS"),Conversions!$C18,1) -> 4006.69414 | E18: =INDIRECT(CONCATENATE("'",E$1,"'!",E$4,(YEAR($A18)-1921)*12+MONTH($A18)+3+IF(ISNUMBER(FIND("PRV",E$6)),1,0)))*IF(AND(E$3>0,TRIM(E$9)="CFS"),Conversions!$C18,1) -> 4006.69414 | F18: =INDIRECT(CONCATENATE("'",F$1,"'!",F$4,(YEAR($A18)-1921)*12+MONTH($A18)+3+IF(ISNUMBER(FIND("PRV",F$6)),1,0)))*IF(AND(F$3>0,TRIM(F$9)="CFS"),Conversions!$C18,1) -> 4006.69414 | G18: =INDIRECT(CONCATENATE("'",G$1,"'!",G$4,(YEAR($A18)-1921)*12+MONTH($A18)+3+IF(ISNUMBER(FIND("PRV",G$6)),1,0)))*IF(AND(G$3>0,TRIM(G$9)="CFS"),Conversions!$C18,1) -> 4006.69414 | H18: =INDIRECT(CONCATENATE("'",H$1,"'!",H$4,(YEAR($A18)-1921)*12+MONTH($A18)+3+IF(ISNUMBER(FIND("PRV",H$6)),1,0)))*IF(AND(H$3>0,TRIM(H$9)="CFS"),Conversions!$C18,1) -> 4006.69414 | I18: =INDIRECT(CONCATENATE("'",I$1,"'!",I$4,(YEAR($A18)-1921)*12+MONTH($A18)+3+IF(ISNUMBER(FIND("PRV",I$6)),1,0)))*IF(AND(I$3>0,TRIM(I$9)="CFS"),Conversions!$C18,1) -> 4006.69414 | J18: =INDIRECT(CONCATENATE("'",J$1,"'!",J$4,(YEAR($A18)-1921)*12+MONTH($A18)+3+IF(ISNUMBER(FIND("PRV",J$6)),1,0)))*IF(AND(J$3>0,TRIM(J$9)="CFS"),Conversions!$C18,1) -> 4006.69414 | K18: =INDIRECT(CONCATENATE("'",K$1,"'!",K$4,(YEAR($A18)-1921)*12+MONTH($A18)+3+IF(ISNUMBER(FIND("PRV",K$6)),1,0)))*IF(AND(K$3>0,TRIM(K$9)="CFS"),Conversions!$C18,1) -> 4006.69414 | O18: 1928 | P18: =B85 -> 3067.248092 | Q18: =B86 -> 3252 | R18: =B87 -> 3363 | S18: =B88 -> 3655.371351 | T18: =B89 -> 4099 | U18: =B90 -> 3965 | V18: =B91 -> 4552 | W18: =B92 -> 4461.962636 | X18: =B93 -> 4003.978951 | Y18: =B94 -> 3298.998982 | Z18: =B95 -> 2837.249946 | AA18: =B96 -> 2573.693903 | AC18: 3364.24235 | AD18: 3164.679739 | AE18: 3594.125322 | AG18: 3577.099079 | AH18: 2744.938116 | AI18: 3275.489659 | AJ18: 3564.623784 | AK18: 4257.613028 | AL18: 3414.514037 | AM18: 2489.153479 | AO18: 1928 | AP18: =C85 -> 3073.06395 | AQ18: =C86 -> 3252 | AR18: =C87 -> 3363 | AS18: =C88 -> 3655.371351 | AT18: =C89 -> 4099 | AU18: =C90 -> 3965 | AV18: =C91 -> 4552 | AW18: =C92 -> 4477.54442 | AX18: =C93 -> 4063.891166 | AY18: =C94 -> 3358.672837 | AZ18: =C95 -> 2898.68175 | BA18: =C96 -> 2622.633482 | BC18: 3400.771357 | BD18: 3211.997043 | BE18: 3615.07158 | BG18: 3577.680665 | BH18: 2802.313422 | BI18: 3277.689124 | BJ18: 3564.623784 | BK18: 4268.997501 | BL18: 3467.833676 | BM18: 2547.680062 | BO18: 1928 | BP18: =D85 -> 3071.642822 | BQ18: =D86 -> 3252 | BR18: =D87 -> 3363 | BS18: =D88 -> 3655.371351 | BT18: =D89 -> 4099 | BU18: =D90 -> 3965 | BV18: =D91 -> 4552 | BW18: =D92 -> 4477.182939 | BX18: =D93 -> 4085.604862 | BY18: =D94 -> 3380.300145 | BZ18: =D95 -> 2918.752619 | CA18: =D96 -> 2622.648057 | CC18: 3410.727009 | CD18: 3225.080026 | CE18: 3620.208566 | CG18: 3577.538553 | CH18: 2815.744523 | CI18: 3277.158014 | CJ18: 3564.623784 | CK18: 4271.621343 | CL18: 3483.643281 | CM18: 2560.431459 | CO18: 1928 | CP18: =E85 -> 3071.645279 | CQ18: =E86 -> 3252 | CR18: =E87 -> 3363 | CS18: =E88 -> 3655.371351 | CT18: =E89 -> 4099 | CU18: =E90 -> 3965 | CV18: =E91 -> 4552 | CW18: =E92 -> 4477.158862 | CX18: =E93 -> 4085.655726 | CY18: =E94 -> 3380.350806 | CZ18: =E95 -> 2918.799415 | DA18: =E96 -> 2622.648091 | DC18: 3410.748403 | DD18: 3225.108991 | DE18: 3620.219128 | DG18: =IF(DG$11="AVG",IF(DI$1="INST-VAL",AVERAGE(CP18:CT18,CQ18:CU18),AVERAGE(CQ18:CU18)),SUM(CQ18:CU18)) -> 3577.538798 | DH18: =IF(DH$11="AVG",IF(DI$1="INST-VAL",AVERAGE(CY18:DA18,CZ18:DA18,CP19),AVERAGE(CZ18:DA18,CP19)),SUM(CZ18:DA18,CP19)) -> 2815.775906 | DI18: 3277.158947 | DJ18: 3564.623784 | DK18: 4271.621681 | DL18: 3483.677356 | DM18: 2560.461096 | DO18: 1928 | DP18: =F85 -> 3072.238162 | DQ18: =F86 -> 3252 | DR18: =F87 -> 3363 | DS18: =F88 -> 3655.371351 | DT18: =F89 -> 4099 | DU18: =F90 -> 3965 | DV18: =F91 -> 4552 | DW18: =F92 -> 4477.497569 | DX18: =F93 -> 4074.103995 | DY18: =F94 -> 3368.845034 | DZ18: =F95 -> 2907.207716 | EA18: =F96 -> 2622.640338 | EC18: 3405.003049 | ED18: 3217.442256 | EE18: 3617.40868 | EG18: =IF(EG$11="AVG",IF(EI$1="INST-VAL",AVERAGE(DP18:DT18,DQ18:DU18),AVERAGE(DQ18:DU18)),SUM(DQ18:DU18)) -> 3577.598086 | EH18: =IF(EH$11="AVG",IF(EI$1="INST-VAL",AVERAGE(DY18:EA18,DZ18:EA18,DP19),AVERAGE(DZ18:EA18,DP19)),SUM(DZ18:EA18,DP19)) -> 2808.067298 | EI18: 3277.379709 | EJ18: 3564.623784 | EK18: 4270.262392 | EL18: 3475.056424 | EM18: 2552.754365 | EO18: 1928 | EP18: =G85 -> 3072.169514 | EQ18: =G86 -> 3252 | ER18: =G87 -> 3363 | ES18: =G88 -> 3655.371351 | ET18: =G89 -> 4099 | EU18: =G90 -> 3965 | EV18: =G91 -> 4552 | EW18: =G92 -> 4476.786933 | EX18: =G93 -> 4082.921525 | EY18: =G94 -> 3377.627483 | EZ18: =G95 -> 2919.416674 | FA18: =G96 -> 2622.646256 | FC18: 3410.470124 | FD18: 3224.934686 | FE18: 3619.828311 | FG18: =IF(FG$11="AVG",IF(FI$1="INST-VAL",AVERAGE(EP18:ET18,EQ18:EU18),AVERAGE(EQ18:EU18)),SUM(EQ18:EU18)) -> 3577.591222 | FH18: 2815.636491 | FI18: 3277.353906 | FJ18: 3564.623784 | FK18: 4271.186924 | FL18: 3482.420569 | FM18: 2560.881059 | FO18: 1928 | FP18: =H85 -> 3072.944586 | FQ18: =H86 -> 3252 | FR18: =H87 -> 3363 | FS18: =H88 -> 3655.371351 | FT18: =H89 -> 4099 | FU18: =H90 -> 3965 | FV18: =H91 -> 4552 | FW18: =H92 -> 4476.919893 | FX18: =H93 -> 4074.519032 | FY18: =H94 -> 3369.25842 | FZ18: =H95 -> 2910.986034 | GA18: =H96 -> 2622.640616 | GC18: 3406.283923 | GD18: 3219.354532 | GE18: 3617.803328 | GG18: =IF(GG$11="AVG",IF(GI$1="INST-VAL",AVERAGE(FP18:FT18,FQ18:FU18),AVERAGE(FQ18:FU18)),SUM(FQ18:FU18)) -> 3577.668729 | GH18: 2810.030084 | GI18: 3277.644341 | GJ18: 3564.623784 | GK18: 4270.169852 | GL18: 3476.135935 | GM18: 2555.276688 | GO18: 1928 | GP18: =I85 -> 3073.029986 | GQ18: =I86 -> 3252 | GR18: =I87 -> 3363 | GS18: =I88 -> 3655.371351 | GT18: =I89 -> 4099 | GU18: =I90 -> 3965 | GV18: =I91 -> 4552 | GW18: =I92 -> 4477.546053 | GX18: =I93 -> 4066.290663 | GY18: =I94 -> 3361.062787 | GZ18: =I95 -> 2901.096073 | HA18: =I96 -> 2622.635093 | HC18: 3401.974522 | HD18: 3213.601109 | HE18: 3615.669334 | HG18: =IF(HG$11="AVG",IF(HI$1="INST-VAL",AVERAGE(GP18:GT18,GQ18:GU18),AVERAGE(GQ18:GU18)),SUM(GQ18:GU18)) -> 3577.677269 | HH18: 2803.918878 | HI18: 3277.676224 | HJ18: 3564.623784 | HK18: 4269.297846 | HL18: 3469.635024 | HM18: 2549.288657 | HO18: 1928 | HP18: =J85 -> 3071.955609 | HQ18: =J86 -> 3252 | HR18: =J87 -> 3363 | HS18: =J88 -> 3655.371351 | HT18: =J89 -> 4099 | HU18: =J90 -> 3965 | HV18: =J91 -> 4552 | HW18: =J92 -> 4476.962232 | HX18: =J93 -> 4085.960621 | HY18: =J94 -> 3380.654488 | HZ18: =J95 -> 2919.076667 | IA18: =J96 -> 2622.648296 | IC18: 3410.869769 | ID18: 3225.272449 | IE18: 3620.302439 | IG18: =IF(IG$11="AVG",IF(II$1="INST-VAL",AVERAGE(HP18:HT18,HQ18:HU18),AVERAGE(HQ18:HU18)),SUM(HQ18:HU18)) -> 3577.569831 | IH18: 2815.962015 | II18: 3277.274472 | IJ18: 3564.623784 | IK18: 4271.610636 | IL18: 3483.87426 | IM18: 2560.63608 | IO18: 1928 | IP18: =K85 -> 3072.037894 | IQ18: =K86 -> 3252 | IR18: =K87 -> 3363 | IS18: =K88 -> 3655.371351 | IT18: =K89 -> 4099 | IU18: =K90 -> 3965 | IV18: =K91 -> 4552 | IW18: =K92 -> 4476.895919 | IX18: =K93 -> 4086.085988 | IY18: =K94 -> 3380.779357 | IZ18: =K95 -> 2919.191721 | JA18: =K96 -> 2622.64838 | JC18: =IF(JC$11="AVG",AVERAGE(IS18:JA18,IP19:IR19),SUM(IS18:JA18,IP19:IR19)) -> 3410.921235 | JD18: =IF(JD$11="AVG",AVERAGE(IU18:JA18,IP19:IT19),SUM(IU18:JA18,IP19:IT19)) -> 3225.341574 | JE18: =IF(JE$11="AVG",AVERAGE(IP18:JA18),SUM(IP18:JA18)) -> 3620.334218 | JG18: =IF(JG$11="AVG",IF(JI$1="INST-VAL",AVERAGE(IP18:IT18,IQ18:IU18),AVERAGE(IQ18:IU18)),SUM(IQ18:IU18)) -> 3577.57806 | JH18: =IF(JH$11="AVG",IF(JI$1="INST-VAL",AVERAGE(IY18:JA18,IZ18:JA18,IP19),AVERAGE(IZ18:JA18,IP19)),SUM(IZ18:JA18,IP19)) -> 2816.039063 | JI18: =IF(JI$11="AVG",IF(JI$1="INST-VAL",AVERAGE(JA17,IP18:IR18,IP18:IS18),AVERAGE(IP18:IS18)),SUM(IP18:IS18)) -> 3277.305161 | JJ18: =IF(JJ$11="AVG",IF(JI$1="INST-VAL",AVERAGE(IQ18:IS18,IR18:IT18),AVERAGE(IR18:IT18)),SUM(IR18:IT18)) -> 3564.623784 | JK18: =IF(JK$11="AVG",IF(JI$1="INST-VAL",AVERAGE(IT18:IW18,IU18:IX18),AVERAGE(IU18:IX18)),SUM(IU18:IX18)) -> 4271.609728 | JL18: =IF(JL$11="AVG",IF(JI$1="INST-VAL",AVERAGE(IW18:IZ18,IX18:JA18),AVERAGE(IX18:JA18)),SUM(IX18:JA18)) -> 3483.957304 | JM18: =IF(JM$11="AVG",IF(JI$1="INST-VAL",AVERAGE(IZ18:JA18,IP19,JA18,IP19:IQ19),AVERAGE(JA18,IP19:IQ19)),SUM(JA18,IP19:IQ19)) -> 2560.708552
A19: 1922-04-30 | B19: =INDIRECT(CONCATENATE("'",B$1,"'!",B$4,(YEAR($A19)-1921)*12+MONTH($A19)+3+IF(ISNUMBER(FIND("PRV",B$6)),1,0)))*IF(AND(B$3>0,TRIM(B$9)="CFS"),Conversions!$C19,1) -> 4552 | C19: =INDIRECT(CONCATENATE("'",C$1,"'!",C$4,(YEAR($A19)-1921)*12+MONTH($A19)+3+IF(ISNUMBER(FIND("PRV",C$6)),1,0)))*IF(AND(C$3>0,TRIM(C$9)="CFS"),Conversions!$C19,1) -> 4552 | D19: =INDIRECT(CONCATENATE("'",D$1,"'!",D$4,(YEAR($A19)-1921)*12+MONTH($A19)+3+IF(ISNUMBER(FIND("PRV",D$6)),1,0)))*IF(AND(D$3>0,TRIM(D$9)="CFS"),Conversions!$C19,1) -> 4552 | E19: =INDIRECT(CONCATENATE("'",E$1,"'!",E$4,(YEAR($A19)-1921)*12+MONTH($A19)+3+IF(ISNUMBER(FIND("PRV",E$6)),1,0)))*IF(AND(E$3>0,TRIM(E$9)="CFS"),Conversions!$C19,1) -> 4552 | F19: =INDIRECT(CONCATENATE("'",F$1,"'!",F$4,(YEAR($A19)-1921)*12+MONTH($A19)+3+IF(ISNUMBER(FIND("PRV",F$6)),1,0)))*IF(AND(F$3>0,TRIM(F$9)="CFS"),Conversions!$C19,1) -> 4552 | G19: =INDIRECT(CONCATENATE("'",G$1,"'!",G$4,(YEAR($A19)-1921)*12+MONTH($A19)+3+IF(ISNUMBER(FIND("PRV",G$6)),1,0)))*IF(AND(G$3>0,TRIM(G$9)="CFS"),Conversions!$C19,1) -> 4552 | H19: =INDIRECT(CONCATENATE("'",H$1,"'!",H$4,(YEAR($A19)-1921)*12+MONTH($A19)+3+IF(ISNUMBER(FIND("PRV",H$6)),1,0)))*IF(AND(H$3>0,TRIM(H$9)="CFS"),Conversions!$C19,1) -> 4552 | I19: =INDIRECT(CONCATENATE("'",I$1,"'!",I$4,(YEAR($A19)-1921)*12+MONTH($A19)+3+IF(ISNUMBER(FIND("PRV",I$6)),1,0)))*IF(AND(I$3>0,TRIM(I$9)="CFS"),Conversions!$C19,1) -> 4552 | J19: =INDIRECT(CONCATENATE("'",J$1,"'!",J$4,(YEAR($A19)-1921)*12+MONTH($A19)+3+IF(ISNUMBER(FIND("PRV",J$6)),1,0)))*IF(AND(J$3>0,TRIM(J$9)="CFS"),Conversions!$C19,1) -> 4552 | K19: =INDIRECT(CONCATENATE("'",K$1,"'!",K$4,(YEAR($A19)-1921)*12+MONTH($A19)+3+IF(ISNUMBER(FIND("PRV",K$6)),1,0)))*IF(AND(K$3>0,TRIM(K$9)="CFS"),Conversions!$C19,1) -> 4552 | O19: 1929 | P19: =B97 -> 2348.742017 | Q19: =B98 -> 2252.799085 | R19: =B99 -> 2322.111331 | S19: =B100 -> 2586.413922 | T19: =B101 -> 2773.2061 | U19: =B102 -> 2918.664896 | V19: =B103 -> 3061.378344 | W19: =B104 -> 2765.945964 | X19: =B105 -> 2560.955493 | Y19: =B106 -> 2310.767505 | Z19: =B107 -> 2078.512335 | AA19: =B108 -> 2020.162497 | AC19: 2409.447239 | AD19: 2405.730091 | AE19: 2499.971624 | AG19: 2513.646779 | AH19: 2061.885884 | AI19: 2375.926586 | AJ19: 2473.842615 | AK19: 2853.2675 | AL19: 2335.822391 | AM19: 1927.03901 | AO19: 1929 | AP19: =C97 -> 2412.577229 | AQ19: =C98 -> 2316.9772 | AR19: =C99 -> 2386.906845 | AS19: =C100 -> 2651.16599 | AT19: =C101 -> 2837.91359 | AU19: =C102 -> 2960.094004 | AV19: =C103 -> 3100.978249 | AW19: =C104 -> 2922.224043 | AX19: =C105 -> 2714.336525 | AY19: =C106 -> 2466.489025 | AZ19: =C107 -> 2192.822458 | BA19: =C108 -> 2106.591804 | BC19: 2502.517839 | BD19: 2500.935438 | BE19: 2589.089747 | BG19: 2575.859849 | BH19: 2168.905259 | BI19: 2438.340253 | BJ19: 2538.506077 | BK19: 2939.855338 | BL19: 2472.013983 | BM19: 2016.154489 | BO19: 1929 | BP19: =D97 -> 2431.36564 | BQ19: =D98 -> 2335.80874 | BR19: =D99 -> 2405.689755 | BS19: =D100 -> 2669.936618 | BT19: =D101 -> 2856.670937 | BU19: =D102 -> 2987.649148 | BV19: =D103 -> 3143.79454 | BW19: =D104 -> 2965.087065 | BX19: =D105 -> 2755.583554 | BY19: =D106 -> 2504.222964 | BZ19: =D107 -> 2230.197194 | CA19: =D108 -> 2143.670996 | CC19: 2538.387182 | CD19: 2541.397926 | CE19: 2619.139763 | CG19: 2595.522689 | CH19: 2205.585825 | CI19: 2454.789118 | CJ19: 2557.288737 | CK19: 2975.6645 | CL19: 2511.095686 | CM19: 2053.626647 | CO19: 1929 | CP19: =E97 -> 2431.409618 | CQ19: =E98 -> 2335.851742 | CR19: =E99 -> 2405.735225 | CS19: =E100 -> 2669.98206 | CT19: =E101 -> 2856.716346 | CU19: =E102 -> 2987.687291 | CV19: =E103 -> 3143.831477 | CW19: =E104 -> 2965.12318 | CX19: =E105 -> 2755.617654 | CY19: =E106 -> 2504.255709 | CZ19: =E107 -> 2230.229153 | DA19: =E108 -> 2143.702513 | DC19: 2538.415263 | DD19: 2541.418606 | DE19: 2619.178497 | DG19: 2595.566765 | DH19: 2205.612864 | DI19: 2454.827915 | DJ19: 2557.333776 | DK19: 2975.702237 | DL19: 2511.128841 | DM19: 2053.643497 | DO19: 1929 | DP19: =F97 -> 2419.862651 | DQ19: =F98 -> 2324.312496 | DR19: =F99 -> 2394.195437 | DS19: =F100 -> 2658.449695 | DT19: =F101 -> 2845.192141 | DU19: =F102 -> 2972.868083 | DV19: =F103 -> 3114.260583 | DW19: =F104 -> 2933.759321 | DX19: =F105 -> 2725.51516 | DY19: =F106 -> 2476.722317 | DZ19: =F107 -> 2203.20021 | EA19: =F108 -> 2116.957697 | EC19: 2516.074831 | ED19: 2521.900028 | EE19: 2598.774649 | EG19: 2583.703027 | EH19: 2178.328156 | EI19: 2444.7289 | EJ19: 2545.79915 | EK19: 2951.560409 | EL19: 2482.699049 | EM19: 2024.906825 | EO19: 1929 | EP19: =G97 -> 2432.065601 | EQ19: =G98 -> 2336.445965 | ER19: =G99 -> 2406.359694 | ES19: =G100 -> 2670.606129 | ET19: =G101 -> 2857.339974 | EU19: =G102 -> 2982.852871 | EV19: =G103 -> 3124.035708 | EW19: =G104 -> 2943.486526 | EX19: =G105 -> 2734.920421 | EY19: =G106 -> 2486.061543 | EZ19: =G107 -> 2212.455441 | FA19: =G108 -> 2126.162776 | FC19: 2526.571457 | FD19: 2532.624608 | FE19: 2609.399387 | FG19: 2595.6422 | FH19: 2187.360852 | FI19: 2455.374363 | FJ19: 2557.952931 | FK19: 2961.626325 | FL19: 2492.065514 | FM19: 2034.411766 | FO19: 1929 | FP19: =H97 -> 2423.668783 | FQ19: =H98 -> 2328.055293 | FR19: =H99 -> 2397.987652 | FS19: =H100 -> 2662.239449 | FT19: =H101 -> 2848.979214 | FU19: =H102 -> 2969.214741 | FV19: =H103 -> 3109.919301 | FW19: =H104 -> 2931.123468 | FX19: =H105 -> 2722.939738 | FY19: =H106 -> 2475.158186 | FZ19: =H107 -> 2201.611503 | GA19: =H108 -> 2115.343552 | GC19: 2511.368616 | GD19: 2509.467831 | GE19: 2598.853407 | GG19: 2586.740674 | GH19: 2176.855086 | GI19: 2448.03794 | GJ19: 2549.581452 | GK19: 2949.054246 | GL19: 2480.735734 | GM19: 2023.382281 | GO19: 1929 | GP19: =I97 -> 2414.988151 | GQ19: =I98 -> 2319.389382 | GR19: =I99 -> 2389.314716 | GS19: =I100 -> 2653.572246 | GT19: =I101 -> 2840.318144 | GU19: =I102 -> 2962.070594 | GV19: =I103 -> 3102.915904 | GW19: =I104 -> 2924.150601 | GX19: =I105 -> 2716.195485 | GY19: =I106 -> 2468.330648 | GZ19: =I107 -> 2194.650877 | HA19: =I108 -> 2108.412281 | HC19: 2504.347754 | HD19: 2502.589616 | HE19: 2591.192419 | HG19: 2578.224772 | HH19: 2170.637095 | HI19: 2440.44898 | HJ19: 2540.913575 | HK19: 2941.848479 | HL19: 2473.864613 | HM19: 2017.708872 | HO19: 1929 | HP19: =J97 -> 2431.667677 | HQ19: =J98 -> 2336.107865 | HR19: =J99 -> 2405.988029 | HS19: =J100 -> 2670.234701 | HT19: =J101 -> 2856.968809 | HU19: =J102 -> 2987.89375 | HV19: =J103 -> 3144.048789 | HW19: =J104 -> 2965.342007 | HX19: =J105 -> 2755.831598 | HY19: =J106 -> 2504.469893 | HZ19: =J107 -> 2230.453071 | IA19: =J108 -> 2143.938056 | IC19: 2538.65669 | ID19: 2541.66581 | IE19: 2619.412021 | IG19: 2595.816023 | IH19: 2205.849467 | II19: 2455.051267 | IJ19: 2557.587022 | IK19: 2975.921188 | IL19: 2511.348649 | IM19: 2053.9028 | IO19: 1929 | IP19: =K97 -> 2431.774817 | IQ19: =K98 -> 2336.213196 | IR19: =K99 -> 2406.094091 | IS19: =K100 -> 2670.340695 | IT19: =K101 -> 2857.074728 | IU19: =K102 -> 2987.980189 | IV19: =K103 -> 3144.133366 | IW19: =K104 -> 2965.426255 | IX19: =K105 -> 2755.9132 | IY19: =K106 -> 2504.550736 | IZ19: =K107 -> 2230.532917 | JA19: =K108 -> 2144.017591 | JC19: =IF(JC$11="AVG",AVERAGE(IS19:JA19,IP20:IR20),SUM(IS19:JA19,IP20:IR20)) -> 2538.741208 | JD19: =IF(JD$11="AVG",AVERAGE(IU19:JA19,IP20:IT20),SUM(IU19:JA19,IP20:IT20)) -> 2541.745145 | JE19: =IF(JE$11="AVG",AVERAGE(IP19:JA19),SUM(IP19:JA19)) -> 2619.504315 | JG19: =IF(JG$11="AVG",IF(JI$1="INST-VAL",AVERAGE(IP19:IT19,IQ19:IU19),AVERAGE(IQ19:IU19)),SUM(IQ19:IU19)) -> 2595.920043 | JH19: =IF(JH$11="AVG",IF(JI$1="INST-VAL",AVERAGE(IY19:JA19,IZ19:JA19,IP20),AVERAGE(IZ19:JA19,IP20)),SUM(IZ19:JA19,IP20)) -> 2205.928611 | JI19: =IF(JI$11="AVG",IF(JI$1="INST-VAL",AVERAGE(JA18,IP19:IR19,IP19:IS19),AVERAGE(IP19:IS19)),SUM(IP19:IS19)) -> 2455.14416 | JJ19: =IF(JJ$11="AVG",IF(JI$1="INST-VAL",AVERAGE(IQ19:IS19,IR19:IT19),AVERAGE(IR19:IT19)),SUM(IR19:IT19)) -> 2557.692916 | JK19: =IF(JK$11="AVG",IF(JI$1="INST-VAL",AVERAGE(IT19:IW19,IU19:IX19),AVERAGE(IU19:IX19)),SUM(IU19:IX19)) -> 2976.008443 | JL19: =IF(JL$11="AVG",IF(JI$1="INST-VAL",AVERAGE(IW19:IZ19,IX19:JA19),AVERAGE(IX19:JA19)),SUM(IX19:JA19)) -> 2511.429694 | JM19: =IF(JM$11="AVG",IF(JI$1="INST-VAL",AVERAGE(IZ19:JA19,IP20,JA19,IP20:IQ20),AVERAGE(JA19,IP20:IQ20)),SUM(JA19,IP20:IQ20)) -> 2053.980206
A20: 1922-05-31 | B20: =INDIRECT(CONCATENATE("'",B$1,"'!",B$4,(YEAR($A20)-1921)*12+MONTH($A20)+3+IF(ISNUMBER(FIND("PRV",B$6)),1,0)))*IF(AND(B$3>0,TRIM(B$9)="CFS"),Conversions!$C20,1) -> 4552 | C20: =INDIRECT(CONCATENATE("'",C$1,"'!",C$4,(YEAR($A20)-1921)*12+MONTH($A20)+3+IF(ISNUMBER(FIND("PRV",C$6)),1,0)))*IF(AND(C$3>0,TRIM(C$9)="CFS"),Conversions!$C20,1) -> 4552 | D20: =INDIRECT(CONCATENATE("'",D$1,"'!",D$4,(YEAR($A20)-1921)*12+MONTH($A20)+3+IF(ISNUMBER(FIND("PRV",D$6)),1,0)))*IF(AND(D$3>0,TRIM(D$9)="CFS"),Conversions!$C20,1) -> 4552 | E20: =INDIRECT(CONCATENATE("'",E$1,"'!",E$4,(YEAR($A20)-1921)*12+MONTH($A20)+3+IF(ISNUMBER(FIND("PRV",E$6)),1,0)))*IF(AND(E$3>0,TRIM(E$9)="CFS"),Conversions!$C20,1) -> 4552 | F20: =INDIRECT(CONCATENATE("'",F$1,"'!",F$4,(YEAR($A20)-1921)*12+MONTH($A20)+3+IF(ISNUMBER(FIND("PRV",F$6)),1,0)))*IF(AND(F$3>0,TRIM(F$9)="CFS"),Conversions!$C20,1) -> 4552 | G20: =INDIRECT(CONCATENATE("'",G$1,"'!",G$4,(YEAR($A20)-1921)*12+MONTH($A20)+3+IF(ISNUMBER(FIND("PRV",G$6)),1,0)))*IF(AND(G$3>0,TRIM(G$9)="CFS"),Conversions!$C20,1) -> 4552 | H20: =INDIRECT(CONCATENATE("'",H$1,"'!",H$4,(YEAR($A20)-1921)*12+MONTH($A20)+3+IF(ISNUMBER(FIND("PRV",H$6)),1,0)))*IF(AND(H$3>0,TRIM(H$9)="CFS"),Conversions!$C20,1) -> 4552 | I20: =INDIRECT(CONCATENATE("'",I$1,"'!",I$4,(YEAR($A20)-1921)*12+MONTH($A20)+3+IF(ISNUMBER(FIND("PRV",I$6)),1,0)))*IF(AND(I$3>0,TRIM(I$9)="CFS"),Conversions!$C20,1) -> 4552 | J20: =INDIRECT(CONCATENATE("'",J$1,"'!",J$4,(YEAR($A20)-1921)*12+MONTH($A20)+3+IF(ISNUMBER(FIND("PRV",J$6)),1,0)))*IF(AND(J$3>0,TRIM(J$9)="CFS"),Conversions!$C20,1) -> 4552 | K20: =INDIRECT(CONCATENATE("'",K$1,"'!",K$4,(YEAR($A20)-1921)*12+MONTH($A20)+3+IF(ISNUMBER(FIND("PRV",K$6)),1,0)))*IF(AND(K$3>0,TRIM(K$9)="CFS"),Conversions!$C20,1) -> 4552 | O20: 1930 | P20: =B109 -> 1863.198136 | Q20: =B110 -> 1717.000459 | R20: =B111 -> 2257.161218 | S20: =B112 -> 2459.0266 | T20: =B113 -> 2855.987638 | U20: =B114 -> 3347.961379 | V20: =B115 -> 3580.508024 | W20: =B116 -> 3548.249617 | X20: =B117 -> 3222.724403 | Y20: =B118 -> 2861.210475 | Z20: =B119 -> 2569.251152 | AA20: =B120 -> 2532.002882 | AC20: 2858.774705 | AD20: 2834.662671 | AE20: 2734.523499 | AG20: 2378.951135 | AH20: 2590.910887 | AI20: 2019.238591 | AJ20: 2334.227289 | AK20: 3379.01876 | AL20: 2923.32807 | AM20: 2508.105343 | AO20: 1930 | AP20: =C109 -> 1948.114007 | AQ20: =C110 -> 1794.692853 | AR20: =C111 -> 2334.791524 | AS20: =C112 -> 2536.602237 | AT20: =C113 -> 2933.488521 | AU20: =C114 -> 3425.352623 | AV20: =C115 -> 3657.741632 | AW20: =C116 -> 3637.34285 | AX20: =C117 -> 3316.775674 | AY20: =C118 -> 2955.878178 | AZ20: =C119 -> 2684.748232 | BA20: =C120 -> 2653.842406 | BC20: 2945.00975 | BD20: 2912.509244 | BE20: 2823.280895 | BG20: 2457.26169 | BH20: 2707.406211 | BI20: 2099.798851 | BJ20: 2411.828149 | BK20: 3461.392301 | BL20: 3025.748678 | BM20: 2620.027693 | BO20: 1930 | BP20: =D109 -> 1981.555605 | BQ20: =D110 -> 1841.109485 | BR20: =D111 -> 2381.168083 | BS20: =D112 -> 2582.946138 | BT20: =D113 -> 2979.790338 | BU20: =D114 -> 3471.588936 | BV20: =D115 -> 3703.883768 | BW20: =D116 -> 3726.766007 | BX20: =D117 -> 3404.864264 | BY20: =D118 -> 3041.576254 | BZ20: =D119 -> 2767.811303 | CA20: =D120 -> 2734.187882 | CC20: 3014.118965 | CD20: 2985.712959 | CE20: 2884.770672 | CG20: 2502.317263 | CH20: 2790.751598 | CI20: 2141.785435 | CJ20: 2458.188044 | CK20: 3523.641503 | CL20: 3111.182191 | CM20: 2699.694043 | CO20: 1930 | CP20: =E109 -> 1981.558145 | CQ20: =E110 -> 1841.110513 | CR20: =E111 -> 2381.169111 | CS20: =E112 -> 2582.947165 | CT20: =E113 -> 2979.791364 | CU20: =E114 -> 3471.589961 | CV20: =E115 -> 3703.884791 | CW20: =E116 -> 3726.765083 | CX20: =E117 -> 3404.862978 | CY20: =E118 -> 3041.574575 | CZ20: =E119 -> 2767.80933 | DA20: =E120 -> 2734.185334 | DC20: 3014.118225 | DD20: 2985.711833 | DE20: 2884.770696 | DG20: 2502.318441 | DH20: 2790.749579 | DI20: 2141.790652 | DJ20: 2458.189071 | DK20: 3523.641751 | DL20: 3111.180523 | DM20: 2699.692084 | DO20: 1930 | DP20: =F109 -> 1952.930803 | DQ20: =F110 -> 1806.46374 | DR20: =F111 -> 2386.578216 | DS20: =F112 -> 2588.35246 | DT20: =F113 -> 2985.191744 | DU20: =F114 -> 3476.982701 | DV20: =F115 -> 3709.266547 | DW20: =F116 -> 3689.001012 | DX20: =F117 -> 3368.093053 | DY20: =F118 -> 3006.832977 | DZ20: =F119 -> 2734.629918 | EA20: =F120 -> 2704.169641 | EC20: 2992.403867 | ED20: 2956.58594 | EE20: 2867.374401 | EG20: 2496.308583 | EH20: 2757.461418 | EI20: 2124.656959 | EJ20: 2456.919473 | EK20: 3512.973165 | EL20: 3076.535319 | EM20: 2665.963173 | EO20: 1930 | EP20: =G109 -> 1960.867138 | EQ20: =G110 -> 1819.955328 | ER20: =G111 -> 2400.113635 | ES20: =G112 -> 2601.878465 | ET20: =G113 -> 2998.705444 | EU20: =G114 -> 3490.477283 | EV20: =G115 -> 3722.733642 | EW20: =G116 -> 3702.283783 | EX20: =G117 -> 3381.16611 | EY20: =G118 -> 3019.616027 | EZ20: =G119 -> 2746.603359 | FA20: =G120 -> 2715.938915 | FC20: 3004.313245 | FD20: 2967.414548 | FE20: 2880.028261 | FG20: 2509.265017 | FH20: 2769.663881 | FI20: 2136.23918 | FJ20: 2470.440829 | FK20: 3526.357621 | FL20: 3089.124211 | FM20: 2677.203778 | FO20: 1930 | FP20: =H109 -> 1952.062223 | FQ20: =H110 -> 1803.870635 | FR20: =H111 -> 2343.961382 | FS20: =H112 -> 2545.765638 | FT20: =H113 -> 2942.64361 | FU20: =H114 -> 3434.494759 | FV20: =H115 -> 3666.865148 | FW20: =H116 -> 3646.854182 | FX20: =H117 -> 3326.399865 | FY20: =H118 -> 2965.5211 | FZ20: =H119 -> 2693.763407 | GA20: =H120 -> 2662.99029 | GC20: 2953.712371 | GD20: 2920.751089 | GE20: 2832.099353 | GG20: 2465.903951 | GH20: 2716.564938 | GI20: 2107.612209 | GJ20: 2420.994714 | GK20: 3470.683957 | GL20: 3035.151652 | GM20: 2628.493866 | GO20: 1930 | GP20: =I109 -> 1949.365607 | GQ20: =I110 -> 1796.046578 | GR20: =I111 -> 2336.14408 | GS20: =I112 -> 2537.953841 | GT20: =I113 -> 2934.8389 | GU20: =I114 -> 3426.701091 | GV20: =I115 -> 3659.087354 | GW20: =I116 -> 3639.096322 | GX20: =I117 -> 3318.706174 | GY20: =I118 -> 2958.038752 | GZ20: =I119 -> 2686.775174 | HA20: =I120 -> 2657.416554 | HC20: 2946.846108 | HD20: 2914.409737 | HE20: 2825.014202 | HG20: 2458.60335 | HH20: 2709.988655 | HI20: 2101.184832 | HJ20: 2413.18022 | HK20: 3462.914326 | HL20: 3027.944135 | HM20: 2622.488286 | HO20: 1930 | HP20: =J109 -> 1981.844656 | HQ20: =J110 -> 1841.398301 | HR20: =J111 -> 2381.456651 | HS20: =J112 -> 2583.234502 | HT20: =J113 -> 2980.07844 | HU20: =J114 -> 3471.876631 | HV20: =J115 -> 3704.170877 | HW20: =J116 -> 3693.138857 | HX20: =J117 -> 3371.642703 | HY20: =J118 -> 3008.285097 | HZ20: =J119 -> 2735.864986 | IA20: =J120 -> 2699.271637 | IC20: 2993.176952 | ID20: 2960.815081 | IE20: 2871.021945 | IG20: 2502.605707 | IH20: 2757.955862 | II20: 2142.071472 | IJ20: 2458.476508 | IK20: 3511.261734 | IL20: 3077.999508 | IM20: 2667.441867 | IO20: 1930 | IP20: =K109 -> 1981.919912 | IQ20: =K110 -> 1841.473312 | IR20: =K111 -> 2381.531597 | IS20: =K112 -> 2583.309395 | IT20: =K113 -> 2980.153265 | IU20: =K114 -> 3471.95135 | IV20: =K115 -> 3704.245444 | IW20: =K116 -> 3693.2123 | IX20: =K117 -> 3371.71557 | IY20: =K118 -> 3008.492703 | IZ20: =K119 -> 2735.87746 | JA20: =K120 -> 2699.97339 | JC20: =IF(JC$11="AVG",AVERAGE(IS20:JA20,IP21:IR21),SUM(IS20:JA20,IP21:IR21)) -> 2993.257172 | JD20: =IF(JD$11="AVG",AVERAGE(IU20:JA20,IP21:IT21),SUM(IU20:JA20,IP21:IT21)) -> 2960.817735 | JE20: =IF(JE$11="AVG",AVERAGE(IP20:JA20),SUM(IP20:JA20)) -> 2871.154642 | JG20: =IF(JG$11="AVG",IF(JI$1="INST-VAL",AVERAGE(IP20:IT20,IQ20:IU20),AVERAGE(IQ20:IU20)),SUM(IQ20:IU20)) -> 2502.68064 | JH20: =IF(JH$11="AVG",IF(JI$1="INST-VAL",AVERAGE(IY20:JA20,IZ20:JA20,IP21),AVERAGE(IZ20:JA20,IP21)),SUM(IZ20:JA20,IP21)) -> 2758.178524 | JI20: =IF(JI$11="AVG",IF(JI$1="INST-VAL",AVERAGE(JA19,IP20:IR20,IP20:IS20),AVERAGE(IP20:IS20)),SUM(IP20:IS20)) -> 2142.147079 | JJ20: =IF(JJ$11="AVG",IF(JI$1="INST-VAL",AVERAGE(IQ20:IS20,IR20:IT20),AVERAGE(IR20:IT20)),SUM(IR20:IT20)) -> 2458.551427 | JK20: =IF(JK$11="AVG",IF(JI$1="INST-VAL",AVERAGE(IT20:IW20,IU20:IX20),AVERAGE(IU20:IX20)),SUM(IU20:IX20)) -> 3511.335878 | JL20: =IF(JL$11="AVG",IF(JI$1="INST-VAL",AVERAGE(IW20:IZ20,IX20:JA20),AVERAGE(IX20:JA20)),SUM(IX20:JA20)) -> 3078.169645 | JM20: =IF(JM$11="AVG",IF(JI$1="INST-VAL",AVERAGE(IZ20:JA20,IP21,JA20,IP21:IQ21),AVERAGE(JA20,IP21:IQ21)),SUM(JA20,IP21:IQ21)) -> 2667.625605
A21: 1922-06-30 | B21: =INDIRECT(CONCATENATE("'",B$1,"'!",B$4,(YEAR($A21)-1921)*12+MONTH($A21)+3+IF(ISNUMBER(FIND("PRV",B$6)),1,0)))*IF(AND(B$3>0,TRIM(B$9)="CFS"),Conversions!$C21,1) -> 4288.190126 | C21: =INDIRECT(CONCATENATE("'",C$1,"'!",C$4,(YEAR($A21)-1921)*12+MONTH($A21)+3+IF(ISNUMBER(FIND("PRV",C$6)),1,0)))*IF(AND(C$3>0,TRIM(C$9)="CFS"),Conversions!$C21,1) -> 4318.89356 | D21: =INDIRECT(CONCATENATE("'",D$1,"'!",D$4,(YEAR($A21)-1921)*12+MONTH($A21)+3+IF(ISNUMBER(FIND("PRV",D$6)),1,0)))*IF(AND(D$3>0,TRIM(D$9)="CFS"),Conversions!$C21,1) -> 4318.439927 | E21: =INDIRECT(CONCATENATE("'",E$1,"'!",E$4,(YEAR($A21)-1921)*12+MONTH($A21)+3+IF(ISNUMBER(FIND("PRV",E$6)),1,0)))*IF(AND(E$3>0,TRIM(E$9)="CFS"),Conversions!$C21,1) -> 4317.199031 | F21: =INDIRECT(CONCATENATE("'",F$1,"'!",F$4,(YEAR($A21)-1921)*12+MONTH($A21)+3+IF(ISNUMBER(FIND("PRV",F$6)),1,0)))*IF(AND(F$3>0,TRIM(F$9)="CFS"),Conversions!$C21,1) -> 4318.468993 | G21: =INDIRECT(CONCATENATE("'",G$1,"'!",G$4,(YEAR($A21)-1921)*12+MONTH($A21)+3+IF(ISNUMBER(FIND("PRV",G$6)),1,0)))*IF(AND(G$3>0,TRIM(G$9)="CFS"),Conversions!$C21,1) -> 4318.398581 | H21: =INDIRECT(CONCATENATE("'",H$1,"'!",H$4,(YEAR($A21)-1921)*12+MONTH($A21)+3+IF(ISNUMBER(FIND("PRV",H$6)),1,0)))*IF(AND(H$3>0,TRIM(H$9)="CFS"),Conversions!$C21,1) -> 4318.566047 | I21: =INDIRECT(CONCATENATE("'",I$1,"'!",I$4,(YEAR($A21)-1921)*12+MONTH($A21)+3+IF(ISNUMBER(FIND("PRV",I$6)),1,0)))*IF(AND(I$3>0,TRIM(I$9)="CFS"),Conversions!$C21,1) -> 4318.566047 | J21: =INDIRECT(CONCATENATE("'",J$1,"'!",J$4,(YEAR($A21)-1921)*12+MONTH($A21)+3+IF(ISNUMBER(FIND("PRV",J$6)),1,0)))*IF(AND(J$3>0,TRIM(J$9)="CFS"),Conversions!$C21,1) -> 4318.245803 | K21: =INDIRECT(CONCATENATE("'",K$1,"'!",K$4,(YEAR($A21)-1921)*12+MONTH($A21)+3+IF(ISNUMBER(FIND("PRV",K$6)),1,0)))*IF(AND(K$3>0,TRIM(K$9)="CFS"),Conversions!$C21,1) -> 4318.245803 | O21: 1931 | P21: =B121 -> 2481.746776 | Q21: =B122 -> 2451.881589 | R21: =B123 -> 2394.745927 | S21: =B124 -> 2470.880011 | T21: =B125 -> 2554.789817 | U21: =B126 -> 2697.386105 | V21: =B127 -> 2662.933187 | W21: =B128 -> 2368.386343 | X21: =B129 -> 2052.283172 | Y21: =B130 -> 1670.081728 | Z21: =B131 -> 1423.491397 | AA21: =B132 -> 1330.316421 | AC21: 1893.598884 | AD21: 1728.72947 | AE21: 2213.24354 | AG21: 2492.372757 | AH21: 1387.632171 | AI21: 2457.453935 | AJ21: 2456.320547 | AK21: 2508.060533 | AL21: 1748.80192 | AM21: 1243.067117 | AO21: 1931 | AP21: =C121 -> 2611.377813 | AQ21: =C122 -> 2504.977486 | AR21: =C123 -> 2421.989342 | AS21: =C124 -> 2498.103573 | AT21: =C125 -> 2581.981123 | AU21: =C126 -> 2744.784754 | AV21: =C127 -> 2639.416346 | AW21: =C128 -> 2342.603182 | AX21: =C129 -> 2030.545763 | AY21: =C130 -> 1655.86161 | AZ21: =C131 -> 1384.580514 | BA21: =C132 -> 1290.382007 | BC21: 1884.156112 | BD21: 1712.399378 | BE21: 2225.550293 | BG21: 2537.026561 | BH21: 1355.189943 | BI21: 2528.579408 | BJ21: 2487.857406 | BK21: 2508.266931 | BL21: 1721.870121 | BM21: 1213.331628 | BO21: 1931 | BP21: =D121 -> 2698.934966 | BQ21: =D122 -> 2564.107257 | BR21: =D123 -> 2492.970471 | BS21: =D124 -> 2569.032962 | BT21: =D125 -> 2652.831444 | BU21: =D126 -> 2815.53009 | BV21: =D127 -> 2693.460003 | BW21: =D128 -> 2384.668974 | BX21: =D129 -> 2059.332217 | BY21: =D130 -> 1679.123998 | BZ21: =D131 -> 1417.211969 | CA21: =D132 -> 1314.78826 | CC21: 1917.633056 | CD21: 1732.717853 | CE21: 2278.499384 | CG21: 2607.234932 | CH21: 1378.051268 | CI21: 2601.905779 | CJ21: 2556.824261 | CK21: 2562.435224 | CL21: 1751.3492 | CM21: 1225.529338 | CO21: 1931 | CP21: =E121 -> 2698.93357 | CQ21: =E122 -> 2564.105367 | CR21: =E123 -> 2492.96918 | CS21: =E124 -> 2569.031672 | CT21: =E125 -> 2652.830155 | CU21: =E126 -> 2815.528804 | CV21: =E127 -> 2693.458682 | CW21: =E128 -> 2384.667203 | CX21: =E129 -> 2059.329965 | CY21: =E130 -> 1679.121887 | CZ21: =E131 -> 1417.16271 | DA21: =E132 -> 1314.757443 | DC21: 1917.624867 | DD21: 1732.711008 | DE21: 2278.491387 | DG21: 2607.233512 | DH21: 1378.020816 | DI21: 2601.904155 | DJ21: 2556.822871 | DK21: 2562.433687 | DL21: 1751.331721 | DM21: 1225.505171 | DO21: 1931 | DP21: =F121 -> 2660.336416 | DQ21: =F122 -> 2532.137009 | DR21: =F123 -> 2453.85293 | DS21: =F124 -> 2529.943939 | DT21: =F125 -> 2613.785139 | DU21: =F126 -> 2776.541752 | DV21: =F127 -> 2666.134641 | DW21: =F128 -> 2368.958999 | DX21: =F129 -> 2056.945447 | DY21: =F130 -> 1684.476624 | DZ21: =F131 -> 1439.003769 | EA21: =F132 -> 1345.609347 | EC21: 1917.130682 | ED21: 1742.423001 | EE21: 2260.643834 | EG21: 2569.63162 | EH21: 1401.892588 | EI21: 2565.845786 | EJ21: 2518.919314 | EK21: 2536.750171 | EL21: 1759.427503 | EM21: 1256.658686 | EO21: 1931 | EP21: =G121 -> 2673.282714 | EQ21: =G122 -> 2538.17605 | ER21: =G123 -> 2460.897145 | ES21: =G124 -> 2536.983019 | ET21: =G125 -> 2620.816528 | EU21: =G126 -> 2783.562742 | EV21: =G127 -> 2672.08923 | EW21: =G128 -> 2374.851402 | EX21: =G129 -> 2062.85789 | EY21: =G130 -> 1691.368062 | EZ21: =G131 -> 1445.936499 | FA21: =G132 -> 1352.520546 | FC21: 1923.949677 | FD21: 1748.069457 | FE21: 2267.778486 | FG21: 2577.059094 | FH21: 1408.818269 | FI21: 2574.704219 | FJ21: 2525.792151 | FK21: 2543.085146 | FL21: 1765.962106 | FM21: 1263.710089 | FO21: 1931 | FP21: =H121 -> 2620.361136 | FQ21: =H122 -> 2510.496939 | FR21: =H123 -> 2428.392383 | FS21: =H124 -> 2504.501948 | FT21: =H125 -> 2588.371916 | FU21: =H126 -> 2751.166101 | FV21: =H127 -> 2644.823649 | FW21: =H128 -> 2347.952271 | FX21: =H129 -> 2035.916456 | FY21: =H130 -> 1662.142577 | FZ21: =H131 -> 1416.681675 | GA21: =H132 -> 1323.362753 | GC21: 1894.924805 | GD21: 1723.138939 | GE21: 2236.180817 | GG21: 2543.505361 | GH21: 1379.614566 | GI21: 2535.749144 | GJ21: 2494.109586 | GK21: 2514.021552 | GL21: 1737.599555 | GM21: 1234.081997 | GO21: 1931 | GP21: =I121 -> 2613.509723 | GQ21: =I122 -> 2506.301987 | GR21: =I123 -> 2423.72743 | GS21: =I124 -> 2499.840394 | GT21: =I125 -> 2583.715886 | GU21: =I126 -> 2746.516953 | GV21: =I127 -> 2640.824424 | GW21: =I128 -> 2343.983302 | GX21: =I129 -> 2031.927034 | GY21: =I130 -> 1657.461954 | GZ21: =I131 -> 1386.303516 | HA21: =I132 -> 1292.100017 | HC21: 1885.793029 | HD21: 1714.036553 | HE21: 2227.184385 | HG21: 2538.719807 | HH21: 1356.894964 | HI21: 2530.541903 | HJ21: 2489.525587 | HK21: 2509.786535 | HL21: 1723.433541 | HM21: 1215.064253 | HO21: 1931 | HP21: =J121 -> 2669.176832 | HQ21: =J122 -> 2531.88928 | HR21: =J123 -> 2469.493577 | HS21: =J124 -> 2545.573185 | HT21: =J125 -> 2629.397306 | HU21: =J126 -> 2792.130829 | HV21: =J127 -> 2681.658876 | HW21: =J128 -> 2384.413226 | HX21: =J129 -> 2072.32592 | HY21: =J130 -> 1701.424682 | HZ21: =J131 -> 1455.776548 | IA21: =J132 -> 1362.400774 | IC21: 1934.047866 | ID21: 1757.715728 | IE21: 2274.63842 | IG21: 2581.401436 | IH21: 1418.687453 | II21: 2573.245525 | IJ21: 2531.903352 | IK21: 2552.266136 | IL21: 1775.733538 | IM21: 1273.277508 | IO21: 1931 | IP21: =K121 -> 2668.876741 | IQ21: =K122 -> 2532.175907 | IR21: =K123 -> 2469.102539 | IS21: =K124 -> 2545.182432 | IT21: =K125 -> 2629.006981 | IU21: =K126 -> 2791.74108 | IV21: =K127 -> 2680.520538 | IW21: =K128 -> 2383.235878 | IX21: =K129 -> 2071.173137 | IY21: =K130 -> 1700.222785 | IZ21: =K131 -> 1454.583686 | JA21: =K132 -> 1361.211303 | JC21: =IF(JC$11="AVG",AVERAGE(IS21:JA21,IP22:IR22),SUM(IS21:JA21,IP22:IR22)) -> 1933.049369 | JD21: =IF(JD$11="AVG",AVERAGE(IU21:JA21,IP22:IT22),SUM(IU21:JA21,IP22:IT22)) -> 1756.675444 | JE21: =IF(JE$11="AVG",AVERAGE(IP21:JA21),SUM(IP21:JA21)) -> 2273.919417 | JG21: =IF(JG$11="AVG",IF(JI$1="INST-VAL",AVERAGE(IP21:IT21,IQ21:IU21),AVERAGE(IQ21:IU21)),SUM(IQ21:IU21)) -> 2581.155354 | JH21: =IF(JH$11="AVG",IF(JI$1="INST-VAL",AVERAGE(IY21:JA21,IZ21:JA21,IP22),AVERAGE(IZ21:JA21,IP22)),SUM(IZ21:JA21,IP22)) -> 1417.495659 | JI21: =IF(JI$11="AVG",IF(JI$1="INST-VAL",AVERAGE(JA20,IP21:IR21,IP21:IS21),AVERAGE(IP21:IS21)),SUM(IP21:IS21)) -> 2573.183275 | JJ21: =IF(JJ$11="AVG",IF(JI$1="INST-VAL",AVERAGE(IQ21:IS21,IR21:IT21),AVERAGE(IR21:IT21)),SUM(IR21:IT21)) -> 2531.625472 | JK21: =IF(JK$11="AVG",IF(JI$1="INST-VAL",AVERAGE(IT21:IW21,IU21:IX21),AVERAGE(IU21:IX21)),SUM(IU21:IX21)) -> 2551.396889 | JL21: =IF(JL$11="AVG",IF(JI$1="INST-VAL",AVERAGE(IW21:IZ21,IX21:JA21),AVERAGE(IX21:JA21)),SUM(IX21:JA21)) -> 1774.5508 | JM21: =IF(JM$11="AVG",IF(JI$1="INST-VAL",AVERAGE(IZ21:JA21,IP22,JA21,IP22:IQ22),AVERAGE(JA21,IP22:IQ22)),SUM(JA21,IP22:IQ22)) -> 1272.072843
